Workbook

Sheet Main
G1: Panorama sociodemográfico
G2: de los municipios de Jalisco

Sheet DatosR
A2: Jalisco | B2: 1 | D2: 14 | E2: Jalisco
A3: Norte | B3: 2 | D3: 1 | E3: Norte | F3: Jalisco | G3: =VLOOKUP(F3,A2:B14,2,FALSE) -> 1
A4: Altos Norte | B4: 3 | D4: 2 | E4: Altos Norte
A5: Altos Sur | B5: 4 | D5: 3 | E5: Altos Sur
A6: Ciénega | B6: 5 | D6: 4 | E6: Ciénega
A7: Sureste | B7: 6 | D7: 5 | E7: Sureste
A8: Sur | B8: 7 | D8: 6 | E8: Sur
A9: Sierra de Amula | B9: 8 | D9: 7 | E9: Sierra de Amula
A10: Costa Sur | B10: 9 | D10: 8 | E10: Costa Sur
A11: Costa-Sierra Occidental | B11: 10 | D11: 9 | E11: Costa-Sierra Occidental
A12: Valles | B12: 11 | D12: 10 | E12: Valles
A13: Lagunas | B13: 12 | D13: 11 | E13: Lagunas
A14: Centro | B14: 13 | D14: 12 | E14: Centro
A142: Instituto de Información Estadística y Geográfica de Jalisco | E142: =G3 -> 1 | F142: =VLOOKUP(E142,B2:E14,3,FALSE) -> 14 | G142: =VLOOKUP(E142,B2:E14,4,FALSE) -> Jalisco
A143: Panorama sociodemográfico de los municipios de Jalisco
A144: Selección de Jalisco o Región:
A147: Volumen y estructura por edad y sexo | E147: Vivienda | H147: Economía
A148: Población total: | B148: =VLOOKUP($F$142,Pob!C2:J14,3,FALSE) -> 7844830 | E148: Total de viviendas particulares habitadas: | F148: =VLOOKUP($F$142,Viv!C$2:O$14,3,FALSE) -> 1830334 | H148: Población de 12 años y más | I148: Total | J148: Hombres | K148: Mujeres
A149: Relación hombre-mujer: | B149: =VLOOKUP($F$142,Pob!C2:J14,4,FALSE) -> 95.64333136 | E149: Promedio de ocupantes por vivienda*: | F149: =VLOOKUP($F$142,Viv!C$2:O$14,4,FALSE) -> 0.0401321 | H149: Económicamente activa: | I149: =VLOOKUP($F$142,PEA!C$2:S$14,3,FALSE) -> 0.5331952684 | J149: =VLOOKUP($F$142,PEA!C$2:S$14,4,FALSE) -> 0.7041662707 | K149: =VLOOKUP($F$142,PEA!C$2:S$14,5,FALSE) -> 0.3727363435
E150: *Se excluyen las viviendas sin información de ocupantes y su población estimada. | H150: Ocupada | I150: =VLOOKUP($F$142,PEA!C$2:S$14,6,FALSE) -> 0.962995589 | J150: =VLOOKUP($F$142,PEA!C$2:S$14,7,FALSE) -> 0.955415279 | K150: =VLOOKUP($F$142,PEA!C$2:S$14,8,FALSE) -> 0.9764356694
A151: Edad mediana: | B151: =VLOOKUP($F$142,Pob!C2:J14,5,FALSE) -> 27.49631774 | E151: Viviendas con piso de tierra: | F151: 0.279 | H151: No ocupada | I151: =VLOOKUP($F$142,PEA!C$2:S$14,9,FALSE) -> 0.03700441097 | J151: =VLOOKUP($F$142,PEA!C$2:S$14,10,FALSE) -> 0.04458472096 | K151: =VLOOKUP($F$142,PEA!C$2:S$14,11,FALSE) -> 0.02356433064
A153: Razón de dependencia: | B153: =VLOOKUP($F$142,Pob!C2:J14,6,FALSE) -> 53.70577521 | H153: No económicamente activa: | I153: =VLOOKUP($F$142,PEA!C$2:S$14,12,FALSE) -> 0.4641204865 | J153: =VLOOKUP($F$142,PEA!C$2:S$14,13,FALSE) -> 0.293485601 | K153: =VLOOKUP($F$142,PEA!C$2:S$14,14,FALSE) -> 0.6242639606
H155: No especificada: | I155: =VLOOKUP($F$142,PEA!C$2:S$14,15,FALSE) -> 0.002684245122 | J155: =VLOOKUP($F$142,PEA!C$2:S$14,16,FALSE) -> 0.002348128277 | K155: =VLOOKUP($F$142,PEA!C$2:S$14,17,FALSE) -> 0.002999695968
A156: Hombres | B156: Mujeres
A157: =VLOOKUP(F142,grapob!E130:AZ142,24,FALSE)*-1 -> 0.4888656631 | B157: =VLOOKUP(F142,grapob!E130:AZ142,47,FALSE) -> 0.5111343369
A167: =VLOOKUP($F$142,grapob!E130:AZ142,48,FALSE) -> Millones de personas
A168: Educación
A169: Tasa de alfabetización por grupo de edad:
A170: 15 a 24 años | B170: =VLOOKUP($F$142,'Tasa Alfab'!C2:F14,3,FALSE) -> 0.9872291896
A171: 25 años y más | B171: =VLOOKUP($F$142,'Tasa Alfab'!C2:F14,4,FALSE) -> 0.948435068
A173: Asistencia escolar por grupos de edad:
A174: 3 a 5 años | B174: =VLOOKUP($F$142,'Asist esc'!C$2:H$14,3,FALSE) -> 0.6147481689
A175: 6 a 11 años | B175: =VLOOKUP($F$142,'Asist esc'!C$2:H$14,4,FALSE) -> 0.9750106877
A176: 12 a 14 años | B176: =VLOOKUP($F$142,'Asist esc'!C$2:H$14,5,FALSE) -> 0.9208632774
A177: 15 a 24 años | B177: =VLOOKUP($F$142,'Asist esc'!C$2:H$14,6,FALSE) -> 0.4281474359
H178: Distribución territorial de la población
H179: Superficie (km2): | I179: =VLOOKUP($F$142,'Distr terr'!C2:G14,3,FALSE) -> 78583.57352
H180: Densidad de población (hab/km2): | I180: =VLOOKUP($F$142,'Distr terr'!C2:G14,4,FALSE) -> 99.82786031
A181: Derechohabiencia | E181: Limitaciones físicas o mentales* | H181: Localidades: | I181: =VLOOKUP($F$142,'Distr terr'!C2:G14,5,FALSE) -> 125
A182: Población derechohabiente: | B182: =VLOOKUP(F142,Derechoh!C2:K14,3,FALSE) -> 0.8076942394 | E182: Población con algún tipo de limitación: | F182: =VLOOKUP($F$142,Limit!C$2:L$15,3,FALSE) -> 0.04
E184: Población con discapacidad según tipo de limitación: | H184: Población indígena
E185: Caminar o moverse | F185: =VLOOKUP($F$142,Limit!C$2:L$14,4,FALSE) -> 167663 | H185: Población de 5 años y más que habla alguna lengua indígena: | J185: =VLOOKUP($F$142,Indig!C2:G14,3,FALSE) -> 55057
E186: Ver1 | F186: =VLOOKUP($F$142,Limit!C$2:L$14,5,FALSE) -> 68348
E187: Oír2 | F187: =VLOOKUP($F$142,Limit!C$2:L$14,6,FALSE) -> 29960
E188: Hablar o comunicarse | F188: =VLOOKUP($F$142,Limit!C$2:L$14,7,FALSE) -> 24196
E189: Atender el cuidado personal | F189: =VLOOKUP($F$142,Limit!C$2:L$14,8,FALSE) -> 15654
E190: Poner atención o aprender | F190: =VLOOKUP($F$142,Limit!C$2:L$14,9,FALSE) -> 15488
E191: Mental | F191: =VLOOKUP($F$142,Limit!C$2:L$14,10,FALSE) -> 34955
E192: 1 Incluye a las personas que aun con anteojos tenían dificultad para ver.
A193: * Incluye derechohabiencias múltiples. ** Incluye seguro médico para una nueva generación | E193: 2 Incluye a las personas que aun con aparato auditivo tenían dificultad para oír.
E194: *Información Estadística al año 2010

Sheet Datos
B2: 1 | D2: 14 | E2: Jalisco
B3: 2 | D3: 01 | E3: Norte | S3: =VLOOKUP($E$141,grapob!#REF!,1,FALSE) -> 
B4: 3 | D4: 02 | E4: Altos Norte
B5: 4 | D5: 03 | E5: Altos Sur
B6: 5 | D6: 04 | E6: Ciénega
B7: 6 | D7: 05 | E7: Sureste
B8: 7 | D8: 06 | E8: Sur
B9: 8 | D9: 07 | E9: Sierra de Amula
B10: 9 | D10: 08 | E10: Costa Sur
B11: 10 | D11: 09 | E11: Costa-Sierra Occidental
B12: 11 | D12: 10 | E12: Valles
B13: 12 | D13: 11 | E13: Lagunas
B14: 13 | D14: 12 | E14: Centro
A15: Acatic | B15: 1 | D15: 1 | E15: Acatic
A16: Acatlán de Juárez | B16: 2 | D16: 2 | E16: Acatlán de Juárez
A17: Ahualulco de Mercado | B17: 3 | D17: 3 | E17: Ahualulco de Mercado
A18: Amacueca | B18: 4 | D18: 4 | E18: Amacueca
A19: Amatitán | B19: 5 | D19: 5 | E19: Amatitán
A20: Ameca | B20: 6 | D20: 6 | E20: Ameca
A21: Arandas | B21: 8 | D21: 8 | E21: Arandas
A22: Atemajac de Brizuela | B22: 10 | D22: 10 | E22: Atemajac de Brizuela
A23: Atengo | B23: 11 | D23: 11 | E23: Atengo
A24: Atenguillo | B24: 12 | D24: 12 | E24: Atenguillo
A25: Atotonilco el Alto | B25: 13 | D25: 13 | E25: Atotonilco el Alto
A26: Atoyac | B26: 14 | D26: 14 | E26: Atoyac
A27: Autlán de Navarro | B27: 15 | D27: 15 | E27: Autlán de Navarro
A28: Ayotlán | B28: 16 | D28: 16 | E28: Ayotlán
A29: Ayutla | B29: 17 | D29: 17 | E29: Ayutla
A30: Bolaños | B30: 19 | D30: 19 | E30: Bolaños
A31: Cabo Corrientes | B31: 20 | D31: 20 | E31: Cabo Corrientes
A32: Cañadas de Obregón | B32: 117 | D32: 117 | E32: Cañadas de Obregón
A33: Casimiro Castillo | B33: 21 | D33: 21 | E33: Casimiro Castillo
A34: Chapala | B34: 30 | D34: 30 | E34: Chapala
A35: Chimaltitán | B35: 31 | D35: 31 | E35: Chimaltitán
A36: Chiquilistlán | B36: 32 | D36: 32 | E36: Chiquilistlán
A37: Cihuatlán | B37: 22 | D37: 22 | E37: Cihuatlán
A38: Cocula | B38: 24 | D38: 24 | E38: Cocula
A39: Colotlán | B39: 25 | D39: 25 | E39: Colotlán
A40: Concepción de Buenos Aires | B40: 26 | D40: 26 | E40: Concepción de Buenos Aires
A41: Cuautitlán de García Barragán | B41: 27 | D41: 27 | E41: Cuautitlán de García Barragán
A42: Cuautla | B42: 28 | D42: 28 | E42: Cuautla
A43: Cuquío | B43: 29 | D43: 29 | E43: Cuquío
A44: Degollado | B44: 33 | D44: 33 | E44: Degollado
A45: Ejutla | B45: 34 | D45: 34 | E45: Ejutla
A46: El Arenal | B46: 9 | D46: 9 | E46: El Arenal
A47: El Grullo | B47: 37 | D47: 37 | E47: El Grullo
A48: El Limón | B48: 54 | D48: 54 | E48: El Limón
A49: El Salto | B49: 70 | D49: 70 | E49: El Salto
A50: Encarnación de Díaz | B50: 35 | D50: 35 | E50: Encarnación de Díaz
A51: Etzatlán | B51: 36 | D51: 36 | E51: Etzatlán
A52: Gómez Farías | B52: 79 | D52: 79 | E52: Gómez Farías
A53: Guachinango | B53: 38 | D53: 38 | E53: Guachinango
A54: Guadalajara | B54: 39 | D54: 39 | E54: Guadalajara
A55: Hostotipaquillo | B55: 40 | D55: 40 | E55: Hostotipaquillo
A56: Huejúcar | B56: 41 | D56: 41 | E56: Huejúcar
A57: Huejuquilla el Alto | B57: 42 | D57: 42 | E57: Huejuquilla el Alto
A58: Ixtlahuacán de los Membrillos | B58: 44 | D58: 44 | E58: Ixtlahuacán de los Membrillos
A59: Ixtlahuacán del Río | B59: 45 | D59: 45 | E59: Ixtlahuacán del Río
A60: Jalostotitlán | B60: 46 | D60: 46 | E60: Jalostotitlán
A61: Jamay | B61: 47 | D61: 47 | E61: Jamay
A62: Jesús María | B62: 48 | D62: 48 | E62: Jesús María
A63: Jilotlán de los Dolores | B63: 49 | D63: 49 | E63: Jilotlán de los Dolores
A64: Jocotepec | B64: 50 | D64: 50 | E64: Jocotepec
A65: Juanacatlán | B65: 51 | D65: 51 | E65: Juanacatlán
A66: Juchitlán | B66: 52 | D66: 52 | E66: Juchitlán
A67: La Barca | B67: 18 | D67: 18 | E67: La Barca
A68: La Huerta | B68: 43 | D68: 43 | E68: La Huerta
A69: La Manzanilla de la Paz | B69: 57 | D69: 57 | E69: La Manzanilla de la Paz
A70: Lagos de Moreno | B70: 53 | D70: 53 | E70: Lagos de Moreno
A71: Magdalena | B71: 55 | D71: 55 | E71: Magdalena
A72: Mascota | B72: 58 | D72: 58 | E72: Mascota
A73: Mazamitla | B73: 59 | D73: 59 | E73: Mazamitla
A74: Mexticacán | B74: 60 | D74: 60 | E74: Mexticacán
A75: Mezquitic | B75: 61 | D75: 61 | E75: Mezquitic
A76: Mixtlán | B76: 62 | D76: 62 | E76: Mixtlán
A77: Ocotlán | B77: 63 | D77: 63 | E77: Ocotlán
A78: Ojuelos de Jalisco | B78: 64 | D78: 64 | E78: Ojuelos de Jalisco
A79: Pihuamo | B79: 65 | D79: 65 | E79: Pihuamo
A80: Poncitlán | B80: 66 | D80: 66 | E80: Poncitlán
A81: Puerto Vallarta | B81: 67 | D81: 67 | E81: Puerto Vallarta
A82: Quitupan | B82: 69 | D82: 69 | E82: Quitupan
A83: San Cristóbal de la Barranca | B83: 71 | D83: 71 | E83: San Cristóbal de la Barranca
A84: San Diego de Alejandría | B84: 72 | D84: 72 | E84: San Diego de Alejandría
A85: San Gabriel | B85: 113 | D85: 113 | E85: San Gabriel
A86: San Ignacio Cerro Gordo | B86: 125 | D86: 125 | E86: San Ignacio Cerro Gordo
A87: San Juan de los Lagos | B87: 73 | D87: 73 | E87: San Juan de los Lagos
A88: San Juanito de Escobedo | B88: 7 | D88: 7 | E88: San Juanito de Escobedo
A89: San Julián | B89: 74 | D89: 74 | E89: San Julián
A90: San Marcos | B90: 75 | D90: 75 | E90: San Marcos
A91: San Martín de Bolaños | B91: 76 | D91: 76 | E91: San Martín de Bolaños
A92: San Martín Hidalgo | B92: 77 | D92: 77 | E92: San Martín Hidalgo
A93: San Miguel el Alto | B93: 78 | D93: 78 | E93: San Miguel el Alto
A94: San Sebastián del Oeste | B94: 80 | D94: 80 | E94: San Sebastián del Oeste
A95: Santa María de los Ángeles | B95: 81 | D95: 81 | E95: Santa María de los Ángeles
A96: Santa María del Oro | B96: 56 | D96: 56 | E96: Santa María del Oro
A97: Sayula | B97: 82 | D97: 82 | E97: Sayula
A98: Tala | B98: 83 | D98: 83 | E98: Tala
A99: Talpa de Allende | B99: 84 | D99: 84 | E99: Talpa de Allende
A100: Tamazula de Gordiano | B100: 85 | D100: 85 | E100: Tamazula de Gordiano
A101: Tapalpa | B101: 86 | D101: 86 | E101: Tapalpa
A102: Tecalitlán | B102: 87 | D102: 87 | E102: Tecalitlán
A103: Techaluta de Montenegro | B103: 89 | D103: 89 | E103: Techaluta de Montenegro
A104: Tecolotlán | B104: 88 | D104: 88 | E104: Tecolotlán
A105: Tenamaxtlán | B105: 90 | D105: 90 | E105: Tenamaxtlán
A106: Teocaltiche | B106: 91 | D106: 91 | E106: Teocaltiche
A107: Teocuitatlán de Corona | B107: 92 | D107: 92 | E107: Teocuitatlán de Corona
A108: Tepatitlán de Morelos | B108: 93 | D108: 93 | E108: Tepatitlán de Morelos
A109: Tequila | B109: 94 | D109: 94 | E109: Tequila
A110: Teuchitlán | B110: 95 | D110: 95 | E110: Teuchitlán
A111: Tizapán el Alto | B111: 96 | D111: 96 | E111: Tizapán el Alto
A112: Tlajomulco de Zúñiga | B112: 97 | D112: 97 | E112: Tlajomulco de Zúñiga
A113: Tlaquepaque | B113: 98 | D113: 98 | E113: Tlaquepaque
A114: Tolimán | B114: 99 | D114: 99 | E114: Tolimán
A115: Tomatlán | B115: 100 | D115: 100 | E115: Tomatlán
A116: Tonalá | B116: 101 | D116: 101 | E116: Tonalá
A117: Tonaya | B117: 102 | D117: 102 | E117: Tonaya
A118: Tonila | B118: 103 | D118: 103 | E118: Tonila
A119: Totatiche | B119: 104 | D119: 104 | E119: Totatiche | H119: Acatic | I119: =VLOOKUP(H119,A15:D139,2,FALSE) -> 1
A120: Tototlán | B120: 105 | D120: 105 | E120: Tototlán
A121: Tuxcacuesco | B121: 106 | D121: 106 | E121: Tuxcacuesco
A122: Tuxcueca | B122: 107 | D122: 107 | E122: Tuxcueca
A123: Tuxpan | B123: 108 | D123: 108 | E123: Tuxpan
A124: Unión de San Antonio | B124: 109 | D124: 109 | E124: Unión de San Antonio
A125: Unión de Tula | B125: 110 | D125: 110 | E125: Unión de Tula
A126: Valle de Guadalupe | B126: 111 | D126: 111 | E126: Valle de Guadalupe
A127: Valle de Juárez | B127: 112 | D127: 112 | E127: Valle de Juárez
A128: Villa Corona | B128: 114 | D128: 114 | E128: Villa Corona
A129: Villa Guerrero | B129: 115 | D129: 115 | E129: Villa Guerrero
A130: Villa Hidalgo | B130: 116 | D130: 116 | E130: Villa Hidalgo
A131: Villa Purificación | B131: 68 | D131: 68 | E131: Villa Purificación
A132: Yahualica de González Gallo | B132: 118 | D132: 118 | E132: Yahualica de González Gallo
A133: Zacoalco de Torres | B133: 119 | D133: 119 | E133: Zacoalco de Torres
A134: Zapopan | B134: 120 | D134: 120 | E134: Zapopan
A135: Zapotiltic | B135: 121 | D135: 121 | E135: Zapotiltic
A136: Zapotitlán de Vadillo | B136: 122 | D136: 122 | E136: Zapotitlán de Vadillo
A137: Zapotlán del Rey | B137: 123 | D137: 123 | E137: Zapotlán del Rey
A138: Zapotlán el Grande | B138: 23 | D138: 23 | E138: Zapotlán el Grande
A139: Zapotlanejo | B139: 124 | D139: 124 | E139: Zapotlanejo
A141: Instituto de Información Estadística y Geográfica de Jalisco | E141: =I119 -> 1 | F141: =VLOOKUP(E141,B15:E139,3,FALSE) -> 1 | G141: =VLOOKUP(E141,B15:E139,4,FALSE) -> Acatic
A142: Panorama sociodemográfico de los municipios de Jalisco
A143: Selección de Municipio:
A146: Volumen y estructura por edad y sexo | E146: Vivienda | H146: Economía
A147: Población total: | B147: =VLOOKUP($E$141,Pob!C17:J141,3,FALSE) -> 21530 | E147: Total de viviendas particulares habitadas: | F147: =VLOOKUP($E$141,Viv!C$15:O$139,3,FALSE) -> 5254 | H147: Población de 12 años y más | I147: Total | J147: Hombres | K147: Mujeres
A148: Relación hombre-mujer: | B148: =VLOOKUP($E$141,Pob!C17:J141,4,FALSE) -> 94.59508315 | E148: Promedio de ocupantes por vivienda*: | F148: =VLOOKUP($E$141,Viv!C$15:O$139,4,FALSE) -> 0.04031785 | H148: Económicamente activa: | I148: =VLOOKUP($E$141,PEA!C$15:S$139,3,FALSE) -> 0.5443607195 | J148: =VLOOKUP($E$141,PEA!C$15:S$139,4,FALSE) -> 0.7467843632 | K148: =VLOOKUP($E$141,PEA!C$15:S$139,5,FALSE) -> 0.3560872625
E149: *Se excluyen las viviendas sin información de ocupantes y su población estimada. | H149: Ocupada | I149: =VLOOKUP($E$141,PEA!C$15:S$139,6,FALSE) -> 0.9843715115 | J149: =VLOOKUP($E$141,PEA!C$15:S$139,7,FALSE) -> 0.9817629179 | K149: =VLOOKUP($E$141,PEA!C$15:S$139,8,FALSE) -> 0.9894598155
A150: Edad mediana: | B150: =VLOOKUP($E$141,Pob!C17:J141,5,FALSE) -> 26.4068885 | E150: Viviendas con piso de tierra: | F150: =VLOOKUP($E$141,Viv!C$15:O$139,5,FALSE) -> 0.02398629 | H150: No ocupada | I150: =VLOOKUP($E$141,PEA!C$15:S$139,9,FALSE) -> 0.0156284885 | J150: =VLOOKUP($E$141,PEA!C$15:S$139,10,FALSE) -> 0.01823708207 | K150: =VLOOKUP($E$141,PEA!C$15:S$139,11,FALSE) -> 0.01054018445
A152: Razón de dependencia: | B152: =VLOOKUP($E$141,Pob!C17:J141,6,FALSE) -> 62.6378607 | H152: No económicamente activa: | I152: =VLOOKUP($E$141,PEA!C$15:S$139,12,FALSE) -> 0.4519324259 | J152: =VLOOKUP($E$141,PEA!C$15:S$139,13,FALSE) -> 0.2505674653 | K152: =VLOOKUP($E$141,PEA!C$15:S$139,14,FALSE) -> 0.6392212057
H154: No especificada: | I154: =VLOOKUP($E$141,PEA!C$15:S$139,15,FALSE) -> 0.003706854643 | J154: =VLOOKUP($E$141,PEA!C$15:S$139,16,FALSE) -> 0.002648171501 | K154: =VLOOKUP($E$141,PEA!C$15:S$139,17,FALSE) -> 0.004691531785
A155: Hombres | B155: Mujeres
A156: =VLOOKUP(E141,grapob!E3:AY127,24,FALSE) -> 0.4861124013 | B156: =VLOOKUP(E141,grapob!E3:AY127,47,FALSE) -> 0.5138875987
A166: =VLOOKUP($E$141,grapob!E3:AZ127,48,FALSE) -> Miles de personas
A167: Educación
A168: Tasa de alfabetización por grupo de edad:
A169: 15 a 24 años | B169: =VLOOKUP($E$141,'Tasa Alfab'!C15:F139,3,FALSE) -> 0.9765233448
A170: 25 años y más | B170: =VLOOKUP($E$141,'Tasa Alfab'!C15:F140,4,FALSE) -> 0.8817462434
A172: Asistencia escolar por grupos de edad:
A173: 3 a 5 años | B173: =VLOOKUP($E$141,'Asist esc'!C$15:H$139,3,FALSE) -> 0.5753526355
A174: 6 a 11 años | B174: =VLOOKUP($E$141,'Asist esc'!C$15:H$139,4,FALSE) -> 0.9743377483
A175: 12 a 14 años | B175: =VLOOKUP($E$141,'Asist esc'!C$15:H$139,5,FALSE) -> 0.8526093089
A176: 15 a 24 años | B176: =VLOOKUP($E$141,'Asist esc'!C$15:H$139,6,FALSE) -> 0.3012397784
H177: Distribución territorial de la población
H178: Superficie (km2): | I178: =VLOOKUP($E$141,'Distr terr'!C15:G139,3,FALSE) -> 339.2054025
H179: Densidad de población (hab/km2): | I179: =VLOOKUP($E$141,'Distr terr'!C15:G139,4,FALSE) -> 63.47186644
A180: Derechohabiencia | E180: Limitaciones físicas o mentales* | H180: Localidades: | I180: =VLOOKUP($E$141,'Distr terr'!C15:G139,5,FALSE) -> 100
A181: Población derechohabiente: | B181: =VLOOKUP(E141,Derechoh!C15:K139,3,FALSE) -> 0.8172317696 | E181: Población con algún tipo de limitación: | F181: =VLOOKUP($E$141,Limit!C$15:L$139,3,FALSE) -> 0.06
E183: Población con discapacidad según tipo de limitación: | H183: Población indígena
E184: Caminar o moverse | F184: =VLOOKUP($E$141,Limit!C$15:L$139,4,FALSE) -> 737 | H184: Población de 5 años y más que habla alguna lengua indígena: | J184: =VLOOKUP($E$141,Indig!C15:G139,3,FALSE) -> 23
E185: Ver1 | F185: =VLOOKUP($E$141,Limit!C$15:L$139,5,FALSE) -> 286
E186: Oír2 | F186: =VLOOKUP($E$141,Limit!C$15:L$139,6,FALSE) -> 131
E187: Hablar o comunicarse | F187: =VLOOKUP($E$141,Limit!C$15:L$139,7,FALSE) -> 105
E188: Atender el cuidado personal | F188: =VLOOKUP($E$141,Limit!C$15:L$139,8,FALSE) -> 56
E189: Poner atención o aprender | F189: =VLOOKUP($E$141,Limit!C$15:L$139,9,FALSE) -> 78
E190: Mental | F190: =VLOOKUP($E$141,Limit!C$15:L$139,10,FALSE) -> 135
E191: 1 Incluye a las personas que aun con anteojos tenían dificultad para ver.
A192: * Incluye derechohabiencias múltiples. ** Incluye seguro médico para una nueva generación | E192: 2 Incluye a las personas que aun con aparato auditivo tenían dificultad para oír.
E193: *Información Estadística al año 2010

Sheet DatosAM
A2: Área Metropolitana de Guadalajara | B2: 1 | D2: 14 | E2: Área Metropolitana de Guadalajara
A3: Guadalajara | B3: 39 | D3: 1 | E3: Guadalajara | F3: Área Metropolitana de Guadalajara | H3: =VLOOKUP(F3,A13:D22,4,FALSE) -> 1
A4: Ixtlahuacán de los Membrillos | B4: 44 | D4: 2 | E4: Ixtlahuacán de los Membrillos
A5: Juanacatlán | B5: 51 | D5: 3 | E5: Juanacatlán
A6: El Salto | B6: 70 | D6: 4 | E6: El Salto
A7: Tlajomulco de Zúñiga | B7: 97 | D7: 5 | E7: Tlajomulco de Zúñiga
A8: Tlaquepaque | B8: 98 | D8: 6 | E8: Tlaquepaque
A9: Tonalá | B9: 101 | D9: 7 | E9: Tonalá
A10: Zapopan | B10: 120 | D10: 8 | E10: Zapopan
A11: Zapotlanejo | B11: 124 | D11: 9 | E11: Zapotlanejo
A13: Área Metropolitana de Guadalajara | B13: 1 | D13: 1 | E13: Área Metropolitana de Guadalajara | F13: 1
A14: Guadalajara | B14: 39 | D14: 2 | E14: Guadalajara | F14: 39
A15: Ixtlahuacán de los Membrillos | B15: 44 | D15: 3 | E15: Ixtlahuacán de los Membrillos | F15: 44
A16: Juanacatlán | B16: 51 | D16: 4 | E16: Juanacatlán | F16: 51
A17: El Salto | B17: 70 | D17: 5 | E17: El Salto | F17: 70
A18: Tlajomulco de Zúñiga | B18: 97 | D18: 6 | E18: Tlajomulco de Zúñiga | F18: 97
A19: Tlaquepaque | B19: 98 | D19: 7 | E19: Tlaquepaque | F19: 98
A20: Tonalá | B20: 101 | D20: 8 | E20: Tonalá | F20: 101
A21: Zapopan | B21: 120 | D21: 9 | E21: Zapopan | F21: 120
A22: Zapotlanejo | B22: 124 | D22: 10 | E22: Zapotlanejo | F22: 124
A142: Instituto de Información Estadística y Geográfica de Jalisco | E142: =H3 -> 1 | F142: =VLOOKUP(E142,D13:G22,2,FALSE) -> Área Metropolitana de Guadalajara | G142: =VLOOKUP(E142,D13:F22,3,FALSE) -> 1
A143: Panorama sociodemográfico de los municipios de Jalisco
A144: Selección municipio o Área Metropolitana:
A147: Volumen y estructura por edad y sexo | E147: Vivienda | H147: Economía
A148: Población total: | B148: =VLOOKUP($E$142,PobInd.ZMG!A27:C36,3,FALSE) -> 4865122 | E148: Total de viviendas particulares habitadas: | F148: =VLOOKUP($E$142,VivZMG!A$15:N$24,3,FALSE) -> 1275327 | H148: Población de 12 años y más | I148: Total | J148: Hombres | K148: Mujeres
A149: Relación hombre-mujer: | B149: =VLOOKUP($E$142,AsisEscZMG!A$15:U$24,19,FALSE) -> 95.38603336 | E149: Promedio de ocupantes por vivienda*: | F149: =VLOOKUP($E$142,VivZMG!A$15:N$24,4,FALSE) -> 3.81 | H149: Económicamente activa: | I149: =VLOOKUP($E$142,PEAZMG!A$15:S$24,5,FALSE) -> 0.5584467953 | J149: =VLOOKUP($E$142,PEAZMG!A$15:S$24,6,FALSE) -> 0.7193317268 | K149: =VLOOKUP($E$142,PEAZMG!A$15:S$24,7,FALSE) -> 0.4076944638
E150: *Se excluyen las viviendas sin información de ocupantes y su población estimada. | H150: Ocupada | I150: =VLOOKUP($E$142,PEAZMG!A$15:S$24,8,FALSE) -> 0.5377878223 | J150: =VLOOKUP($E$142,PEAZMG!A$15:S$24,9,FALSE) -> 0.6874121316 | K150: =VLOOKUP($E$142,PEAZMG!A$15:S$24,10,FALSE) -> 0.3970182964
A151: Edad mediana: | B151: =VLOOKUP($E$142,AsisEscZMG!A$15:U$24,20,FALSE) -> 27.75588819 | E151: Viviendas con piso de tierra: | F151: =VLOOKUP($E$142,VivZMG!A$15:N$24,5,FALSE) -> 0.01074234294 | H151: No ocupada | I151: =VLOOKUP($E$142,PEAZMG!A$15:S$24,11,FALSE) -> 0.02096396923 | J151: =VLOOKUP($E$142,PEAZMG!A$15:S$24,12,FALSE) -> 0.03191959516 | K151: =VLOOKUP($E$142,PEAZMG!A$15:S$24,13,FALSE) -> 0.01067616741
A153: Razón de dependencia: | B153: =VLOOKUP($E$142,AsisEscZMG!A$15:U$24,21,FALSE) -> 50.19443596 | H153: No económicamente activa: | I153: =VLOOKUP($E$142,PEAZMG!A$15:S$24,14,FALSE) -> 0.4386797588 | J153: =VLOOKUP($E$142,PEAZMG!A$15:S$24,15,FALSE) -> 0.2780598763 | K153: =VLOOKUP($E$142,PEAZMG!A$15:S$24,16,FALSE) -> 0.5891837342
H155: No especificada: | I155: =VLOOKUP($E$142,PEAZMG!A$15:S$24,17,FALSE) -> 0.002873445916 | J155: =VLOOKUP($E$142,PEAZMG!A$15:S$24,18,FALSE) -> 0.002608396961 | K155: =VLOOKUP($E$142,PEAZMG!A$15:S$24,19,FALSE) -> 0.003121801978
A156: Hombres | B156: Mujeres
A157: =VLOOKUP(G142,grapob!E3:AY127,24,FALSE) -> 0.4861124013 | B157: =VLOOKUP(G142,grapob!E3:AY127,47,FALSE) -> 0.5138875987
A167: =VLOOKUP($E$142,grapobZMG!G3:BC12,49,FALSE) -> Miles de personas
A168: Educación
A169: Tasa de alfabetización por grupo de edad:
A170: 15 a 24 años | B170: =VLOOKUP($E$142,TasaalfZMG!A15:F24,5,FALSE) -> 0.9883664945
A171: 25 años y más | B171: =VLOOKUP($E$142,TasaalfZMG!A15:F24,6,FALSE) -> 0.9649021738
A173: Asistencia escolar por grupos de edad:
A174: 3 a 5 años | B174: =VLOOKUP($E$142,AsisEscZMG!A$15:H$25,5,FALSE) -> 0.515791808
A175: 6 a 11 años | B175: =VLOOKUP($E$142,AsisEscZMG!A$15:H$25,6,FALSE) -> 0.9738363858
A176: 12 a 14 años | B176: =VLOOKUP($E$142,AsisEscZMG!A$15:H$25,7,FALSE) -> 0.9274703884
A177: 15 a 24 años | B177: =VLOOKUP($E$142,AsisEscZMG!A$15:H$25,8,FALSE) -> 0.4575741225
H178: Distribución territorial de la población
H179: Superficie (km2): | I179: =VLOOKUP($E$142,dist.terrZMG!A16:H25,6,FALSE) -> 3453.568765
A180: Derechohabiencia | H180: Densidad de población (hab/km2): | I180: =VLOOKUP($E$142,dist.terrZMG!A16:H25,7,FALSE) -> 1408.723072
A181: Población derechohabiente: | B181: =VLOOKUP(E$142,DerechZMG!A15:K25,5,FALSE) -> 0.7893364236 | E181: Limitaciones físicas o mentales* | H181: Localidades: | I181: =VLOOKUP($E$142,dist.terrZMG!A16:H25,8,FALSE) -> 9
E182: Población con algún tipo de limitación: | F182: =VLOOKUP($E$142,LimitZMG!A$15:L$24,5,FALSE) -> 0.03194884301
E184: Población con discapacidad según tipo de limitación: | H184: Población indígena
E185: Caminar o moverse | F185: =VLOOKUP($E$142,LimitZMG!A$15:L$24,6,FALSE) -> 81143 | H185: Población de 5 años y más que habla alguna lengua indígena: | J185: =VLOOKUP($E$142,PobInd.ZMG!A15:E24,5,FALSE) -> 27695
E186: Ver1 | F186: =VLOOKUP($E$142,LimitZMG!A$15:L$24,7,FALSE) -> 33090
E187: Oír2 | F187: =VLOOKUP($E$142,LimitZMG!A$15:L$24,8,FALSE) -> 13865
E188: Hablar o comunicarse | F188: =VLOOKUP($E$142,LimitZMG!A$15:L$24,9,FALSE) -> 12285
E189: Atender el cuidado personal | F189: =VLOOKUP($E$142,LimitZMG!A$15:L$24,10,FALSE) -> 8089
E190: Poner atención o aprender | F190: =VLOOKUP($E$142,LimitZMG!A$15:L$24,11,FALSE) -> 8174
E191: Mental | F191: =VLOOKUP($E$142,LimitZMG!A$15:L$24,12,FALSE) -> 19057
A192: * Incluye derechohabiencias múltiples. ** Incluye seguro médico para una nueva generación | E192: 1 Incluye a las personas que aun con anteojos tenían dificultad para ver.
E193: 2 Incluye a las personas que aun con aparato auditivo tenían dificultad para oír.
E194: *Información Estadística al año 2010

Sheet Estructura de poblacion (hidden)
A1: VOLUMEN Y ESTRUCTURA POR SEXO DEL ÁREA METROPOLITANA DE GUADALAJARA, 2010
A2: Grupos quinquenales de edad | C2: AMG | F2: Guadalajara | I2: Zapopán | L2: Tonalá | O2: Tlaquepaque | R2: Tlajomulco de Zuñiga | U2: Juanacatlán | X2: Ixtlahuacán de los Membrillos | AA2: Zapotlanejo | AD2: El Salto
C3: Total | D3: Hombres | E3: Mujeres | F3: Total | G3: Hombres | H3: Mujeres | I3: Total | J3: Hombres | K3: Mujeres | L3: Total | M3: Hombres | N3: Mujeres | O3: Total | P3: Hombres | Q3: Mujeres | R3: Total | S3: Hombres | T3: Mujeres | U3: Total | V3: Hombres | W3: Mujeres | X3: Total | Y3: Hombres | Z3: Mujeres | AA3: Total | AB3: Hombres | AC3: Mujeres | AD3: Total | AE3: Hombres | AF3: Mujeres
A4: Total | C4: =SUM(F4,I4,L4,O4,R4,U4,X4,AD4,AA4) -> 4863036 | D4: =SUM(G4,J4,M4,P4,S4,V4,Y4,AE4,AB4) -> 2374087 | E4: =SUM(H4,K4,N4,Q4,T4,W4,Z4,AF4,AC4) -> 2488949 | F4: =SUM(F5:F25) -> 1459501 | G4: 703949 | H4: 755552 | I4: 1331755 | J4: 649445 | K4: 682310 | L4: 535852 | M4: 262441 | N4: 273411 | O4: 663935 | P4: 328673 | Q4: 335262 | R4: 549214 | S4: 269565 | T4: 279649 | U4: 17943 | V4: 8961 | W4: 8982 | X4: 52988 | Y4: 26162 | Z4: 26826 | AA4: 68519 | AB4: 33716 | AC4: 34803 | AD4: 183329 | AE4: 91175 | AF4: 92154
A5: 0 - 4 años | B5: =SUM(C5:C7) -> 1315853 | C5: 425533 | D5: 215320 | E5: 210213 | F5: =G5+H5 -> 99409 | G5: 50167 | H5: 49242 | I5: =J5+K5 -> 111262 | J5: 56977 | K5: 54285 | L5: =M5+N5 -> 56384 | M5: 28186 | N5: 28198 | O5: =P5+Q5 -> 61613 | P5: 32110 | Q5: 29503 | R5: =S5+T5 -> 61986 | S5: 30346 | T5: 31640 | U5: =V5+W5 -> 2096 | V5: 1058 | W5: 1038 | X5: =Y5+Z5 -> 6079 | Y5: 3100 | Z5: 2979 | AA5: =AB5+AC5 -> 6774 | AB5: 3375 | AC5: 3399 | AD5: =AE5+AF5 -> 19930 | AE5: 10001 | AF5: 9929
A6: 5 - 9 años | C6: 439421 | D6: 222255 | E6: 217166 | F6: =G6+H6 -> 108966 | G6: 54549 | H6: 54417 | I6: =J6+K6 -> 112499 | J6: 57026 | K6: 55473 | L6: =M6+N6 -> 53495 | M6: 27198 | N6: 26297 | O6: =P6+Q6 -> 65163 | P6: 33201 | Q6: 31962 | R6: =S6+T6 -> 64019 | S6: 32483 | T6: 31536 | U6: =V6+W6 -> 1847 | V6: 937 | W6: 910 | X6: =Y6+Z6 -> 6323 | Y6: 3230 | Z6: 3093 | AA6: =AB6+AC6 -> 6805 | AB6: 3613 | AC6: 3192 | AD6: =AE6+AF6 -> 20304 | AE6: 10018 | AF6: 10286
A7: 10 - 14 años | C7: 450899 | D7: 224912 | E7: 225987 | F7: 118038 | G7: 59773 | H7: 58265 | I7: 116844 | J7: 57640 | K7: 59204 | L7: 56709 | M7: 27599 | N7: 29110 | O7: 65083 | P7: 32403 | Q7: 32680 | R7: 60126 | S7: 30585 | T7: 29541 | U7: 1725 | V7: 860 | W7: 865 | X7: 5315 | Y7: 2693 | Z7: 2622 | AA7: 6936 | AB7: 3433 | AC7: 3503 | AD7: 20123 | AE7: 9926 | AF7: 10197
A8: 15 - 19 años | B8: =SUM(C8:C17) -> 3237827 | C8: 440149 | D8: 222478 | E8: 217671 | F8: 127344 | G8: 65260 | H8: 62084 | I8: 117670 | J8: 58698 | K8: 58972 | L8: 51714 | M8: 25489 | N8: 26225 | O8: 63686 | P8: 32740 | Q8: 30946 | R8: 48618 | S8: 24477 | T8: 24141 | U8: 1534 | V8: 709 | W8: 825 | X8: 4467 | Y8: 2181 | Z8: 2286 | AA8: 6779 | AB8: 3340 | AC8: 3439 | AD8: 18337 | AE8: 9584 | AF8: 8753
A9: 20 - 24 años | C9: 455024 | D9: 229894 | E9: 225130 | F9: 136545 | G9: 69919 | H9: 66626 | I9: 135691 | J9: 68695 | K9: 66996 | L9: 50155 | M9: 25250 | N9: 24905 | O9: 60417 | P9: 30755 | Q9: 29662 | R9: 42859 | S9: 20803 | T9: 22056 | U9: 1756 | V9: 877 | W9: 879 | X9: 4354 | Y9: 2012 | Z9: 2342 | AA9: 6164 | AB9: 3168 | AC9: 2996 | AD9: 17083 | AE9: 8415 | AF9: 8668
A10: 25 - 29 años | C10: 400038 | D10: 195967 | E10: 204071 | F10: 118676 | G10: 59944 | H10: 58732 | I10: 115807 | J10: 56812 | K10: 58995 | L10: 44077 | M10: 20464 | N10: 23613 | O10: 53588 | P10: 26982 | Q10: 26606 | R10: 42750 | S10: 19441 | T10: 23309 | U10: 1632 | V10: 787 | W10: 845 | X10: 4429 | Y10: 2087 | Z10: 2342 | AA10: 5435 | AB10: 2561 | AC10: 2874 | AD10: 13644 | AE10: 6889 | AF10: 6755
A11: 30 - 34 años | C11: 387859 | D11: 189175 | E11: 198684 | F11: 110966 | G11: 54412 | H11: 56554 | I11: 106021 | J11: 52521 | K11: 53500 | L11: 42361 | M11: 20903 | N11: 21458 | O11: 52068 | P11: 25512 | Q11: 26556 | R11: 51233 | S11: 23755 | T11: 27478 | U11: 1477 | V11: 782 | W11: 695 | X11: 4509 | Y11: 2189 | Z11: 2320 | AA11: 4751 | AB11: 2258 | AC11: 2493 | AD11: 14473 | AE11: 6843 | AF11: 7630
A12: 35 - 39 años | C12: 350803 | D12: 168097 | E12: 182706 | F12: 95108 | G12: 45350 | H12: 49758 | I12: 95787 | J12: 45757 | K12: 50030 | L12: 37172 | M12: 17380 | N12: 19792 | O12: 49555 | P12: 23781 | Q12: 25774 | R12: 49446 | S12: 24498 | T12: 24948 | U12: 1213 | V12: 606 | W12: 607 | X12: 4139 | Y12: 1981 | Z12: 2158 | AA12: 4573 | AB12: 2162 | AC12: 2411 | AD12: 13810 | AE12: 6582 | AF12: 7228
A13: 40 - 44 años | C13: 343500 | D13: 167946 | E13: 175554 | F13: 101519 | G13: 48872 | H13: 52647 | I13: 92269 | J13: 43994 | K13: 48275 | L13: 38032 | M13: 18896 | N13: 19136 | O13: 47488 | P13: 23872 | Q13: 23616 | R13: 42822 | S13: 21514 | T13: 21308 | U13: 1082 | V13: 535 | W13: 547 | X13: 3443 | Y13: 1721 | Z13: 1722 | AA13: 4612 | AB13: 2285 | AC13: 2327 | AD13: 12233 | AE13: 6257 | AF13: 5976
A14: 45 - 49 años | C14: 273940 | D14: 129517 | E14: 144423 | F14: 89076 | G14: 41293 | H14: 47783 | I14: 76849 | J14: 35597 | K14: 41252 | L14: 30461 | M14: 15364 | N14: 15097 | O14: 35710 | P14: 16793 | Q14: 18917 | R14: 25909 | S14: 12683 | T14: 13226 | U14: 804 | V14: 388 | W14: 416 | X14: 2758 | Y14: 1308 | Z14: 1450 | AA14: 3552 | AB14: 1764 | AC14: 1788 | AD14: 8821 | AE14: 4327 | AF14: 4494
A15: 50 - 54 años | C15: 242994 | D15: 113538 | E15: 129456 | F15: 83215 | G15: 36608 | H15: 46607 | I15: 70954 | J15: 33642 | K15: 37312 | L15: 23711 | M15: 11703 | N15: 12008 | O15: 30887 | P15: 14278 | Q15: 16609 | R15: 20052 | S15: 10376 | T15: 9676 | U15: 712 | V15: 354 | W15: 358 | X15: 2291 | Y15: 1169 | Z15: 1122 | AA15: 3022 | AB15: 1453 | AC15: 1569 | AD15: 8150 | AE15: 3955 | AF15: 4195
A16: 55 - 59 años | C16: 186333 | D16: 85609 | E16: 100724 | F16: 67846 | G16: 30485 | H16: 37361 | I16: 53888 | J16: 25328 | K16: 28560 | L16: 17566 | M16: 8069 | N16: 9497 | O16: 24068 | P16: 11179 | Q16: 12889 | R16: 13051 | S16: 5691 | T16: 7360 | U16: 570 | V16: 275 | W16: 295 | X16: 1489 | Y16: 729 | Z16: 760 | AA16: 2310 | AB16: 1046 | AC16: 1264 | AD16: 5545 | AE16: 2807 | AF16: 2738
A17: 60 - 64 años | C17: 157187 | D17: 72042 | E17: 85145 | F17: =G17+H17 -> 63926 | G17: 28207 | H17: 35719 | I17: 44494 | J17: 20332 | K17: 24162 | L17: 12918 | M17: 6050 | N17: 6868 | O17: 18015 | P17: 8622 | Q17: 9393 | R17: 10243 | S17: 4966 | T17: 5277 | U17: 457 | V17: 229 | W17: 228 | X17: 1149 | Y17: 620 | Z17: 529 | AA17: 1981 | AB17: 984 | AC17: 997 | AD17: 4004 | AE17: 2032 | AF17: 1972
A18: 65 - 69 años | B18: =SUM(C18:C25) -> 309356 | C18: 115690 | D18: 52338 | E18: 63352 | F18: 48685 | G18: 21006 | H18: 27679 | I18: 32514 | J18: 14740 | K18: 17774 | L18: 8743 | M18: 4054 | N18: 4689 | O18: 13434 | P18: 6421 | Q18: 7013 | R18: 6779 | S18: 3466 | T18: 3313 | U18: 398 | V18: 218 | W18: 180 | X18: 836 | Y18: 392 | Z18: 444 | AA18: 1645 | AB18: 705 | AC18: 940 | AD18: 2656 | AE18: 1336 | AF18: 1320
A19: 70 - 74 años | C19: 80750 | D19: 36849 | E19: 43901 | F19: 36203 | G19: 16156 | H19: 20047 | I19: 21380 | J19: 9877 | K19: 11503 | L19: 5241 | M19: 2389 | N19: 2852 | O19: 9728 | P19: 4257 | Q19: 5471 | R19: 4287 | S19: 2157 | T19: 2130 | U19: 246 | V19: 138 | W19: 108 | X19: 603 | Y19: 317 | Z19: 286 | AA19: 1299 | AB19: 618 | AC19: 681 | AD19: 1763 | AE19: 940 | AF19: 823
A20: 75 - 79 años | C20: 51547 | D20: 22974 | E20: 28573 | F20: 23758 | G20: 10095 | H20: 13663 | I20: 12893 | J20: 5665 | K20: 7228 | L20: 3573 | M20: 1888 | N20: 1685 | O20: 6083 | P20: 2604 | Q20: 3479 | R20: 2554 | S20: 1273 | T20: 1281 | U20: 187 | V20: 94 | W20: 93 | X20: 385 | Y20: 217 | Z20: 168 | AA20: 790 | AB20: 374 | AC20: 416 | AD20: 1324 | AE20: 764 | AF20: 560
A21: 80 - 84 años | C21: 33282 | D21: 14302 | E21: 18980 | F21: 15744 | G21: 6549 | H21: 9195 | I21: 8292 | J21: 3636 | K21: 4656 | L21: 2264 | M21: 973 | N21: 1291 | O21: 3981 | P21: 1785 | Q21: 2196 | R21: 1472 | S21: 603 | T21: 869 | U21: 92 | V21: 42 | W21: 50 | X21: 234 | Y21: 124 | Z21: 110 | AA21: 530 | AB21: 322 | AC21: 208 | AD21: 673 | AE21: 268 | AF21: 405
A22: 85 - 89 años | C22: 17895 | D22: 7095 | E22: 10800 | F22: 8999 | G22: 3386 | H22: 5613 | I22: 4294 | J22: 1676 | K22: 2618 | L22: 918 | M22: 393 | N22: 525 | O22: 2218 | P22: 935 | Q22: 1283 | R22: 663 | S22: 299 | T22: 364 | U22: 62 | V22: 43 | W22: 19 | X22: 117 | Y22: 62 | Z22: 55 | AA22: 333 | AB22: 173 | AC22: 160 | AD22: 291 | AE22: 128 | AF22: 163
A23: 90 - 94 años | C23: 7425 | D23: 2829 | E23: 4596 | F23: 4135 | G23: 1466 | H23: 2669 | I23: 1498 | J23: 518 | K23: 980 | L23: 295 | M23: 154 | N23: 141 | O23: 850 | P23: 370 | Q23: 480 | R23: 257 | S23: 118 | T23: 139 | U23: 36 | V23: 19 | W23: 17 | X23: 54 | Y23: 25 | Z23: 29 | AA23: 174 | AB23: 66 | AC23: 108 | AD23: 126 | AE23: 93 | AF23: 33
A24: 95 - 99 años | C24: 2488 | D24: 808 | E24: 1680 | F24: 1191 | G24: 374 | H24: 817 | I24: 828 | J24: 293 | K24: 535 | L24: 30 | M24: 12 | N24: 18 | O24: 261 | P24: 57 | Q24: 204 | R24: 68 | S24: 31 | T24: 37 | U24: 17 | V24: 10 | W24: 7 | X24: 14 | Y24: 5 | Z24: 9 | AA24: 49 | AB24: 16 | AC24: 33 | AD24: 30 | AE24: 10 | AF24: 20
A25: 100 años y más | C25: 279 | D25: 142 | E25: 137 | F25: 152 | G25: 78 | H25: 74 | I25: 21 | J25: 21 | K25: 0 | L25: 33 | M25: 27 | N25: 6 | O25: 39 | P25: 16 | Q25: 23 | R25: 20 | S25: 0 | T25: 20 | U25: 0 | V25: 0 | W25: 0 | X25: 0 | Y25: 0 | Z25: 0 | AA25: 5 | AB25: 0 | AC25: 5 | AD25: 9 | AE25: 0 | AF25: 9
A26: Fuente: Elaborado por el Consejo Estatal de Población con base en INEGI, censos y conteos de población y vivienda 2010.
A28: 0 - 4 años
A29: 5 - 9 años | D29: =+D4/C4*100 -> 48.81902992 | E29: =+E4/C4*100 -> 51.18097008 | G29: =+G4/F4*100 -> 48.23216976 | H29: =+H4/F4*100 -> 51.76783024 | J29: =+J4/I4*100 -> 48.76610187 | K29: =+K4/I4*100 -> 51.23389813 | M29: =+M4/L4*100 -> 48.97639647 | N29: =+N4/L4*100 -> 51.02360353 | P29: =+P4/O4*100 -> 49.50379179 | Q29: =+Q4/O4*100 -> 50.49620821 | S29: =+S4/R4*100 -> 49.08196077 | T29: =+T4/R4*100 -> 50.91803923 | V29: =+V4/U4*100 -> 49.94148136 | W29: =+W4/U4*100 -> 50.05851864 | Y29: =+Y4/X4*100 -> 49.37344304 | Z29: =+Z4/X4*100 -> 50.62655696 | AB29: =+AB4/AA4*100 -> 49.20678936 | AC29: =+AC4/AA4*100 -> 50.79321064 | AE29: =+AE4/AD4*100 -> 49.73299369 | AF29: =+AF4/AD4*100 -> 50.26700631
A30: 10 - 14 años
A31: 15 - 19 años | C31: =+SUM(C5:C7) -> 1315853 | D31: 0-14
A32: 20 - 24 años | C32: =+SUM(C18:C25) -> 309356 | D32: 65 + | E32: RELACIÓN DE DEPENDENCIA
A33: 25 - 29 años | C33: =+SUM(C8:C17) -> 3237827 | D33: 15 a 64
A34: 30 - 34 años | C34: =+C31+C32 -> 1625209
A35: 35 - 39 años | C35: =+C34/C33*100 -> 50.19443596
A36: 40 - 44 años | C36: =(B5+B18)/B8*100 -> 50.19443596
A37: 45 - 49 años
A38: 50 - 54 años
A39: 55 - 59 años
A40: 60 - 64 años
A41: 65 - 69 años
A42: 70 - 74 años
A43: 75 - 79 años
A44: 80 - 84 años
A45: 85 - 89 años
A46: 90 - 94 años
A47: 95 - 99 años
A48: 100 años y más

Sheet Pob (hidden)
A1: Clave | B1: Región | C1: Clave | D1: Municipio | E1: Poblacion total | F1: Relación hombre-mujer: | G1: Edad mediana | H1: Razon de dependencia | I1: Porcentaje hombres | J1: Porcentaje de mujeres
C2: 14 | D2: Jalisco | E2: 7844830 | F2: 95.64333136 | G2: 27.49631774 | H2: 53.70577521 | I2: 48.8865788 | J2: 51.1134212 | L2: =+I2/J2*100 -> 95.64333136
A3: 1 | B3: Norte | C3: 1 | D3: Norte | E3: 78445 | F3: 94.19001881 | G3: 25.3560023 | H3: 74.00146533 | I3: 48.50404742 | J3: 51.49595258
A4: 2 | B4: Altos Norte | C4: 2 | D4: Altos Norte | E4: 407417 | F4: 94.77886302 | G4: 26.66820394 | H4: 60.83076328 | I4: 48.65972701 | J4: 51.34027299 | M4: Total de población de 0 a 14 años más la población de 65 y más, dividido por el total de población de 15 a 64 años, multiplicado por 100.
A5: 3 | B5: Altos Sur | C5: 3 | D5: Altos Sur | E5: 399724 | F5: 93.36774431 | G5: 27.77324239 | H5: 59.64552067 | I5: 48.2850667 | J5: 51.7149333
A6: 4 | B6: Ciénega | C6: 4 | D6: Ciénega | E6: 402199 | F6: 95.8840862 | G6: 26.21523302 | H6: 60.37015616 | I6: 48.94940067 | J6: 51.05059933
A7: 5 | B7: Sureste | C7: 5 | D7: Sureste | E7: 163747 | F7: 95.0019054 | G7: 27.2077834 | H7: 63.70837084 | I7: 48.7184498 | J7: 51.2815502
A8: 6 | B8: Sur | C8: 6 | D8: Sur | E8: 300871 | F8: 95.50280709 | G8: 27.96727157 | H8: 57.24711553 | I8: 48.8498393 | J8: 51.1501607
A9: 7 | B9: Sierra de Amula | C9: 7 | D9: Sierra de Amula | E9: 171810 | F9: 96.58344585 | G9: 28.05669867 | H9: 61.9310735 | I9: 49.13101682 | J9: 50.86898318
A10: 8 | B10: Costa Sur | C10: 8 | D10: Costa Sur | E10: 152113 | F10: 101.9288464 | G10: 24.79889529 | H10: 63.74874816 | I10: 50.47760546 | J10: 49.52239454
A11: 9 | B11: Costa-Sierra Occidental | C11: 9 | D11: Costa-Sierra Occidental | E11: 332798 | F11: 100.1527617 | G11: 28.67872517 | H11: 49.86962102 | I11: 50.03816129 | J11: 49.96183871
A12: 10 | B12: Valles | C12: 10 | D12: Valles | E12: 316993 | F12: 96.66408165 | G12: 28.19537589 | H12: 61.02139336 | I12: 49.15187402 | J12: 50.84812598
A13: 11 | B13: Lagunas | C13: 11 | D13: Lagunas | E13: 213424 | F13: 95.30729529 | G13: 27.61382623 | H13: 62.64531227 | I13: 48.79863558 | J13: 51.20136442
A14: 12 | B14: Centro | C14: 12 | D14: Centro | E14: 4905289 | F14: 95.36562684 | G14: 26.6696802 | H14: 50.29739481 | I14: 48.81392309 | J14: 51.18607691
A17: 3 | B17: Altos Sur | C17: 1 | D17: Acatic | E17: 21530 | F17: 94.59508315 | G17: 26.4068885 | H17: 62.6378607 | I17: 48.61124013 | J17: 51.38875987
A18: 11 | B18: Lagunas | C18: 2 | D18: Acatlán de Juárez | E18: 22261 | F18: 96.1840134 | G18: 27.53376304 | H18: 56.10799439 | I18: 49.0274471 | J18: 50.9725529
A19: 10 | B19: Valles | C19: 3 | D19: Ahualulco de Mercado | E19: 23362 | F19: 94.82945542 | G19: 27.72598067 | H19: 59.32723799 | I19: 48.67305881 | J19: 51.32694119
A20: 11 | B20: Lagunas | C20: 4 | D20: Amacueca | E20: 5385 | F20: 97.18051996 | G20: 28.47916667 | H20: 63.03360581 | I20: 49.28505107 | J20: 50.71494893
A21: 10 | B21: Valles | C21: 5 | D21: Amatitán | E21: 15344 | F21: 96.16466377 | G21: 25.03202196 | H21: 59.26887527 | I21: 49.02241919 | J21: 50.97758081
A22: 10 | B22: Valles | C22: 6 | D22: Ameca | E22: 60951 | F22: 95.21811543 | G22: 29.35554311 | H22: 59.0583873 | I22: 48.77524569 | J22: 51.22475431
A23: 3 | B23: Altos Sur | C23: 8 | D23: Arandas | E23: 77116 | F23: 90.44279258 | G23: 26.2293406 | H23: 55.9718401 | I23: 47.49079309 | J23: 52.50920691
A24: 11 | B24: Lagunas | C24: 10 | D24: Atemajac de Brizuela | E24: 6717 | F24: 97.21080446 | G24: 22.97217538 | H24: 73.92542724 | I24: 49.29283907 | J24: 50.70716093
A25: 7 | B25: Sierra de Amula | C25: 11 | D25: Atengo | E25: 5475 | F25: 106.0594656 | G25: 30.26351351 | H25: 72.81921618 | I25: 51.47031963 | J25: 48.52968037
A26: 9 | B26: Costa-Sierra Occidental | C26: 12 | D26: Atenguillo | E26: 3899 | F26: 96.02815485 | G26: 32.13169643 | H26: 64.61148649 | I26: 48.98691972 | J26: 51.01308028
A27: 4 | B27: Ciénega | C27: 13 | D27: Atotonilco el Alto | E27: 60480 | F27: 96.00090741 | G27: 26.94091007 | H27: 56.8988344 | I27: 48.97982804 | J27: 51.02017196
A28: 11 | B28: Lagunas | C28: 14 | D28: Atoyac | E28: 8264 | F28: 92.58914006 | G28: 30.35564854 | H28: 62.29379419 | I28: 48.07599226 | J28: 51.92400774
A29: 7 | B29: Sierra de Amula | C29: 15 | D29: Autlán de Navarro | E29: 60572 | F29: 95.39985161 | G29: 27.5605399 | H29: 56.50241596 | I29: 48.82288846 | J29: 51.17711154
A30: 4 | B30: Ciénega | C30: 16 | D30: Ayotlán | E30: 37963 | F30: 95.31306272 | G30: 26.25776934 | H30: 64.9867374 | I30: 48.80014751 | J30: 51.19985249
A31: 7 | B31: Sierra de Amula | C31: 17 | D31: Ayutla | E31: 12453 | F31: 99.34368497 | G31: 28.59856828 | H31: 68.99361673 | I31: 49.83538103 | J31: 50.16461897
A32: 1 | B32: Norte | C32: 19 | D32: Bolaños | E32: 7341 | F32: 98.78147847 | G32: 19.89087302 | H32: 80.56102362 | I32: 49.69350225 | J32: 50.30649775
A33: 9 | B33: Costa-Sierra Occidental | C33: 20 | D33: Cabo Corrientes | E33: 10303 | F33: 106.0187962 | G33: 27.58400538 | H33: 71.21489114 | I33: 51.46073959 | J33: 48.53926041
A34: 3 | B34: Altos Sur | C34: 117 | D34: Cañadas de Obregón | E34: 4110 | F34: 96.6507177 | G34: 31.63003663 | H34: 66.93744923 | I34: 49.14841849 | J34: 50.85158151
A35: 8 | B35: Costa Sur | C35: 21 | D35: Casimiro Castillo | E35: 21584 | F35: 99.24305363 | G35: 28.71047737 | H35: 60.99089688 | I35: 49.81004448 | J35: 50.18995552
A36: 5 | B36: Sureste | C36: 30 | D36: Chapala | E36: 50738 | F36: 94.14555751 | G36: 29.53808543 | H36: 59.88839497 | I36: 48.49225433 | J36: 51.50774567
A37: 1 | B37: Norte | C37: 31 | D37: Chimaltitán | E37: 3383 | F37: 96.22969838 | G37: 23.28703704 | H37: 85.36986301 | I37: 49.03931422 | J37: 50.96068578
A38: 7 | B38: Sierra de Amula | C38: 32 | D38: Chiquilistlán | E38: 6102 | F38: 103.4678226 | G38: 24.09780776 | H38: 71.92784667 | I38: 50.85217961 | J38: 49.14782039
A39: 8 | B39: Costa Sur | C39: 22 | D39: Cihuatlán | E39: 41300 | F39: 100.4659742 | G39: 26.86940414 | H39: 60.71957013 | I39: 50.11622276 | J39: 49.88377724
A40: 11 | B40: Lagunas | C40: 24 | D40: Cocula | E40: 26687 | F40: 94.93791088 | G40: 29.6165393 | H40: 61.8530429 | I40: 48.70161502 | J40: 51.29838498
A41: 1 | B41: Norte | C41: 25 | D41: Colotlán | E41: 17865 | F41: 93.19779388 | G41: 27.90328746 | H41: 56.74418605 | I41: 48.23957459 | J41: 51.76042541
A42: 5 | B42: Sureste | C42: 26 | D42: Concepción de Buenos Aires | E42: 6088 | F42: 103.9530988 | G42: 29.70512821 | H42: 60.63324538 | I42: 50.96911958 | J42: 49.03088042
A43: 8 | B43: Costa Sur | C43: 27 | D43: Cuautitlán de García Barragán | E43: 18138 | F43: 100.952803 | G43: 24.38050102 | H43: 73.03435115 | I43: 50.23707134 | J43: 49.76292866
A44: 7 | B44: Sierra de Amula | C44: 28 | D44: Cuautla | E44: 2120 | F44: 92.72727273 | G44: 30.24590164 | H44: 64.39100078 | I44: 48.11320755 | J44: 51.88679245
A45: 12 | B45: Centro | C45: 29 | D45: Cuquío | E45: 17980 | F45: 90.99213937 | G45: 28.83127572 | H45: 64.30594901 | I45: 47.64182425 | J45: 52.35817575
A46: 4 | B46: Ciénega | C46: 33 | D46: Degollado | E46: 21479 | F46: 94.94463605 | G46: 27.74471831 | H46: 62.20341545 | I46: 48.7033847 | J46: 51.2966153
A47: 7 | B47: Sierra de Amula | C47: 34 | D47: Ejutla | E47: 1862 | F47: 106.4301552 | G47: 34.27480916 | H47: 68.35443038 | I47: 51.55746509 | J47: 48.44253491
A48: 10 | B48: Valles | C48: 9 | D48: El Arenal | E48: 19900 | F48: 98.12823576 | G48: 24.72174901 | H48: 59.63405826 | I48: 49.52763819 | J48: 50.47236181
A49: 7 | B49: Sierra de Amula | C49: 37 | D49: El Grullo | E49: 24312 | F49: 92.20491738 | G49: 29.04761905 | H49: 57.32970733 | I49: 47.9721948 | J49: 52.0278052
A50: 7 | B50: Sierra de Amula | C50: 54 | D50: El Limón | E50: 5379 | F50: 99.29603557 | G50: 35.42197452 | H50: 65.54699538 | I50: 49.82338725 | J50: 50.17661275
A51: 12 | B51: Centro | C51: 70 | D51: El Salto | E51: 183437 | F51: 98.94690035 | G51: 23.81212316 | H51: 57.90611542 | I51: 49.73533148 | J51: 50.26466852
A52: 2 | B52: Altos Norte | C52: 35 | D52: Encarnación de Díaz | E52: 53555 | F52: 92.72014106 | G52: 26.53985961 | H52: 61.48811678 | I52: 48.11128746 | J52: 51.88871254
A53: 10 | B53: Valles | C53: 36 | D53: Etzatlán | E53: 19847 | F53: 92.65191225 | G53: 27.51973165 | H53: 64.61755434 | I53: 48.09291077 | J53: 51.90708923
A54: 6 | B54: Sur | C54: 79 | D54: Gómez Farías | E54: 14278 | F54: 91.18907338 | G54: 26.84189079 | H54: 57.59381898 | I54: 47.69575571 | J54: 52.30424429
A55: 9 | B55: Costa-Sierra Occidental | C55: 38 | D55: Guachinango | E55: 4184 | F55: 104.6966732 | G55: 31.42259414 | H55: 69.38031592 | I55: 51.14722753 | J55: 48.85277247
A56: 12 | B56: Centro | C56: 39 | D56: Guadalajara | E56: 1460148 | F56: 93.17550994 | G56: 30.95056143 | H56: 46.79844823 | I56: 48.23360372 | J56: 51.76639628
A57: 10 | B57: Valles | C57: 40 | D57: Hostotipaquillo | E57: 9761 | F57: 104.8478489 | G57: 26.58082409 | H57: 70.97565248 | I57: 51.1832804 | J57: 48.8167196
A58: 1 | B58: Norte | C58: 41 | D58: Huejúcar | E58: 5633 | F58: 92.18696691 | G58: 33.08823529 | H58: 68.99038462 | I58: 47.96733535 | J58: 52.03266465
A59: 1 | B59: Norte | C59: 42 | D59: Huejuquilla el Alto | E59: 8787 | F59: 91.47962519 | G59: 25.77232143 | H59: 74.72133758 | I59: 47.77512234 | J59: 52.22487766
A60: 12 | B60: Centro | C60: 44 | D60: Ixtlahuacán de los Membrillos | E60: 53045 | F60: 97.5090293 | G60: 24.98220028 | H60: 60.43357152 | I60: 49.36940334 | J60: 50.63059666
A61: 12 | B61: Centro | C61: 45 | D61: Ixtlahuacán del Río | E61: 19070 | F61: 93.64337937 | G61: 27.99699925 | H61: 63.25027828 | I61: 48.35867855 | J61: 51.64132145
A62: 3 | B62: Altos Sur | C62: 46 | D62: Jalostotitlán | E62: 33777 | F62: 97.60720763 | G62: 25.04131399 | H62: 65.54918394 | I62: 49.39455843 | J62: 50.60544157
A63: 4 | B63: Ciénega | C63: 47 | D63: Jamay | E63: 24753 | F63: 99.31556486 | G63: 26.02120236 | H63: 59.83082585 | I63: 49.82830364 | J63: 50.17169636
A64: 3 | B64: Altos Sur | C64: 48 | D64: Jesús María | E64: 19469 | F64: 82.80751174 | G64: 27.6973165 | H64: 67.18226347 | I64: 45.29765268 | J64: 54.70234732
A65: 6 | B65: Sur | C65: 49 | D65: Jilotlán de los Dolores | E65: 9917 | F65: 100.9116694 | G65: 27.58843537 | H65: 60.46285807 | I65: 50.22688313 | J65: 49.77311687
A66: 5 | B66: Sureste | C66: 50 | D66: Jocotepec | E66: 46521 | F66: 97.12288136 | G66: 24.52690482 | H66: 66.79701514 | I66: 49.27022205 | J66: 50.72977795
A67: 12 | B67: Centro | C67: 51 | D67: Juanacatlán | E67: 17955 | F67: 99.72191324 | G67: 25.05974265 | H67: 59.67784996 | I67: 49.93038151 | J67: 50.06961849
A68: 7 | B68: Sierra de Amula | C68: 52 | D68: Juchitlán | E68: 5638 | F68: 96.65155215 | G68: 28.61179361 | H68: 70.50816697 | I68: 49.14863427 | J68: 50.85136573
A69: 4 | B69: Ciénega | C69: 18 | D69: La Barca | E69: 65055 | F69: 93.80064347 | G69: 27.41271308 | H69: 61.27328191 | I69: 48.40058412 | J69: 51.59941588
A70: 8 | B70: Costa Sur | C70: 43 | D70: La Huerta | E70: 24563 | F70: 102.7319247 | G70: 28.74858916 | H70: 60.89121887 | I70: 50.67377763 | J70: 49.32622237
A71: 5 | B71: Sureste | C71: 57 | D71: La Manzanilla de la Paz | E71: 3688 | F71: 93.08900524 | G71: 30.14893617 | H71: 58.89702714 | I71: 48.21041215 | J71: 51.78958785
A72: 2 | B72: Altos Norte | C72: 53 | D72: Lagos de Moreno | E72: 164981 | F72: 95.47743457 | G72: 25.01668969 | H72: 58.80613974 | I72: 48.84320013 | J72: 51.15679987
A73: 10 | B73: Valles | C73: 55 | D73: Magdalena | E73: 22643 | F73: 99.3748349 | G73: 25.13099747 | H73: 65.77559689 | I73: 49.84321865 | J73: 50.15678135
A74: 9 | B74: Costa-Sierra Occidental | C74: 58 | D74: Mascota | E74: 14477 | F74: 95.18673318 | G74: 30.26480638 | H74: 62.3079511 | I74: 48.76700974 | J74: 51.23299026
A75: 5 | B75: Sureste | C75: 59 | D75: Mazamitla | E75: 13799 | F75: 91.78596247 | G75: 26.55756732 | H75: 61.33520402 | I75: 47.85854047 | J75: 52.14145953
A76: 3 | B76: Altos Sur | C76: 60 | D76: Mexticacán | E76: 5088 | F76: 86.30538264 | G76: 33.28813559 | H76: 65.75431737 | I76: 46.32468553 | J76: 53.67531447
A77: 1 | B77: Norte | C77: 61 | D77: Mezquitic | E77: 19452 | F77: 92.46067082 | G77: 19.54175153 | H77: 89.86499707 | I77: 48.04133251 | J77: 51.95866749
A78: 9 | B78: Costa-Sierra Occidental | C78: 62 | D78: Mixtlán | E78: 3526 | F78: 100.5688282 | G78: 30.47263682 | H78: 65.69548872 | I78: 50.14180374 | J78: 49.85819626
A79: 4 | B79: Ciénega | C79: 63 | D79: Ocotlán | E79: 99461 | F79: 95.32796544 | G79: 26.6926166 | H79: 54.07918184 | I79: 48.80405385 | J79: 51.19594615
A80: 2 | B80: Altos Norte | C80: 64 | D80: Ojuelos de Jalisco | E80: 32357 | F80: 93.36082228 | G80: 23.04648451 | H80: 68.31260732 | I80: 48.28321538 | J80: 51.71678462
A81: 6 | B81: Sur | C81: 65 | D81: Pihuamo | E81: 11192 | F81: 101.948755 | G81: 30.91352859 | H81: 65.04797048 | I81: 50.48248749 | J81: 49.51751251
A82: 4 | B82: Ciénega | C82: 66 | D82: Poncitlán | E82: 51944 | F82: 96.28174123 | G82: 22.45376344 | H82: 70.22322746 | I82: 49.05282612 | J82: 50.94717388
A83: 9 | B83: Costa-Sierra Occidental | C83: 67 | D83: Puerto Vallarta | E83: 275640 | F83: 99.9405198 | G83: 27.69570056 | H83: 47.00113064 | I83: 49.98512553 | J83: 50.01487447
A84: 5 | B84: Sureste | C84: 69 | D84: Quitupan | E84: 8379 | F84: 92.09078404 | G84: 32.58399209 | H84: 64.60994301 | I84: 47.94128178 | J84: 52.05871822
A85: 12 | B85: Centro | C85: 71 | D85: San Cristóbal de la Barranca | E85: 3117 | F85: 100.0641849 | G85: 28.38675214 | H85: 65.60340245 | I85: 50.01604107 | J85: 49.98395893
A86: 2 | B86: Altos Norte | C86: 72 | D86: San Diego de Alejandría | E86: 7349 | F86: 92.88713911 | G86: 25.00509165 | H86: 66.83314415 | I86: 48.15621173 | J86: 51.84378827
A87: 6 | B87: Sur | C87: 113 | D87: San Gabriel | E87: 16105 | F87: 95.02300799 | G87: 28.43862816 | H87: 64.95279146 | I87: 48.72399876 | J87: 51.27600124
A88: 3 | B88: Altos Sur | C88: 125 | D88: San Ignacio Cerro Gordo | E88: 18952 | F88: 92.24994928 | G88: 25.79652426 | H88: 66.51726865 | I88: 47.9843816 | J88: 52.0156184
A89: 2 | B89: Altos Norte | C89: 73 | D89: San Juan de los Lagos | E89: 69725 | F89: 98.12741532 | G89: 25.38076784 | H89: 57.41284321 | I89: 49.52742919 | J89: 50.47257081
A90: 10 | B90: Valles | C90: 7 | D90: San Juanito de Escobedo | E90: 9420 | F90: 100.8100618 | G90: 27.78730703 | H90: 66.25485351 | I90: 50.20169851 | J90: 49.79830149
A91: 3 | B91: Altos Sur | C91: 74 | D91: San Julián | E91: 15890 | F91: 89.7993311 | G91: 28.10933941 | H91: 57.30270324 | I91: 47.31277533 | J91: 52.68722467
A92: 10 | B92: Valles | C92: 75 | D92: San Marcos | E92: 3783 | F92: 99.00052604 | G92: 27.96106557 | H92: 66.60792952 | I92: 49.74887655 | J92: 50.25112345
A93: 1 | B93: Norte | C93: 76 | D93: San Martín de Bolaños | E93: 3122 | F93: 98.34815756 | G93: 26.4806867 | H93: 66.98769395 | I93: 49.58360026 | J93: 50.41639974
A94: 11 | B94: Lagunas | C94: 77 | D94: San Martín Hidalgo | E94: 27777 | F94: 95.29635098 | G94: 30.37802136 | H94: 65.49237005 | I94: 48.79576628 | J94: 51.20423372
A95: 3 | B95: Altos Sur | C95: 78 | D95: San Miguel el Alto | E95: 32960 | F95: 95.41115788 | G95: 26.89727865 | H95: 58.5776879 | I95: 48.82584951 | J95: 51.17415049
A96: 9 | B96: Costa-Sierra Occidental | C96: 80 | D96: San Sebastián del Oeste | E96: 5643 | F96: 109.6989967 | G96: 33.13301282 | H96: 65.58098592 | I96: 52.31259968 | J96: 47.68740032
A97: 1 | B97: Norte | C97: 81 | D97: Santa María de los Ángeles | E97: 3033 | F97: 91.7193426 | G97: 33.1554878 | H97: 74.61139896 | I97: 47.84042202 | J97: 52.15957798
A98: 5 | B98: Sureste | C98: 56 | D98: Santa María del Oro | E98: 2028 | F98: 98.6287953 | G98: 31.45833333 | H98: 67.46490504 | I98: 49.65483235 | J98: 50.34516765
A99: 11 | B99: Lagunas | C99: 82 | D99: Sayula | E99: 36778 | F99: 91.8318381 | G99: 27.37793852 | H99: 59.43298075 | I99: 47.87100984 | J99: 52.12899016
A100: 10 | B100: Valles | C100: 83 | D100: Tala | E100: 80365 | F100: 96.81385154 | G100: 26.14745374 | H100: 58.48784914 | I100: 49.19056803 | J100: 50.80943197
A101: 9 | B101: Costa-Sierra Occidental | C101: 84 | D101: Talpa de Allende | E101: 15126 | F101: 101.3846359 | G101: 28.19981998 | H101: 63.7535196 | I101: 50.34377892 | J101: 49.65622108
A102: 6 | B102: Sur | C102: 85 | D102: Tamazula de Gordiano | E102: 38396 | F102: 94.86398701 | G102: 30.4949923 | H102: 59.52469982 | I102: 48.68215439 | J102: 51.31784561
A103: 11 | B103: Lagunas | C103: 86 | D103: Tapalpa | E103: 19506 | F103: 94.72896077 | G103: 24.02446127 | H103: 65.44311326 | I103: 48.64657029 | J103: 51.35342971
A104: 6 | B104: Sur | C104: 87 | D104: Tecalitlán | E104: 16579 | F104: 95.43793469 | G104: 27.84309946 | H104: 64.88314272 | I104: 48.83286085 | J104: 51.16713915
A105: 11 | B105: Lagunas | C105: 89 | D105: Techaluta de Montenegro | E105: 3703 | F105: 97.3880597 | G105: 28.42625899 | H105: 64.65095598 | I105: 49.33837429 | J105: 50.66162571
A106: 7 | B106: Sierra de Amula | C106: 88 | D106: Tecolotlán | E106: 17257 | F106: 97.94677678 | G106: 28.77604167 | H106: 65.45541707 | I106: 49.48136988 | J106: 50.51863012
A107: 7 | B107: Sierra de Amula | C107: 90 | D107: Tenamaxtlán | E107: 7005 | F107: 99.91438356 | G107: 30.658867 | H107: 67.33572282 | I107: 49.97858672 | J107: 50.02141328
A108: 2 | B108: Altos Norte | C108: 91 | D108: Teocaltiche | E108: 41278 | F108: 92.42028715 | G108: 27.05257836 | H108: 65.61120475 | I108: 48.03042783 | J108: 51.96957217
A109: 11 | B109: Lagunas | C109: 92 | D109: Teocuitatlán de Corona | E109: 10317 | F109: 96.02888087 | G109: 32.0086478 | H109: 65.57534906 | I109: 48.98710866 | J109: 51.01289134
A110: 3 | B110: Altos Sur | C110: 93 | D110: Tepatitlán de Morelos | E110: 141322 | F110: 95.67721747 | G110: 26.22288706 | H110: 57.28308774 | I110: 48.89543029 | J110: 51.10456971
A111: 10 | B111: Valles | C111: 94 | D111: Tequila | E111: 42009 | F111: 96.7266086 | G111: 24.48730073 | H111: 62.83741855 | I111: 49.16803542 | J111: 50.83196458
A112: 10 | B112: Valles | C112: 95 | D112: Teuchitlán | E112: 9608 | F112: 95.96165613 | G112: 29.73498233 | H112: 62.43448859 | I112: 48.96960866 | J112: 51.03039134
A113: 5 | B113: Sureste | C113: 96 | D113: Tizapán el Alto | E113: 20961 | F113: 94.15524268 | G113: 26.9898317 | H113: 67.17977349 | I113: 48.49482372 | J113: 51.50517628
A114: 12 | B114: Centro | C114: 97 | D114: Tlajomulco de Zúñiga | E114: 549442 | F114: 96.41096586 | G114: 24.66319793 | H114: 58.28268244 | I114: 49.08634578 | J114: 50.91365422
A115: 12 | B115: Centro | C115: 98 | D115: Tlaquepaque | E115: 664193 | F115: 98.03542731 | G115: 26.50542099 | H115: 52.45980316 | I115: 49.50398453 | J115: 50.49601547
A116: 6 | B116: Sur | C116: 99 | D116: Tolimán | E116: 10310 | F116: 98.91954467 | G116: 26.76595745 | H116: 66.30610268 | I116: 49.72841901 | J116: 50.27158099
A117: 8 | B117: Costa Sur | C117: 100 | D117: Tomatlán | E117: 35824 | F117: 103.4760877 | G117: 26.56761905 | H117: 63.92549881 | I117: 50.85417597 | J117: 49.14582403
A118: 12 | B118: Centro | C118: 101 | D118: Tonalá | E118: 536111 | F118: 95.98138562 | G118: 24.95997408 | H118: 53.90660229 | I118: 48.9747459 | J118: 51.0252541
A119: 7 | B119: Sierra de Amula | C119: 102 | D119: Tonaya | E119: 5960 | F119: 96.82959049 | G119: 31.08961303 | H119: 63.03811352 | I119: 49.19463087 | J119: 50.80536913
A120: 6 | B120: Sur | C120: 103 | D120: Tonila | E120: 7919 | F120: 99.77295661 | G120: 29.89685658 | H120: 56.5776459 | I120: 49.94317464 | J120: 50.05682536
A121: 1 | B121: Norte | C121: 104 | D121: Totatiche | E121: 4412 | F121: 101.1855905 | G121: 32.67790262 | H121: 72.00779727 | I121: 50.29465095 | J121: 49.70534905
A122: 4 | B122: Ciénega | C122: 105 | D122: Tototlán | E122: 23171 | F122: 98.44981158 | G122: 26.94206009 | H122: 64.42662504 | I122: 49.60942558 | J122: 50.39057442
A123: 7 | B123: Sierra de Amula | C123: 106 | D123: Tuxcacuesco | E123: 4229 | F123: 103.219606 | G123: 28.06081081 | H123: 67.59222531 | I123: 50.79214944 | J123: 49.20785056
A124: 5 | B124: Sureste | C124: 107 | D124: Tuxcueca | E124: 6156 | F124: 91.77570093 | G124: 27.1 | H124: 72.09952474 | I124: 47.85575049 | J124: 52.14424951
A125: 6 | B125: Sur | C125: 108 | D125: Tuxpan | E125: 34535 | F125: 94.30066389 | G125: 27.29801689 | H125: 60.1048043 | I125: 48.53337194 | J125: 51.46662806
A126: 2 | B126: Altos Norte | C126: 109 | D126: Unión de San Antonio | E126: 17915 | F126: 93.71756055 | G126: 26.00551471 | H126: 62.53178351 | I126: 48.37845381 | J126: 51.62154619
A127: 7 | B127: Sierra de Amula | C127: 110 | D127: Unión de Tula | E127: 13446 | F127: 93.52331606 | G127: 30.24655963 | H127: 65.77843573 | I127: 48.32663989 | J127: 51.67336011
A128: 3 | B128: Altos Sur | C128: 111 | D128: Valle de Guadalupe | E128: 6924 | F128: 97.6591493 | G128: 27.34265734 | H128: 61.4738806 | I128: 49.40785673 | J128: 50.59214327
A129: 5 | B129: Sureste | C129: 112 | D129: Valle de Juárez | E129: 5389 | F129: 95.3243929 | G129: 31.34012539 | H129: 62.35684147 | I129: 48.80311746 | J129: 51.19688254
A130: 11 | B130: Lagunas | C130: 114 | D130: Villa Corona | E130: 17824 | F130: 96.01891565 | G130: 28.3243865 | H130: 64.61026967 | I130: 48.98451526 | J130: 51.01548474
A131: 1 | B131: Norte | C131: 115 | D131: Villa Guerrero | E131: 5417 | F131: 96.55297533 | G131: 27.01203209 | H131: 79.74767596 | I131: 49.12313088 | J131: 50.87686912
A132: 2 | B132: Altos Norte | C132: 116 | D132: Villa Hidalgo | E132: 20257 | F132: 92.10052157 | G132: 25.74156917 | H132: 63.39278509 | I132: 47.94392062 | J132: 52.05607938
A133: 8 | B133: Costa Sur | C133: 68 | D133: Villa Purificación | E133: 10704 | F133: 107.9658053 | G133: 28.68650218 | H133: 72.99175691 | I133: 51.9151719 | J133: 48.0848281
A134: 3 | B134: Altos Sur | C134: 118 | D134: Yahualica de González Gallo | E134: 22586 | F134: 91.82945473 | G134: 30.48567435 | H134: 64.6925826 | I134: 47.87036217 | J134: 52.12963783
A135: 11 | B135: Lagunas | C135: 119 | D135: Zacoalco de Torres | E135: 28205 | F135: 99.08943319 | G135: 28.18712724 | H135: 63.37465246 | I135: 49.77131714 | J135: 50.22868286
A136: 12 | B136: Centro | C136: 120 | D136: Zapopan | E136: 1332272 | F136: 95.17580549 | G136: 28.11596018 | H136: 46.43842847 | I136: 48.76414126 | J136: 51.23585874
A137: 6 | B137: Sur | C137: 121 | D137: Zapotiltic | E137: 29190 | F137: 95.80091226 | G137: 28.32281145 | H137: 56.41410353 | I137: 48.92771497 | J137: 51.07228503
A138: 6 | B138: Sur | C138: 122 | D138: Zapotitlán de Vadillo | E138: 7027 | F138: 102.6239908 | G138: 26.53193613 | H138: 71.68336184 | I138: 50.64750249 | J138: 49.35249751
A139: 4 | B139: Ciénega | C139: 123 | D139: Zapotlán del Rey | E139: 17893 | F139: 99.56502342 | G139: 26.66124367 | H139: 62.50113523 | I139: 49.89101883 | J139: 50.10898117
A140: 6 | B140: Sur | C140: 23 | D140: Zapotlán el Grande | E140: 105423 | F140: 94.47867473 | G140: 27.8628149 | H140: 50.94009995 | I140: 48.58048054 | J140: 51.41951946
A141: 12 | B141: Centro | C141: 124 | D141: Zapotlanejo | E141: 68519 | F141: 96.87670603 | G141: 25.73735051 | H141: 58.68593529 | I141: 49.20678936 | J141: 50.79321064

Sheet Sit cony ZMG (hidden)
A1: Clave | B1: Región | C1: Clave | D1: Municipio | E1: En unión libre | F1: Casada | G1: Separada | H1: Divorciada | I1: Viuda | J1: Soltera | K1: No especificado | M1: Población de 12 años y más
C2: 14 | D2: Jalisco | E2: 10.74394433 | F2: 42.31579344 | G2: 3.720867062 | H2: 1.561491096 | I2: 4.488047375 | J2: 36.91786078 | K2: 0.2519959222
A3: 1 | B3: Norte | D3: Norte | E3: 22.07249231 | F3: 33.32469507 | G3: 3.289450952 | H3: 0.6530527625 | I3: 5.645969386 | J3: 34.65498773 | K3: 0.3593517847
A4: 2 | B4: Altos Norte | D4: Altos Norte | E4: 6.815524141 | F4: 48.04421548 | G4: 2.639545762 | H4: 0.8572189595 | I4: 4.232498311 | J4: 37.10760875 | K4: 0.3033885973
A5: 3 | B5: Altos Sur | D5: Altos Sur | E5: 4.939922065 | F5: 48.46210894 | G5: 2.271056552 | H5: 0.9237755095 | I5: 4.706376003 | J5: 38.50289818 | K5: 0.1938627478
A6: 4 | B6: Ciénega | D6: Ciénega | E6: 8.464692691 | F6: 48.11109807 | G6: 2.984432449 | H6: 0.9051735378 | I6: 4.58258364 | J6: 34.68799708 | K6: 0.2640225299
A7: 5 | B7: Sureste | D7: Sureste | E7: 11.33896836 | F7: 45.51808589 | G7: 3.043868926 | H7: 1.182401539 | I7: 5.521584593 | J7: 33.0937254 | K7: 0.3013652881
A8: 6 | B8: Sur | D8: Sur | E8: 9.058567814 | F8: 45.4584048 | G8: 2.730136358 | H8: 1.349572925 | I8: 5.625413914 | J8: 35.58559323 | K8: 0.1923109579
A9: 7 | B9: Sierra de Amula | D9: Sierra de Amula | E9: 12.39504767 | F9: 43.4354707 | G9: 3.05738018 | H9: 1.233587741 | I9: 5.424939893 | J9: 34.21090081 | K9: 0.2426729981
A10: 8 | B10: Costa Sur | D10: Costa Sur | E10: 19.85695351 | F10: 37.25491884 | G10: 4.092575698 | H10: 0.7961372282 | I10: 5.140034083 | J10: 32.49961269 | K10: 0.3597679583
A11: 9 | B11: Sierra Occidental | D11: Sierra Occidental | E11: 18.27427458 | F11: 35.36571854 | G11: 4.029494355 | H11: 1.413589562 | I11: 3.698637987 | J11: 36.98485167 | K11: 0.2334333034
A12: 10 | B12: Valles | D12: Valles | E12: 11.23092195 | F12: 44.80084378 | G12: 3.224138644 | H12: 0.9633122389 | I12: 4.877362783 | J12: 34.74955536 | K12: 0.1538652438
A13: 11 | B13: Lagunas | D13: Lagunas | E13: 9.846837794 | F13: 47.19283822 | G13: 2.73134192 | H13: 0.8879144971 | I13: 5.709326756 | J13: 33.372309 | K13: 0.2594318078
A14: 12 | B14: Centro | D14: Centro | E14: 10.77995904 | F14: 40.96664253 | G14: 4.134940597 | H14: 1.870650563 | I14: 4.287853893 | J14: 37.70378273 | K14: 0.2561706524
B15: ZMG | D15: ZMG | E15: =(E27/$M$15)*100 -> 10.81047346 | F15: =(F27/$M$15)*100 -> 40.89472737 | G15: =(G27/$M$15)*100 -> 4.151777397 | H15: 1.880967483 | I15: 4.284132277 | J15: 37.71991111 | K15: 0.2562576801 | M15: =SUM(M17:M25) -> 3821544
A17: 12 | B17: Centro | C17: 39 | D17: Guadalajara | E17: 8.015930203 | F17: 38.97120341 | G17: 4.377074504 | H17: 2.486129894 | I17: 5.7538447 | J17: 40.19789206 | K17: 0.1979252262 | M17: 1206011
A18: 12 | B18: Centro | C18: 44 | D18: Ixtlahuacán de los Membrillos | E18: 16.74332788 | F18: 43.18494842 | G18: 4.563290975 | H18: 0.9433226787 | I18: 2.8013825 | J18: 31.22839843 | K18: 0.5353291235 | M18: 38481
A19: 12 | B19: Centro | C19: 51 | D19: Juanacatlán | E19: 14.36621835 | F19: 45.1724397 | G19: 4.635960628 | H19: 0.7588849651 | I19: 3.306033511 | J19: 31.52002404 | K19: 0.2404388008 | M19: 13309
A20: 12 | B20: Centro | C20: 70 | D20: El Salto | E20: 16.13973125 | F20: 40.56598874 | G20: 4.238237629 | H20: 1.04917157 | I20: 3.239521269 | J20: 34.39190342 | K20: 0.3754461205 | M20: 134773
A21: 12 | B21: Centro | C21: 97 | D21: Tlajomulco de Zúñiga | E21: 15.68450501 | F21: 43.59088129 | G21: 4.319205046 | H21: 1.216546842 | I21: 2.664220036 | J21: 32.22482929 | K21: 0.2998124919 | M21: 398916
A22: 12 | B22: Centro | C22: 98 | D22: Tlaquepaque | E22: 12.13682291 | F22: 41.27047051 | G22: 4.489940986 | H22: 1.422048985 | I22: 3.878901261 | J22: 36.58212225 | K22: 0.2196930936 | M22: 512078
A23: 12 | B23: Centro | C23: 101 | D23: Tonalá | E23: 13.34421456 | F23: 41.23023954 | G23: 4.527696265 | H23: 1.483600031 | I23: 3.331340648 | J23: 35.84973992 | K23: 0.2331690401 | M23: 403141
A24: 12 | B24: Centro | C24: 120 | D24: Zapopan | E24: 9.725368476 | F24: 41.42690563 | G24: 3.572628514 | H24: 2.009032978 | I24: 3.977785537 | J24: 38.99568115 | K24: 0.29259772 | M24: 1062551
A25: 12 | B25: Centro | C25: 124 | D25: Zapotlanejo | E25: 8.599189044 | F25: 45.6831918 | G25: 2.587789764 | H25: 1.195394385 | I25: 4.316808201 | J25: 37.05913855 | K25: 0.5584882564 | M25: 52284
E27: =SUM(E28:E36) -> 413127 | F27: =SUM(F28:F36) -> 1562810 | G27: 158662 | H27: 71882 | I27: 163720 | J27: 1441483 | K27: 9793
D28: Guadalajara | E28: 96673 | F28: 469997 | G28: 52788 | H28: 29922 | I28: 69392 | J28: 484791 | K28: 2387
D29: Ixtlahuacán de los Membrillos | E29: 6443 | F29: 16618 | G29: 1756 | H29: 363 | I29: 1078 | J29: 12017 | K29: 206
D30: Juanacatlán | E30: 1912 | F30: 6012 | G30: 617 | H30: 100 | I30: 440 | J30: 4195 | K30: 32
D31: El Salto | E31: 21752 | F31: 54672 | G31: 5712 | H31: 1414 | I31: 4366 | J31: 46351 | K31: 506
D32: Tlajomulco de Zúñiga | E32: 62568 | F32: 173891 | G32: 17230 | H32: 4848 | I32: 10628 | J32: 128550 | K32: 1196
D33: Tlaquepaque | E33: 62150 | F33: 211337 | G33: 22992 | H33: 7282 | I33: 19863 | J33: 187329 | K33: 1125
D34: Tonalá | E34: 53796 | F34: 166216 | G34: 18253 | H34: 5981 | I34: 13430 | J34: 144525 | K34: 940
D35: Zapopan | E35: 103337 | F35: 440182 | G35: 37961 | H35: 21347 | I35: 42266 | J35: 414349 | K35: 3109
D36: Zapotlanejo | E36: 4496 | F36: 23885 | G36: 1353 | H36: 625 | I36: 2257 | J36: 19376 | K36: 292

Sheet FecZMG (hidden)
A1: Clave | B1: Región | C1: Clave | D1: Municipio | E1: Promedio de hijos nacidos vivos de las mujeres entre 15 y 49 años | F1: 15-19 años | G1: 20-24 años | H1: 25-29 años | I1: 30-34 años | J1: 35-39 años | K1: 40-44 años | L1: 45-49 años
D2: Jalisco | E2: 1.690847084 | F2: 0.1355784446 | G2: 0.6806642022 | H2: 1.383017478 | I2: 2.069749241 | J2: 2.564340176 | K2: 2.966784245 | L2: 3.386088689
A3: 1 | B3: Norte | D3: Norte | E3: 2.101046226 | F3: 0.1929867582 | G3: 0.9033205995 | H3: 1.871200608 | I3: 2.777598059 | J3: 3.394793 | K3: 3.771341463 | L3: 4.534567229
A4: 2 | B4: Altos Norte | D4: Altos Norte | E4: 1.830070059 | F4: 0.110173722 | G4: 0.6675136718 | H4: 1.456909219 | I4: 2.211434371 | J4: 2.894342641 | K4: 3.507469362 | L4: 4.200552369
A5: 3 | B5: Altos Sur | D5: Altos Sur | E5: 1.770377984 | F5: 0.08669791824 | G5: 0.5396028802 | H5: 1.320104806 | I5: 2.158680947 | J5: 2.804273883 | K5: 3.494369562 | L5: 4.132232242
A6: 4 | B6: Ciénega | D6: Ciénega | E6: 1.841132591 | F6: 0.1514414368 | G6: 0.7620197838 | H6: 1.545376429 | I6: 2.278219618 | J6: 2.77742809 | K6: 3.310418812 | L6: 3.89583985
A7: 5 | B7: Sureste | D7: Sureste | E7: 1.873277389 | F7: 0.1637168142 | G7: 0.8126290941 | H7: 1.584695652 | I7: 2.297145954 | J7: 2.843697791 | K7: 3.313906391 | L7: 3.757552083
A8: 6 | B8: Sur | D8: Sur | E8: 1.687338434 | F8: 0.1187723355 | G8: 0.654110591 | H8: 1.421628407 | I8: 2.074031782 | J8: 2.586739683 | K8: 2.99193281 | L8: 3.465687485
A9: 7 | B9: Sierra de Amula | D9: Sierra de Amula | E9: 1.757146548 | F9: 0.1334092059 | G9: 0.7143425766 | H9: 1.462341416 | I9: 2.117219917 | J9: 2.688806235 | K9: 3.11991911 | L9: 3.625055236
A10: 8 | B10: Costa Sur | D10: Costa Sur | E10: 2.07289559 | F10: 0.1950297137 | G10: 0.9512316085 | H10: 1.849078793 | I10: 2.570945274 | J10: 3.11844078 | K10: 3.673704415 | L10: 4.195794648
A11: 9 | B11: Sierra Occidental | D11: Sierra Occidental | E11: 1.712206684 | F11: 0.1774018209 | G11: 0.7891782212 | H11: 1.447858402 | I11: 2.091180867 | J11: 2.545183545 | K11: 2.95015514 | L11: 3.323522106
A12: 10 | B12: Valles | D12: Valles | E12: 1.864127817 | F12: 0.1443667 | G12: 0.7679788343 | H12: 1.588026244 | I12: 2.330601602 | J12: 2.84952618 | K12: 3.241719198 | L12: 3.691545664
A13: 11 | B13: Lagunas | D13: Lagunas | E13: 1.796877366 | F13: 0.1428428328 | G13: 0.7535187853 | H13: 1.513031198 | I13: 2.221903199 | J13: 2.71173577 | K13: 3.145659164 | L13: 3.674203113
A14: 12 | B14: Centro | D14: Centro | E14: 1.61862325 | F14: 0.1343340773 | G14: 0.6560315926 | H14: 1.318096486 | I14: 1.978664782 | J14: 2.442451496 | K14: 2.785928174 | L14: 3.130587375
B15: ZMG | D15: ZMG | E15: 1.6 | F15: 0.1 | G15: 0.7 | H15: 1.3 | I15: 2 | J15: 2.4 | K15: 2.8 | L15: 3.1
A17: 12 | B17: Centro | C17: 39 | D17: Guadalajara | E17: 1.421242839 | F17: 0.1022128716 | G17: 0.5076518137 | H17: 1.068237518 | I17: 1.70137132 | J17: 2.165804707 | K17: 2.486376022 | L17: 2.817136171
A18: 12 | B18: Centro | C18: 44 | D18: Ixtlahuacán de los Membrillos | E18: 1.922497309 | F18: 0.1921671018 | G18: 0.9524590164 | H18: 1.761351052 | I18: 2.374784111 | J18: 2.83363472 | K18: 3.138888889 | L18: 3.586740331
A19: 12 | B19: Centro | C19: 51 | D19: Juanacatlán | E19: 1.829651163 | F19: 0.1244019139 | G19: 0.6495867769 | H19: 1.65497076 | I19: 2.203065134 | J19: 2.736616702 | K19: 3.515625 | L19: 3.714285714
A20: 12 | B20: Centro | C20: 70 | D20: El Salto | E20: 2.009010953 | F20: 0.213836478 | G20: 0.9832028702 | H20: 1.863338644 | I20: 2.495367071 | J20: 2.976963746 | K20: 3.418969555 | L20: 3.87206686
A21: 12 | B21: Centro | C21: 97 | D21: Tlajomulco de Zúñiga | E21: 1.885572184 | F21: 0.1894155381 | G21: 0.9851834006 | H21: 1.715041685 | I21: 2.248387867 | J21: 2.637178243 | K21: 3.05033032 | L21: 3.530033514
A22: 12 | B22: Centro | C22: 98 | D22: Tlaquepaque | E22: 1.775350329 | F22: 0.1748123552 | G22: 0.803708511 | H22: 1.504384233 | I22: 2.151850969 | J22: 2.609260373 | K22: 2.99765796 | L22: 3.418235487
A23: 12 | B23: Centro | C23: 101 | D23: Tonalá | E23: 1.860759593 | F23: 0.1588487973 | G23: 0.8399701924 | H23: 1.632082225 | I23: 2.319831408 | J23: 2.807359544 | K23: 3.163008565 | L23: 3.589433587
B24: Centro | C24: 120 | D24: Zapopan | E24: 1.528192069 | F24: 0.1170433658 | G24: 0.5656663386 | H24: 1.172392326 | I24: 1.86020429 | J24: 2.358078249 | K24: 2.700123211 | L24: 3.00688632
B25: Centro | C25: 124 | D25: Zapotlanejo | E25: 1.858869304 | F25: 0.1058859223 | G25: 0.6602457655 | H25: 1.501204819 | I25: 2.290716612 | J25: 2.953395473 | K25: 3.558917197 | L25: 4.114431024

Sheet MortZMG (hidden)
A1: Clave | B1: Región | C1: Clave | D1: Municipio | E1: Porcentaje de hijos fallecidos por grupo de edad 15-19 años | F1: 20-24 años | G1: 25-29 años | H1: 30-34 años | I1: 35-39 años | J1: 40-44 años | K1: 45-49 años
C2: 14 | D2: Jalisco | E2: 1.8218361 | F2: 2.065592559 | G2: 2.191724355 | H2: 2.475875465 | I2: 3.001139075 | J2: 3.932169236 | K2: 5.112274351
A3: 1 | B3: Norte | D3: Norte | E3: 3.851091142 | F3: 5.271774722 | G3: 5.120359037 | H3: 5.926142169 | I3: 7.180783818 | J3: 8.319805195 | K3: 10.14737859
A4: 2 | B4: Altos Norte | D4: Altos Norte | E4: 2.441271304 | F4: 2.220166512 | G4: 2.408729983 | H4: 2.822642908 | I4: 3.626549076 | J4: 4.853446948 | K4: 6.665305706
A5: 3 | B5: Altos Sur | D5: Altos Sur | E5: 1.54028436 | F5: 2.229722819 | G5: 2.329897914 | H5: 2.6389208 | I5: 3.645432597 | J5: 4.90993537 | K5: 6.201684408
A6: 4 | B6: Ciénega | D6: Ciénega | E6: 1.385041551 | F6: 1.886792453 | G6: 2.19201726 | H6: 2.375656472 | I6: 3.132389277 | J6: 4.328089536 | K6: 5.811320755
A7: 5 | B7: Sureste | D7: Sureste | E7: 1.287553648 | F7: 2.404552129 | G7: 2.23031909 | H7: 2.654238091 | I7: 3.766540024 | J7: 4.558462796 | K7: 5.781792912
A8: 6 | B8: Sur | D8: Sur | E8: 1.193317422 | F8: 2.262443439 | G8: 1.99682035 | H8: 2.182457114 | I8: 2.894746852 | J8: 3.898801795 | K8: 5.426883837
A9: 7 | B9: Sierra de Amula | D9: Sierra de Amula | E9: 1.722488038 | F9: 1.659828422 | G9: 2.280740414 | H9: 2.590801017 | I9: 2.977683877 | J9: 4.201844395 | K9: 5.187584016
A10: 8 | B10: Costa Sur | D10: Costa Sur | E10: 2.463054187 | F10: 1.873905429 | G10: 2.232905983 | H10: 2.970065482 | I10: 3.348721836 | J10: 5.245579568 | K10: 6.364468864
A11: 9 | B11: Sierra Occidental | D11: Sierra Occidental | E11: 1.548586914 | F11: 2.203404476 | G11: 2.223172296 | H11: 2.289923536 | I11: 2.965930514 | J11: 3.708880177 | K11: 4.95329215
A12: 10 | B12: Valles | D12: Valles | E12: 2.60130065 | F12: 1.723044397 | G12: 1.960332103 | H12: 2.231963323 | I12: 2.682794972 | J12: 3.844920358 | K12: 5.237267448
A13: 11 | B13: Lagunas | D13: Lagunas | E13: 2.271114265 | F13: 2.416604893 | G13: 2.42114237 | H13: 2.924592602 | I13: 3.459955187 | J13: 4.693437404 | K13: 6.656173842
A14: 12 | B14: Centro | D14: Centro | E14: 1.756047799 | F14: 1.976655785 | G14: 2.112512884 | H14: 2.371192713 | I14: 2.768775953 | J14: 3.534406379 | K14: 4.48117717
B15: ZMG | D15: ZMG | E15: 1.7 | F15: 2 | G15: 2.1 | H15: 2.4 | I15: 2.8 | J15: 3.5 | K15: 4.4
A17: 12 | B17: Centro | C17: 39 | D17: Guadalajara | E17: 1.571709234 | F17: 1.857478645 | G17: 1.846386682 | H17: 1.975193225 | I17: 2.413350666 | J17: 3.053961151 | K17: 3.627973021
A18: 12 | B18: Centro | C18: 44 | D18: Ixtlahuacán de los Membrillos | E18: 3.651685393 | F18: 1.909307876 | G18: 2.184545158 | H18: 2.977542266 | I18: 3.794691818 | J18: 4.641876716 | K18: 4.497189257
A19: 12 | B19: Centro | C19: 51 | D19: Juanacatlán | E19: 0 | F19: 2.570694087 | G19: 1.326899879 | H19: 1.359927471 | I19: 1.443464314 | J19: 4.02124431 | K19: 4.940374787
A20: 12 | B20: Centro | C20: 70 | D20: El Salto | E20: 1.726519337 | F20: 2.511179911 | G20: 2.221789125 | H20: 2.855477855 | I20: 3.470195239 | J20: 4.763915277 | K20: 6.185302421
A21: 12 | B21: Centro | C21: 97 | D21: Tlajomulco de Zúñiga | E21: 1.802381719 | F21: 2.215565125 | G21: 2.526658768 | H21: 2.719823579 | I21: 3.198148556 | J21: 4.381256347 | K21: 5.360847659
A22: 12 | B22: Centro | C22: 98 | D22: Tlaquepaque | E22: 1.764705882 | F22: 2.149778907 | G22: 2.301756253 | H22: 2.61657789 | I22: 3.079076277 | J22: 3.848658282 | K22: 5.116134906
A23: 12 | B23: Centro | C23: 101 | D23: Tonalá | E23: 2.059873661 | F23: 1.988937929 | G23: 2.148572869 | H23: 2.384903513 | I23: 2.979165442 | J23: 3.591248326 | K23: 4.978455266
A24: 12 | B24: Centro | C24: 120 | D24: Zapopan | E24: 1.557401365 | F24: 1.823206079 | G24: 2.063049399 | H24: 2.292623781 | I24: 2.547803932 | J24: 3.339369408 | K24: 4.416457233
A25: 12 | B25: Centro | C25: 124 | D25: Zapotlanejo | E25: 2.593659942 | F25: 1.16514691 | G25: 1.993534483 | H25: 3.084328757 | I25: 3.136308806 | J25: 4.446447349 | K25: 5.994719677

Sheet PobInd.ZMG (hidden)
A1: Clave | B1: Región | C1: Clave | D1: Municipio | E1: Población de 5 años y más que habla alguna lengua indígena
C2: 14 | D2: Jalisco | E2: 55057
A3: 1 | B3: Norte | C3: 1 | D3: Norte | E3: 17633
A4: 2 | B4: Altos Norte | C4: 2 | D4: Altos Norte | E4: 333
A5: 3 | B5: Altos Sur | C5: 3 | D5: Altos Sur | E5: 624
A6: 4 | B6: Ciénega | C6: 4 | D6: Ciénega | E6: 622
A7: 5 | B7: Sureste | C7: 5 | D7: Sureste | E7: 352
A8: 6 | B8: Sur | C8: 6 | D8: Sur | E8: 1051
A9: 7 | B9: Sierra de Amula | C9: 7 | D9: Sierra de Amula | E9: 1364
A10: 8 | B10: Costa Sur | C10: 8 | D10: Costa Sur | E10: 1601
A11: 9 | B11: Costa-Sierra Occidental | C11: 9 | D11: Costa-Sierra Occidental | E11: 2457
A12: 10 | B12: Valles | C12: 10 | D12: Valles | E12: 874
A13: 11 | B13: Lagunas | C13: 11 | D13: Lagunas | E13: 352
A14: 12 | B14: Centro | C14: 12 | D14: Centro | E14: 27794
A15: 1 | B15: ZMG | D15: ZMG | E15: 27695
A16: 2 | B16: Centro | C16: 39 | D16: Guadalajara | E16: 4531
A17: 3 | B17: Centro | C17: 44 | D17: Ixtlahuacán de los Membrillos | E17: 251
A18: 4 | B18: Centro | C18: 51 | D18: Juanacatlán | E18: 31
A19: 5 | B19: Centro | C19: 70 | D19: El Salto | E19: 581
A20: 6 | B20: Centro | C20: 97 | D20: Tlajomulco de Zúñiga | E20: 2727
A21: 7 | B21: Centro | C21: 98 | D21: Tlaquepaque | E21: 4281
A22: 8 | B22: Centro | C22: 101 | D22: Tonalá | E22: 2445
A23: 9 | B23: Centro | C23: 120 | D23: Zapopan | E23: 12717
A24: 10 | B24: Centro | C24: 124 | D24: Zapotlanejo | E24: 131
E25: =SUM(E16:E24) -> 27695
C26: pob total
A27: 1 | B27: ZMG | C27: =SUM(C28:C36) -> 4865122
A28: 2 | B28: Guadalajara | C28: 1460148
A29: 3 | B29: Ixtlahuacán de los Membrillos | C29: 53045
A30: 4 | B30: Juanacatlán | C30: 17955
A31: 5 | B31: El Salto | C31: 183437
A32: 6 | B32: Tlajomulco de Zúñiga | C32: 549442
A33: 7 | B33: Tlaquepaque | C33: 664193
A34: 8 | B34: Tonalá | C34: 536111
A35: 9 | B35: Zapopan | C35: 1332272
A36: 10 | B36: Zapotlanejo | C36: 68519

Sheet Indig (hidden)
A1: Clave | B1: Región | C1: Clave | D1: Municipio | E1: Población de 5 años y más que habla alguna lengua indígena | F1: % de la población estatal que habla alguna lengua indígena | G1: Población en hogares censales indígenas
C2: 14 | D2: Jalisco | E2: 55057
A3: 1 | B3: Norte | C3: 1 | D3: Norte | E3: 17633
A4: 2 | B4: Altos Norte | C4: 2 | D4: Altos Norte | E4: 333
A5: 3 | B5: Altos Sur | C5: 3 | D5: Altos Sur | E5: 624
A6: 4 | B6: Ciénega | C6: 4 | D6: Ciénega | E6: 622
A7: 5 | B7: Sureste | C7: 5 | D7: Sureste | E7: 352
A8: 6 | B8: Sur | C8: 6 | D8: Sur | E8: 1051
A9: 7 | B9: Sierra de Amula | C9: 7 | D9: Sierra de Amula | E9: 1364
A10: 8 | B10: Costa Sur | C10: 8 | D10: Costa Sur | E10: 1601
A11: 9 | B11: Costa-Sierra Occidental | C11: 9 | D11: Costa-Sierra Occidental | E11: 2457
A12: 10 | B12: Valles | C12: 10 | D12: Valles | E12: 874
A13: 11 | B13: Lagunas | C13: 11 | D13: Lagunas | E13: 352
A14: 12 | B14: Centro | C14: 12 | D14: Centro | E14: 27794
A15: 3 | B15: Altos Sur | C15: 1 | D15: Acatic | E15: 23
A16: 12 | B16: Centro | C16: 2 | D16: Acatlán de Juárez | E16: 26
A17: 11 | B17: Valles | C17: 3 | D17: Ahualulco de Mercado | E17: 17
A18: 6 | B18: Sur | C18: 4 | D18: Amacueca | E18: 4
A19: 11 | B19: Valles | C19: 5 | D19: Amatitán | E19: 4
A20: 11 | B20: Valles | C20: 6 | D20: Ameca | E20: 190
A21: 11 | B21: Valles | C21: 7 | D21: San Juanito de Escobedo | E21: 156
A22: 3 | B22: Altos Sur | C22: 8 | D22: Arandas | E22: 6
A23: 11 | B23: Valles | C23: 9 | D23: El Arenal | E23: 7
A24: 6 | B24: Sur | C24: 10 | D24: Atemajac de Brizuela | E24: 5
A25: 7 | B25: Sierra de Amula | C25: 11 | D25: Atengo | E25: 25
A26: 10 | B26: Sierra Occidental | C26: 12 | D26: Atenguillo | E26: 13
A27: 4 | B27: Ciénega | C27: 13 | D27: Atotonilco el Alto | E27: 1026
A28: 6 | B28: Sur | C28: 14 | D28: Atoyac | E28: 42
A29: 8 | B29: Costa Sur | C29: 15 | D29: Autlán de Navarro | E29: 24
A30: 4 | B30: Ciénega | C30: 16 | D30: Ayotlán | E30: 3878
A31: 10 | B31: Sierra Occidental | C31: 17 | D31: Ayutla | E31: 19
A32: 4 | B32: Ciénega | C32: 18 | D32: La Barca | E32: 5
A33: 1 | B33: Norte | C33: 19 | D33: Bolaños | E33: 72
A34: 9 | B34: Costa Norte | C34: 20 | D34: Cabo Corrientes | E34: 129
A35: 8 | B35: Costa Sur | C35: 21 | D35: Casimiro Castillo | E35: 96
A36: 8 | B36: Costa Sur | C36: 22 | D36: Cihuatlán | E36: 2
A37: 6 | B37: Sur | C37: 23 | D37: Zapotlán el Grande | E37: 615
A38: 11 | B38: Valles | C38: 24 | D38: Cocula | E38: 38
A39: 1 | B39: Norte | C39: 25 | D39: Colotlán | E39: 268
A40: 5 | B40: Sureste | C40: 26 | D40: Concepción de Buenos Aires | E40: 6
A41: 8 | B41: Costa Sur | C41: 27 | D41: Cuautitlán de García Barragán | E41: 210
A42: 10 | B42: Sierra Occidental | C42: 28 | D42: Cuautla | E42: 1
A43: 12 | B43: Centro | C43: 29 | D43: Cuquío | E43: 15
A44: 4 | B44: Ciénega | C44: 30 | D44: Chapala | E44: 27
A45: 1 | B45: Norte | C45: 31 | D45: Chimaltitán | E45: 0
A46: 7 | B46: Sierra de Amula | C46: 32 | D46: Chiquilistlán | E46: 20
A47: 4 | B47: Ciénega | C47: 33 | D47: Degollado | E47: 109
A48: 7 | B48: Sierra de Amula | C48: 34 | D48: Ejutla | E48: 0
A49: 2 | B49: Altos Norte | C49: 35 | D49: Encarnación de Díaz | E49: 4531
A50: 11 | B50: Valles | C50: 36 | D50: Etzatlán | E50: 34
A51: 7 | B51: Sierra de Amula | C51: 37 | D51: El Grullo | E51: 11
A52: 10 | B52: Sierra Occidental | C52: 38 | D52: Guachinango | E52: 32
A53: 12 | B53: Centro | C53: 39 | D53: Guadalajara | E53: 2
A54: 11 | B54: Valles | C54: 40 | D54: Hostotipaquillo | E54: 251
A55: 1 | B55: Norte | C55: 41 | D55: Huejúcar | E55: 29
A56: 1 | B56: Norte | C56: 42 | D56: Huejuquilla el Alto | E56: 23
A57: 8 | B57: Costa Sur | C57: 43 | D57: La Huerta | E57: 794
A58: 12 | B58: Centro | C58: 44 | D58: Ixtlahuacán de los Membrillos | E58: 31
A59: 12 | B59: Centro | C59: 45 | D59: Ixtlahuacán del Río | E59: 39
A60: 3 | B60: Altos Sur | C60: 46 | D60: Jalostotitlán | E60: 56
A61: 4 | B61: Ciénega | C61: 47 | D61: Jamay | E61: 77
A62: 3 | B62: Altos Sur | C62: 48 | D62: Jesús María | E62: 32
A63: 5 | B63: Sureste | C63: 49 | D63: Jilotlán de los Dolores | E63: 14
A64: 4 | B64: Ciénega | C64: 50 | D64: Jocotepec | E64: 105
A65: 12 | B65: Centro | C65: 51 | D65: Juanacatlán | E65: 581
A66: 7 | B66: Sierra de Amula | C66: 52 | D66: Juchitlán | E66: 4
A67: 2 | B67: Altos Norte | C67: 53 | D67: Lagos de Moreno | E67: 47
A68: 7 | B68: Sierra de Amula | C68: 54 | D68: El Limón | E68: 58
A69: 11 | B69: Valles | C69: 55 | D69: Magdalena | E69: 1
A70: 5 | B70: Sureste | C70: 56 | D70: Santa María del Oro | E70: 68
A71: 5 | B71: Sureste | C71: 57 | D71: La Manzanilla de la Paz | E71: 36
A72: 10 | B72: Sierra Occidental | C72: 58 | D72: Mascota | E72: 13
A73: 5 | B73: Sureste | C73: 59 | D73: Mazamitla | E73: 36
A74: 3 | B74: Altos Sur | C74: 60 | D74: Mexticacán | E74: 5
A75: 1 | B75: Norte | C75: 61 | D75: Mezquitic | E75: 12115
A76: 10 | B76: Sierra Occidental | C76: 62 | D76: Mixtlán | E76: 2
A77: 4 | B77: Ciénega | C77: 63 | D77: Ocotlán | E77: 213
A78: 2 | B78: Altos Norte | C78: 64 | D78: Ojuelos de Jalisco | E78: 48
A79: 5 | B79: Sureste | C79: 65 | D79: Pihuamo | E79: 7
A80: 4 | B80: Ciénega | C80: 66 | D80: Poncitlán | E80: 155
A81: 9 | B81: Costa Norte | C81: 67 | D81: Puerto Vallarta | E81: 2379
A82: 8 | B82: Costa Sur | C82: 68 | D82: Villa Purificación | E82: 5
A83: 5 | B83: Sureste | C83: 69 | D83: Quitupan | E83: 45
A84: 12 | B84: Centro | C84: 70 | D84: El Salto | E84: 6
A85: 12 | B85: Centro | C85: 71 | D85: San Cristóbal de la Barranca | E85: 184
A86: 2 | B86: Altos Norte | C86: 72 | D86: San Diego de Alejandría | E86: 73
A87: 2 | B87: Altos Norte | C87: 73 | D87: San Juan de los Lagos | E87: 65
A88: 3 | B88: Altos Sur | C88: 74 | D88: San Julián | E88: 14
A89: 11 | B89: Valles | C89: 75 | D89: San Marcos | E89: 64
A90: 1 | B90: Norte | C90: 76 | D90: San Martín de Bolaños | E90: 3
A91: 11 | B91: Valles | C91: 77 | D91: San Martín Hidalgo | E91: 90
A92: 3 | B92: Altos Sur | C92: 78 | D92: San Miguel el Alto | E92: 24
A93: 6 | B93: Sur | C93: 79 | D93: Gómez Farías | E93: 9
A94: 10 | B94: Sierra Occidental | C94: 80 | D94: San Sebastián del Oeste | E94: 2727
A95: 1 | B95: Norte | C95: 81 | D95: Santa María de los Ángeles | E95: 5
A96: 6 | B96: Sur | C96: 82 | D96: Sayula | E96: 3
A97: 11 | B97: Valles | C97: 83 | D97: Tala | E97: 1
A98: 10 | B98: Sierra Occidental | C98: 84 | D98: Talpa de Allende | E98: 148
A99: 5 | B99: Sureste | C99: 85 | D99: Tamazula de Gordiano | E99: 476
A100: 6 | B100: Sur | C100: 86 | D100: Tapalpa | E100: 32
A101: 5 | B101: Sureste | C101: 87 | D101: Tecalitlán | E101: 64
A102: 7 | B102: Sierra de Amula | C102: 88 | D102: Tecolotlán | E102: 15
A103: 6 | B103: Sur | C103: 89 | D103: Techaluta de Montenegro | E103: 16
A104: 7 | B104: Sierra de Amula | C104: 90 | D104: Tenamaxtlán | E104: 1
A105: 2 | B105: Altos Norte | C105: 91 | D105: Teocaltiche | E105: 12
A106: 6 | B106: Sur | C106: 92 | D106: Teocuitatlán de Corona | E106: 6
A107: 3 | B107: Altos Sur | C107: 93 | D107: Tepatitlán de Morelos | E107: 65
A108: 11 | B108: Valles | C108: 94 | D108: Tequila | E108: 8
A109: 11 | B109: Valles | C109: 95 | D109: Teuchitlán | E109: 191
A110: 4 | B110: Ciénega | C110: 96 | D110: Tizapán el Alto | E110: 60
A111: 12 | B111: Centro | C111: 97 | D111: Tlajomulco de Zúñiga | E111: 14
A112: 12 | B112: Centro | C112: 98 | D112: Tlaquepaque | E112: 41
A113: 6 | B113: Sur | C113: 99 | D113: Tolimán | E113: 4281
A114: 9 | B114: Costa Norte | C114: 100 | D114: Tomatlán | E114: 33
A115: 12 | B115: Centro | C115: 101 | D115: Tonalá | E115: 621
A116: 7 | B116: Sierra de Amula | C116: 102 | D116: Tonaya | E116: 2445
A117: 6 | B117: Sur | C117: 103 | D117: Tonila | E117: 4
A118: 1 | B118: Norte | C118: 104 | D118: Totatiche | E118: 11
A119: 4 | B119: Ciénega | C119: 105 | D119: Tototlán | E119: 47
A120: 7 | B120: Sierra de Amula | C120: 106 | D120: Tuxcacuesco | E120: 10
A121: 4 | B121: Ciénega | C121: 107 | D121: Tuxcueca | E121: 149
A122: 6 | B122: Sur | C122: 108 | D122: Tuxpan | E122: 15
A123: 2 | B123: Altos Norte | C123: 109 | D123: Unión de San Antonio | E123: 199
A124: 7 | B124: Sierra de Amula | C124: 110 | D124: Unión de Tula | E124: 28
A125: 3 | B125: Altos Sur | C125: 111 | D125: Valle de Guadalupe | E125: 20
A126: 5 | B126: Sureste | C126: 112 | D126: Valle de Juárez | E126: 2
A127: 6 | B127: Sur | C127: 113 | D127: San Gabriel | E127: 13
A128: 12 | B128: Centro | C128: 114 | D128: Villa Corona | E128: 27
A129: 1 | B129: Norte | C129: 115 | D129: Villa Guerrero | E129: 319
A130: 2 | B130: Altos Norte | C130: 116 | D130: Villa Hidalgo | E130: 19
A131: 3 | B131: Altos Sur | C131: 117 | D131: Cañadas de Obregón | E131: 25
A132: 3 | B132: Altos Sur | C132: 118 | D132: Yahualica de González Gallo | E132: 8
A133: 6 | B133: Sur | C133: 119 | D133: Zacoalco de Torres | E133: 42
A134: 12 | B134: Centro | C134: 120 | D134: Zapopan | E134: 12717
A135: 6 | B135: Sur | C135: 121 | D135: Zapotiltic | E135: 325
A136: 6 | B136: Sur | C136: 122 | D136: Zapotitlán de Vadillo | E136: 15
A137: 4 | B137: Ciénega | C137: 123 | D137: Zapotlán del Rey | E137: 26
A138: 12 | B138: Centro | C138: 124 | D138: Zapotlanejo | E138: 151
A139: 3 | B139: Altos Sur | C139: 125 | D139: San Ignacio Cerro Gordo | E139: 131

Sheet Indig (2) (hidden)
A1: Clave | B1: Región | C1: Clave | D1: Municipio | E1: Población de 5 años y más que habla alguna lengua indígena | F1: % de la población estatal que habla alguna lengua indígena | G1: Población en hogares censales indígenas
C2: 14 | D2: Jalisco | E2: 51702 | F2: 0.703363307 | G2: 87638
A3: 2 | B3: Altos Norte | C3: 35 | D3: Encarnación de Díaz | E3: 84 | F3: 0.1634368433 | G3: 165
A4: 2 | B4: Altos Norte | C4: 53 | D4: Lagos de Moreno | E4: 210 | F4: 0.1365258717 | G4: 534
A5: 2 | B5: Altos Norte | C5: 64 | D5: Ojuelos de Jalisco | E5: 31 | F5: 0.103000299 | G5: 87
A6: 2 | B6: Altos Norte | C6: 72 | D6: San Diego de Alejandría | E6: 7 | F6: 0.1053106665 | G6: 24
A7: 2 | B7: Altos Norte | C7: 73 | D7: San Juan de los Lagos | E7: 117 | F7: 0.1793955749 | G7: 215
A8: 2 | B8: Altos Norte | C8: 91 | D8: Teocaltiche | E8: 117 | F8: 0.2917341977 | G8: 237
A9: 2 | B9: Altos Norte | C9: 109 | D9: Unión de San Antonio | E9: 25 | F9: 0.1443001443 | G9: 56
A10: 2 | B10: Altos Norte | C10: 116 | D10: Villa Hidalgo | E10: 38 | F10: 0.203089092 | G10: 67
B11: T.Altos Norte | E11: =SUBTOTAL(9,E3:E10) -> 629
A12: 3 | B12: Altos Sur | C12: 1 | D12: Acatic | E12: 35 | F12: 0.165047628 | G12: 59
A13: 3 | B13: Altos Sur | C13: 8 | D13: Arandas | E13: 240 | F13: 0.3296159974 | G13: 506
A14: 3 | B14: Altos Sur | C14: 46 | D14: Jalostotitlán | E14: 67 | F14: 0.2097157882 | G14: 198
A15: 3 | B15: Altos Sur | C15: 48 | D15: Jesús María | E15: 27 | F15: 0.1448964259 | G15: 62
A16: 3 | B16: Altos Sur | C16: 60 | D16: Mexticacán | E16: 9 | F16: 0.1491547895 | G16: 23
A17: 3 | B17: Altos Sur | C17: 74 | D17: San Julián | E17: 21 | F17: 0.135887149 | G17: 37
A18: 3 | B18: Altos Sur | C18: 78 | D18: San Miguel el Alto | E18: 103 | F18: 0.3304883527 | G18: 195
A19: 3 | B19: Altos Sur | C19: 93 | D19: Tepatitlán de Morelos | E19: 243 | F19: 0.1785150195 | G19: 560
A20: 3 | B20: Altos Sur | C20: 111 | D20: Valle de Guadalupe | E20: 10 | F20: 0.149142431 | G20: 21
A21: 3 | B21: Altos Sur | C21: 117 | D21: Cañadas de Obregón | E21: 3 | F21: 0.07225433526 | G21: 10
A22: 3 | B22: Altos Sur | C22: 118 | D22: Yahualica de González Gallo | E22: 28 | F22: 0.1256506911 | G22: 86
A23: 3 | B23: Altos Sur | C23: 125 | D23: San Ignacio Cerro Gordo | E23: 54 | F23: 0.3063655963 | G23: 101
B24: T.Altos Sur | E24: =SUBTOTAL(9,E12:E23) -> 840
A25: 12 | B25: Centro | C25: 29 | D25: Cuquío | E25: 23 | F25: 0.1292497893 | G25: 53
A26: 12 | B26: Centro | C26: 39 | D26: Guadalajara | E26: 5471 | F26: 0.3659069188 | G26: 9844
A27: 12 | B27: Centro | C27: 44 | D27: Ixtlahuacán de los Membrillos | E27: 150 | F27: 0.3653190453 | G27: 323
A28: 12 | B28: Centro | C28: 45 | D28: Ixtlahuacán del Río | E28: 16 | F28: 0.08418837148 | G28: 36
A29: 12 | B29: Centro | C29: 51 | D29: Juanacatlán | E29: 24 | F29: 0.1815705856 | G29: 46
A30: 12 | B30: Centro | C30: 70 | D30: El Salto | E30: 476 | F30: 0.3443635785 | G30: 1252
A31: 12 | B31: Centro | C31: 71 | D31: San Cristóbal de la Barranca | E31: 37 | F31: 1.164987406 | G31: 48
A32: 12 | B32: Centro | C32: 97 | D32: Tlajomulco de Zúñiga | E32: 2035 | F32: 0.4884476725 | G32: 4280
A33: 12 | B33: Centro | C33: 98 | D33: San Pedro Tlaquepaque | E33: 3175 | F33: 0.5221060525 | G33: 7339
A34: 12 | B34: Centro | C34: 101 | D34: Tonalá | E34: 1719 | F34: 0.3591058077 | G34: 3389
A35: 12 | B35: Centro | C35: 120 | D35: Zapopan | E35: 12339 | F35: 0.9920756161 | G35: 22155
A36: 12 | B36: Centro | C36: 124 | D36: Zapotlanejo | E36: 118 | F36: 0.185429631 | G36: 250
B37: T.Centro | E37: =SUBTOTAL(9,E25:E36) -> 25583
A38: 4 | B38: Ciénega | C38: 13 | D38: Atotonilco el Alto | E38: 122 | F38: 0.2113761977 | G38: 285
A39: 4 | B39: Ciénega | C39: 16 | D39: Ayotlán | E39: 59 | F39: 0.1540832049 | G39: 169
A40: 4 | B40: Ciénega | C40: 18 | D40: La Barca | E40: 107 | F40: 0.1664877313 | G40: 244
A41: 4 | B41: Ciénega | C41: 33 | D41: Degollado | E41: 70 | F41: 0.331251183 | G41: 137
A42: 4 | B42: Ciénega | C42: 47 | D42: Jamay | E42: 64 | F42: 0.2797080547 | G42: 146
A43: 4 | B43: Ciénega | C43: 63 | D43: Ocotlán | E43: 195 | F43: 0.2097518474 | G43: 482
A44: 4 | B44: Ciénega | C44: 66 | D44: Poncitlán | E44: 61 | F44: 0.1260122294 | G44: 124
A45: 4 | B45: Ciénega | C45: 105 | D45: Tototlán | E45: 14 | F45: 0.064011705 | G45: 40
A46: 4 | B46: Ciénega | C46: 123 | D46: Zapotlán del Rey | E46: 8 | F46: 0.04549331817 | G46: 21
B47: T.Ciénega | E47: =SUBTOTAL(9,E38:E46) -> 700
A48: 8 | B48: Costa Sur | C48: 21 | D48: Casimiro Castillo | E48: 34 | F48: 0.1583236321 | G48: 66
A49: 8 | B49: Costa Sur | C49: 22 | D49: Cihuatlán | E49: 398 | F49: 1.019989749 | G49: 721
A50: 8 | B50: Costa Sur | C50: 27 | D50: Cuautitlán de García Barragán | E50: 150 | F50: 0.865950814 | G50: 279
A51: 8 | B51: Costa Sur | C51: 43 | D51: La Huerta | E51: 67 | F51: 0.2859825849 | G51: 135
A52: 8 | B52: Costa Sur | C52: 68 | D52: Villa Purificación | E52: 14 | F52: 0.1204508303 | G52: 35
A53: 9 | B53: Costa Sur | C53: 100 | D53: Tomatlán | E53: 290 | F53: 0.8273894437 | G53: 482
B54: T.Costa Sur | E54: =SUBTOTAL(9,E48:E53) -> 953
A55: 10 | B55: Costa-Sierra Occidental | C55: 12 | D55: Atenguillo | E55: 13 | F55: 0.3159173755 | G55: 41
A56: 9 | B56: Costa-Sierra Occidental | C56: 20 | D56: Cabo Corrientes | E56: 21 | F56: 0.209392761 | G56: 50
A57: 10 | B57: Costa-Sierra Occidental | C57: 38 | D57: Guachinango | E57: 6 | F57: 0.1387925052 | G57: 18
A58: 10 | B58: Costa-Sierra Occidental | C58: 58 | D58: Mascota | E58: 15 | F58: 0.1053001053 | G58: 34
A59: 10 | B59: Costa-Sierra Occidental | C59: 62 | D59: Mixtlán | E59: 2 | F59: 0.05595970901 | G59: 0
A60: 9 | B60: Costa-Sierra Occidental | C60: 67 | D60: Puerto Vallarta | E60: 2389 | F60: 0.9343674344 | G60: 5070
A61: 10 | B61: Costa-Sierra Occidental | C61: 80 | D61: San Sebastián del Oeste | E61: 2 | F61: 0.03475238923 | G61: 1
A62: 10 | B62: Costa-Sierra Occidental | C62: 84 | D62: Talpa de Allende | E62: 23 | F62: 0.159611381 | G62: 63
B63: T.Costa-Sierra Occidental | E63: =SUBTOTAL(9,E55:E62) -> 2471
A64: 12 | B64: Lagunas | C64: 2 | D64: Acatlán de Juárez | E64: 503 | F64: 2.164278645 | G64: 71
A65: 6 | B65: Lagunas | C65: 4 | D65: Amacueca | E65: 4 | F65: 0.07213706041 | G65: 15
A66: 6 | B66: Lagunas | C66: 10 | D66: Atemajac de Brizuela | E66: 9 | F66: 0.1352366642 | G66: 19
A67: 6 | B67: Lagunas | C67: 14 | D67: Atoyac | E67: 43 | F67: 0.5195746738 | G67: 23
A68: 11 | B68: Lagunas | C68: 24 | D68: Cocula | E68: 29 | F68: 0.1107969741 | G68: 59
A69: 11 | B69: Lagunas | C69: 77 | D69: San Martín Hidalgo | E69: 37 | F69: 0.1406523227 | G69: 64
A70: 6 | B70: Lagunas | C70: 82 | D70: Sayula | E70: 123 | F70: 0.3531539809 | G70: 314
A71: 6 | B71: Lagunas | C71: 86 | D71: Tapalpa | E71: 25 | F71: 0.1381520778 | G71: 55
A72: 6 | B72: Lagunas | C72: 89 | D72: Techaluta de Montenegro | E72: 3 | F72: 0.08544574195 | G72: 1
A73: 6 | B73: Lagunas | C73: 92 | D73: Teocuitatlán de Corona | E73: 16 | F73: 0.1476423364 | G73: 41
A74: 12 | B74: Lagunas | C74: 114 | D74: Villa Corona | E74: 26 | F74: 0.1532205787 | G74: 69
A75: 6 | B75: Lagunas | C75: 119 | D75: Zacoalco de Torres | E75: 43 | F75: 0.1541163399 | G75: 87
B76: T.Lagunas | E76: =SUBTOTAL(9,E64:E75) -> 861
A77: 1 | B77: Norte | C77: 19 | D77: Bolaños | E77: 3777 | F77: 55.38123167 | G77: 4485
A78: 1 | B78: Norte | C78: 25 | D78: Colotlán | E78: 271 | F78: 1.497982422 | G78: 447
A79: 1 | B79: Norte | C79: 31 | D79: Chimaltitán | E79: 45 | F79: 1.193317422 | G79: 87
A80: 1 | B80: Norte | C80: 41 | D80: Huejúcar | E80: 14 | F80: 0.2301117686 | G80: 31
A81: 1 | B81: Norte | C81: 42 | D81: Huejuquilla el Alto | E81: 494 | F81: 5.62578294 | G81: 631
A82: 1 | B82: Norte | C82: 61 | D82: Mezquitic | E82: 11591 | F82: 64.09533289 | G82: 13930
A83: 1 | B83: Norte | C83: 76 | D83: San Martín de Bolaños | E83: 96 | F83: 2.81938326 | G83: 179
A84: 1 | B84: Norte | C84: 81 | D84: Santa María de los Ángeles | E84: 2 | F84: 0.05367686527 | G84: 0
A85: 1 | B85: Norte | C85: 104 | D85: Totatiche | E85: 36 | F85: 0.8117249154 | G85: 60
A86: 1 | B86: Norte | C86: 115 | D86: Villa Guerrero | E86: 260 | F86: 4.611564385 | G86: 341
B87: T.Norte | E87: =SUBTOTAL(9,E77:E86) -> 16586
A88: 7 | B88: Sierra de Amula | C88: 11 | D88: Atengo | E88: 4 | F88: 0.07407407407 | G88: 5
A89: 8 | B89: Sierra de Amula | C89: 15 | D89: Autlán de Navarro | E89: 575 | F89: 0.9989749648 | G89: 932
A90: 10 | B90: Sierra de Amula | C90: 17 | D90: Ayutla | E90: 14 | F90: 0.1105495894 | G90: 49
A91: 10 | B91: Sierra de Amula | C91: 28 | D91: Cuautla | E91: 0 | F91: 0 | G91: 0
A92: 7 | B92: Sierra de Amula | C92: 32 | D92: Chiquilistlán | E92: 7 | F92: 0.1203990368 | G92: 21
A93: 7 | B93: Sierra de Amula | C93: 34 | D93: Ejutla | E93: 0 | F93: 0 | G93: 0
A94: 7 | B94: Sierra de Amula | C94: 37 | D94: El Grullo | E94: 142 | F94: 0.5955126861 | G94: 181
A95: 7 | B95: Sierra de Amula | C95: 52 | D95: Juchitlán | E95: 9 | F95: 0.1631912965 | G95: 18
A96: 7 | B96: Sierra de Amula | C96: 54 | D96: El Limón | E96: 8 | F96: 0.1454809965 | G96: 27
A97: 7 | B97: Sierra de Amula | C97: 88 | D97: Tecolotlán | E97: 20 | F97: 0.1206782115 | G97: 51
A98: 7 | B98: Sierra de Amula | C98: 90 | D98: Tenamaxtlán | E98: 17 | F98: 0.2411005531 | G98: 41
A99: 7 | B99: Sierra de Amula | C99: 102 | D99: Tonaya | E99: 9 | F99: 0.1517706577 | G99: 28
A100: 7 | B100: Sierra de Amula | C100: 106 | D100: Tuxcacuesco | E100: 47 | F100: 1.110061408 | G100: 72
A101: 7 | B101: Sierra de Amula | C101: 110 | D101: Unión de Tula | E101: 13 | F101: 0.09463492757 | G101: 41
B102: T.Sierra de Amula | E102: =SUBTOTAL(9,E88:E101) -> 865
A103: 6 | B103: Sur | C103: 23 | D103: Zapotlán el Grande | E103: 214 | F103: 0.2128633099 | G103: 496
A104: 5 | B104: Sur | C104: 49 | D104: Jilotlán de los Dolores | E104: 10 | F104: 0.1047668937 | G104: 28
A105: 5 | B105: Sur | C105: 65 | D105: Pihuamo | E105: 14 | F105: 0.1155210826 | G105: 27
A106: 6 | B106: Sur | C106: 79 | D106: Gómez Farías | E106: 5 | F106: 0.03568624652 | G106: 7
A107: 5 | B107: Sur | C107: 85 | D107: Tamazula de Gordiano | E107: 99 | F107: 0.2606223345 | G107: 197
A108: 5 | B108: Sur | C108: 87 | D108: Tecalitlán | E108: 24 | F108: 0.142458598 | G108: 49
A109: 6 | B109: Sur | C109: 99 | D109: Tolimán | E109: 26 | F109: 0.2710874778 | G109: 36
A110: 6 | B110: Sur | C110: 103 | D110: Tonila | E110: 9 | F110: 0.1240352811 | G110: 21
A111: 6 | B111: Sur | C111: 108 | D111: Tuxpan | E111: 187 | F111: 0.5470715581 | G111: 302
A112: 6 | B112: Sur | C112: 113 | D112: San Gabriel | E112: 524 | F112: 3.422599608 | G112: 694
A113: 6 | B113: Sur | C113: 121 | D113: Zapotiltic | E113: 36 | F113: 0.1233214579 | G113: 82
A114: 6 | B114: Sur | C114: 122 | D114: Zapotitlán de Vadillo | E114: 15 | F114: 0.2243829469 | G114: 25
B115: T.Sur | E115: =SUBTOTAL(9,E103:E114) -> 1163
A116: 5 | B116: Sureste | C116: 26 | D116: Concepción de Buenos Aires | E116: 9 | F116: 0.1516939154 | G116: 11
A117: 4 | B117: Sureste | C117: 30 | D117: Chapala | E117: 135 | F117: 0.2764184361 | G117: 310
A118: 4 | B118: Sureste | C118: 50 | D118: Jocotepec | E118: 76 | F118: 0.1802485533 | G118: 119
A119: 5 | B119: Sureste | C119: 56 | D119: Santa María del Oro | E119: 2 | F119: 0.07945967422 | G119: 2
A120: 5 | B120: Sureste | C120: 57 | D120: La Manzanilla de la Paz | E120: 3 | F120: 0.07989347537 | G120: 7
A121: 5 | B121: Sureste | C121: 59 | D121: Mazamitla | E121: 23 | F121: 0.1739130435 | G121: 74
A122: 5 | B122: Sureste | C122: 69 | D122: Quitupan | E122: 7 | F122: 0.08054309055 | G122: 16
A123: 4 | B123: Sureste | C123: 96 | D123: Tizapán el Alto | E123: 35 | F123: 0.1678093686 | G123: 86
A124: 4 | B124: Sureste | C124: 107 | D124: Tuxcueca | E124: 10 | F124: 0.1583280557 | G124: 22
A125: 5 | B125: Sureste | C125: 112 | D125: Valle de Juárez | E125: 14 | F125: 0.2414625733 | G125: 43
B126: T.Sureste | E126: =SUBTOTAL(9,E116:E125) -> 314
A127: 11 | B127: Valles | C127: 3 | D127: Ahualulco de Mercado | E127: 17 | F127: 0.07829050382 | G127: 65
A128: 11 | B128: Valles | C128: 5 | D128: Amatitán | E128: 20 | F128: 0.1365374113 | G128: 41
A129: 11 | B129: Valles | C129: 6 | D129: Ameca | E129: 152 | F129: 0.2650854552 | G129: 349
A130: 11 | B130: Valles | C130: 7 | D130: San Juanito de Escobedo | E130: 25 | F130: 0.2810251799 | G130: 39
A131: 11 | B131: Valles | C131: 9 | D131: El Arenal | E131: 25 | F131: 0.1424907381 | G131: 58
A132: 11 | B132: Valles | C132: 36 | D132: Etzatlán | E132: 21 | F132: 0.1127093173 | G132: 66
A133: 11 | B133: Valles | C133: 40 | D133: Hostotipaquillo | E133: 70 | F133: 0.6806690004 | G133: 79
A134: 11 | B134: Valles | C134: 55 | D134: Magdalena | E134: 60 | F134: 0.2814126917 | G134: 140
A135: 11 | B135: Valles | C135: 75 | D135: San Marcos | E135: 1 | F135: 0.02658160553 | G135: 4
A136: 11 | B136: Valles | C136: 83 | D136: Tala | E136: 263 | F136: 0.3809882517 | G136: 552
A137: 11 | B137: Valles | C137: 94 | D137: Tequila | E137: 75 | F137: 0.1842887682 | G137: 190
A138: 11 | B138: Valles | C138: 95 | D138: Teuchitlán | E138: 8 | F138: 0.08802816901 | G138: 25
B139: T.Valles | E139: =SUBTOTAL(9,E127:E138) -> 737
B140: T.general | E140: =SUBTOTAL(9,E2:E138) -> 103404

Sheet grapobZMG (hidden)
I1: 1 | J1: 2 | K1: 3 | L1: 4 | M1: 5 | N1: 6 | O1: 7 | P1: 8 | Q1: 9 | R1: 10 | S1: 11 | T1: 12 | U1: 13 | V1: 14 | W1: 15 | X1: 16 | Y1: 17 | Z1: 18 | AA1: 19 | AB1: 20 | AC1: 21 | AD1: 22 | AE1: 23 | AF1: 24 | AG1: 25 | AH1: 26 | AI1: 27 | AJ1: 28 | AK1: 29 | AL1: 30 | AM1: 31 | AN1: 32 | AO1: 33 | AP1: 34 | AQ1: 35 | AR1: 36 | AS1: 37 | AT1: 38 | AU1: 39 | AV1: 40 | AW1: 41 | AX1: 42 | AY1: 43 | AZ1: 44
C2: =VLOOKUP(DatosAM!E$142,grapobZMG!G$3:BD$12,1,FALSE) -> 1 | I2: 1 | J2: 2 | K2: 3 | L2: 4 | M2: 5 | N2: 6 | O2: 7 | P2: 8 | Q2: 9 | R2: 10 | S2: 11 | T2: 12 | U2: 13 | V2: 14 | W2: 15 | X2: 16 | Y2: 17 | Z2: 18 | AA2: 19 | AB2: 20 | AC2: 21 | AF2: 1 | AG2: 2 | AH2: 3 | AI2: 4 | AJ2: 5 | AK2: 6 | AL2: 7 | AM2: 8 | AN2: 9 | AO2: 10 | AP2: 11 | AQ2: 12 | AR2: 13 | AS2: 14 | AT2: 15 | AU2: 16 | AV2: 17 | AW2: 18 | AX2: 19 | AY2: 20 | AZ2: 21
C3: hombres | D3: mujeres | E3: =SUM(E4:E24) -> 4863036 | G3: 1 | I3: =SUM(I4:I12) -> -215320 | J3: =SUM(J4:J12) -> -222255 | K3: -224912 | L3: -222478 | M3: -229894 | N3: -195967 | O3: -189175 | P3: -168097 | Q3: -167946 | R3: -129517 | S3: -113538 | T3: -85609 | U3: -72042 | V3: -52338 | W3: -36849 | X3: -22974 | Y3: -14302 | Z3: -7095 | AA3: -2829 | AB3: -808 | AC3: -142 | AF3: =SUM(AF4:AF12) -> 210213 | AG3: =SUM(AG4:AG12) -> 217166 | AH3: 225987 | AI3: 217671 | AJ3: 225130 | AK3: 204071 | AL3: 198684 | AM3: 182706 | AN3: 175554 | AO3: 144423 | AP3: 129456 | AQ3: 100724 | AR3: 85145 | AS3: 63352 | AT3: 43901 | AU3: 28573 | AV3: 18980 | AW3: 10800 | AX3: 4596 | AY3: 1680 | AZ3: 137 | BC3: Miles de personas
A4: 1 | B4: 0 - 4 años | C4: =VLOOKUP(DatosAM!E$142,grapobZMG!G$3:BB$12,3,FALSE) -> -215320 | D4: =VLOOKUP(DatosAM!E$142,grapobZMG!G$3:BB$12,26,FALSE) -> 210213 | E4: =-C4+D4 -> 425533 | F4: =IFERROR(E4/$E$3,"") -> 0.08750356773 | G4: 2 | H4: 39 | I4: -50167 | J4: -54549 | K4: -59773 | L4: -65260 | M4: -69919 | N4: -59944 | O4: -54412 | P4: -45350 | Q4: -48872 | R4: -41293 | S4: -36608 | T4: -30485 | U4: -28207 | V4: -21006 | W4: -16156 | X4: -10095 | Y4: -6549 | Z4: -3386 | AA4: -1466 | AB4: -374 | AC4: -78 | AD4: =SUM(I4:AC4) -> -703949 | AE4: =SUM(I4:AC4)*-1/(SUM(I4:AC4)*-1+SUM(AF4:AZ4)) -> 0.4823216976 | AF4: 49242 | AG4: 54417 | AH4: 58265 | AI4: 62084 | AJ4: 66626 | AK4: 58732 | AL4: 56554 | AM4: 49758 | AN4: 52647 | AO4: 47783 | AP4: 46607 | AQ4: 37361 | AR4: 35719 | AS4: 27679 | AT4: 20047 | AU4: 13663 | AV4: 9195 | AW4: 5613 | AX4: 2669 | AY4: 817 | AZ4: 74 | BA4: =SUM(AF4:AZ4) -> 755552 | BB4: =BA4/(-AD4+BA4) -> 0.5176783024 | BC4: Miles de personas
A5: 2 | B5: 5 - 9 años | C5: =VLOOKUP(DatosAM!E$142,grapobZMG!G$3:BB$12,4,FALSE) -> -222255 | D5: =VLOOKUP(DatosAM!E$142,grapobZMG!G$3:BB$12,27,FALSE) -> 217166 | E5: =-C5+D5 -> 439421 | F5: =IFERROR(E5/$E$3,"") -> 0.09035939689 | G5: 3 | H5: 44 | I5: -3100 | J5: -3230 | K5: -2693 | L5: -2181 | M5: -2012 | N5: -2087 | O5: -2189 | P5: -1981 | Q5: -1721 | R5: -1308 | S5: -1169 | T5: -729 | U5: -620 | V5: -392 | W5: -317 | X5: -217 | Y5: -124 | Z5: -62 | AA5: -25 | AB5: -5 | AC5: 0 | AD5: =SUM(I5:AC5) -> -26162 | AE5: 0.4937344304 | AF5: 2979 | AG5: 3093 | AH5: 2622 | AI5: 2286 | AJ5: 2342 | AK5: 2342 | AL5: 2320 | AM5: 2158 | AN5: 1722 | AO5: 1450 | AP5: 1122 | AQ5: 760 | AR5: 529 | AS5: 444 | AT5: 286 | AU5: 168 | AV5: 110 | AW5: 55 | AX5: 29 | AY5: 9 | AZ5: 0 | BA5: =SUM(AF5:AZ5) -> 26826 | BB5: =BA5/(-AD5+BA5) -> 0.5062655696 | BC5: Miles de personas
A6: 3 | B6: 10 - 14 años | C6: =VLOOKUP(DatosAM!E$142,grapobZMG!G$3:BB$12,5,FALSE) -> -224912 | D6: =VLOOKUP(DatosAM!E$142,grapobZMG!G$3:BB$12,28,FALSE) -> 225987 | E6: 450899 | F6: 0.09271965085 | G6: 4 | H6: 51 | I6: -1058 | J6: -937 | K6: -860 | L6: -709 | M6: -877 | N6: -787 | O6: -782 | P6: -606 | Q6: -535 | R6: -388 | S6: -354 | T6: -275 | U6: -229 | V6: -218 | W6: -138 | X6: -94 | Y6: -42 | Z6: -43 | AA6: -19 | AB6: -10 | AC6: 0 | AD6: -8961 | AE6: 0.4994148136 | AF6: 1038 | AG6: 910 | AH6: 865 | AI6: 825 | AJ6: 879 | AK6: 845 | AL6: 695 | AM6: 607 | AN6: 547 | AO6: 416 | AP6: 358 | AQ6: 295 | AR6: 228 | AS6: 180 | AT6: 108 | AU6: 93 | AV6: 50 | AW6: 19 | AX6: 17 | AY6: 7 | AZ6: 0 | BA6: 8982 | BB6: 0.5005851864 | BC6: Cientos de personas
A7: 4 | B7: 15 - 19 años | C7: =VLOOKUP(DatosAM!E$142,grapobZMG!G$3:BB$12,6,FALSE) -> -222478 | D7: =VLOOKUP(DatosAM!E$142,grapobZMG!G$3:BB$12,29,FALSE) -> 217671 | E7: 440149 | F7: 0.09050909761 | G7: 5 | H7: 70 | I7: -10001 | J7: -10018 | K7: -9926 | L7: -9584 | M7: -8415 | N7: -6889 | O7: -6843 | P7: -6582 | Q7: -6257 | R7: -4327 | S7: -3955 | T7: -2807 | U7: -2032 | V7: -1336 | W7: -940 | X7: -764 | Y7: -268 | Z7: -128 | AA7: -93 | AB7: -10 | AC7: 0 | AD7: -91175 | AE7: 0.4973299369 | AF7: 9929 | AG7: 10286 | AH7: 10197 | AI7: 8753 | AJ7: 8668 | AK7: 6755 | AL7: 7630 | AM7: 7228 | AN7: 5976 | AO7: 4494 | AP7: 4195 | AQ7: 2738 | AR7: 1972 | AS7: 1320 | AT7: 823 | AU7: 560 | AV7: 405 | AW7: 163 | AX7: 33 | AY7: 20 | AZ7: 9 | BA7: 92154 | BB7: 0.5026700631 | BC7: Miles de personas
A8: 5 | B8: 20 - 24 años | C8: =VLOOKUP(DatosAM!E$142,grapobZMG!G$3:BB$12,7,FALSE) -> -229894 | D8: =VLOOKUP(DatosAM!E$142,grapobZMG!G$3:BB$12,30,FALSE) -> 225130 | E8: 455024 | F8: 0.0935678864 | G8: 6 | H8: 97 | I8: -30346 | J8: -32483 | K8: -30585 | L8: -24477 | M8: -20803 | N8: -19441 | O8: -23755 | P8: -24498 | Q8: -21514 | R8: -12683 | S8: -10376 | T8: -5691 | U8: -4966 | V8: -3466 | W8: -2157 | X8: -1273 | Y8: -603 | Z8: -299 | AA8: -118 | AB8: -31 | AC8: 0 | AD8: -269565 | AE8: 0.4908196077 | AF8: 31640 | AG8: 31536 | AH8: 29541 | AI8: 24141 | AJ8: 22056 | AK8: 23309 | AL8: 27478 | AM8: 24948 | AN8: 21308 | AO8: 13226 | AP8: 9676 | AQ8: 7360 | AR8: 5277 | AS8: 3313 | AT8: 2130 | AU8: 1281 | AV8: 869 | AW8: 364 | AX8: 139 | AY8: 37 | AZ8: 20 | BA8: 279649 | BB8: 0.5091803923 | BC8: Miles de personas
A9: 6 | B9: 25 - 29 años | C9: =VLOOKUP(DatosAM!E$142,grapobZMG!G$3:BB$12,8,FALSE) -> -195967 | D9: =VLOOKUP(DatosAM!E$142,grapobZMG!G$3:BB$12,31,FALSE) -> 204071 | E9: 400038 | F9: 0.08226095797 | G9: 7 | H9: 98 | I9: -32110 | J9: -33201 | K9: -32403 | L9: -32740 | M9: -30755 | N9: -26982 | O9: -25512 | P9: -23781 | Q9: -23872 | R9: -16793 | S9: -14278 | T9: -11179 | U9: -8622 | V9: -6421 | W9: -4257 | X9: -2604 | Y9: -1785 | Z9: -935 | AA9: -370 | AB9: -57 | AC9: -16 | AD9: -328673 | AE9: 0.4950379179 | AF9: 29503 | AG9: 31962 | AH9: 32680 | AI9: 30946 | AJ9: 29662 | AK9: 26606 | AL9: 26556 | AM9: 25774 | AN9: 23616 | AO9: 18917 | AP9: 16609 | AQ9: 12889 | AR9: 9393 | AS9: 7013 | AT9: 5471 | AU9: 3479 | AV9: 2196 | AW9: 1283 | AX9: 480 | AY9: 204 | AZ9: 23 | BA9: 335262 | BB9: 0.5049620821 | BC9: Miles de personas
A10: 7 | B10: 30 - 34 años | C10: =VLOOKUP(DatosAM!E$142,grapobZMG!G$3:BB$12,9,FALSE) -> -189175 | D10: =VLOOKUP(DatosAM!E$142,grapobZMG!G$3:BB$12,32,FALSE) -> 198684 | E10: 387859 | F10: 0.07975655537 | G10: 8 | H10: 101 | I10: -28186 | J10: -27198 | K10: -27599 | L10: -25489 | M10: -25250 | N10: -20464 | O10: -20903 | P10: -17380 | Q10: -18896 | R10: -15364 | S10: -11703 | T10: -8069 | U10: -6050 | V10: -4054 | W10: -2389 | X10: -1888 | Y10: -973 | Z10: -393 | AA10: -154 | AB10: -12 | AC10: -27 | AD10: -262441 | AE10: 0.4897639647 | AF10: 28198 | AG10: 26297 | AH10: 29110 | AI10: 26225 | AJ10: 24905 | AK10: 23613 | AL10: 21458 | AM10: 19792 | AN10: 19136 | AO10: 15097 | AP10: 12008 | AQ10: 9497 | AR10: 6868 | AS10: 4689 | AT10: 2852 | AU10: 1685 | AV10: 1291 | AW10: 525 | AX10: 141 | AY10: 18 | AZ10: 6 | BA10: 273411 | BB10: 0.5102360353 | BC10: Miles de personas
A11: 8 | B11: 35 - 39 años | C11: =VLOOKUP(DatosAM!E$142,grapobZMG!G$3:BB$12,10,FALSE) -> -168097 | D11: =VLOOKUP(DatosAM!E$142,grapobZMG!G$3:BB$12,33,FALSE) -> 182706 | E11: 350803 | F11: 0.07213662412 | G11: 9 | H11: 120 | I11: -56977 | J11: -57026 | K11: -57640 | L11: -58698 | M11: -68695 | N11: -56812 | O11: -52521 | P11: -45757 | Q11: -43994 | R11: -35597 | S11: -33642 | T11: -25328 | U11: -20332 | V11: -14740 | W11: -9877 | X11: -5665 | Y11: -3636 | Z11: -1676 | AA11: -518 | AB11: -293 | AC11: -21 | AD11: -649445 | AE11: 0.4876610187 | AF11: 54285 | AG11: 55473 | AH11: 59204 | AI11: 58972 | AJ11: 66996 | AK11: 58995 | AL11: 53500 | AM11: 50030 | AN11: 48275 | AO11: 41252 | AP11: 37312 | AQ11: 28560 | AR11: 24162 | AS11: 17774 | AT11: 11503 | AU11: 7228 | AV11: 4656 | AW11: 2618 | AX11: 980 | AY11: 535 | AZ11: 0 | BA11: 682310 | BB11: 0.5123389813 | BC11: Miles de personas
A12: 9 | B12: 40 - 44 años | C12: =VLOOKUP(DatosAM!E$142,grapobZMG!G$3:BB$12,11,FALSE) -> -167946 | D12: =VLOOKUP(DatosAM!E$142,grapobZMG!G$3:BB$12,34,FALSE) -> 175554 | E12: 343500 | F12: 0.07063488734 | G12: 10 | H12: 124 | I12: -3375 | J12: -3613 | K12: -3433 | L12: -3340 | M12: -3168 | N12: -2561 | O12: -2258 | P12: -2162 | Q12: -2285 | R12: -1764 | S12: -1453 | T12: -1046 | U12: -984 | V12: -705 | W12: -618 | X12: -374 | Y12: -322 | Z12: -173 | AA12: -66 | AB12: -16 | AC12: 0 | AD12: -33716 | AE12: 0.4920678936 | AF12: 3399 | AG12: 3192 | AH12: 3503 | AI12: 3439 | AJ12: 2996 | AK12: 2874 | AL12: 2493 | AM12: 2411 | AN12: 2327 | AO12: 1788 | AP12: 1569 | AQ12: 1264 | AR12: 997 | AS12: 940 | AT12: 681 | AU12: 416 | AV12: 208 | AW12: 160 | AX12: 108 | AY12: 33 | AZ12: 5 | BA12: 34803 | BB12: 0.5079321064 | BC12: Miles de personas
A13: 10 | B13: 45 - 49 años | C13: =VLOOKUP(DatosAM!E$142,grapobZMG!G$3:BB$12,12,FALSE) -> -129517 | D13: =VLOOKUP(DatosAM!E$142,grapobZMG!G$3:BB$12,35,FALSE) -> 144423 | E13: 273940 | F13: 0.05633106561
A14: 11 | B14: 50 - 54 años | C14: =VLOOKUP(DatosAM!E$142,grapobZMG!G$3:BB$12,13,FALSE) -> -113538 | D14: =VLOOKUP(DatosAM!E$142,grapobZMG!G$3:BB$12,36,FALSE) -> 129456 | E14: 242994 | F14: 0.04996755113
A15: 12 | B15: 55 - 59 años | C15: =VLOOKUP(DatosAM!E$142,grapobZMG!G$3:BB$12,14,FALSE) -> -85609 | D15: =VLOOKUP(DatosAM!E$142,grapobZMG!G$3:BB$12,37,FALSE) -> 100724 | E15: 186333 | F15: 0.03831618767
A16: 13 | B16: 60 - 64 años | C16: =VLOOKUP(DatosAM!E$142,grapobZMG!G$3:BB$12,15,FALSE) -> -72042 | D16: =VLOOKUP(DatosAM!E$142,grapobZMG!G$3:BB$12,38,FALSE) -> 85145 | E16: 157187 | F16: 0.03232281233 | J16: 1 | K16: 2 | L16: 3 | M16: 4 | N16: 5 | O16: 6 | P16: 7 | Q16: 8 | R16: 9 | S16: 10 | T16: 11 | U16: 12 | V16: 13 | W16: 14 | X16: 15 | Y16: 16 | Z16: 17 | AA16: 18 | AB16: 19 | AC16: 20 | AD16: 21 | AG16: 1 | AH16: 2 | AI16: 3 | AJ16: 4 | AK16: 5 | AL16: 6 | AM16: 7 | AN16: 8 | AO16: 9 | AP16: 10 | AQ16: 11 | AR16: 12 | AS16: 13 | AT16: 14 | AU16: 15 | AV16: 16 | AW16: 17 | AX16: 18 | AY16: 19 | AZ16: 20 | BA16: 21
A17: 14 | B17: 65 - 69 años | C17: =VLOOKUP(DatosAM!E$142,grapobZMG!G$3:BB$12,16,FALSE) -> -52338 | D17: =VLOOKUP(DatosAM!E$142,grapobZMG!G$3:BB$12,39,FALSE) -> 63352 | E17: 115690 | F17: 0.02378966555 | G17: 1
A18: 15 | B18: 70 - 74 años | C18: =VLOOKUP(DatosAM!E$142,grapobZMG!G$3:BB$12,17,FALSE) -> -36849 | D18: =VLOOKUP(DatosAM!E$142,grapobZMG!G$3:BB$12,40,FALSE) -> 43901 | E18: 80750 | F18: 0.01660485343 | G18: 2 | H18: 39
A19: 16 | B19: 75 - 79 años | C19: =VLOOKUP(DatosAM!E$142,grapobZMG!G$3:BB$12,18,FALSE) -> -22974 | D19: =VLOOKUP(DatosAM!E$142,grapobZMG!G$3:BB$12,41,FALSE) -> 28573 | E19: 51547 | F19: 0.01059975702 | G19: 3 | H19: 44
A20: 17 | B20: 80 - 84 años | C20: =VLOOKUP(DatosAM!E$142,grapobZMG!G$3:BB$12,19,FALSE) -> -14302 | D20: =VLOOKUP(DatosAM!E$142,grapobZMG!G$3:BB$12,42,FALSE) -> 18980 | E20: 33282 | F20: 0.00684387284 | G20: 4 | H20: 51
A21: 18 | B21: 85 - 89 años | C21: =VLOOKUP(DatosAM!E$142,grapobZMG!G$3:BB$12,20,FALSE) -> -7095 | D21: =VLOOKUP(DatosAM!E$142,grapobZMG!G$3:BB$12,43,FALSE) -> 10800 | E21: 17895 | F21: 0.003679800026 | G21: 5 | H21: 70
A22: 19 | B22: 90 - 94 años | C22: =VLOOKUP(DatosAM!E$142,grapobZMG!G$3:BB$12,21,FALSE) -> -2829 | D22: =VLOOKUP(DatosAM!E$142,grapobZMG!G$3:BB$12,44,FALSE) -> 4596 | E22: 7425 | F22: 0.001526823984 | G22: 6 | H22: 97
A23: 20 | B23: 95 - 99 años | C23: =VLOOKUP(DatosAM!E$142,grapobZMG!G$3:BB$12,22,FALSE) -> -808 | D23: =VLOOKUP(DatosAM!E$142,grapobZMG!G$3:BB$12,45,FALSE) -> 1680 | E23: 2488 | F23: 0.0005116145552 | G23: 7 | H23: 98
A24: 21 | B24: 100 años y más | C24: =VLOOKUP(DatosAM!E$142,grapobZMG!G$3:BB$12,23,FALSE) -> -142 | D24: =VLOOKUP(DatosAM!E$142,grapobZMG!G$3:BB$12,46,FALSE) -> 137 | E24: 279 | F24: 5.737156788e-05 | G24: 8 | H24: 101
G25: 9 | H25: 120
G26: 10 | H26: 124
C28: =C4/(-C4+D4) -> -0.5060007097
B29: AMG | G29: 39 | H29: Guadalajara
G30: 44 | H30: Ixtlahuacán de los Membrillos
G31: 51 | H31: Juanacatlán
B32: GDL | G32: 70 | H32: El Salto
G33: 97 | H33: Tlajomulco de Zúñiga
G34: 98 | H34: Tlaquepaque
B35: IXTLA | G35: 101 | H35: Tonalá
G36: 120 | H36: Zapopan
G37: 124 | H37: Zapotlanejo
B38: JUANA
B41: SALT
B44: TLAJO
B47: TLAQ
B50: TON
B53: ZAP
B58: Ejemplo | C58: ZMG | D58: Zapopan
A59: MD | B59: =B60+(((B61/2)-B62)/B63)*B64 -> 23.5298864 | C59: =C60+(((C61/2)-C62)/C63)*C64 -> 27.75588819 | D59: =D60+(((D61/2)-D62)/D63)*D64 -> 26.36495598
A60: Li | B60: 20 | C60: 25 | D60: 25
A61: P | B61: 15445290 | C61: =E3 -> 4863036 | D61: 124376
A62: Eex | B62: 6570788 | C62: =SUM(E4:E8) -> 2211026 | D62: 59273
A63: Emd | B63: 1631578 | C63: =E9 -> 400038 | D63: 10678
A64: i | B64: 5 | C64: 5 | D64: 5

Sheet LimitZMG (hidden)
A1: Clave | B1: Región | C1: Clave | D1: Municipio | E1: % de población con algún tipo de limitación | F1: Caminar o moverse | G1: Ver1 | H1: Oír2 | I1: Hablar o comunicarse | J1: Atender el cuidado personal | K1: Poner atención o aprender | L1: Mental
C2: 14 | D2: Jalisco | E2: 0.03954136501 | F2: 167663 | G2: 68348 | H2: 29960 | I2: 24196 | J2: 15654 | K2: 15488 | L2: 34955
A3: 1 | B3: Norte | C3: 1 | D3: Norte | E3: 0.07503012621 | F3: 2466 | G3: 1019 | H3: 573 | I3: 271 | J3: 173 | K3: 123 | L3: 330
A4: 2 | B4: Altos Norte | C4: 2 | D4: Altos Norte | E4: 0.05122913933 | F4: 7144 | G4: 2754 | H4: 1184 | I4: 1005 | J4: 696 | K4: 614 | L4: 1384
A5: 3 | B5: Altos Sur | C5: 3 | D5: Altos Sur | E5: 0.04729476446 | F5: 8508 | G5: 3335 | H5: 1573 | I5: 1275 | J5: 721 | K5: 782 | L5: 2193
A6: 4 | B6: Ciénega | C6: 4 | D6: Ciénega | E6: 0.04412639145 | F6: 9283 | G6: 3512 | H6: 1696 | I6: 1343 | J6: 828 | K6: 862 | L6: 1853
A7: 5 | B7: Sureste | C7: 5 | D7: Sureste | E7: 0.05138682438 | F7: 3040 | G7: 1304 | H7: 557 | I7: 422 | J7: 271 | K7: 238 | L7: 543
A8: 6 | B8: Sur | C8: 6 | D8: Sur | E8: 0.05388088304 | F8: 8794 | G8: 3944 | H8: 1841 | I8: 1181 | J8: 799 | K8: 755 | L8: 1493
A9: 7 | B9: Sierra de Amula | C9: 7 | D9: Sierra de Amula | E9: 0.0683151469 | F9: 6400 | G9: 2732 | H9: 1183 | I9: 813 | J9: 554 | K9: 487 | L9: 1015
A10: 8 | B10: Costa Sur | C10: 8 | D10: Costa Sur | E10: 0.05572682162 | F10: 3924 | G10: 1539 | H10: 639 | I10: 639 | J10: 269 | K10: 293 | L10: 688
A11: 9 | B11: Costa-Sierra Occidental | C11: 9 | D11: Costa-Sierra Occidental | E11: 0.03957300117 | F11: 55580 | G11: 20277 | H11: 9490 | I11: 7188 | J11: 5308 | K11: 4597 | L11: 11903
A12: 10 | B12: Valles | C12: 10 | D12: Valles | E12: 0.05456072201 | F12: 8633 | G12: 3684 | H12: 1717 | I12: 1244 | J12: 753 | K12: 798 | L12: 1391
A13: 11 | B13: Lagunas | C13: 11 | D13: Lagunas | E13: 0.05427666315 | F13: 6770 | G13: 2501 | H13: 1248 | I13: 734 | J13: 507 | K13: 510 | L13: 1197
A14: 12 | B14: Centro | C14: 12 | D14: Centro | E14: 0.03231206855 | F14: 47121 | G14: 21747 | H14: 8259 | I14: 8081 | J14: 4775 | K14: 5429 | L14: 10965
A15: 1 | B15: ZMG | D15: ZMG | E15: 0.03194884301 | F15: 81143 | G15: 33090 | H15: 13865 | I15: 12285 | J15: 8089 | K15: 8174 | L15: 19057
A16: 2 | B16: Centro | C16: 39 | D16: Guadalajara | E16: 0.03755980013 | F16: 33875 | G16: 11204 | H16: 5661 | I16: 4172 | J16: 3260 | K16: 2682 | L16: 7995
A17: 3 | B17: Centro | C17: 44 | D17: Ixtlahuacán de los Membrillos | E17: 0.03558207501 | F17: 779 | G17: 397 | H17: 132 | I17: 133 | J17: 88 | K17: 90 | L17: 147
A18: 4 | B18: Centro | C18: 51 | D18: Juanacatlán | E18: 0.03881071266 | F18: 282 | G18: 138 | H18: 59 | I18: 39 | J18: 38 | K18: 25 | L18: 78
A19: 5 | B19: Centro | C19: 70 | D19: El Salto | E19: 0.02778059121 | F19: 1908 | G19: 1028 | H19: 365 | I19: 368 | J19: 171 | K19: 244 | L19: 456
A20: 6 | B20: Centro | C20: 97 | D20: Tlajomulco de Zúñiga | E20: 0.02403114544 | F20: 5355 | G20: 2325 | H20: 892 | I20: 1060 | J20: 522 | K20: 665 | L20: 1113
A21: 7 | B21: Centro | C21: 98 | D21: Tlaquepaque | E21: 0.02862950039 | F21: 9259 | G21: 4209 | H21: 1488 | I21: 1619 | J21: 952 | K21: 1004 | L21: 2336
A22: 8 | B22: Centro | C22: 101 | D22: Tonalá | E22: 0.03240935137 | F22: 8135 | G22: 4060 | H22: 1405 | I22: 1437 | J22: 675 | K22: 973 | L22: 1876
A23: 9 | B23: Centro | C23: 120 | D23: Zapopan | E23: 0.02859805299 | F23: 19695 | G23: 9021 | H23: 3577 | I23: 3251 | J23: 2267 | K23: 2331 | L23: 4719
A24: 10 | B24: Centro | C24: 124 | D24: Zapotlanejo | E24: 0.04962599786 | F24: 1855 | G24: 708 | H24: 286 | I24: 206 | J24: 116 | K24: 160 | L24: 337
F25: =SUM(F16:F24) -> 81143 | G25: 33090 | H25: 13865 | I25: 12285 | J25: 8089 | K25: 8174 | L25: 19057
C27: pob total | D27: pob c/limitac | E27: =D37/C37*100 -> 3.18950339
B28: Guadalajara | C28: 1495189 | D28: 56159
B29: Ixtlahuacán de los Membrillos | C29: 41060 | D29: 1461
B30: Juanacatlán | C30: 13218 | D30: 513
B31: El Salto | C31: 138226 | D31: 3840
B32: Tlajomulco de Zúñiga | C32: 416626 | D32: 10012
B33: Tlaquepaque | C33: 608114 | D33: 17410
B34: Tonalá | C34: 478689 | D34: 15514
B35: Zapopan | C35: 1243756 | D35: 35569
B36: Zapotlanejo | C36: 68519 | D36: 3158
C37: =SUM(C28:C36) -> 4503397 | D37: =SUM(D28:D36) -> 143636

Sheet DerechZMG (hidden)
A1: Clave | B1: Region | C1: Clave | D1: Municipio | E1: Población derechohabiente (%) | F1: No derechohabiente | G1: IMSS | H1: ISSSTE | I1: Seguro Popular ** | J1: Otro | K1: No especificado
C2: 14 | D2: Jalisco | E2: 0.8076942394 | F2: 0.18832938 | G2: 0.52258222 | H2: 0.03435895 | I2: 0.40778025 | J2: 0.01582599 | K2: 0.00397638
A3: 1 | B3: Norte | C3: 1 | D3: Norte | E3: 0.8994709669 | F3: 0.09722735675 | G3: 0.08867756062 | H3: 0.04560722232 | I3: 0.8836151306 | J3: 0.001034595161 | K3: 0.003301676334 | L3: 1 | N3: 2
A4: 2 | B4: Altos Norte | C4: 2 | D4: Altos Norte | E4: 0.8352302432 | F4: 0.1617728273 | G4: 0.337094864 | H4: 0.03197888841 | I4: 0.6227507957 | J4: 0.0130066679 | K4: 0.002996929436
A5: 3 | B5: Altos Sur | C5: 3 | D5: Altos Sur | E5: 0.7823648317 | F5: 0.2142228137 | G5: 0.3977712404 | H5: 0.02880759761 | I5: 0.5587791386 | J5: 0.007178716465 | K5: 0.003412354525 | L5: 0.6106762237 | N5: 0.628198071
A6: 4 | B6: Ciénega | C6: 4 | D6: Ciénega | E6: 0.8234381488 | F6: 0.1726433929 | G6: 0.3770841763 | H6: 0.03437343366 | I6: 0.5830258525 | J6: 0.007968331995 | K6: 0.003918458276 | L6: 0.3882863341 | N6: 0.3683556952
A7: 5 | B7: Sureste | C7: 5 | D7: Sureste | E7: 0.7598795703 | F7: 0.2373783947 | G7: 0.2432892918 | H7: 0.03658340566 | I7: 0.7130067187 | J7: 0.007771562671 | K7: 0.002742034969 | L7: 0.2782703009 | N7: 0.2644495287
A8: 6 | B8: Sur | C8: 6 | D8: Sur | E8: 0.879616181 | F8: 0.1169005986 | G8: 0.4384529059 | H8: 0.04797639155 | I8: 0.5209275612 | J8: 0.01231055239 | K8: 0.003483220383 | L8: 0.01207205508 | N8: 0.0274289948
A9: 7 | B9: Sierra de Amula | C9: 7 | D9: Sierra de Amula | E9: 0.8692916594 | F9: 0.1273499796 | G9: 0.2994516347 | H9: 0.05022999203 | I9: 0.6513026186 | J9: 0.005724692507 | K9: 0.00335836098 | L9: 0.3111855135 | N9: 0.3274261251
A10: 8 | B10: Costa Sur | C10: 8 | D10: Costa Sur | E10: 0.8879122757 | F10: 0.1039884822 | G10: 0.1894967534 | H10: 0.03932239029 | I10: 0.7667088692 | J10: 0.003265142933 | K10: 0.008099242011 | L10: 0.0133924361 | N10: 0.01488063404
A11: 9 | B11: Costa-Sierra Occidental | C11: 9 | D11: Costa-Sierra Occidental | E11: 0.8250019531 | F11: 0.1714583621 | G11: 0.5178631915 | H11: 0.04165953402 | I11: 0.3608550439 | J11: 0.03019023234 | K11: 0.003539684734
A12: 10 | B12: Valles | C12: 10 | D12: Valles | E12: 0.8592902682 | F12: 0.1384699347 | G12: 0.4409098752 | H12: 0.04305974177 | I12: 0.5304032101 | J12: 0.005304913194 | K12: 0.002239797093
A13: 11 | B13: Lagunas | C13: 11 | D13: Lagunas | E13: 0.8757075118 | F13: 0.1205159682 | G13: 0.2794052339 | H13: 0.03800489039 | I13: 0.6794544589 | J13: 0.005944450687 | K13: 0.003776519979
A14: 12 | B14: Centro | C14: 12 | D14: Centro | E14: 0.789784659 | F14: 0.2059803204 | G14: 0.6220304885 | H14: 0.03171841258 | I14: 0.295225344 | J14: 0.01923739108 | K14: 0.004235020607
A15: 1 | B15: ZMG | D15: ZMG | E15: =E41/$M$41 -> 0.7893364236 | F15: =F41/$M$41 -> 0.2064085957 | G15: 0.4878062667 | H15: 0.02218690508 | I15: 0.2289256056 | J15: 0.05041764626 | K15: 0.004254980656
A16: 2 | B16: Centro | C16: 39 | D16: Guadalajara | E16: 0.7739338752 | F16: 0.2230404 | G16: 0.67825988 | H16: 0.03738835 | I16: 0.24857928 | J16: 0.02155907 | K16: 0.00302572 | L16: 1459501
A17: 3 | B17: Centro | C17: 44 | D17: Ixtlahuacán de los Membrillos | E17: 0.7840889811 | F17: 0.21108493 | G17: 0.63293422 | H17: 0.05039431 | I17: 0.28440565 | J17: 0.01904212 | K17: 0.00482609 | L17: 52988
A18: 4 | B18: Centro | C18: 51 | D18: Juanacatlán | E18: 0.8422723475 | F18: 0.15377332 | G18: 0.6773127 | H18: 0.02228394 | I18: 0.27679693 | J18: 0.00588508 | K18: 0.00395433 | L18: 17943
A19: 5 | B19: Centro | C19: 70 | D19: El Salto | E19: 0.7878726756 | F19: 0.20634877 | G19: 0.67595226 | H19: 0.01329874 | I19: 0.2777305 | J19: 0.0224667 | K19: 0.00577855 | L19: 183329 | M19: =VLOOKUP(DatosAM!E142,A15:K24,1,FALSE) -> 1
A20: 6 | B20: Centro | C20: 97 | D20: Tlajomulco de Zúñiga | E20: 0.808034333 | F20: 0.18747384 | G20: 0.67278272 | H20: 0.02383505 | I20: 0.25365342 | J20: 0.01489297 | K20: 0.00449183 | L20: 549214
A21: 7 | B21: Centro | C21: 98 | D21: Tlaquepaque | E21: 0.7775827207 | F21: 0.21918177 | G21: 0.67123619 | H21: 0.0239842 | I21: 0.29405865 | J21: 0.00920295 | K21: 0.00323551 | L21: 663935 | M21: =VLOOKUP(M$19,A$15:K$24,6,FALSE) -> 0.2064085957 | O21: max | P21: min | Q21: val
A22: 8 | B22: Centro | C22: 101 | D22: Tonalá | E22: 0.7627860648 | F22: 0.23225041 | G22: 0.59360832 | H22: 0.02712636 | I22: 0.35081602 | J22: 0.0150145 | K22: 0.00496352 | L22: 535852 | M22: =VLOOKUP(M$19,A$15:K$24,7,FALSE) -> 0.4878062667 | O22: =IF(M21=MAX($M$21:$M$26), M21, NA()) ->  | P22: =IF(M21=MIN($M$21:$M$26), M21, NA()) ->  | Q22: =IF(AND(ISNA(O22), ISNA(P22)), M21, NA()) -> 0.2064085957
A23: 9 | B23: Centro | C23: 120 | D23: Zapopan | E23: 0.820419554 | F23: 0.17408832 | G23: 0.55266591 | H23: 0.03645581 | I23: 0.31019687 | J23: 0.02553654 | K23: 0.00549212 | L23: 1331755 | M23: =VLOOKUP(M$19,A$15:K$24,8,FALSE) -> 0.02218690508
A24: 10 | B24: Centro | C24: 124 | D24: Zapotlanejo | E24: 0.6790379311 | F24: 0.31656913 | G24: 0.2950115 | H24: 0.02819868 | I24: 0.63810261 | J24: 0.01246588 | K24: 0.00439294 | L24: 68519 | M24: =VLOOKUP(M$19,A$15:K$24,9,FALSE) -> 0.2289256056
M25: =VLOOKUP(M$19,A$15:K$24,10,FALSE) -> 0.05041764626 | O25: =IF(M23=MAX($M$21:$M$26), M23, NA()) ->  | P25: =IF(M23=MIN($M$21:$M$26), M23, NA()) ->  | Q25: =IF(AND(ISNA(O25), ISNA(P25)), M23, NA()) -> 0.02218690508
M26: =VLOOKUP(M$19,A$15:K$24,11,FALSE) -> 0.004254980656 | O26: =IF(M24=MAX($M$21:$M$26), M24, NA()) ->  | P26: =IF(M24=MIN($M$21:$M$26), M24, NA()) ->  | Q26: =IF(AND(ISNA(O26), ISNA(P26)), M24, NA()) -> 0.2289256056
O27: =IF(M25=MAX($M$21:$M$26), M25, NA()) ->  | P27: =IF(M25=MIN($M$21:$M$26), M25, NA()) ->  | Q27: =IF(AND(ISNA(O27), ISNA(P27)), M25, NA()) -> 0.05041764626
O28: =IF(M26=MAX($M$21:$M$26), M26, NA()) ->  | P28: =IF(M26=MIN($M$21:$M$26), M26, NA()) -> 0.004254980656 | Q28: =IF(AND(ISNA(O28), ISNA(P28)), M26, NA()) -> 
E31: Población derechohabiente | F31: No derechohabiente | G31: IMSS | H31: ISSSTE | I31: Seguro Popular ** | J31: Otro | K31: No especificado | M31: Pob Total
D32: Guadalajara | E32: 1130058 | F32: 325672 | G32: 754915 | H32: 36746 | I32: 280909 | J32: 57488 | K32: 4418 | M32: 1460148
D33: Ixtlahuacán de los Membrillos | E33: 41592 | F33: 11197 | G33: 26038 | H33: 1989 | I33: 11829 | J33: 1736 | K33: 256 | M33: 53045
D34: Juanacatlán | E34: 15123 | F34: 2761 | G34: 10098 | H34: 269 | I34: 4186 | J34: 570 | K34: 71 | M34: 17955
D35: El Salto | E35: 144525 | F35: 37852 | G35: 97016 | H35: 1849 | I35: 40139 | J35: 5521 | K35: 1060 | M35: 183437
D36: Tlajomulco de Zúñiga | E36: 443968 | F36: 103006 | G36: 294729 | H36: 9394 | I36: 112614 | J36: 27231 | K36: 2468 | M36: 549442
D37: San Pedro Tlaquepaque | E37: 516465 | F37: 145579 | G37: 342939 | H37: 10766 | I37: 151871 | J37: 10889 | K37: 2149 | M37: 664193
D38: Tonalá | E38: 408938 | F38: 124512 | G38: 240031 | H38: 9824 | I38: 143462 | J38: 15621 | K38: 2661 | M38: 536111
D39: Zapopan | E39: 1093022 | F39: 231933 | G39: 594239 | H39: 35849 | I39: 339052 | J39: 123882 | K39: 7317 | M39: 1332272
D40: Zapotlanejo | E40: 46527 | F40: 21691 | G40: 13232 | H40: 1256 | I40: 29689 | J40: 2350 | K40: 301 | M40: 68519
E41: =SUM(E32:E40) -> 3840218 | F41: =SUM(F32:F40) -> 1004203 | G41: 2373237 | H41: 107942 | I41: 1113751 | J41: 245288 | K41: 20701 | M41: =SUM(M32:M40) -> 4865122

Sheet NivescZMG (hidden)
A1: Clave | B1: Región | C1: Clave | D1: Nombre del Municipio | E1: Sin escolaridad | F1: Básica | G1: Técnica o comercial con primaria terminada | H1: Media superior | I1: Superior | J1: No especificado
C2: 14 | D2: Jalisco | E2: 0.06251836121 | F2: 0.6273165073 | G2: 0.384295249 | H2: 0.1585049682 | I2: 0.1443583382 | J2: 0.3458872563
A3: 1 | B3: Norte | C3: 1 | D3: Norte | E3: 0.1256364802 | F3: 0.6260702297 | G3: 0.1772715272 | H3: 0.145607815 | I3: 0.09895145778 | J3: 0.1961302003
A4: 2 | B4: Altos Norte | C4: 2 | D4: Altos Norte | E4: 0.07611013158 | F4: 0.681759324 | G4: 0.1599965943 | H4: 0.1514326968 | I4: 0.08750855858 | J4: 0.1589323154
A5: 3 | B5: Altos Sur | C5: 3 | D5: Altos Sur | E5: 0.07996040475 | F5: 0.6769013525 | G5: 0.2721286349 | H5: 0.1504903283 | I5: 0.08895093879 | J5: 0.09756893689
A6: 4 | B6: Ciénega | C6: 4 | D6: Ciénega | E6: 0.06806323661 | F6: 0.6675386343 | G6: 0.2658553576 | H6: 0.1561118299 | I6: 0.1041314207 | J6: 0.1496324941
A7: 5 | B7: Sureste | C7: 5 | D7: Sureste | E7: 0.06574058979 | F7: 0.6572600366 | G7: 0.3775236167 | H7: 0.1656470669 | I7: 0.1056122318 | J7: 0.1964838823
A8: 6 | B8: Sur | C8: 6 | D8: Sur | E8: 0.06594364641 | F8: 0.5937849471 | G8: 0.5810636249 | H8: 0.1881952337 | I8: 0.1435724686 | J8: 0.2693067861
A9: 7 | B9: Sierra de Amula | C9: 7 | D9: Sierra de Amula | E9: 0.05209398166 | F9: 0.628669398 | G9: 0.3187456233 | H9: 0.1770406562 | I9: 0.1369157336 | J9: 0.2092774294
A10: 8 | B10: Costa Sur | C10: 8 | D10: Costa Sur | E10: 0.09149489357 | F10: 0.6563540459 | G10: 0.5256069732 | H10: 0.1667539561 | I10: 0.07813961318 | J10: 0.200142157
A11: 9 | B11: Costa-Sierra Occ | C11: 9 | D11: Costa-Sierra Occ | E11: 0.03938761423 | F11: 0.5246449938 | G11: 0.2469430018 | H11: 0.2359476694 | I11: 0.1963217408 | J11: 0.1228551706
A12: 10 | B12: Valles | C12: 10 | D12: Valles | E12: 0.04800763369 | F12: 0.6354147444 | G12: 0.3263222804 | H12: 0.1949561828 | I12: 0.1167423584 | J12: 0.1615857913
A13: 11 | B13: Lagunas | C13: 11 | D13: Lagunas | E13: 0.5219231376 | F13: 0.6706666316 | G13: 0.3377845539 | H13: 0.1713303717 | I13: 0.09949529467 | J13: 0.2937542716
A14: 12 | B14: Centro | C14: 12 | D14: Centro | E14: 0.03071422622 | F14: 0.5017404132 | G14: 0.6118137917 | H14: 0.2274790197 | I14: 0.2320985073 | J14: 0.1849695602
A15: 1 | B15: ZMG | D15: ZMG | E15: 0.03017494588 | F15: 0.5000229625 | G15: 0.6164086182 | H15: 0.2282323487 | I15: 0.2335540079 | J15: 0.1851648889
A16: 2 | B16: Centro | C16: 39 | D16: Guadalajara | E16: 0.02500055128 | F16: 0.4573652573 | G16: 0.8251487341 | H16: 0.2414938235 | I16: 0.2664926107 | J16: 0.1396269851 | L16: =VLOOKUP(DatosAM!E$142,NivescZMG!A$15:J$24,1,FALSE) -> 1
A17: 3 | B17: Centro | C17: 44 | D17: Ixtlahuacán de los Membrillos | E17: 0.02926856884 | F17: 0.6856600996 | G17: 0.2575860507 | H17: 0.1898211051 | I17: 0.08890964674 | J17: 0.3764719203 | L17: =VLOOKUP(L$16,A$15:J$24,5,FALSE) -> 0.03017494588 | M17: 0.035
A18: 4 | B18: Centro | C18: 51 | D18: Juanacatlán | E18: 0.03369414829 | F18: 0.6248880931 | G18: 0.4232115244 | H18: 0.2254415236 | I18: 0.1095466753 | J18: 0.2197444453 | L18: =VLOOKUP(L$16,A$15:J$24,6,FALSE) -> 0.5000229625 | M18: 0.526
A19: 5 | B19: Centro | C19: 70 | D19: El Salto | E19: 0.04458888528 | F19: 0.6534286643 | G19: 0.2478063048 | H19: 0.2147221319 | I19: 0.08314104647 | J19: 0.164120897 | L19: =VLOOKUP(L$16,A$15:J$24,7,FALSE) -> 0.6164086182 | M19: 0.008
A20: 6 | B20: Centro | C20: 97 | D20: Tlajomulco de Zúñiga | E20: 0.02634106867 | F20: 0.5602059943 | G20: 0.390023974 | H20: 0.2321812442 | I20: 0.1748914842 | J20: 0.2479968952 | L20: =VLOOKUP(L$16,A$15:J$24,8,FALSE) -> 0.2282323487 | M20: 0.207
A21: 7 | B21: Centro | C21: 98 | D21: Tlaquepaque | E21: 0.04342477992 | F21: 0.5630909484 | G21: 0.4477763616 | H21: 0.2164739358 | I21: 0.1710717416 | J21: 0.1460830683 | L21: =VLOOKUP(L$16,A$15:J$24,9,FALSE) -> 0.2335540079 | M21: 0.221
A22: 8 | B22: Centro | C22: 101 | D22: Tonalá | E22: 0.03652276042 | F22: 0.5819718935 | G22: 0.6397436695 | H22: 0.2316526982 | I22: 0.1417963158 | J22: 0.1658895387 | L22: =VLOOKUP(L$16,A$15:J$24,10,FALSE) -> 0.1851648889 | M22: 0.004
A23: 9 | B23: Centro | C23: 120 | D23: Zapopan | E23: 0.02500234454 | F23: 0.4289726289 | G23: 0.6156300452 | H23: 0.2229982444 | I23: 0.3145319951 | J23: 0.2338486609
A24: 10 | B24: Centro | C24: 124 | D24: Zapotlanejo | E24: 0.07182734772 | F24: 0.7064827931 | G24: 0.1541538205 | H24: 0.1462586451 | I24: 0.07172318973 | J24: 0.2166486126

Sheet grapob (hidden)
G1: 0 - 4 años | H1: 5 - 9 años | I1: 10 - 14 años | J1: 15 - 19 años | K1: 20 - 24 años | L1: 25 - 29 años | M1: 30 - 34 años | N1: 35 - 39 años | O1: 40 - 44 años | P1: 45 - 49 años | Q1: 50 - 54 años | R1: 55 - 59 años | S1: 60 - 64 años | T1: 65 - 69 años | U1: 70 - 74 años | V1: 75 - 79 años | W1: 80 - 84 años | X1: 85 - 89 años | Y1: 90 - 94 años | Z1: 95 - 99 años | AA1: 100 años y más | AD1: 0 - 4 años | AE1: 5 - 9 años | AF1: 10 - 14 años | AG1: 15 - 19 años | AH1: 20 - 24 años | AI1: 25 - 29 años | AJ1: 30 - 34 años | AK1: 35 - 39 años | AL1: 40 - 44 años | AM1: 45 - 49 años | AN1: 50 - 54 años | AO1: 55 - 59 años | AP1: 60 - 64 años | AQ1: 65 - 69 años | AR1: 70 - 74 años | AS1: 75 - 79 años | AT1: 80 - 84 años | AU1: 85 - 89 años | AV1: 90 - 94 años | AW1: 95 - 99 años | AX1: 100 años y más
E2: 14 | F2: -3833620 | G2: -358751 | H2: -370068 | I2: -373802 | J2: -361560 | K2: -355017 | L2: -304138 | M2: -288191 | N2: -263316 | O2: -260581 | P2: -204174 | Q2: -180377 | R2: -139813 | S2: -117962 | T2: -92301 | U2: -67537 | V2: -44495 | W2: -27959 | X2: -14803 | Y2: -6409 | Z2: -1973 | AA2: -393 | AB2: =(F2/(-F2+AC2)*-1) -> 0.4888656631 | AC2: 4008248 | AD2: 350595 | AE2: 360013 | AF2: 371092 | AG2: 353805 | AH2: 354508 | AI2: 323194 | AJ2: 308886 | AK2: 288251 | AL2: 272229 | AM2: 225300 | AN2: 203403 | AO2: 161401 | AP2: 135755 | AQ2: 106350 | AR2: 76065 | AS2: 50714 | AT2: 34162 | AU2: 19763 | AV2: 9065 | AW2: 3244 | AX2: 453 | AY2: =(AC2/(-F2+AC2)) -> 0.5111343369 | AZ2: Miles de personas
B3: =VLOOKUP(Datos!E141,grapob!E3:AW150,1,FALSE) -> 1 | E3: 1 | F3: -10466 | G3: -1077 | H3: -1014 | I3: -1166 | J3: -966 | K3: -870 | L3: -755 | M3: -766 | N3: -778 | O3: -714 | P3: -474 | Q3: -374 | R3: -314 | S3: -316 | T3: -332 | U3: -211 | V3: -161 | W3: -77 | X3: -64 | Y3: -25 | Z3: -10 | AA3: -2 | AB3: =(F3/(-F3+AC3)*-1) -> 0.4861124013 | AC3: 11064 | AD3: 1088 | AE3: 1095 | AF3: 1052 | AG3: 991 | AH3: 964 | AI3: 958 | AJ3: 894 | AK3: 734 | AL3: 652 | AM3: 551 | AN3: 434 | AO3: 356 | AP3: 377 | AQ3: 327 | AR3: 234 | AS3: 158 | AT3: 99 | AU3: 68 | AV3: 28 | AW3: 4 | AX3: 0 | AY3: =(AC3/(-F3+AC3)) -> 0.5138875987 | AZ3: Miles de personas
E4: 2 | F4: -10914 | G4: -973 | H4: -1003 | I4: -1151 | J4: -1003 | K4: -1047 | L4: -838 | M4: -674 | N4: -657 | O4: -782 | P4: -645 | Q4: -579 | R4: -368 | S4: -362 | T4: -309 | U4: -186 | V4: -167 | W4: -89 | X4: -64 | Y4: -17 | Z4: 0 | AA4: 0 | AB4: 0.490274471 | AC4: 11347 | AD4: 980 | AE4: 1066 | AF4: 1032 | AG4: 1034 | AH4: 1016 | AI4: 791 | AJ4: 749 | AK4: 766 | AL4: 832 | AM4: 727 | AN4: 593 | AO4: 399 | AP4: 398 | AQ4: 332 | AR4: 266 | AS4: 172 | AT4: 89 | AU4: 66 | AV4: 26 | AW4: 10 | AX4: 3 | AY4: 0.509725529 | AZ4: Miles de personas
A5: 0 - 4 años | B5: =VLOOKUP(Datos!E$141,E$3:AY$127,3,FALSE) -> -1077 | C5: =VLOOKUP(Datos!E$141,E$3:AY$127,26,FALSE) -> 1088 | E5: 3 | F5: -11368 | G5: -1113 | H5: -1165 | I5: -1096 | J5: -1020 | K5: -910 | L5: -775 | M5: -883 | N5: -716 | O5: -740 | P5: -557 | Q5: -583 | R5: -488 | S5: -393 | T5: -361 | U5: -209 | V5: -158 | W5: -90 | X5: -58 | Y5: -45 | Z5: -8 | AA5: 0 | AB5: 0.4868313991 | AC5: 11983 | AD5: 1124 | AE5: 1106 | AF5: 1154 | AG5: 1085 | AH5: 949 | AI5: 984 | AJ5: 894 | AK5: 835 | AL5: 677 | AM5: 710 | AN5: 585 | AO5: 505 | AP5: 367 | AQ5: 334 | AR5: 219 | AS5: 172 | AT5: 135 | AU5: 100 | AV5: 40 | AW5: 5 | AX5: 3 | AY5: 0.5131686009 | AZ5: Miles de personas
A6: 5 - 9 años | B6: =VLOOKUP(Datos!E$141,E$3:AY$127,4,FALSE) -> -1014 | C6: =VLOOKUP(Datos!E$141,E$3:AY$127,27,FALSE) -> 1095 | E6: 4 | F6: -2654 | G6: -250 | H6: -265 | I6: -274 | J6: -258 | K6: -218 | L6: -171 | M6: -160 | N6: -177 | O6: -165 | P6: -128 | Q6: -123 | R6: -124 | S6: -87 | T6: -73 | U6: -61 | V6: -33 | W6: -44 | X6: -21 | Y6: -13 | Z6: -9 | AA6: 0 | AB6: 0.4928505107 | AC6: 2731 | AD6: 245 | AE6: 254 | AF6: 258 | AG6: 207 | AH6: 213 | AI6: 189 | AJ6: 186 | AK6: 211 | AL6: 166 | AM6: 135 | AN6: 129 | AO6: 124 | AP6: 132 | AQ6: 78 | AR6: 57 | AS6: 61 | AT6: 47 | AU6: 21 | AV6: 11 | AW6: 4 | AX6: 3 | AY6: 0.5071494893 | AZ6: Cientos de personas
A7: 10 - 14 años | B7: =VLOOKUP(Datos!E$141,E$3:AY$127,5,FALSE) -> -1166 | C7: =VLOOKUP(Datos!E$141,E$3:AY$127,28,FALSE) -> 1052 | E7: 5 | F7: -7520 | G7: -758 | H7: -774 | I7: -822 | J7: -701 | K7: -737 | L7: -513 | M7: -507 | N7: -468 | O7: -523 | P7: -401 | Q7: -352 | R7: -280 | S7: -210 | T7: -134 | U7: -137 | V7: -84 | W7: -44 | X7: -47 | Y7: -22 | Z7: -4 | AA7: -2 | AB7: 0.4903495044 | AC7: 7816 | AD7: 785 | AE7: 770 | AF7: 856 | AG7: 790 | AH7: 672 | AI7: 580 | AJ7: 505 | AK7: 550 | AL7: 530 | AM7: 439 | AN7: 363 | AO7: 314 | AP7: 194 | AQ7: 162 | AR7: 118 | AS7: 94 | AT7: 58 | AU7: 22 | AV7: 10 | AW7: 4 | AX7: 0 | AY7: 0.5096504956 | AZ7: Cientos de personas
A8: 15 - 19 años | B8: =VLOOKUP(Datos!E$141,E$3:AY$127,6,FALSE) -> -966 | C8: =VLOOKUP(Datos!E$141,E$3:AY$127,29,FALSE) -> 991 | E8: 6 | F8: -29706 | G8: -2738 | H8: -2655 | I8: -2741 | J8: -2746 | K8: -2477 | L8: -2166 | M8: -1745 | N8: -2017 | O8: -1881 | P8: -1496 | Q8: -1457 | R8: -1448 | S8: -1148 | T8: -991 | U8: -824 | V8: -554 | W8: -360 | X8: -187 | Y8: -56 | Z8: -19 | AA8: 0 | AB8: 0.487679149 | AC8: 31207 | AD8: 2753 | AE8: 2768 | AF8: 2747 | AG8: 2546 | AH8: 2415 | AI8: 2299 | AJ8: 2035 | AK8: 2271 | AL8: 1888 | AM8: 1534 | AN8: 1821 | AO8: 1575 | AP8: 1331 | AQ8: 1115 | AR8: 831 | AS8: 527 | AT8: 394 | AU8: 188 | AV8: 130 | AW8: 39 | AX8: 0 | AY8: 0.512320851 | AZ8: Miles de personas
A9: 20 - 24 años | B9: =VLOOKUP(Datos!E$141,E$3:AY$127,7,FALSE) -> -870 | C9: =VLOOKUP(Datos!E$141,E$3:AY$127,30,FALSE) -> 964 | E9: 7 | F9: -4729 | G9: -416 | H9: -489 | I9: -474 | J9: -504 | K9: -342 | L9: -288 | M9: -278 | N9: -315 | O9: -310 | P9: -251 | Q9: -192 | R9: -171 | S9: -169 | T9: -159 | U9: -128 | V9: -105 | W9: -75 | X9: -35 | Y9: -24 | Z9: -4 | AA9: 0 | AB9: 0.5020169851 | AC9: 4691 | AD9: 422 | AE9: 492 | AF9: 470 | AG9: 429 | AH9: 347 | AI9: 295 | AJ9: 309 | AK9: 319 | AL9: 289 | AM9: 257 | AN9: 215 | AO9: 195 | AP9: 191 | AQ9: 139 | AR9: 105 | AS9: 96 | AT9: 66 | AU9: 34 | AV9: 13 | AW9: 4 | AX9: 4 | AY9: 0.4979830149 | AZ9: Cientos de personas
A10: 25 - 29 años | B10: =VLOOKUP(Datos!E$141,E$3:AY$127,8,FALSE) -> -755 | C10: =VLOOKUP(Datos!E$141,E$3:AY$127,31,FALSE) -> 958 | E10: 8 | F10: -36623 | G10: -3567 | H10: -3548 | I10: -4496 | J10: -3615 | K10: -3071 | L10: -2761 | M10: -2414 | N10: -2602 | O10: -2357 | P10: -2046 | Q10: -1767 | R10: -1200 | S10: -885 | T10: -815 | U10: -492 | V10: -400 | W10: -356 | X10: -153 | Y10: -59 | Z10: -19 | AA10: 0 | AB10: 0.4750064851 | AC10: 40477 | AD10: 3447 | AE10: 3507 | AF10: 4131 | AG10: 4245 | AH10: 3488 | AI10: 3108 | AJ10: 3110 | AK10: 2858 | AL10: 2839 | AM10: 2251 | AN10: 2301 | AO10: 1302 | AP10: 1212 | AQ10: 1031 | AR10: 701 | AS10: 473 | AT10: 310 | AU10: 96 | AV10: 55 | AW10: 3 | AX10: 9 | AY10: 0.5249935149 | AZ10: Miles de personas
A11: 30 - 34 años | B11: =VLOOKUP(Datos!E$141,E$3:AY$127,9,FALSE) -> -766 | C11: =VLOOKUP(Datos!E$141,E$3:AY$127,32,FALSE) -> 894 | E11: 9 | F11: -9851 | G11: -969 | H11: -1127 | I11: -1114 | J11: -954 | K11: -892 | L11: -758 | M11: -693 | N11: -616 | O11: -683 | P11: -478 | Q11: -409 | R11: -383 | S11: -253 | T11: -170 | U11: -157 | V11: -70 | W11: -66 | X11: -35 | Y11: -22 | Z11: -2 | AA11: 0 | AB11: 0.4952242107 | AC11: 10041 | AD11: 1092 | AE11: 1034 | AF11: 995 | AG11: 1002 | AH11: 869 | AI11: 766 | AJ11: 748 | AK11: 714 | AL11: 709 | AM11: 472 | AN11: 495 | AO11: 322 | AP11: 245 | AQ11: 204 | AR11: 127 | AS11: 107 | AT11: 78 | AU11: 36 | AV11: 18 | AW11: 6 | AX11: 2 | AY11: 0.5047757893 | AZ11: Cientos de personas
A12: 35 - 39 años | B12: =VLOOKUP(Datos!E$141,E$3:AY$127,10,FALSE) -> -778 | C12: =VLOOKUP(Datos!E$141,E$3:AY$127,33,FALSE) -> 734 | E12: 10 | F12: -3310 | G12: -378 | H12: -398 | I12: -392 | J12: -335 | K12: -311 | L12: -238 | M12: -221 | N12: -189 | O12: -173 | P12: -154 | Q12: -118 | R12: -69 | S12: -82 | T12: -83 | U12: -69 | V12: -37 | W12: -33 | X12: -15 | Y12: -11 | Z12: -4 | AA12: 0 | AB12: 0.4928528886 | AC12: 3406 | AD12: 403 | AE12: 378 | AF12: 395 | AG12: 327 | AH12: 282 | AI12: 247 | AJ12: 241 | AK12: 202 | AL12: 199 | AM12: 156 | AN12: 138 | AO12: 87 | AP12: 93 | AQ12: 87 | AR12: 58 | AS12: 42 | AT12: 21 | AU12: 26 | AV12: 20 | AW12: 4 | AX12: 0 | AY12: 0.5071471114 | AZ12: Cientos de personas
A13: 40 - 44 años | B13: =VLOOKUP(Datos!E$141,E$3:AY$127,11,FALSE) -> -714 | C13: =VLOOKUP(Datos!E$141,E$3:AY$127,34,FALSE) -> 652 | E13: 11 | F13: -2815 | G13: -236 | H13: -297 | I13: -277 | J13: -224 | K13: -205 | L13: -159 | M13: -198 | N13: -167 | O13: -177 | P13: -138 | Q13: -120 | R13: -108 | S13: -92 | T13: -108 | U13: -120 | V13: -85 | W13: -54 | X13: -30 | Y13: -15 | Z13: -1 | AA13: -4 | AB13: 0.5148134601 | AC13: 2653 | AD13: 271 | AE13: 215 | AF13: 227 | AG13: 208 | AH13: 189 | AI13: 210 | AJ13: 172 | AK13: 164 | AL13: 151 | AM13: 135 | AN13: 140 | AO13: 108 | AP13: 99 | AQ13: 91 | AR13: 85 | AS13: 65 | AT13: 63 | AU13: 38 | AV13: 20 | AW13: 2 | AX13: 0 | AY13: 0.4851865399 | AZ13: Cientos de personas
A14: 45 - 49 años | B14: =VLOOKUP(Datos!E$141,E$3:AY$127,12,FALSE) -> -474 | C14: =VLOOKUP(Datos!E$141,E$3:AY$127,35,FALSE) -> 551 | E14: 12 | F14: -1909 | G14: -144 | H14: -152 | I14: -170 | J14: -158 | K14: -172 | L14: -135 | M14: -112 | N14: -114 | O14: -112 | P14: -99 | Q14: -105 | R14: -82 | S14: -59 | T14: -77 | U14: -68 | V14: -64 | W14: -50 | X14: -24 | Y14: -9 | Z14: -3 | AA14: 0 | AB14: 0.4897383273 | AC14: 1989 | AD14: 161 | AE14: 150 | AF14: 156 | AG14: 171 | AH14: 133 | AI14: 152 | AJ14: 112 | AK14: 132 | AL14: 111 | AM14: 119 | AN14: 118 | AO14: 94 | AP14: 78 | AQ14: 83 | AR14: 79 | AS14: 52 | AT14: 50 | AU14: 22 | AV14: 10 | AW14: 3 | AX14: 3 | AY14: 0.5102616727 | AZ14: Cientos de personas
A15: 50 - 54 años | B15: =VLOOKUP(Datos!E$141,E$3:AY$127,13,FALSE) -> -374 | C15: =VLOOKUP(Datos!E$141,E$3:AY$127,36,FALSE) -> 434 | E15: 13 | F15: -29612 | G15: -2987 | H15: -2970 | I15: -3032 | J15: -3033 | K15: -2422 | L15: -2173 | M15: -2146 | N15: -1794 | O15: -1999 | P15: -1719 | Q15: -1399 | R15: -1034 | S15: -835 | T15: -661 | U15: -564 | V15: -377 | W15: -248 | X15: -101 | Y15: -83 | Z15: -29 | AA15: -6 | AB15: 0.4899485432 | AC15: 30827 | AD15: 2622 | AE15: 2730 | AF15: 3136 | AG15: 2885 | AH15: 2623 | AI15: 2464 | AJ15: 2364 | AK15: 2268 | AL15: 2061 | AM15: 1720 | AN15: 1489 | AO15: 1197 | AP15: 896 | AQ15: 758 | AR15: 598 | AS15: 455 | AT15: 270 | AU15: 172 | AV15: 81 | AW15: 33 | AX15: 5 | AY15: 0.5100514568 | AZ15: Miles de personas
A16: 55 - 59 años | B16: =VLOOKUP(Datos!E$141,E$3:AY$127,14,FALSE) -> -314 | C16: =VLOOKUP(Datos!E$141,E$3:AY$127,37,FALSE) -> 356 | E16: 14 | F16: -3973 | G16: -368 | H16: -337 | I16: -330 | J16: -347 | K16: -335 | L16: -287 | M16: -226 | N16: -214 | O16: -254 | P16: -232 | Q16: -219 | R16: -182 | S16: -157 | T16: -149 | U16: -101 | V16: -99 | W16: -78 | X16: -39 | Y16: -12 | Z16: -7 | AA16: 0 | AB16: 0.4807599226 | AC16: 4291 | AD16: 371 | AE16: 380 | AF16: 354 | AG16: 341 | AH16: 373 | AI16: 275 | AJ16: 252 | AK16: 276 | AL16: 277 | AM16: 266 | AN16: 209 | AO16: 193 | AP16: 177 | AQ16: 141 | AR16: 137 | AS16: 108 | AT16: 78 | AU16: 47 | AV16: 24 | AW16: 12 | AX16: 0 | AY16: 0.5192400774 | AZ16: Cientos de personas
A17: 60 - 64 años | B17: =VLOOKUP(Datos!E$141,E$3:AY$127,15,FALSE) -> -316 | C17: =VLOOKUP(Datos!E$141,E$3:AY$127,38,FALSE) -> 377 | E17: 15 | F17: -29573 | G17: -2902 | H17: -2976 | I17: -2730 | J17: -2691 | K17: -2656 | L17: -2301 | M17: -2037 | N17: -2136 | O17: -1870 | P17: -1475 | Q17: -1500 | R17: -1174 | S17: -918 | T17: -713 | U17: -596 | V17: -380 | W17: -289 | X17: -135 | Y17: -74 | Z17: -20 | AA17: 0 | AB17: 0.488261128 | AC17: 30995 | AD17: 2827 | AE17: 3016 | AF17: 2625 | AG17: 2621 | AH17: 2662 | AI17: 2737 | AJ17: 2347 | AK17: 2178 | AL17: 1788 | AM17: 1681 | AN17: 1740 | AO17: 1279 | AP17: 910 | AQ17: 817 | AR17: 651 | AS17: 453 | AT17: 315 | AU17: 176 | AV17: 112 | AW17: 55 | AX17: 5 | AY17: 0.511738872 | AZ17: Miles de personas
A18: 65 - 69 años | B18: =VLOOKUP(Datos!E$141,E$3:AY$127,16,FALSE) -> -332 | C18: =VLOOKUP(Datos!E$141,E$3:AY$127,39,FALSE) -> 327 | E18: 16 | F18: -18511 | G18: -2016 | H18: -2116 | I18: -1920 | J18: -1738 | K18: -1377 | L18: -1327 | M18: -1262 | N18: -1297 | O18: -1161 | P18: -818 | Q18: -791 | R18: -706 | S18: -535 | T18: -530 | U18: -389 | V18: -265 | W18: -151 | X18: -50 | Y18: -52 | Z18: -10 | AA18: 0 | AB18: 0.4878762321 | AC18: 19431 | AD18: 1904 | AE18: 2041 | AF18: 1884 | AG18: 1688 | AH18: 1569 | AI18: 1569 | AJ18: 1385 | AK18: 1341 | AL18: 1195 | AM18: 974 | AN18: 929 | AO18: 688 | AP18: 647 | AQ18: 537 | AR18: 458 | AS18: 246 | AT18: 182 | AU18: 93 | AV18: 81 | AW18: 20 | AX18: 0 | AY18: 0.5121237679 | AZ18: Miles de personas
A19: 70 - 74 años | B19: =VLOOKUP(Datos!E$141,E$3:AY$127,17,FALSE) -> -211 | C19: =VLOOKUP(Datos!E$141,E$3:AY$127,40,FALSE) -> 234 | E19: 17 | F19: -6200 | G19: -676 | H19: -573 | I19: -557 | J19: -501 | K19: -473 | L19: -433 | M19: -408 | N19: -357 | O19: -367 | P19: -332 | Q19: -289 | R19: -256 | S19: -199 | T19: -234 | U19: -164 | V19: -148 | W19: -108 | X19: -65 | Y19: -40 | Z19: -19 | AA19: -1 | AB19: 0.4982721209 | AC19: 6243 | AD19: 646 | AE19: 538 | AF19: 577 | AG19: 565 | AH19: 467 | AI19: 475 | AJ19: 394 | AK19: 367 | AL19: 342 | AM19: 321 | AN19: 288 | AO19: 268 | AP19: 261 | AQ19: 229 | AR19: 200 | AS19: 97 | AT19: 91 | AU19: 55 | AV19: 43 | AW19: 17 | AX19: 2 | AY19: 0.5017278791 | AZ19: Cientos de personas
A20: 75 - 79 años | B20: =VLOOKUP(Datos!E$141,E$3:AY$127,18,FALSE) -> -161 | C20: =VLOOKUP(Datos!E$141,E$3:AY$127,41,FALSE) -> 158 | E20: 18 | F20: -31472 | G20: -3232 | H20: -3316 | I20: -3193 | J20: -2834 | K20: -2507 | L20: -2267 | M20: -2195 | N20: -2207 | O20: -1975 | P20: -1563 | Q20: -1456 | R20: -1210 | S20: -1094 | T20: -878 | U20: -613 | V20: -427 | W20: -296 | X20: -120 | Y20: -50 | Z20: -28 | AA20: -11 | AB20: 0.4839835761 | AC20: 33555 | AD20: 3068 | AE20: 3121 | AF20: 3541 | AG20: 2660 | AH20: 2706 | AI20: 2602 | AJ20: 2438 | AK20: 2476 | AL20: 2260 | AM20: 1799 | AN20: 1640 | AO20: 1295 | AP20: 1137 | AQ20: 1012 | AR20: 727 | AS20: 441 | AT20: 300 | AU20: 166 | AV20: 119 | AW20: 34 | AX20: 13 | AY20: 0.5160164239 | AZ20: Miles de personas
A21: 80 - 84 años | B21: =VLOOKUP(Datos!E$141,E$3:AY$127,19,FALSE) -> -77 | C21: =VLOOKUP(Datos!E$141,E$3:AY$127,42,FALSE) -> 99 | E21: 19 | F21: -3647 | G21: -512 | H21: -442 | I21: -478 | J21: -397 | K21: -313 | L21: -268 | M21: -226 | N21: -233 | O21: -167 | P21: -146 | Q21: -125 | R21: -119 | S21: -52 | T21: -47 | U21: -58 | V21: -26 | W21: -19 | X21: -9 | Y21: -3 | Z21: -6 | AA21: -1 | AB21: 0.4970019079 | AC21: 3691 | AD21: 518 | AE21: 499 | AF21: 482 | AG21: 359 | AH21: 308 | AI21: 277 | AJ21: 240 | AK21: 246 | AL21: 164 | AM21: 140 | AN21: 123 | AO21: 84 | AP21: 77 | AQ21: 42 | AR21: 48 | AS21: 30 | AT21: 32 | AU21: 14 | AV21: 7 | AW21: 1 | AX21: 0 | AY21: 0.5029980921 | AZ21: Cientos de personas
A22: 85 - 89 años | B22: =VLOOKUP(Datos!E$141,E$3:AY$127,20,FALSE) -> -64 | C22: =VLOOKUP(Datos!E$141,E$3:AY$127,43,FALSE) -> 68 | E22: 20 | F22: -5302 | G22: -488 | H22: -567 | I22: -543 | J22: -473 | K22: -373 | L22: -339 | M22: -325 | N22: -305 | O22: -297 | P22: -266 | Q22: -268 | R22: -237 | S22: -216 | T22: -180 | U22: -146 | V22: -149 | W22: -78 | X22: -23 | Y22: -18 | Z22: -7 | AA22: -4 | AB22: 0.5146573481 | AC22: 5000 | AD22: 477 | AE22: 569 | AF22: 533 | AG22: 417 | AH22: 327 | AI22: 405 | AJ22: 341 | AK22: 318 | AL22: 268 | AM22: 228 | AN22: 267 | AO22: 205 | AP22: 142 | AQ22: 173 | AR22: 126 | AS22: 98 | AT22: 52 | AU22: 32 | AV22: 17 | AW22: 5 | AX22: 0 | AY22: 0.4853426519 | AZ22: Cientos de personas
A23: 90 - 94 años | B23: =VLOOKUP(Datos!E$141,E$3:AY$127,21,FALSE) -> -25 | C23: =VLOOKUP(Datos!E$141,E$3:AY$127,44,FALSE) -> 28 | E23: 21 | F23: -10746 | G23: -976 | H23: -1049 | I23: -1063 | J23: -971 | K23: -815 | L23: -779 | M23: -659 | N23: -674 | O23: -668 | P23: -611 | Q23: -519 | R23: -467 | S23: -427 | T23: -363 | U23: -268 | V23: -189 | W23: -128 | X23: -67 | Y23: -34 | Z23: -5 | AA23: -14 | AB23: 0.4980533927 | AC23: 10830 | AD23: 1016 | AE23: 988 | AF23: 971 | AG23: 996 | AH23: 750 | AI23: 834 | AJ23: 737 | AK23: 725 | AL23: 668 | AM23: 621 | AN23: 589 | AO23: 474 | AP23: 418 | AQ23: 321 | AR23: 242 | AS23: 222 | AT23: 118 | AU23: 101 | AV23: 33 | AW23: 6 | AX23: 0 | AY23: 0.5019466073 | AZ23: Miles de personas
A24: 95 - 99 años | B24: =VLOOKUP(Datos!E$141,E$3:AY$127,22,FALSE) -> -10 | C24: =VLOOKUP(Datos!E$141,E$3:AY$127,45,FALSE) -> 4 | E24: 22 | F24: -20690 | G24: -2194 | H24: -2248 | I24: -2000 | J24: -2063 | K24: -1521 | L24: -1551 | M24: -1373 | N24: -1272 | O24: -1342 | P24: -1011 | Q24: -1112 | R24: -767 | S24: -641 | T24: -537 | U24: -456 | V24: -226 | W24: -218 | X24: -65 | Y24: -71 | Z24: -10 | AA24: -12 | AB24: 0.501259812 | AC24: 20586 | AD24: 1868 | AE24: 2158 | AF24: 1926 | AG24: 1703 | AH24: 1758 | AI24: 1688 | AJ24: 1534 | AK24: 1397 | AL24: 1290 | AM24: 1122 | AN24: 1010 | AO24: 877 | AP24: 650 | AQ24: 595 | AR24: 407 | AS24: 273 | AT24: 164 | AU24: 133 | AV24: 33 | AW24: 0 | AX24: 0 | AY24: 0.498740188 | AZ24: Miles de personas
A25: 100 años y más | B25: =VLOOKUP(Datos!E$141,E$3:AY$127,23,FALSE) -> -2 | C25: =VLOOKUP(Datos!E$141,E$3:AY$127,46,FALSE) -> 0 | E25: 23 | F25: -51205 | G25: -4620 | H25: -4816 | I25: -4907 | J25: -4609 | K25: -5328 | L25: -4445 | M25: -3782 | N25: -3189 | O25: -2990 | P25: -2710 | Q25: -2620 | R25: -2056 | S25: -1590 | T25: -1417 | U25: -829 | V25: -597 | W25: -321 | X25: -187 | Y25: -142 | Z25: -50 | AA25: 0 | AB25: 0.4857882853 | AC25: 54201 | AD25: 4566 | AE25: 4295 | AF25: 4552 | AG25: 4570 | AH25: 5221 | AI25: 4685 | AJ25: 4053 | AK25: 3952 | AL25: 3440 | AM25: 3055 | AN25: 3011 | AO25: 2570 | AP25: 1957 | AQ25: 1558 | AR25: 1042 | AS25: 618 | AT25: 533 | AU25: 296 | AV25: 166 | AW25: 53 | AX25: 8 | AY25: 0.5142117147 | AZ25: Miles de personas
E26: 24 | F26: -12994 | G26: -1175 | H26: -1223 | I26: -1224 | J26: -1142 | K26: -1055 | L26: -916 | M26: -906 | N26: -833 | O26: -874 | P26: -616 | Q26: -566 | R26: -575 | S26: -504 | T26: -482 | U26: -371 | V26: -207 | W26: -154 | X26: -85 | Y26: -69 | Z26: -11 | AA26: -6 | AB26: 0.4871227741 | AC26: 13681 | AD26: 1202 | AE26: 1225 | AF26: 1222 | AG26: 992 | AH26: 1192 | AI26: 916 | AJ26: 952 | AK26: 894 | AL26: 918 | AM26: 767 | AN26: 680 | AO26: 628 | AP26: 555 | AQ26: 484 | AR26: 361 | AS26: 238 | AT26: 210 | AU26: 133 | AV26: 75 | AW26: 30 | AX26: 7 | AY26: 0.5128772259 | AZ26: Miles de personas
E27: 25 | F27: -8618 | G27: -759 | H27: -787 | I27: -876 | J27: -913 | K27: -776 | L27: -599 | M27: -530 | N27: -538 | O27: -589 | P27: -487 | Q27: -408 | R27: -309 | S27: -278 | T27: -252 | U27: -199 | V27: -139 | W27: -79 | X27: -76 | Y27: -18 | Z27: -6 | AA27: 0 | AB27: 0.4825037792 | AC27: 9243 | AD27: 807 | AE27: 807 | AF27: 767 | AG27: 885 | AH27: 796 | AI27: 709 | AJ27: 641 | AK27: 591 | AL27: 641 | AM27: 512 | AN27: 524 | AO27: 379 | AP27: 290 | AQ27: 274 | AR27: 197 | AS27: 166 | AT27: 133 | AU27: 67 | AV27: 46 | AW27: 6 | AX27: 5 | AY27: 0.5174962208 | AZ27: Cientos de personas
E28: 26 | F28: -3103 | G28: -263 | H28: -316 | I28: -293 | J28: -292 | K28: -250 | L28: -210 | M28: -202 | N28: -219 | O28: -183 | P28: -155 | Q28: -166 | R28: -131 | S28: -117 | T28: -105 | U28: -79 | V28: -53 | W28: -38 | X28: -22 | Y28: -7 | Z28: -2 | AA28: 0 | AB28: 0.5096911958 | AC28: 2985 | AD28: 283 | AE28: 263 | AF28: 244 | AG28: 268 | AH28: 205 | AI28: 180 | AJ28: 218 | AK28: 195 | AL28: 198 | AM28: 167 | AN28: 159 | AO28: 156 | AP28: 119 | AQ28: 99 | AR28: 75 | AS28: 63 | AT28: 41 | AU28: 28 | AV28: 12 | AW28: 6 | AX28: 6 | AY28: 0.4903088042 | AZ28: Cientos de personas
E29: 27 | F29: -9110 | G29: -1015 | H29: -953 | I29: -1027 | J29: -923 | K29: -787 | L29: -558 | M29: -530 | N29: -588 | O29: -545 | P29: -447 | Q29: -409 | R29: -261 | S29: -211 | T29: -239 | U29: -281 | V29: -174 | W29: -90 | X29: -37 | Y29: -24 | Z29: -9 | AA29: -2 | AB29: 0.5023712364 | AC29: 9024 | AD29: 900 | AE29: 926 | AF29: 1062 | AG29: 969 | AH29: 690 | AI29: 566 | AJ29: 596 | AK29: 591 | AL29: 511 | AM29: 421 | AN29: 359 | AO29: 265 | AP29: 253 | AQ29: 332 | AR29: 237 | AS29: 120 | AT29: 89 | AU29: 83 | AV29: 33 | AW29: 21 | AX29: 0 | AY29: 0.4976287636 | AZ29: Miles de personas
E30: 28 | F30: -1020 | G30: -84 | H30: -77 | I30: -94 | J30: -102 | K30: -87 | L30: -65 | M30: -63 | N30: -53 | O30: -61 | P30: -45 | Q30: -43 | R30: -45 | S30: -43 | T30: -48 | U30: -34 | V30: -30 | W30: -23 | X30: -14 | Y30: -5 | Z30: -4 | AA30: 0 | AB30: 0.4813591317 | AC30: 1099 | AD30: 100 | AE30: 89 | AF30: 80 | AG30: 78 | AH30: 91 | AI30: 107 | AJ30: 59 | AK30: 57 | AL30: 52 | AM30: 69 | AN30: 56 | AO30: 58 | AP30: 55 | AQ30: 45 | AR30: 41 | AS30: 18 | AT30: 23 | AU30: 13 | AV30: 5 | AW30: 3 | AX30: 0 | AY30: 0.5186408683 | AZ30: Cientos de personas
E31: 29 | F31: -8566 | G31: -758 | H31: -786 | I31: -891 | J31: -781 | K31: -737 | L31: -488 | M31: -520 | N31: -536 | O31: -540 | P31: -432 | Q31: -383 | R31: -344 | S31: -381 | T31: -308 | U31: -219 | V31: -187 | W31: -149 | X31: -78 | Y31: -34 | Z31: -14 | AA31: 0 | AB31: 0.4764182425 | AC31: 9414 | AD31: 865 | AE31: 824 | AF31: 938 | AG31: 790 | AH31: 689 | AI31: 727 | AJ31: 604 | AK31: 624 | AL31: 579 | AM31: 543 | AN31: 468 | AO31: 438 | AP31: 339 | AQ31: 319 | AR31: 245 | AS31: 172 | AT31: 123 | AU31: 85 | AV31: 25 | AW31: 12 | AX31: 5 | AY31: 0.5235817575 | AZ31: Cientos de personas
E32: 30 | F32: -24588 | G32: -2230 | H32: -2382 | I32: -2134 | J32: -2210 | K32: -2174 | L32: -1856 | M32: -1668 | N32: -1573 | O32: -1629 | P32: -1122 | Q32: -1062 | R32: -938 | S32: -940 | T32: -929 | U32: -685 | V32: -549 | W32: -290 | X32: -138 | Y32: -45 | Z32: -27 | AA32: -7 | AB32: 0.4848269743 | AC32: 26127 | AD32: 2101 | AE32: 2226 | AF32: 2218 | AG32: 2018 | AH32: 2149 | AI32: 2030 | AJ32: 1830 | AK32: 1690 | AL32: 1798 | AM32: 1329 | AN32: 1348 | AO32: 1174 | AP32: 1181 | AQ32: 997 | AR32: 825 | AS32: 537 | AT32: 351 | AU32: 176 | AV32: 96 | AW32: 49 | AX32: 4 | AY32: 0.5151730257 | AZ32: Miles de personas
E33: 31 | F33: -1659 | G33: -192 | H33: -234 | I33: -166 | J33: -170 | K33: -126 | L33: -110 | M33: -80 | N33: -88 | O33: -92 | P33: -80 | Q33: -64 | R33: -46 | S33: -40 | T33: -47 | U33: -42 | V33: -27 | W33: -24 | X33: -14 | Y33: -11 | Z33: -5 | AA33: -1 | AB33: 0.4903931422 | AC33: 1724 | AD33: 185 | AE33: 221 | AF33: 191 | AG33: 155 | AH33: 144 | AI33: 109 | AJ33: 96 | AK33: 102 | AL33: 93 | AM33: 56 | AN33: 65 | AO33: 62 | AP33: 47 | AQ33: 46 | AR33: 58 | AS33: 46 | AT33: 19 | AU33: 18 | AV33: 6 | AW33: 3 | AX33: 2 | AY33: 0.5096068578 | AZ33: Cientos de personas
E34: 32 | F34: -3103 | G34: -365 | H34: -352 | I34: -352 | J34: -319 | K34: -298 | L34: -228 | M34: -174 | N34: -140 | O34: -155 | P34: -133 | Q34: -149 | R34: -82 | S34: -78 | T34: -89 | U34: -62 | V34: -53 | W34: -34 | X34: -24 | Y34: -15 | Z34: -1 | AA34: 0 | AB34: 0.5086885246 | AC34: 2997 | AD34: 317 | AE34: 307 | AF34: 284 | AG34: 269 | AH34: 295 | AI34: 219 | AJ34: 180 | AK34: 154 | AL34: 185 | AM34: 154 | AN34: 145 | AO34: 114 | AP34: 77 | AQ34: 69 | AR34: 92 | AS34: 40 | AT34: 41 | AU34: 33 | AV34: 13 | AW34: 7 | AX34: 2 | AY34: 0.4913114754 | AZ34: Cientos de personas
E35: 33 | F35: -10453 | G35: -1014 | H35: -1148 | I35: -1059 | J35: -963 | K35: -849 | L35: -600 | M35: -640 | N35: -726 | O35: -694 | P35: -589 | Q35: -467 | R35: -380 | S35: -304 | T35: -332 | U35: -252 | V35: -218 | W35: -120 | X35: -66 | Y35: -22 | Z35: -8 | AA35: -2 | AB35: 0.4869561166 | AC35: 11013 | AD35: 905 | AE35: 1006 | AF35: 1047 | AG35: 1010 | AH35: 959 | AI35: 820 | AJ35: 704 | AK35: 772 | AL35: 750 | AM35: 676 | AN35: 535 | AO35: 421 | AP35: 375 | AQ35: 327 | AR35: 250 | AS35: 212 | AT35: 145 | AU35: 52 | AV35: 30 | AW35: 13 | AX35: 4 | AY35: 0.5130438834 | AZ35: Miles de personas
E36: 34 | F36: -960 | G36: -77 | H36: -78 | I36: -59 | J36: -78 | K36: -70 | L36: -60 | M36: -61 | N36: -55 | O36: -53 | P36: -58 | Q36: -50 | R36: -49 | S36: -39 | T36: -44 | U36: -41 | V36: -26 | W36: -33 | X36: -21 | Y36: -4 | Z36: -4 | AA36: 0 | AB36: 0.5155746509 | AC36: 902 | AD36: 80 | AE36: 76 | AF36: 69 | AG36: 53 | AH36: 48 | AI36: 71 | AJ36: 70 | AK36: 43 | AL36: 60 | AM36: 44 | AN36: 58 | AO36: 46 | AP36: 40 | AQ36: 43 | AR36: 30 | AS36: 33 | AT36: 17 | AU36: 14 | AV36: 1 | AW36: 5 | AX36: 1 | AY36: 0.4844253491 | AZ36: Cientos de personas
E37: 35 | F37: -25762 | G37: -2580 | H37: -2636 | I37: -2823 | J37: -2573 | K37: -2057 | L37: -1877 | M37: -1779 | N37: -1723 | O37: -1710 | P37: -1335 | Q37: -1096 | R37: -813 | S37: -831 | T37: -705 | U37: -469 | V37: -337 | W37: -222 | X37: -124 | Y37: -68 | Z37: -4 | AA37: 0 | AB37: 0.4811459948 | AC37: 27781 | AD37: 2681 | AE37: 2739 | AF37: 2644 | AG37: 2591 | AH37: 2225 | AI37: 2112 | AJ37: 2149 | AK37: 1892 | AL37: 1711 | AM37: 1368 | AN37: 1254 | AO37: 1072 | AP37: 988 | AQ37: 816 | AR37: 516 | AS37: 429 | AT37: 326 | AU37: 196 | AV37: 63 | AW37: 9 | AX37: 0 | AY37: 0.5188540052 | AZ37: Miles de personas
E38: 36 | F38: -9543 | G38: -931 | H38: -999 | I38: -967 | J38: -891 | K38: -797 | L38: -548 | M38: -604 | N38: -628 | O38: -664 | P38: -464 | Q38: -447 | R38: -356 | S38: -286 | T38: -316 | U38: -209 | V38: -183 | W38: -135 | X38: -74 | Y38: -34 | Z38: -10 | AA38: 0 | AB38: 0.4809252633 | AC38: 10300 | AD38: 875 | AE38: 998 | AF38: 1039 | AG38: 1000 | AH38: 788 | AI38: 719 | AJ38: 713 | AK38: 662 | AL38: 680 | AM38: 525 | AN38: 511 | AO38: 417 | AP38: 354 | AQ38: 332 | AR38: 239 | AS38: 176 | AT38: 157 | AU38: 55 | AV38: 43 | AW38: 15 | AX38: 2 | AY38: 0.5190747367 | AZ38: Miles de personas
E39: 37 | F39: -11660 | G39: -1096 | H39: -1066 | I39: -1002 | J39: -1057 | K39: -988 | L39: -943 | M39: -742 | N39: -794 | O39: -771 | P39: -678 | Q39: -557 | R39: -499 | S39: -400 | T39: -329 | U39: -236 | V39: -204 | W39: -148 | X39: -97 | Y39: -39 | Z39: -11 | AA39: -3 | AB39: 0.4798748868 | AC39: 12638 | AD39: 1088 | AE39: 1138 | AF39: 1129 | AG39: 1069 | AH39: 976 | AI39: 968 | AJ39: 974 | AK39: 819 | AL39: 850 | AM39: 709 | AN39: 669 | AO39: 500 | AP39: 481 | AQ39: 416 | AR39: 314 | AS39: 198 | AT39: 140 | AU39: 128 | AV39: 63 | AW39: 9 | AX39: 0 | AY39: 0.5201251132 | AZ39: Miles de personas
E40: 38 | F40: -2140 | G40: -204 | H40: -154 | I40: -179 | J40: -180 | K40: -152 | L40: -152 | M40: -112 | N40: -139 | O40: -137 | P40: -126 | Q40: -119 | R40: -87 | S40: -81 | T40: -89 | U40: -77 | V40: -57 | W40: -48 | X40: -29 | Y40: -13 | Z40: -4 | AA40: -1 | AB40: 0.5117168819 | AC40: 2042 | AD40: 188 | AE40: 164 | AF40: 177 | AG40: 165 | AH40: 156 | AI40: 153 | AJ40: 127 | AK40: 121 | AL40: 103 | AM40: 115 | AN40: 94 | AO40: 72 | AP40: 78 | AQ40: 90 | AR40: 78 | AS40: 70 | AT40: 44 | AU40: 25 | AV40: 16 | AW40: 5 | AX40: 1 | AY40: 0.4882831181 | AZ40: Cientos de personas
E41: 39 | F41: -703949 | G41: -50167 | H41: -54549 | I41: -59773 | J41: -65260 | K41: -69919 | L41: -59944 | M41: -54412 | N41: -45350 | O41: -48872 | P41: -41293 | Q41: -36608 | R41: -30485 | S41: -28207 | T41: -21006 | U41: -16156 | V41: -10095 | W41: -6549 | X41: -3386 | Y41: -1466 | Z41: -374 | AA41: -78 | AB41: 0.4823216976 | AC41: 755552 | AD41: 49242 | AE41: 54417 | AF41: 58265 | AG41: 62084 | AH41: 66626 | AI41: 58732 | AJ41: 56554 | AK41: 49758 | AL41: 52647 | AM41: 47783 | AN41: 46607 | AO41: 37361 | AP41: 35719 | AQ41: 27679 | AR41: 20047 | AS41: 13663 | AT41: 9195 | AU41: 5613 | AV41: 2669 | AW41: 817 | AX41: 74 | AY41: 0.5176783024 | AZ41: Miles de personas
E42: 40 | F42: -4996 | G42: -503 | H42: -534 | I42: -544 | J42: -476 | K42: -402 | L42: -306 | M42: -294 | N42: -322 | O42: -311 | P42: -258 | Q42: -204 | R42: -176 | S42: -131 | T42: -151 | U42: -148 | V42: -105 | W42: -69 | X42: -37 | Y42: -19 | Z42: -4 | AA42: -2 | AB42: 0.511832804 | AC42: 4765 | AD42: 469 | AE42: 469 | AF42: 480 | AG42: 458 | AH42: 346 | AI42: 325 | AJ42: 253 | AK42: 310 | AL42: 268 | AM42: 308 | AN42: 192 | AO42: 192 | AP42: 177 | AQ42: 174 | AR42: 115 | AS42: 126 | AT42: 51 | AU42: 26 | AV42: 20 | AW42: 6 | AX42: 0 | AY42: 0.488167196 | AZ42: Cientos de personas
E43: 41 | F43: -2700 | G43: -216 | H43: -263 | I43: -253 | J43: -240 | K43: -197 | L43: -160 | M43: -146 | N43: -145 | O43: -189 | P43: -155 | Q43: -117 | R43: -121 | S43: -104 | T43: -100 | U43: -109 | V43: -71 | W43: -68 | X43: -26 | Y43: -16 | Z43: -2 | AA43: -2 | AB43: 0.4800853485 | AC43: 2924 | AD43: 211 | AE43: 203 | AF43: 272 | AG43: 253 | AH43: 196 | AI43: 153 | AJ43: 177 | AK43: 190 | AL43: 170 | AM43: 181 | AN43: 163 | AO43: 130 | AP43: 141 | AQ43: 137 | AR43: 109 | AS43: 102 | AT43: 68 | AU43: 36 | AV43: 25 | AW43: 4 | AX43: 3 | AY43: 0.5199146515 | AZ43: Cientos de personas
E44: 42 | F44: -4194 | G44: -435 | H44: -461 | I44: -467 | J44: -429 | K44: -342 | L44: -256 | M44: -248 | N44: -232 | O44: -212 | P44: -177 | Q44: -173 | R44: -145 | S44: -151 | T44: -124 | U44: -117 | V44: -91 | W44: -61 | X44: -52 | Y44: -18 | Z44: -2 | AA44: -1 | AB44: 0.4777853725 | AC44: 4584 | AD44: 484 | AE44: 450 | AF44: 427 | AG44: 457 | AH44: 355 | AI44: 304 | AJ44: 317 | AK44: 242 | AL44: 265 | AM44: 194 | AN44: 184 | AO44: 194 | AP44: 147 | AQ44: 162 | AR44: 118 | AS44: 111 | AT44: 85 | AU44: 47 | AV44: 28 | AW44: 11 | AX44: 2 | AY44: 0.5222146275 | AZ44: Cientos de personas
E45: 43 | F45: -12443 | G45: -1025 | H45: -1244 | I45: -1240 | J45: -1179 | K45: -948 | L45: -817 | M45: -755 | N45: -811 | O45: -753 | P45: -727 | Q45: -616 | R45: -635 | S45: -416 | T45: -395 | U45: -317 | V45: -267 | W45: -136 | X45: -86 | Y45: -47 | Z45: -20 | AA45: -9 | AB45: 0.5068018899 | AC45: 12109 | AD45: 1110 | AE45: 1107 | AF45: 1094 | AG45: 1075 | AH45: 931 | AI45: 955 | AJ45: 774 | AK45: 811 | AL45: 730 | AM45: 693 | AN45: 596 | AO45: 520 | AP45: 518 | AQ45: 365 | AR45: 320 | AS45: 242 | AT45: 119 | AU45: 76 | AV45: 47 | AW45: 26 | AX45: 0 | AY45: 0.4931981101 | AZ45: Miles de personas
E46: 44 | F46: -26162 | G46: -3100 | H46: -3230 | I46: -2693 | J46: -2181 | K46: -2012 | L46: -2087 | M46: -2189 | N46: -1981 | O46: -1721 | P46: -1308 | Q46: -1169 | R46: -729 | S46: -620 | T46: -392 | U46: -317 | V46: -217 | W46: -124 | X46: -62 | Y46: -25 | Z46: -5 | AA46: 0 | AB46: 0.4937344304 | AC46: 26826 | AD46: 2979 | AE46: 3093 | AF46: 2622 | AG46: 2286 | AH46: 2342 | AI46: 2342 | AJ46: 2320 | AK46: 2158 | AL46: 1722 | AM46: 1450 | AN46: 1122 | AO46: 760 | AP46: 529 | AQ46: 444 | AR46: 286 | AS46: 168 | AT46: 110 | AU46: 55 | AV46: 29 | AW46: 9 | AX46: 0 | AY46: 0.5062655696 | AZ46: Miles de personas
E47: 45 | F47: -9220 | G47: -926 | H47: -970 | I47: -937 | J47: -885 | K47: -699 | L47: -594 | M47: -574 | N47: -585 | O47: -650 | P47: -455 | Q47: -408 | R47: -378 | S47: -315 | T47: -302 | U47: -219 | V47: -145 | W47: -108 | X47: -44 | Y47: -18 | Z47: -4 | AA47: -4 | AB47: 0.4835833421 | AC47: 9846 | AD47: 943 | AE47: 947 | AF47: 891 | AG47: 826 | AH47: 712 | AI47: 739 | AJ47: 719 | AK47: 727 | AL47: 588 | AM47: 550 | AN47: 549 | AO47: 393 | AP47: 333 | AQ47: 318 | AR47: 239 | AS47: 171 | AT47: 127 | AU47: 50 | AV47: 16 | AW47: 8 | AX47: 0 | AY47: 0.5164166579 | AZ47: Cientos de personas
E48: 46 | F48: -16684 | G48: -1698 | H48: -1864 | I48: -1921 | J48: -1633 | K48: -1468 | L48: -1167 | M48: -1150 | N48: -1061 | O48: -1040 | P48: -730 | Q48: -666 | R48: -578 | S48: -456 | T48: -352 | U48: -338 | V48: -238 | W48: -132 | X48: -127 | Y48: -48 | Z48: -14 | AA48: -3 | AB48: 0.4939455843 | AC48: 17093 | AD48: 1684 | AE48: 1852 | AF48: 1697 | AG48: 1628 | AH48: 1423 | AI48: 1314 | AJ48: 1232 | AK48: 1120 | AL48: 1010 | AM48: 894 | AN48: 739 | AO48: 584 | AP48: 510 | AQ48: 465 | AR48: 343 | AS48: 279 | AT48: 180 | AU48: 84 | AV48: 29 | AW48: 26 | AX48: 0 | AY48: 0.5060544157 | AZ48: Miles de personas
E49: 47 | F49: -12334 | G49: -1193 | H49: -1339 | I49: -1235 | J49: -1191 | K49: -1166 | L49: -906 | M49: -861 | N49: -863 | O49: -687 | P49: -617 | Q49: -554 | R49: -449 | S49: -359 | T49: -287 | U49: -241 | V49: -163 | W49: -133 | X49: -54 | Y49: -21 | Z49: -12 | AA49: -3 | AB49: 0.4982830364 | AC49: 12419 | AD49: 1250 | AE49: 1169 | AF49: 1214 | AG49: 1154 | AH49: 1085 | AI49: 957 | AJ49: 902 | AK49: 885 | AL49: 773 | AM49: 712 | AN49: 515 | AO49: 480 | AP49: 371 | AQ49: 335 | AR49: 279 | AS49: 118 | AT49: 113 | AU49: 76 | AV49: 22 | AW49: 9 | AX49: 0 | AY49: 0.5017169636 | AZ49: Miles de personas
E50: 48 | F50: -8816 | G50: -818 | H50: -887 | I50: -997 | J50: -893 | K50: -577 | L50: -512 | M50: -548 | N50: -544 | O50: -529 | P50: -513 | Q50: -411 | R50: -305 | S50: -313 | T50: -251 | U50: -265 | V50: -221 | W50: -109 | X50: -75 | Y50: -32 | Z50: -16 | AA50: 0 | AB50: 0.4531482909 | AC50: 10639 | AD50: 931 | AE50: 943 | AF50: 1115 | AG50: 1058 | AH50: 832 | AI50: 755 | AJ50: 593 | AK50: 669 | AL50: 682 | AM50: 581 | AN50: 581 | AO50: 414 | AP50: 327 | AQ50: 395 | AR50: 313 | AS50: 195 | AT50: 131 | AU50: 84 | AV50: 37 | AW50: 3 | AX50: 0 | AY50: 0.5468517091 | AZ50: Miles de personas
E51: 49 | F51: -4979 | G51: -458 | H51: -501 | I51: -497 | J51: -440 | K51: -362 | L51: -405 | M51: -329 | N51: -348 | O51: -299 | P51: -266 | Q51: -252 | R51: -201 | S51: -205 | T51: -125 | U51: -93 | V51: -70 | W51: -71 | X51: -34 | Y51: -20 | Z51: -3 | AA51: 0 | AB51: 0.5021684317 | AC51: 4936 | AD51: 491 | AE51: 466 | AF51: 480 | AG51: 434 | AH51: 449 | AI51: 330 | AJ51: 381 | AK51: 312 | AL51: 293 | AM51: 245 | AN51: 270 | AO51: 182 | AP51: 176 | AQ51: 151 | AR51: 98 | AS51: 84 | AT51: 41 | AU51: 39 | AV51: 10 | AW51: 2 | AX51: 2 | AY51: 0.4978315683 | AZ51: Cientos de personas
E52: 50 | F52: -22911 | G52: -2574 | H52: -2444 | I52: -2387 | J52: -2179 | K52: -2214 | L52: -1686 | M52: -1579 | N52: -1426 | O52: -1270 | P52: -1065 | Q52: -823 | R52: -686 | S52: -646 | T52: -672 | U52: -486 | V52: -371 | W52: -184 | X52: -133 | Y52: -67 | Z52: -19 | AA52: 0 | AB52: 0.4927838599 | AC52: 23582 | AD52: 2650 | AE52: 2408 | AF52: 2454 | AG52: 2160 | AH52: 2209 | AI52: 1754 | AJ52: 1593 | AK52: 1563 | AL52: 1456 | AM52: 1049 | AN52: 968 | AO52: 897 | AP52: 651 | AQ52: 619 | AR52: 424 | AS52: 259 | AT52: 222 | AU52: 156 | AV52: 54 | AW52: 23 | AX52: 13 | AY52: 0.5072161401 | AZ52: Miles de personas
E53: 51 | F53: -8961 | G53: -1058 | H53: -937 | I53: -860 | J53: -709 | K53: -877 | L53: -787 | M53: -782 | N53: -606 | O53: -535 | P53: -388 | Q53: -354 | R53: -275 | S53: -229 | T53: -218 | U53: -138 | V53: -94 | W53: -42 | X53: -43 | Y53: -19 | Z53: -10 | AA53: 0 | AB53: 0.4994148136 | AC53: 8982 | AD53: 1038 | AE53: 910 | AF53: 865 | AG53: 825 | AH53: 879 | AI53: 845 | AJ53: 695 | AK53: 607 | AL53: 547 | AM53: 416 | AN53: 358 | AO53: 295 | AP53: 228 | AQ53: 180 | AR53: 108 | AS53: 93 | AT53: 50 | AU53: 19 | AV53: 17 | AW53: 7 | AX53: 0 | AY53: 0.5005851864 | AZ53: Cientos de personas
E54: 52 | F54: -2770 | G54: -309 | H54: -267 | I54: -285 | J54: -232 | K54: -196 | L54: -180 | M54: -182 | N54: -137 | O54: -164 | P54: -133 | Q54: -148 | R54: -100 | S54: -99 | T54: -85 | U54: -79 | V54: -67 | W54: -54 | X54: -32 | Y54: -14 | Z54: -7 | AA54: 0 | AB54: 0.4913961327 | AC54: 2867 | AD54: 256 | AE54: 283 | AF54: 245 | AG54: 244 | AH54: 208 | AI54: 227 | AJ54: 206 | AK54: 150 | AL54: 177 | AM54: 153 | AN54: 120 | AO54: 140 | AP54: 110 | AQ54: 98 | AR54: 91 | AS54: 51 | AT54: 52 | AU54: 36 | AV54: 13 | AW54: 7 | AX54: 0 | AY54: 0.5086038673 | AZ54: Cientos de personas
E55: 53 | F55: -80539 | G55: -8911 | H55: -8522 | I55: -8187 | J55: -7888 | K55: -7819 | L55: -6283 | M55: -5870 | N55: -5182 | O55: -4406 | P55: -3651 | Q55: -3674 | R55: -2853 | S55: -2475 | T55: -1897 | U55: -1288 | V55: -777 | W55: -417 | X55: -277 | Y55: -99 | Z55: -50 | AA55: -13 | AB55: 0.4883608118 | AC55: 84378 | AD55: 8456 | AE55: 8304 | AF55: 8335 | AG55: 8068 | AH55: 7957 | AI55: 6749 | AJ55: 6343 | AK55: 5858 | AL55: 5201 | AM55: 3868 | AN55: 4253 | AO55: 3150 | AP55: 2300 | AQ55: 2082 | AR55: 1280 | AS55: 858 | AT55: 595 | AU55: 452 | AV55: 164 | AW55: 92 | AX55: 13 | AY55: 0.5116391882 | AZ55: Miles de personas
E56: 54 | F56: -2673 | G56: -199 | H56: -178 | I56: -228 | J56: -226 | K56: -186 | L56: -192 | M56: -151 | N56: -150 | O56: -144 | P56: -146 | Q56: -174 | R56: -114 | S56: -115 | T56: -124 | U56: -127 | V56: -106 | W56: -55 | X56: -40 | Y56: -15 | Z56: -3 | AA56: 0 | AB56: 0.4975800447 | AC56: 2699 | AD56: 175 | AE56: 196 | AF56: 221 | AG56: 193 | AH56: 172 | AI56: 171 | AJ56: 175 | AK56: 164 | AL56: 161 | AM56: 155 | AN56: 180 | AO56: 148 | AP56: 128 | AQ56: 142 | AR56: 107 | AS56: 81 | AT56: 56 | AU56: 37 | AV56: 29 | AW56: 8 | AX56: 0 | AY56: 0.5024199553 | AZ56: Cientos de personas
E57: 55 | F57: -11283 | G57: -1172 | H57: -1231 | I57: -1217 | J57: -1154 | K57: -1044 | L57: -756 | M57: -733 | N57: -605 | O57: -727 | P57: -535 | Q57: -444 | R57: -380 | S57: -355 | T57: -314 | U57: -249 | V57: -177 | W57: -87 | X57: -66 | Y57: -23 | Z57: -11 | AA57: -3 | AB57: 0.4984758118 | AC57: 11352 | AD57: 1239 | AE57: 1126 | AF57: 1115 | AG57: 1064 | AH57: 918 | AI57: 828 | AJ57: 712 | AK57: 704 | AL57: 739 | AM57: 609 | AN57: 525 | AO57: 482 | AP57: 340 | AQ57: 286 | AR57: 236 | AS57: 201 | AT57: 115 | AU57: 82 | AV57: 21 | AW57: 10 | AX57: 0 | AY57: 0.5015241882 | AZ57: Miles de personas
E58: 56 | F58: -1007 | G58: -71 | H58: -82 | I58: -116 | J58: -96 | K58: -71 | L58: -60 | M58: -43 | N58: -61 | O58: -64 | P58: -68 | Q58: -56 | R58: -39 | S58: -37 | T58: -32 | U58: -28 | V58: -32 | W58: -27 | X58: -19 | Y58: -3 | Z58: -2 | AA58: 0 | AB58: 0.4965483235 | AC58: 1021 | AD58: 83 | AE58: 80 | AF58: 104 | AG58: 93 | AH58: 77 | AI58: 46 | AJ58: 77 | AK58: 62 | AL58: 63 | AM58: 59 | AN58: 56 | AO58: 49 | AP58: 34 | AQ58: 29 | AR58: 40 | AS58: 32 | AT58: 19 | AU58: 13 | AV58: 3 | AW58: 0 | AX58: 2 | AY58: 0.5034516765 | AZ58: Cientos de personas
E59: 57 | F59: -1778 | G59: -157 | H59: -142 | I59: -141 | J59: -169 | K59: -139 | L59: -132 | M59: -106 | N59: -112 | O59: -103 | P59: -96 | Q59: -102 | R59: -73 | S59: -79 | T59: -63 | U59: -70 | V59: -51 | W59: -17 | X59: -17 | Y59: -6 | Z59: -3 | AA59: 0 | AB59: 0.4821041215 | AC59: 1910 | AD59: 159 | AE59: 138 | AF59: 174 | AG59: 161 | AH59: 154 | AI59: 171 | AJ59: 129 | AK59: 108 | AL59: 108 | AM59: 99 | AN59: 107 | AO59: 94 | AP59: 79 | AQ59: 64 | AR59: 59 | AS59: 47 | AT59: 26 | AU59: 23 | AV59: 5 | AW59: 4 | AX59: 1 | AY59: 0.5178958785 | AZ59: Cientos de personas
E60: 58 | F60: -7060 | G60: -568 | H60: -619 | I60: -611 | J60: -646 | K60: -588 | L60: -524 | M60: -406 | N60: -430 | O60: -449 | P60: -370 | Q60: -371 | R60: -313 | S60: -259 | T60: -242 | U60: -206 | V60: -206 | W60: -118 | X60: -87 | Y60: -38 | Z60: -6 | AA60: -3 | AB60: 0.487804878 | AC60: 7413 | AD60: 648 | AE60: 656 | AF60: 654 | AG60: 662 | AH60: 546 | AI60: 470 | AJ60: 472 | AK60: 528 | AL60: 439 | AM60: 421 | AN60: 403 | AO60: 335 | AP60: 285 | AQ60: 285 | AR60: 189 | AS60: 163 | AT60: 123 | AU60: 67 | AV60: 49 | AW60: 13 | AX60: 5 | AY60: 0.512195122 | AZ60: Cientos de personas
E61: 59 | F61: -6604 | G61: -682 | H61: -668 | I61: -735 | J61: -613 | K61: -537 | L61: -491 | M61: -425 | N61: -436 | O61: -406 | P61: -333 | Q61: -296 | R61: -274 | S61: -222 | T61: -184 | U61: -107 | V61: -82 | W61: -53 | X61: -36 | Y61: -16 | Z61: -6 | AA61: -2 | AB61: 0.4785854047 | AC61: 7195 | AD61: 699 | AE61: 714 | AF61: 700 | AG61: 640 | AH61: 576 | AI61: 586 | AJ61: 546 | AK61: 497 | AL61: 401 | AM61: 393 | AN61: 395 | AO61: 259 | AP61: 227 | AQ61: 172 | AR61: 147 | AS61: 89 | AT61: 80 | AU61: 45 | AV61: 12 | AW61: 17 | AX61: 0 | AY61: 0.5214145953 | AZ61: Cientos de personas
E62: 60 | F62: -2357 | G62: -221 | H62: -209 | I62: -223 | J62: -193 | K62: -142 | L62: -163 | M62: -137 | N62: -153 | O62: -143 | P62: -128 | Q62: -133 | R62: -102 | S62: -90 | T62: -89 | U62: -75 | V62: -66 | W62: -38 | X62: -30 | Y62: -16 | Z62: -6 | AA62: 0 | AB62: 0.4633379202 | AC62: 2730 | AD62: 231 | AE62: 200 | AF62: 195 | AG62: 210 | AH62: 173 | AI62: 190 | AJ62: 158 | AK62: 162 | AL62: 196 | AM62: 160 | AN62: 197 | AO62: 116 | AP62: 123 | AQ62: 119 | AR62: 111 | AS62: 71 | AT62: 60 | AU62: 38 | AV62: 13 | AW62: 5 | AX62: 2 | AY62: 0.5366620798 | AZ62: Cientos de personas
E63: 61 | F63: -9320 | G63: -1570 | H63: -1251 | I63: -1145 | J63: -899 | K63: -729 | L63: -602 | M63: -521 | N63: -503 | O63: -414 | P63: -343 | Q63: -303 | R63: -244 | S63: -189 | T63: -174 | U63: -148 | V63: -108 | W63: -84 | X63: -45 | Y63: -26 | Z63: -17 | AA63: -5 | AB63: 0.4802143446 | AC63: 10088 | AD63: 1492 | AE63: 1298 | AF63: 1186 | AG63: 1065 | AH63: 867 | AI63: 685 | AJ63: 608 | AK63: 529 | AL63: 465 | AM63: 403 | AN63: 332 | AO63: 276 | AP63: 245 | AQ63: 189 | AR63: 147 | AS63: 122 | AT63: 88 | AU63: 50 | AV63: 29 | AW63: 3 | AX63: 9 | AY63: 0.5197856554 | AZ63: Miles de personas
E64: 62 | F64: -1768 | G64: -154 | H64: -146 | I64: -169 | J64: -187 | K64: -121 | L64: -120 | M64: -94 | N64: -108 | O64: -105 | P64: -116 | Q64: -91 | R64: -75 | S64: -59 | T64: -50 | U64: -62 | V64: -45 | W64: -35 | X64: -25 | Y64: -5 | Z64: -1 | AA64: 0 | AB64: 0.5014180374 | AC64: 1758 | AD64: 148 | AE64: 163 | AF64: 141 | AG64: 130 | AH64: 137 | AI64: 128 | AJ64: 107 | AK64: 122 | AL64: 112 | AM64: 97 | AN64: 94 | AO64: 69 | AP64: 56 | AQ64: 67 | AR64: 67 | AS64: 49 | AT64: 33 | AU64: 21 | AV64: 13 | AW64: 3 | AX64: 1 | AY64: 0.4985819626 | AZ64: Cientos de personas
E65: 63 | F65: -48524 | G65: -4376 | H65: -4666 | I65: -5094 | J65: -4907 | K65: -4772 | L65: -3360 | M65: -2956 | N65: -3380 | O65: -3506 | P65: -2624 | Q65: -2285 | R65: -1803 | S65: -1567 | T65: -1200 | U65: -823 | V65: -606 | W65: -331 | X65: -208 | Y65: -47 | Z65: -7 | AA65: -6 | AB65: 0.4879971841 | AC65: 50911 | AD65: 4321 | AE65: 4514 | AF65: 4902 | AG65: 4612 | AH65: 5164 | AI65: 3737 | AJ65: 3572 | AK65: 3716 | AL65: 3617 | AM65: 2963 | AN65: 2304 | AO65: 2076 | AP65: 1614 | AQ65: 1458 | AR65: 1028 | AS65: 579 | AT65: 362 | AU65: 216 | AV65: 124 | AW65: 16 | AX65: 16 | AY65: 0.5120028159 | AZ65: Miles de personas
E66: 64 | F66: -15620 | G66: -1696 | H66: -1830 | I66: -1927 | J66: -1756 | K66: -1423 | L66: -1097 | M66: -933 | N66: -954 | O66: -825 | P66: -673 | Q66: -519 | R66: -477 | S66: -393 | T66: -400 | U66: -271 | V66: -205 | W66: -119 | X66: -80 | Y66: -30 | Z66: -12 | AA66: 0 | AB66: 0.482873748 | AC66: 16728 | AD66: 1793 | AE66: 1819 | AF66: 1825 | AG66: 1704 | AH66: 1578 | AI66: 1376 | AJ66: 1076 | AK66: 1249 | AL66: 932 | AM66: 755 | AN66: 586 | AO66: 530 | AP66: 383 | AQ66: 391 | AR66: 306 | AS66: 188 | AT66: 125 | AU66: 61 | AV66: 39 | AW66: 9 | AX66: 3 | AY66: 0.517126252 | AZ66: Miles de personas
E67: 65 | F67: -5646 | G67: -524 | H67: -511 | I67: -513 | J67: -423 | K67: -417 | L67: -404 | M67: -342 | N67: -330 | O67: -352 | P67: -319 | Q67: -299 | R67: -236 | S67: -250 | T67: -201 | U67: -191 | V67: -139 | W67: -75 | X67: -77 | Y67: -24 | Z67: -13 | AA67: -6 | AB67: =(F67/(-F67+AC67)*-1) -> 0.5049186192 | AC67: 5536 | AD67: 483 | AE67: 418 | AF67: 478 | AG67: 453 | AH67: 455 | AI67: 386 | AJ67: 375 | AK67: 280 | AL67: 344 | AM67: 326 | AN67: 299 | AO67: 278 | AP67: 207 | AQ67: 238 | AR67: 186 | AS67: 128 | AT67: 88 | AU67: 77 | AV67: 27 | AW67: 5 | AX67: 5 | AY67: =(AC67/(-F67+AC67)) -> 0.4950813808 | AZ67: Cientos de personas
E68: 66 | F68: -25469 | G68: -3127 | H68: -3040 | I68: -2819 | J68: -2850 | K68: -2335 | L68: -1768 | M68: -1633 | N68: -1397 | O68: -1450 | P68: -1047 | Q68: -982 | R68: -858 | S68: -608 | T68: -547 | U68: -403 | V68: -270 | W68: -161 | X68: -114 | Y68: -39 | Z68: -13 | AA68: -8 | AB68: 0.4904486809 | AC68: 26461 | AD68: 3202 | AE68: 2968 | AF68: 3081 | AG68: 2603 | AH68: 2315 | AI68: 1918 | AJ68: 1726 | AK68: 1590 | AL68: 1490 | AM68: 1291 | AN68: 1089 | AO68: 882 | AP68: 675 | AQ68: 569 | AR68: 360 | AS68: 286 | AT68: 205 | AU68: 145 | AV68: 39 | AW68: 20 | AX68: 7 | AY68: 0.5095513191 | AZ68: Miles de personas
E69: 67 | F69: -137779 | G69: -11543 | H69: -13468 | I69: -13373 | J69: -13596 | K69: -12158 | L69: -11976 | M69: -10721 | N69: -10507 | O69: -9922 | P69: -7966 | Q69: -6675 | R69: -5116 | S69: -3836 | T69: -2985 | U69: -2022 | V69: -1165 | W69: -454 | X69: -131 | Y69: -103 | Z69: -55 | AA69: -7 | AB69: 0.4998639495 | AC69: 137854 | AD69: 11357 | AE69: 12134 | AF69: 12140 | AG69: 12641 | AH69: 12331 | AI69: 12283 | AJ69: 12154 | AK69: 11589 | AL69: 9574 | AM69: 7947 | AN69: 6614 | AO69: 5634 | AP69: 4264 | AQ69: 3066 | AR69: 1888 | AS69: 1192 | AT69: 460 | AU69: 359 | AV69: 148 | AW69: 79 | AX69: 0 | AY69: 0.5001360505 | AZ69: Miles de personas
E70: 68 | F70: -5557 | G70: -549 | H70: -498 | I70: -592 | J70: -474 | K70: -405 | L70: -337 | M70: -330 | N70: -285 | O70: -307 | P70: -259 | Q70: -269 | R70: -270 | S70: -187 | T70: -249 | U70: -187 | V70: -160 | W70: -105 | X70: -65 | Y70: -17 | Z70: -4 | AA70: -8 | AB70: 0.5192002242 | AC70: 5146 | AD70: 446 | AE70: 516 | AF70: 453 | AG70: 485 | AH70: 426 | AI70: 352 | AJ70: 251 | AK70: 332 | AL70: 269 | AM70: 247 | AN70: 292 | AO70: 210 | AP70: 200 | AQ70: 201 | AR70: 169 | AS70: 126 | AT70: 79 | AU70: 50 | AV70: 29 | AW70: 11 | AX70: 2 | AY70: 0.4807997758 | AZ70: Cientos de personas
E71: 69 | F71: -4017 | G71: -368 | H71: -306 | I71: -389 | J71: -348 | K71: -286 | L71: -243 | M71: -210 | N71: -264 | O71: -256 | P71: -196 | Q71: -188 | R71: -183 | S71: -167 | T71: -170 | U71: -164 | V71: -114 | W71: -96 | X71: -43 | Y71: -12 | Z71: -10 | AA71: -4 | AB71: 0.4795272771 | AC71: 4360 | AD71: 317 | AE71: 315 | AF71: 322 | AG71: 437 | AH71: 310 | AI71: 287 | AJ71: 296 | AK71: 296 | AL71: 237 | AM71: 210 | AN71: 237 | AO71: 235 | AP71: 203 | AQ71: 208 | AR71: 172 | AS71: 112 | AT71: 86 | AU71: 50 | AV71: 22 | AW71: 8 | AX71: 0 | AY71: 0.5204727229 | AZ71: Cientos de personas
E72: 70 | F72: -91175 | G72: -10001 | H72: -10018 | I72: -9926 | J72: -9584 | K72: -8415 | L72: -6889 | M72: -6843 | N72: -6582 | O72: -6257 | P72: -4327 | Q72: -3955 | R72: -2807 | S72: -2032 | T72: -1336 | U72: -940 | V72: -764 | W72: -268 | X72: -128 | Y72: -93 | Z72: -10 | AA72: 0 | AB72: 0.4973299369 | AC72: 92154 | AD72: 9929 | AE72: 10286 | AF72: 10197 | AG72: 8753 | AH72: 8668 | AI72: 6755 | AJ72: 7630 | AK72: 7228 | AL72: 5976 | AM72: 4494 | AN72: 4195 | AO72: 2738 | AP72: 1972 | AQ72: 1320 | AR72: 823 | AS72: 560 | AT72: 405 | AU72: 163 | AV72: 33 | AW72: 20 | AX72: 9 | AY72: 0.5026700631 | AZ72: Miles de personas
E73: 71 | F73: -1558 | G73: -164 | H73: -143 | I73: -153 | J73: -139 | K73: -117 | L73: -115 | M73: -81 | N73: -83 | O73: -104 | P73: -74 | Q73: -76 | R73: -74 | S73: -54 | T73: -58 | U73: -42 | V73: -29 | W73: -31 | X73: -15 | Y73: -5 | Z73: -1 | AA73: 0 | AB73: 0.5001605136 | AC73: 1557 | AD73: 156 | AE73: 124 | AF73: 134 | AG73: 141 | AH73: 129 | AI73: 119 | AJ73: 92 | AK73: 99 | AL73: 83 | AM73: 92 | AN73: 87 | AO73: 70 | AP73: 52 | AQ73: 66 | AR73: 43 | AS73: 31 | AT73: 24 | AU73: 7 | AV73: 7 | AW73: 1 | AX73: 0 | AY73: 0.4998394864 | AZ73: Cientos de personas
E74: 72 | F74: -3539 | G74: -377 | H74: -358 | I74: -401 | J74: -348 | K74: -310 | L74: -241 | M74: -266 | N74: -220 | O74: -240 | P74: -152 | Q74: -126 | R74: -94 | S74: -119 | T74: -94 | U74: -67 | V74: -47 | W74: -34 | X74: -25 | Y74: -15 | Z74: -2 | AA74: -3 | AB74: 0.4815621173 | AC74: 3810 | AD74: 373 | AE74: 424 | AF74: 411 | AG74: 336 | AH74: 336 | AI74: 250 | AJ74: 312 | AK74: 271 | AL74: 225 | AM74: 153 | AN74: 149 | AO74: 140 | AP74: 117 | AQ74: 115 | AR74: 72 | AS74: 54 | AT74: 37 | AU74: 19 | AV74: 13 | AW74: 3 | AX74: 0 | AY74: 0.5184378827 | AZ74: Cientos de personas
E75: 73 | F75: -34523 | G75: -3595 | H75: -3625 | I75: -3617 | J75: -3435 | K75: -3260 | L75: -2631 | M75: -2584 | N75: -2369 | O75: -2159 | P75: -1743 | Q75: -1420 | R75: -1119 | S75: -986 | T75: -745 | U75: -551 | V75: -325 | W75: -191 | X75: -87 | Y75: -39 | Z75: -32 | AA75: -10 | AB75: 0.4952018934 | AC75: 35192 | AD75: 3461 | AE75: 3509 | AF75: 3519 | AG75: 3242 | AH75: 3177 | AI75: 2917 | AJ75: 2750 | AK75: 2435 | AL75: 2410 | AM75: 1742 | AN75: 1508 | AO75: 1349 | AP75: 1052 | AQ75: 796 | AR75: 558 | AS75: 312 | AT75: 251 | AU75: 75 | AV75: 105 | AW75: 19 | AX75: 5 | AY75: 0.5047981066 | AZ75: Miles de personas
E76: 74 | F76: -7518 | G76: -753 | H76: -740 | I76: -708 | J76: -647 | K76: -582 | L76: -616 | M76: -558 | N76: -499 | O76: -483 | P76: -387 | Q76: -336 | R76: -317 | S76: -253 | T76: -238 | U76: -171 | V76: -90 | W76: -70 | X76: -39 | Y76: -10 | Z76: -18 | AA76: -3 | AB76: 0.473246884 | AC76: 8368 | AD76: 848 | AE76: 706 | AF76: 714 | AG76: 689 | AH76: 739 | AI76: 701 | AJ76: 679 | AK76: 529 | AL76: 561 | AM76: 461 | AN76: 445 | AO76: 306 | AP76: 311 | AQ76: 228 | AR76: 179 | AS76: 123 | AT76: 78 | AU76: 49 | AV76: 12 | AW76: 6 | AX76: 4 | AY76: 0.526753116 | AZ76: Cientos de personas
E77: 75 | F77: -1882 | G77: -182 | H77: -180 | I77: -206 | J77: -187 | K77: -130 | L77: -122 | M77: -101 | N77: -124 | O77: -112 | P77: -87 | Q77: -91 | R77: -72 | S77: -69 | T77: -56 | U77: -58 | V77: -41 | W77: -36 | X77: -19 | Y77: -5 | Z77: -4 | AA77: 0 | AB77: 0.4976203067 | AC77: 1900 | AD77: 172 | AE77: 162 | AF77: 205 | AG77: 182 | AH77: 141 | AI77: 122 | AJ77: 110 | AK77: 143 | AL77: 124 | AM77: 102 | AN77: 107 | AO77: 81 | AP77: 63 | AQ77: 56 | AR77: 54 | AS77: 23 | AT77: 27 | AU77: 18 | AV77: 5 | AW77: 3 | AX77: 0 | AY77: 0.5023796933 | AZ77: Cientos de personas
E78: 76 | F78: -1547 | G78: -162 | H78: -138 | I78: -143 | J78: -153 | K78: -151 | L78: -110 | M78: -85 | N78: -85 | O78: -90 | P78: -99 | Q78: -66 | R78: -49 | S78: -51 | T78: -42 | U78: -52 | V78: -30 | W78: -24 | X78: -9 | Y78: -5 | Z78: -1 | AA78: -2 | AB78: 0.4956744633 | AC78: 1574 | AD78: 174 | AE78: 137 | AF78: 146 | AG78: 138 | AH78: 150 | AI78: 123 | AJ78: 98 | AK78: 82 | AL78: 83 | AM78: 81 | AN78: 50 | AO78: 60 | AP78: 65 | AQ78: 47 | AR78: 44 | AS78: 36 | AT78: 29 | AU78: 16 | AV78: 14 | AW78: 1 | AX78: 0 | AY78: 0.5043255367 | AZ78: Cientos de personas
E79: 77 | F79: -13546 | G79: -1268 | H79: -1215 | I79: -1275 | J79: -1170 | K79: -1005 | L79: -878 | M79: -842 | N79: -860 | O79: -926 | P79: -641 | Q79: -629 | R79: -616 | S79: -513 | T79: -514 | U79: -453 | V79: -343 | W79: -189 | X79: -136 | Y79: -57 | Z79: -16 | AA79: 0 | AB79: 0.4879155711 | AC79: 14217 | AD79: 1256 | AE79: 1224 | AF79: 1305 | AG79: 1121 | AH79: 1089 | AI79: 948 | AJ79: 937 | AK79: 1019 | AL79: 841 | AM79: 730 | AN79: 724 | AO79: 671 | AP79: 616 | AQ79: 462 | AR79: 449 | AS79: 316 | AT79: 238 | AU79: 138 | AV79: 99 | AW79: 34 | AX79: 0 | AY79: 0.5120844289 | AZ79: Miles de personas
E80: 78 | F80: -16090 | G80: -1654 | H80: -1542 | I80: -1688 | J80: -1641 | K80: -1364 | L80: -1202 | M80: -1094 | N80: -921 | O80: -916 | P80: -810 | Q80: -776 | R80: -659 | S80: -477 | T80: -465 | U80: -390 | V80: -232 | W80: -143 | X80: -85 | Y80: -22 | Z80: -9 | AA80: 0 | AB80: 0.4885380295 | AC80: 16845 | AD80: 1386 | AE80: 1557 | AF80: 1582 | AG80: 1559 | AH80: 1517 | AI80: 1407 | AJ80: 1238 | AK80: 1061 | AL80: 958 | AM80: 939 | AN80: 911 | AO80: 725 | AP80: 594 | AQ80: 478 | AR80: 385 | AS80: 241 | AT80: 200 | AU80: 80 | AV80: 24 | AW80: 3 | AX80: 0 | AY80: 0.5114619705 | AZ80: Miles de personas
E81: 79 | F81: -6810 | G81: -683 | H81: -695 | I81: -645 | J81: -602 | K81: -641 | L81: -552 | M81: -506 | N81: -491 | O81: -420 | P81: -308 | Q81: -297 | R81: -247 | S81: -210 | T81: -167 | U81: -139 | V81: -90 | W81: -42 | X81: -50 | Y81: -18 | Z81: -7 | AA81: 0 | AB81: 0.4769575571 | AC81: 7468 | AD81: 695 | AE81: 659 | AF81: 721 | AG81: 616 | AH81: 730 | AI81: 675 | AJ81: 548 | AK81: 529 | AL81: 478 | AM81: 363 | AN81: 329 | AO81: 279 | AP81: 239 | AQ81: 199 | AR81: 151 | AS81: 98 | AT81: 67 | AU81: 58 | AV81: 26 | AW81: 6 | AX81: 2 | AY81: 0.5230424429 | AZ81: Cientos de personas
E82: 80 | F82: -2952 | G82: -198 | H82: -218 | I82: -270 | J82: -255 | K82: -228 | L82: -188 | M82: -161 | N82: -161 | O82: -181 | P82: -187 | Q82: -174 | R82: -152 | S82: -108 | T82: -137 | U82: -109 | V82: -107 | W82: -45 | X82: -39 | Y82: -28 | Z82: -6 | AA82: 0 | AB82: 0.5231259968 | AC82: 2691 | AD82: 237 | AE82: 239 | AF82: 223 | AG82: 199 | AH82: 183 | AI82: 188 | AJ82: 151 | AK82: 144 | AL82: 170 | AM82: 172 | AN82: 160 | AO82: 136 | AP82: 110 | AQ82: 98 | AR82: 108 | AS82: 82 | AT82: 50 | AU82: 20 | AV82: 13 | AW82: 7 | AX82: 1 | AY82: 0.4768740032 | AZ82: Cientos de personas
E83: 81 | F83: -1451 | G83: -122 | H83: -129 | I83: -124 | J83: -139 | K83: -119 | L83: -65 | M83: -69 | N83: -69 | O83: -103 | P83: -68 | Q83: -84 | R83: -49 | S83: -56 | T83: -53 | U83: -67 | V83: -53 | W83: -39 | X83: -29 | Y83: -9 | Z83: -4 | AA83: -1 | AB83: 0.4784042202 | AC83: 1582 | AD83: 126 | AE83: 119 | AF83: 140 | AG83: 139 | AH83: 108 | AI83: 83 | AJ83: 95 | AK83: 107 | AL83: 90 | AM83: 82 | AN83: 80 | AO83: 76 | AP83: 56 | AQ83: 67 | AR83: 77 | AS83: 51 | AT83: 41 | AU83: 24 | AV83: 14 | AW83: 7 | AX83: 0 | AY83: 0.5215957798 | AZ83: Cientos de personas
E84: 82 | F84: -17606 | G84: -1780 | H84: -1819 | I84: -1798 | J84: -1666 | K84: -1349 | L84: -1301 | M84: -1342 | N84: -1110 | O84: -1206 | P84: -931 | Q84: -800 | R84: -616 | S84: -548 | T84: -448 | U84: -375 | V84: -208 | W84: -160 | X84: -111 | Y84: -26 | Z84: -9 | AA84: -3 | AB84: 0.4787100984 | AC84: 19172 | AD84: 1911 | AE84: 1905 | AF84: 1666 | AG84: 1658 | AH84: 1522 | AI84: 1464 | AJ84: 1442 | AK84: 1448 | AL84: 1344 | AM84: 982 | AN84: 864 | AO84: 852 | AP84: 623 | AQ84: 412 | AR84: 411 | AS84: 271 | AT84: 185 | AU84: 126 | AV84: 65 | AW84: 18 | AX84: 3 | AY84: 0.5212899016 | AZ84: Miles de personas
E85: 83 | F85: -39521 | G85: -3925 | H85: -4295 | I85: -4309 | J85: -3815 | K85: -3310 | L85: -2747 | M85: -3012 | N85: -2691 | O85: -2891 | P85: -2048 | Q85: -1553 | R85: -1412 | S85: -1125 | T85: -815 | U85: -643 | V85: -472 | W85: -243 | X85: -128 | Y85: -58 | Z85: -23 | AA85: -6 | AB85: 0.4918789749 | AC85: 40826 | AD85: 3486 | AE85: 4399 | AF85: 4366 | AG85: 3698 | AH85: 3178 | AI85: 3360 | AJ85: 3463 | AK85: 3025 | AL85: 2959 | AM85: 2157 | AN85: 1759 | AO85: 1450 | AP85: 1043 | AQ85: 935 | AR85: 682 | AS85: 339 | AT85: 318 | AU85: 158 | AV85: 40 | AW85: 11 | AX85: 0 | AY85: 0.5081210251 | AZ85: Miles de personas
E86: 84 | F86: -7612 | G86: -648 | H86: -773 | I86: -733 | J86: -781 | K86: -675 | L86: -538 | M86: -423 | N86: -469 | O86: -382 | P86: -383 | Q86: -403 | R86: -292 | S86: -268 | T86: -248 | U86: -219 | V86: -167 | W86: -102 | X86: -71 | Y86: -31 | Z86: -6 | AA86: 0 | AB86: 0.5034058594 | AC86: 7509 | AD86: 630 | AE86: 711 | AF86: 674 | AG86: 716 | AH86: 511 | AI86: 573 | AJ86: 512 | AK86: 445 | AL86: 466 | AM86: 422 | AN86: 381 | AO86: 342 | AP86: 252 | AQ86: 246 | AR86: 230 | AS86: 177 | AT86: 125 | AU86: 38 | AV86: 44 | AW86: 14 | AX86: 0 | AY86: 0.4965941406 | AZ86: Cientos de personas
E87: 85 | F87: -18692 | G87: -1717 | H87: -1557 | I87: -1699 | J87: -1774 | K87: -1481 | L87: -1324 | M87: -1242 | N87: -1109 | O87: -1247 | P87: -938 | Q87: -1038 | R87: -759 | S87: -760 | T87: -650 | U87: -642 | V87: -350 | W87: -192 | X87: -121 | Y87: -65 | Z87: -19 | AA87: -8 | AB87: 0.4868215439 | AC87: 19704 | AD87: 1587 | AE87: 1554 | AF87: 1818 | AG87: 1499 | AH87: 1477 | AI87: 1454 | AJ87: 1354 | AK87: 1314 | AL87: 1272 | AM87: 1143 | AN87: 1063 | AO87: 956 | AP87: 865 | AQ87: 730 | AR87: 533 | AS87: 494 | AT87: 313 | AU87: 159 | AV87: 91 | AW87: 25 | AX87: 3 | AY87: 0.5131784561 | AZ87: Miles de personas
E88: 86 | F88: -9463 | G88: -1227 | H88: -1120 | I88: -1031 | J88: -883 | K88: -837 | L88: -693 | M88: -666 | N88: -622 | O88: -525 | P88: -371 | Q88: -387 | R88: -291 | S88: -231 | T88: -228 | U88: -142 | V88: -87 | W88: -63 | X88: -41 | Y88: -18 | Z88: 0 | AA88: 0 | AB88: 0.4860048277 | AC88: 10008 | AD88: 1090 | AE88: 1028 | AF88: 995 | AG88: 997 | AH88: 880 | AI88: 863 | AJ88: 759 | AK88: 690 | AL88: 597 | AM88: 460 | AN88: 425 | AO88: 332 | AP88: 260 | AQ88: 201 | AR88: 167 | AS88: 105 | AT88: 80 | AU88: 62 | AV88: 13 | AW88: 4 | AX88: 0 | AY88: 0.5139951723 | AZ88: Miles de personas
E89: 87 | F89: -8096 | G89: -805 | H89: -772 | I89: -821 | J89: -787 | K89: -636 | L89: -595 | M89: -490 | N89: -466 | O89: -435 | P89: -425 | Q89: -397 | R89: -290 | S89: -277 | T89: -293 | U89: -244 | V89: -151 | W89: -117 | X89: -63 | Y89: -25 | Z89: -7 | AA89: 0 | AB89: 0.4883286085 | AC89: 8483 | AD89: 738 | AE89: 760 | AF89: 729 | AG89: 790 | AH89: 714 | AI89: 702 | AJ89: 517 | AK89: 565 | AL89: 427 | AM89: 451 | AN89: 411 | AO89: 392 | AP89: 288 | AQ89: 346 | AR89: 247 | AS89: 169 | AT89: 111 | AU89: 63 | AV89: 43 | AW89: 20 | AX89: 0 | AY89: 0.5116713915 | AZ89: Cientos de personas
E90: 88 | F90: -8539 | G90: -783 | H90: -883 | I90: -866 | J90: -736 | K90: -628 | L90: -540 | M90: -535 | N90: -569 | O90: -576 | P90: -421 | Q90: -420 | R90: -351 | S90: -284 | T90: -279 | U90: -241 | V90: -187 | W90: -110 | X90: -81 | Y90: -39 | Z90: -4 | AA90: -6 | AB90: 0.4948136988 | AC90: 8718 | AD90: 869 | AE90: 757 | AF90: 768 | AG90: 763 | AH90: 633 | AI90: 708 | AJ90: 550 | AK90: 643 | AL90: 529 | AM90: 488 | AN90: 427 | AO90: 341 | AP90: 288 | AQ90: 299 | AR90: 250 | AS90: 156 | AT90: 101 | AU90: 70 | AV90: 53 | AW90: 15 | AX90: 10 | AY90: 0.5051863012 | AZ90: Cientos de personas
E91: 89 | F91: -1827 | G91: -194 | H91: -180 | I91: -153 | J91: -146 | K91: -163 | L91: -143 | M91: -130 | N91: -111 | O91: -112 | P91: -82 | Q91: -76 | R91: -68 | S91: -51 | T91: -59 | U91: -53 | V91: -41 | W91: -33 | X91: -19 | Y91: -9 | Z91: -4 | AA91: 0 | AB91: 0.4933837429 | AC91: 1876 | AD91: 158 | AE91: 175 | AF91: 164 | AG91: 156 | AH91: 172 | AI91: 135 | AJ91: 133 | AK91: 121 | AL91: 119 | AM91: 78 | AN91: 85 | AO91: 89 | AP91: 79 | AQ91: 55 | AR91: 63 | AS91: 40 | AT91: 30 | AU91: 12 | AV91: 11 | AW91: 0 | AX91: 1 | AY91: 0.5066162571 | AZ91: Cientos de personas
E92: 90 | F92: -3501 | G92: -300 | H92: -335 | I92: -347 | J92: -309 | K92: -223 | L92: -246 | M92: -186 | N92: -206 | O92: -226 | P92: -226 | Q92: -169 | R92: -132 | S92: -119 | T92: -137 | U92: -121 | V92: -79 | W92: -76 | X92: -34 | Y92: -25 | Z92: -5 | AA92: 0 | AB92: 0.499928602 | AC92: 3502 | AD92: 288 | AE92: 309 | AF92: 296 | AG92: 289 | AH92: 276 | AI92: 231 | AJ92: 220 | AK92: 192 | AL92: 223 | AM92: 231 | AN92: 181 | AO92: 140 | AP92: 160 | AQ92: 118 | AR92: 112 | AS92: 98 | AT92: 54 | AU92: 58 | AV92: 17 | AW92: 7 | AX92: 2 | AY92: 0.500071398 | AZ92: Cientos de personas
E93: 91 | F93: -19823 | G93: -1998 | H93: -2180 | I93: -2134 | J93: -1854 | K93: -1553 | L93: -1344 | M93: -1250 | N93: -1320 | O93: -1301 | P93: -1008 | Q93: -772 | R93: -667 | S93: -631 | T93: -569 | U93: -512 | V93: -345 | W93: -221 | X93: -88 | Y93: -54 | Z93: -22 | AA93: 0 | AB93: 0.4803596094 | AC93: 21444 | AD93: 1911 | AE93: 2025 | AF93: 2188 | AG93: 1880 | AH93: 1698 | AI93: 1623 | AJ93: 1397 | AK93: 1542 | AL93: 1319 | AM93: 1070 | AN93: 1059 | AO93: 843 | AP93: 787 | AQ93: 728 | AR93: 558 | AS93: 385 | AT93: 224 | AU93: 132 | AV93: 40 | AW93: 27 | AX93: 8 | AY93: 0.5196403906 | AZ93: Miles de personas
E94: 92 | F94: -5054 | G94: -414 | H94: -438 | I94: -466 | J94: -442 | K94: -362 | L94: -333 | M94: -289 | N94: -312 | O94: -346 | P94: -283 | Q94: -254 | R94: -250 | S94: -177 | T94: -211 | U94: -158 | V94: -118 | W94: -89 | X94: -69 | Y94: -34 | Z94: -7 | AA94: -2 | AB94: 0.4898710866 | AC94: 5263 | AD94: 457 | AE94: 442 | AF94: 464 | AG94: 377 | AH94: 341 | AI94: 367 | AJ94: 347 | AK94: 366 | AL94: 321 | AM94: 294 | AN94: 279 | AO94: 252 | AP94: 239 | AQ94: 191 | AR94: 156 | AS94: 151 | AT94: 113 | AU94: 48 | AV94: 41 | AW94: 15 | AX94: 2 | AY94: 0.5101289134 | AZ94: Cientos de personas
E95: 93 | F95: -69100 | G95: -6681 | H95: -7010 | I95: -7311 | J95: -6463 | K95: -6209 | L95: -6006 | M95: -4774 | N95: -4377 | O95: -4436 | P95: -3684 | Q95: -3131 | R95: -2177 | S95: -2238 | T95: -1622 | U95: -1154 | V95: -768 | W95: -616 | X95: -269 | Y95: -164 | Z95: -10 | AA95: 0 | AB95: 0.4889543029 | AC95: 72222 | AD95: 6752 | AE95: 6712 | AF95: 7275 | AG95: 6486 | AH95: 6819 | AI95: 6027 | AJ95: 5278 | AK95: 4748 | AL95: 4546 | AM95: 3970 | AN95: 3325 | AO95: 2517 | AP95: 2641 | AQ95: 1717 | AR95: 1215 | AS95: 962 | AT95: 641 | AU95: 314 | AV95: 166 | AW95: 95 | AX95: 16 | AY95: 0.5110456971 | AZ95: Miles de personas
E96: 94 | F96: -20648 | G96: -2121 | H96: -2175 | I96: -2463 | J96: -2146 | K96: -1831 | L96: -1571 | M96: -1320 | N96: -1253 | O96: -1291 | P96: -902 | Q96: -924 | R96: -713 | S96: -575 | T96: -467 | U96: -346 | V96: -253 | W96: -141 | X96: -101 | Y96: -38 | Z96: -12 | AA96: -5 | AB96: 0.4917829753 | AC96: 21338 | AD96: 2182 | AE96: 2217 | AF96: 2242 | AG96: 2137 | AH96: 1870 | AI96: 1558 | AJ96: 1515 | AK96: 1427 | AL96: 1211 | AM96: 1181 | AN96: 997 | AO96: 761 | AP96: 601 | AQ96: 498 | AR96: 339 | AS96: 301 | AT96: 153 | AU96: 92 | AV96: 31 | AW96: 21 | AX96: 4 | AY96: 0.5082170247 | AZ96: Miles de personas
E97: 95 | F97: -4705 | G97: -435 | H97: -416 | I97: -449 | J97: -368 | K97: -441 | L97: -254 | M97: -328 | N97: -344 | O97: -310 | P97: -230 | Q97: -215 | R97: -189 | S97: -167 | T97: -197 | U97: -141 | V97: -86 | W97: -75 | X97: -33 | Y97: -22 | Z97: -5 | AA97: 0 | AB97: 0.4896960866 | AC97: 4903 | AD97: 404 | AE97: 438 | AF97: 464 | AG97: 472 | AH97: 381 | AI97: 312 | AJ97: 346 | AK97: 310 | AL97: 349 | AM97: 287 | AN97: 218 | AO97: 210 | AP97: 184 | AQ97: 195 | AR97: 103 | AS97: 117 | AT97: 64 | AU97: 33 | AV97: 9 | AW97: 7 | AX97: 0 | AY97: 0.5103039134 | AZ97: Cientos de personas
E98: 96 | F98: -10165 | G98: -1095 | H98: -1037 | I98: -1054 | J98: -923 | K98: -829 | L98: -641 | M98: -620 | N98: -641 | O98: -644 | P98: -510 | Q98: -476 | R98: -382 | S98: -299 | T98: -312 | U98: -247 | V98: -198 | W98: -130 | X98: -85 | Y98: -26 | Z98: -16 | AA98: 0 | AB98: 0.4849482372 | AC98: 10796 | AD98: 1062 | AE98: 1114 | AF98: 984 | AG98: 977 | AH98: 838 | AI98: 785 | AJ98: 724 | AK98: 744 | AL98: 686 | AM98: 562 | AN98: 488 | AO98: 449 | AP98: 320 | AQ98: 306 | AR98: 275 | AS98: 190 | AT98: 117 | AU98: 90 | AV98: 59 | AW98: 23 | AX98: 3 | AY98: 0.5150517628 | AZ98: Miles de personas
E99: 97 | F99: -269565 | G99: -30346 | H99: -32483 | I99: -30585 | J99: -24477 | K99: -20803 | L99: -19441 | M99: -23755 | N99: -24498 | O99: -21514 | P99: -12683 | Q99: -10376 | R99: -5691 | S99: -4966 | T99: -3466 | U99: -2157 | V99: -1273 | W99: -603 | X99: -299 | Y99: -118 | Z99: -31 | AA99: 0 | AB99: 0.4908196077 | AC99: 279649 | AD99: 31640 | AE99: 31536 | AF99: 29541 | AG99: 24141 | AH99: 22056 | AI99: 23309 | AJ99: 27478 | AK99: 24948 | AL99: 21308 | AM99: 13226 | AN99: 9676 | AO99: 7360 | AP99: 5277 | AQ99: 3313 | AR99: 2130 | AS99: 1281 | AT99: 869 | AU99: 364 | AV99: 139 | AW99: 37 | AX99: 20 | AY99: 0.5091803923 | AZ99: Miles de personas | BC99: =+AY99*100 -> 50.91803923
E100: 98 | F100: -328673 | G100: -32110 | H100: -33201 | I100: -32403 | J100: -32740 | K100: -30755 | L100: -26982 | M100: -25512 | N100: -23781 | O100: -23872 | P100: -16793 | Q100: -14278 | R100: -11179 | S100: -8622 | T100: -6421 | U100: -4257 | V100: -2604 | W100: -1785 | X100: -935 | Y100: -370 | Z100: -57 | AA100: -16 | AB100: 0.4950379179 | AC100: 335262 | AD100: 29503 | AE100: 31962 | AF100: 32680 | AG100: 30946 | AH100: 29662 | AI100: 26606 | AJ100: 26556 | AK100: 25774 | AL100: 23616 | AM100: 18917 | AN100: 16609 | AO100: 12889 | AP100: 9393 | AQ100: 7013 | AR100: 5471 | AS100: 3479 | AT100: 2196 | AU100: 1283 | AV100: 480 | AW100: 204 | AX100: 23 | AY100: 0.5049620821 | AZ100: Miles de personas
E101: 99 | F101: -5120 | G101: -585 | H101: -491 | I101: -489 | J101: -496 | K101: -437 | L101: -352 | M101: -315 | N101: -277 | O101: -245 | P101: -246 | Q101: -236 | R101: -227 | S101: -174 | T101: -167 | U101: -141 | V101: -107 | W101: -74 | X101: -37 | Y101: -13 | Z101: -11 | AA101: 0 | AB101: 0.4970391224 | AC101: 5181 | AD101: 520 | AE101: 425 | AF101: 487 | AG101: 509 | AH101: 467 | AI101: 353 | AJ101: 355 | AK101: 299 | AL101: 296 | AM101: 271 | AN101: 242 | AO101: 214 | AP101: 183 | AQ101: 163 | AR101: 130 | AS101: 109 | AT101: 89 | AU101: 32 | AV101: 33 | AW101: 0 | AX101: 4 | AY101: 0.5029608776 | AZ101: Cientos de personas
E102: 100 | F102: -18215 | G102: -1787 | H102: -1851 | I102: -1785 | J102: -1764 | K102: -1381 | L102: -1344 | M102: -1200 | N102: -1173 | O102: -1079 | P102: -957 | Q102: -853 | R102: -790 | S102: -675 | T102: -546 | U102: -418 | V102: -306 | W102: -160 | X102: -96 | Y102: -35 | Z102: -11 | AA102: -4 | AB102: 0.5085006002 | AC102: 17606 | AD102: 1838 | AE102: 1851 | AF102: 1863 | AG102: 1649 | AH102: 1320 | AI102: 1281 | AJ102: 1168 | AK102: 1061 | AL102: 1093 | AM102: 918 | AN102: 882 | AO102: 629 | AP102: 635 | AQ102: 542 | AR102: 326 | AS102: 243 | AT102: 143 | AU102: 111 | AV102: 31 | AW102: 18 | AX102: 4 | AY102: 0.4914993998 | AZ102: Miles de personas
E103: 101 | F103: -262441 | G103: -28186 | H103: -27198 | I103: -27599 | J103: -25489 | K103: -25250 | L103: -20464 | M103: -20903 | N103: -17380 | O103: -18896 | P103: -15364 | Q103: -11703 | R103: -8069 | S103: -6050 | T103: -4054 | U103: -2389 | V103: -1888 | W103: -973 | X103: -393 | Y103: -154 | Z103: -12 | AA103: -27 | AB103: 0.4897639647 | AC103: 273411 | AD103: 28198 | AE103: 26297 | AF103: 29110 | AG103: 26225 | AH103: 24905 | AI103: 23613 | AJ103: 21458 | AK103: 19792 | AL103: 19136 | AM103: 15097 | AN103: 12008 | AO103: 9497 | AP103: 6868 | AQ103: 4689 | AR103: 2852 | AS103: 1685 | AT103: 1291 | AU103: 525 | AV103: 141 | AW103: 18 | AX103: 6 | AY103: 0.5102360353 | AZ103: Miles de personas
E104: 102 | F104: -2932 | G104: -298 | H104: -234 | I104: -236 | J104: -207 | K104: -224 | L104: -231 | M104: -256 | N104: -208 | O104: -163 | P104: -138 | Q104: -116 | R104: -122 | S104: -123 | T104: -84 | U104: -107 | V104: -78 | W104: -51 | X104: -35 | Y104: -13 | Z104: -4 | AA104: -4 | AB104: 0.4919463087 | AC104: 3028 | AD104: 241 | AE104: 281 | AF104: 238 | AG104: 197 | AH104: 223 | AI104: 263 | AJ104: 235 | AK104: 204 | AL104: 149 | AM104: 150 | AN104: 162 | AO104: 140 | AP104: 136 | AQ104: 116 | AR104: 108 | AS104: 72 | AT104: 46 | AU104: 39 | AV104: 13 | AW104: 5 | AX104: 10 | AY104: 0.5080536913 | AZ104: Cientos de personas
E105: 103 | F105: -3951 | G105: -342 | H105: -330 | I105: -378 | J105: -396 | K105: -340 | L105: -242 | M105: -216 | N105: -298 | O105: -242 | P105: -232 | Q105: -219 | R105: -192 | S105: -128 | T105: -129 | U105: -100 | V105: -83 | W105: -36 | X105: -36 | Y105: -8 | Z105: -3 | AA105: -1 | AB105: 0.4991787745 | AC105: 3964 | AD105: 316 | AE105: 330 | AF105: 360 | AG105: 367 | AH105: 302 | AI105: 267 | AJ105: 267 | AK105: 266 | AL105: 261 | AM105: 259 | AN105: 228 | AO105: 164 | AP105: 169 | AQ105: 143 | AR105: 97 | AS105: 79 | AT105: 36 | AU105: 24 | AV105: 16 | AW105: 13 | AX105: 0 | AY105: 0.5008212255 | AZ105: Cientos de personas
E106: 104 | F106: -2219 | G106: -209 | H106: -194 | I106: -189 | J106: -205 | K106: -176 | L106: -131 | M106: -114 | N106: -138 | O106: -140 | P106: -105 | Q106: -102 | R106: -96 | S106: -64 | T106: -97 | U106: -84 | V106: -64 | W106: -64 | X106: -33 | Y106: -11 | Z106: -3 | AA106: 0 | AB106: 0.5029465095 | AC106: 2193 | AD106: 182 | AE106: 153 | AF106: 163 | AG106: 146 | AH106: 171 | AI106: 144 | AJ106: 153 | AK106: 116 | AL106: 135 | AM106: 119 | AN106: 125 | AO106: 95 | AP106: 90 | AQ106: 88 | AR106: 98 | AS106: 82 | AT106: 82 | AU106: 34 | AV106: 12 | AW106: 5 | AX106: 0 | AY106: 0.4970534905 | AZ106: Cientos de personas
E107: 105 | F107: -11495 | G107: -1119 | H107: -1215 | I107: -1267 | J107: -1168 | K107: -866 | L107: -788 | M107: -733 | N107: -793 | O107: -791 | P107: -597 | Q107: -409 | R107: -391 | S107: -341 | T107: -341 | U107: -234 | V107: -190 | W107: -127 | X107: -76 | Y107: -34 | Z107: -15 | AA107: 0 | AB107: 0.4960942558 | AC107: 11676 | AD107: 1087 | AE107: 1141 | AF107: 1158 | AG107: 1011 | AH107: 920 | AI107: 843 | AJ107: 813 | AK107: 922 | AL107: 787 | AM107: 598 | AN107: 523 | AO107: 424 | AP107: 374 | AQ107: 349 | AR107: 295 | AS107: 191 | AT107: 115 | AU107: 72 | AV107: 42 | AW107: 8 | AX107: 3 | AY107: 0.5039057442 | AZ107: Miles de personas
E108: 106 | F108: -2146 | G108: -220 | H108: -211 | I108: -178 | J108: -169 | K108: -198 | L108: -170 | M108: -146 | N108: -139 | O108: -123 | P108: -80 | Q108: -82 | R108: -92 | S108: -67 | T108: -82 | U108: -74 | V108: -52 | W108: -29 | X108: -27 | Y108: -5 | Z108: -2 | AA108: 0 | AB108: 0.5079289941 | AC108: 2079 | AD108: 216 | AE108: 184 | AF108: 170 | AG108: 159 | AH108: 183 | AI108: 200 | AJ108: 155 | AK108: 107 | AL108: 106 | AM108: 98 | AN108: 80 | AO108: 91 | AP108: 76 | AQ108: 75 | AR108: 62 | AS108: 44 | AT108: 31 | AU108: 21 | AV108: 14 | AW108: 7 | AX108: 0 | AY108: 0.4920710059 | AZ108: Cientos de personas
E109: 107 | F109: -2946 | G109: -273 | H109: -356 | I109: -282 | J109: -261 | K109: -206 | L109: -223 | M109: -179 | N109: -194 | O109: -194 | P109: -115 | Q109: -122 | R109: -108 | S109: -107 | T109: -109 | U109: -78 | V109: -45 | W109: -47 | X109: -31 | Y109: -8 | Z109: -6 | AA109: -2 | AB109: 0.4785575049 | AC109: 3210 | AD109: 348 | AE109: 361 | AF109: 304 | AG109: 257 | AH109: 241 | AI109: 227 | AJ109: 217 | AK109: 210 | AL109: 177 | AM109: 139 | AN109: 130 | AO109: 165 | AP109: 105 | AQ109: 92 | AR109: 83 | AS109: 57 | AT109: 44 | AU109: 36 | AV109: 8 | AW109: 5 | AX109: 4 | AY109: 0.5214424951 | AZ109: Cientos de personas
E110: 108 | F110: -16758 | G110: -1689 | H110: -1892 | I110: -1640 | J110: -1528 | K110: -1388 | L110: -1275 | M110: -1135 | N110: -1091 | O110: -893 | P110: -918 | Q110: -757 | R110: -612 | S110: -606 | T110: -519 | U110: -318 | V110: -200 | W110: -145 | X110: -99 | Y110: -38 | Z110: -12 | AA110: -3 | AB110: 0.4853874004 | AC110: 17767 | AD110: 1574 | AE110: 1657 | AF110: 1644 | AG110: 1454 | AH110: 1550 | AI110: 1448 | AJ110: 1293 | AK110: 1229 | AL110: 1049 | AM110: 911 | AN110: 914 | AO110: 789 | AP110: 724 | AQ110: 513 | AR110: 369 | AS110: 269 | AT110: 205 | AU110: 100 | AV110: 57 | AW110: 15 | AX110: 3 | AY110: 0.5146125996 | AZ110: Miles de personas
E111: 109 | F111: -8661 | G111: -756 | H111: -953 | I111: -1042 | J111: -880 | K111: -730 | L111: -598 | M111: -648 | N111: -531 | O111: -531 | P111: -417 | Q111: -345 | R111: -282 | S111: -240 | T111: -220 | U111: -196 | V111: -96 | W111: -101 | X111: -48 | Y111: -33 | Z111: -12 | AA111: -2 | AB111: 0.4839088166 | AC111: 9237 | AD111: 886 | AE111: 853 | AF111: 881 | AG111: 857 | AH111: 846 | AI111: 762 | AJ111: 662 | AK111: 619 | AL111: 581 | AM111: 439 | AN111: 385 | AO111: 358 | AP111: 301 | AQ111: 275 | AR111: 185 | AS111: 136 | AT111: 108 | AU111: 59 | AV111: 31 | AW111: 11 | AX111: 2 | AY111: 0.5160911834 | AZ111: Miles de personas
E112: 110 | F112: -6490 | G112: -622 | H112: -634 | I112: -574 | J112: -562 | K112: -506 | L112: -408 | M112: -394 | N112: -346 | O112: -384 | P112: -370 | Q112: -312 | R112: -260 | S112: -242 | T112: -234 | U112: -214 | V112: -170 | W112: -120 | X112: -80 | Y112: -44 | Z112: -12 | AA112: -2 | AB112: 0.4829587736 | AC112: 6948 | AD112: 580 | AE112: 636 | AF112: 552 | AG112: 532 | AH112: 576 | AI112: 498 | AJ112: 478 | AK112: 406 | AL112: 466 | AM112: 370 | AN112: 384 | AO112: 366 | AP112: 246 | AQ112: 222 | AR112: 220 | AS112: 156 | AT112: 124 | AU112: 72 | AV112: 46 | AW112: 12 | AX112: 6 | AY112: 0.5170412264 | AZ112: Cientos de personas
E113: 111 | F113: -3421 | G113: -325 | H113: -363 | I113: -294 | J113: -345 | K113: -280 | L113: -290 | M113: -242 | N113: -204 | O113: -228 | P113: -168 | Q113: -163 | R113: -102 | S113: -93 | T113: -103 | U113: -76 | V113: -60 | W113: -55 | X113: -16 | Y113: -12 | Z113: -2 | AA113: 0 | AB113: 0.4940785673 | AC113: 3503 | AD113: 368 | AE113: 322 | AF113: 324 | AG113: 295 | AH113: 278 | AI113: 282 | AJ113: 222 | AK113: 230 | AL113: 237 | AM113: 196 | AN113: 165 | AO113: 140 | AP113: 128 | AQ113: 93 | AR113: 89 | AS113: 53 | AT113: 46 | AU113: 23 | AV113: 12 | AW113: 0 | AX113: 0 | AY113: 0.5059214327 | AZ113: Cientos de personas
E114: 112 | F114: -2628 | G114: -257 | H114: -237 | I114: -246 | J114: -250 | K114: -189 | L114: -152 | M114: -160 | N114: -134 | O114: -170 | P114: -137 | Q114: -137 | R114: -112 | S114: -125 | T114: -100 | U114: -83 | V114: -66 | W114: -33 | X114: -23 | Y114: -17 | Z114: 0 | AA114: 0 | AB114: 0.4878410989 | AC114: 2759 | AD114: 191 | AE114: 236 | AF114: 229 | AG114: 207 | AH114: 205 | AI114: 210 | AJ114: 159 | AK114: 204 | AL114: 183 | AM114: 158 | AN114: 158 | AO114: 137 | AP114: 131 | AQ114: 120 | AR114: 77 | AS114: 70 | AT114: 41 | AU114: 27 | AV114: 10 | AW114: 5 | AX114: 1 | AY114: 0.5121589011 | AZ114: Cientos de personas
E115: 113 | F115: -7833 | G115: -822 | H115: -784 | I115: -723 | J115: -635 | K115: -572 | L115: -654 | M115: -541 | N115: -488 | O115: -461 | P115: -418 | Q115: -365 | R115: -318 | S115: -251 | T115: -242 | U115: -186 | V115: -208 | W115: -83 | X115: -51 | Y115: -20 | Z115: -9 | AA115: -2 | AB115: 0.4873390157 | AC115: 8240 | AD115: 798 | AE115: 776 | AF115: 714 | AG115: 605 | AH115: 671 | AI115: 731 | AJ115: 582 | AK115: 612 | AL115: 470 | AM115: 398 | AN115: 351 | AO115: 350 | AP115: 271 | AQ115: 270 | AR115: 252 | AS115: 153 | AT115: 109 | AU115: 75 | AV115: 41 | AW115: 8 | AX115: 3 | AY115: 0.5126609843 | AZ115: Cientos de personas
E116: 114 | F116: -8731 | G116: -907 | H116: -903 | I116: -782 | J116: -733 | K116: -723 | L116: -606 | M116: -636 | N116: -484 | O116: -498 | P116: -469 | Q116: -402 | R116: -346 | S116: -282 | T116: -287 | U116: -258 | V116: -212 | W116: -111 | X116: -51 | Y116: -39 | Z116: 0 | AA116: -2 | AB116: 0.4898451526 | AC116: 9093 | AD116: 826 | AE116: 895 | AF116: 800 | AG116: 768 | AH116: 708 | AI116: 698 | AJ116: 699 | AK116: 530 | AL116: 580 | AM116: 494 | AN116: 465 | AO116: 392 | AP116: 315 | AQ116: 284 | AR116: 306 | AS116: 133 | AT116: 105 | AU116: 50 | AV116: 29 | AW116: 14 | AX116: 2 | AY116: 0.5101548474 | AZ116: Cientos de personas
E117: 115 | F117: -2659 | G117: -333 | H117: -266 | I117: -268 | J117: -265 | K117: -185 | L117: -178 | M117: -152 | N117: -137 | O117: -143 | P117: -104 | Q117: -112 | R117: -86 | S117: -93 | T117: -85 | U117: -87 | V117: -61 | W117: -55 | X117: -23 | Y117: -22 | Z117: -2 | AA117: -2 | AB117: 0.4911340968 | AC117: 2755 | AD117: 272 | AE117: 244 | AF117: 279 | AG117: 228 | AH117: 218 | AI117: 196 | AJ117: 184 | AK117: 153 | AL117: 124 | AM117: 117 | AN117: 127 | AO117: 104 | AP117: 106 | AQ117: 106 | AR117: 89 | AS117: 74 | AT117: 71 | AU117: 27 | AV117: 28 | AW117: 8 | AX117: 0 | AY117: 0.5088659032 | AZ117: Cientos de personas
E118: 116 | F118: -9707 | G118: -991 | H118: -1119 | I118: -1060 | J118: -971 | K118: -792 | L118: -602 | M118: -701 | N118: -625 | O118: -596 | P118: -518 | Q118: -459 | R118: -292 | S118: -254 | T118: -221 | U118: -189 | V118: -107 | W118: -113 | X118: -56 | Y118: -36 | Z118: -5 | AA118: 0 | AB118: 0.4794527314 | AC118: 10539 | AD118: 1034 | AE118: 1045 | AF118: 1102 | AG118: 892 | AH118: 907 | AI118: 851 | AJ118: 763 | AK118: 701 | AL118: 677 | AM118: 622 | AN118: 458 | AO118: 390 | AP118: 320 | AQ118: 260 | AR118: 188 | AS118: 97 | AT118: 105 | AU118: 72 | AV118: 43 | AW118: 12 | AX118: 0 | AY118: 0.5205472686 | AZ118: Miles de personas
E119: 117 | F119: -2020 | G119: -193 | H119: -181 | I119: -176 | J119: -161 | K119: -142 | L119: -134 | M119: -134 | N119: -122 | O119: -123 | P119: -97 | Q119: -106 | R119: -84 | S119: -78 | T119: -82 | U119: -77 | V119: -63 | W119: -31 | X119: -24 | Y119: -6 | Z119: -5 | AA119: -1 | AB119: 0.4914841849 | AC119: 2090 | AD119: 168 | AE119: 179 | AF119: 161 | AG119: 148 | AH119: 167 | AI119: 156 | AJ119: 139 | AK119: 108 | AL119: 124 | AM119: 118 | AN119: 118 | AO119: 101 | AP119: 102 | AQ119: 84 | AR119: 77 | AS119: 68 | AT119: 39 | AU119: 15 | AV119: 14 | AW119: 4 | AX119: 0 | AY119: 0.5085158151 | AZ119: Cientos de personas
E120: 118 | F120: -10812 | G120: -963 | H120: -1046 | I120: -1109 | J120: -914 | K120: -769 | L120: -682 | M120: -675 | N120: -722 | O120: -724 | P120: -566 | Q120: -551 | R120: -427 | S120: -373 | T120: -399 | U120: -326 | V120: -193 | W120: -166 | X120: -134 | Y120: -46 | Z120: -25 | AA120: -2 | AB120: 0.4788096187 | AC120: 11769 | AD120: 909 | AE120: 1117 | AF120: 982 | AG120: 880 | AH120: 909 | AI120: 874 | AJ120: 756 | AK120: 738 | AL120: 774 | AM120: 715 | AN120: 596 | AO120: 557 | AP120: 509 | AQ120: 457 | AR120: 377 | AS120: 270 | AT120: 161 | AU120: 124 | AV120: 37 | AW120: 21 | AX120: 6 | AY120: 0.5211903813 | AZ120: Miles de personas
E121: 119 | F121: -14038 | G121: -1347 | H121: -1380 | I121: -1398 | J121: -1268 | K121: -1212 | L121: -1015 | M121: -944 | N121: -823 | O121: -939 | P121: -755 | Q121: -643 | R121: -506 | S121: -409 | T121: -387 | U121: -313 | V121: -291 | W121: -180 | X121: -123 | Y121: -69 | Z121: -32 | AA121: -4 | AB121: 0.4977131714 | AC121: 14167 | AD121: 1302 | AE121: 1258 | AF121: 1334 | AG121: 1247 | AH121: 1074 | AI121: 997 | AJ121: 1005 | AK121: 1006 | AL121: 917 | AM121: 765 | AN121: 652 | AO121: 598 | AP121: 489 | AQ121: 437 | AR121: 381 | AS121: 256 | AT121: 195 | AU121: 143 | AV121: 69 | AW121: 28 | AX121: 14 | AY121: 0.5022868286 | AZ121: Miles de personas
E122: 120 | F122: -649445 | G122: -56977 | H122: -57026 | I122: -57640 | J122: -58698 | K122: -68695 | L122: -56812 | M122: -52521 | N122: -45757 | O122: -43994 | P122: -35597 | Q122: -33642 | R122: -25328 | S122: -20332 | T122: -14740 | U122: -9877 | V122: -5665 | W122: -3636 | X122: -1676 | Y122: -518 | Z122: -293 | AA122: -21 | AB122: 0.4876610187 | AC122: 682310 | AD122: 54285 | AE122: 55473 | AF122: 59204 | AG122: 58972 | AH122: 66996 | AI122: 58995 | AJ122: 53500 | AK122: 50030 | AL122: 48275 | AM122: 41252 | AN122: 37312 | AO122: 28560 | AP122: 24162 | AQ122: 17774 | AR122: 11503 | AS122: 7228 | AT122: 4656 | AU122: 2618 | AV122: 980 | AW122: 535 | AX122: 0 | AY122: 0.5123389813 | AZ122: Miles de personas
E123: 121 | F123: -14282 | G123: -1409 | H123: -1289 | I123: -1190 | J123: -1269 | K123: -1394 | L123: -1149 | M123: -913 | N123: -922 | O123: -851 | P123: -733 | Q123: -643 | R123: -589 | S123: -523 | T123: -446 | U123: -409 | V123: -231 | W123: -182 | X123: -85 | Y123: -39 | Z123: -13 | AA123: -3 | AB123: 0.4892771497 | AC123: 14908 | AD123: 1202 | AE123: 1264 | AF123: 1344 | AG123: 1288 | AH123: 1367 | AI123: 1227 | AJ123: 968 | AK123: 978 | AL123: 1029 | AM123: 773 | AN123: 861 | AO123: 634 | AP123: 551 | AQ123: 446 | AR123: 339 | AS123: 246 | AT123: 203 | AU123: 112 | AV123: 65 | AW123: 8 | AX123: 3 | AY123: 0.5107228503 | AZ123: Miles de personas
E124: 122 | F124: -3559 | G124: -342 | H124: -354 | I124: -390 | J124: -363 | K124: -338 | L124: -236 | M124: -215 | N124: -177 | O124: -203 | P124: -159 | Q124: -138 | R124: -144 | S124: -113 | T124: -111 | U124: -95 | V124: -80 | W124: -55 | X124: -36 | Y124: -9 | Z124: -1 | AA124: 0 | AB124: 0.5064750249 | AC124: 3468 | AD124: 312 | AE124: 350 | AF124: 347 | AG124: 320 | AH124: 244 | AI124: 265 | AJ124: 203 | AK124: 216 | AL124: 212 | AM124: 150 | AN124: 135 | AO124: 146 | AP124: 116 | AQ124: 131 | AR124: 116 | AS124: 67 | AT124: 66 | AU124: 42 | AV124: 22 | AW124: 6 | AX124: 2 | AY124: 0.4935249751 | AZ124: Cientos de personas
E125: 123 | F125: -8927 | G125: -919 | H125: -892 | I125: -900 | J125: -827 | K125: -779 | L125: -674 | M125: -579 | N125: -604 | O125: -540 | P125: -447 | Q125: -409 | R125: -293 | S125: -282 | T125: -260 | U125: -181 | V125: -158 | W125: -103 | X125: -53 | Y125: -17 | Z125: -10 | AA125: 0 | AB125: 0.4989101883 | AC125: 8966 | AD125: 895 | AE125: 841 | AF125: 891 | AG125: 775 | AH125: 768 | AI125: 709 | AJ125: 628 | AK125: 615 | AL125: 573 | AM125: 457 | AN125: 427 | AO125: 327 | AP125: 298 | AQ125: 255 | AR125: 202 | AS125: 119 | AT125: 96 | AU125: 55 | AV125: 21 | AW125: 14 | AX125: 0 | AY125: 0.5010898117 | AZ125: Cientos de personas
E126: 124 | F126: -33716 | G126: -3375 | H126: -3613 | I126: -3433 | J126: -3340 | K126: -3168 | L126: -2561 | M126: -2258 | N126: -2162 | O126: -2285 | P126: -1764 | Q126: -1453 | R126: -1046 | S126: -984 | T126: -705 | U126: -618 | V126: -374 | W126: -322 | X126: -173 | Y126: -66 | Z126: -16 | AA126: 0 | AB126: 0.4920678936 | AC126: 34803 | AD126: 3399 | AE126: 3192 | AF126: 3503 | AG126: 3439 | AH126: 2996 | AI126: 2874 | AJ126: 2493 | AK126: 2411 | AL126: 2327 | AM126: 1788 | AN126: 1569 | AO126: 1264 | AP126: 997 | AQ126: 940 | AR126: 681 | AS126: 416 | AT126: 208 | AU126: 160 | AV126: 108 | AW126: 33 | AX126: 5 | AY126: 0.5079321064 | AZ126: Miles de personas
E127: 125 | F127: -9092 | G127: -1066 | H127: -1036 | I127: -1116 | J127: -699 | K127: -544 | L127: -607 | M127: -656 | N127: -649 | O127: -625 | P127: -430 | Q127: -372 | R127: -354 | S127: -295 | T127: -208 | U127: -172 | V127: -140 | W127: -68 | X127: -35 | Y127: -15 | Z127: -5 | AA127: 0 | AB127: 0.4798395609 | AC127: 9856 | AD127: 949 | AE127: 1007 | AF127: 1025 | AG127: 966 | AH127: 848 | AI127: 774 | AJ127: 654 | AK127: 744 | AL127: 599 | AM127: 518 | AN127: 475 | AO127: 285 | AP127: 285 | AQ127: 248 | AR127: 222 | AS127: 135 | AT127: 58 | AU127: 35 | AV127: 29 | AW127: 0 | AX127: 0 | AY127: 0.5201604391 | AZ127: Miles de personas
E128: 1 | F128: 2 | G128: 3 | H128: 4 | I128: 5 | J128: 6 | K128: 7 | L128: 8 | M128: 9 | N128: 10 | O128: 11 | P128: 12 | Q128: 13 | R128: 14 | S128: 15 | T128: 16 | U128: 17 | V128: 18 | W128: 19 | X128: 20 | Y128: 21 | Z128: 22 | AA128: 23 | AB128: 24 | AC128: 25 | AD128: 26 | AE128: 27 | AF128: 28 | AG128: 29 | AH128: 30 | AI128: 31 | AJ128: 32 | AK128: 33 | AL128: 34 | AM128: 35 | AN128: 36 | AO128: 37 | AP128: 38 | AQ128: 39 | AR128: 40 | AS128: 41 | AT128: 42 | AU128: 43 | AV128: 44 | AW128: 45 | AX128: 46 | AY128: 47 | AZ128: 48 | BA128: 49
D130: Norte | E130: 1 | F130: -38014 | G130: -4510 | H130: -4165 | I130: -4109 | J130: -3810 | K130: -3114 | L130: -2479 | M130: -2171 | N130: -2168 | O130: -2139 | P130: -1764 | Q130: -1554 | R130: -1264 | S130: -1078 | T130: -1021 | U130: -963 | V130: -670 | W130: -517 | X130: -316 | Y130: -139 | Z130: -48 | AA130: -15 | AB130: -0.4850456796 | AC130: 40358 | AD130: 4451 | AE130: 4131 | AF130: 4053 | AG130: 3825 | AH130: 3313 | AI130: 2783 | AJ130: 2609 | AK130: 2358 | AL130: 2230 | AM130: 1885 | AN130: 1773 | AO130: 1460 | AP130: 1264 | AQ130: 1158 | AR130: 985 | AS130: 820 | AT130: 648 | AU130: 333 | AV130: 209 | AW130: 49 | AX130: 21 | AY130: 0.5149543204 | AZ130: Miles de personas
D131: Altos Norte | E131: 2 | F131: -198174 | G131: -20904 | H131: -21223 | I131: -21191 | J131: -19705 | K131: -17944 | L131: -14673 | M131: -14031 | N131: -12924 | O131: -11768 | P131: -9497 | Q131: -8411 | R131: -6597 | S131: -5929 | T131: -4851 | U131: -3543 | V131: -2239 | W131: -1418 | X131: -785 | Y131: -374 | Z131: -139 | AA131: -28 | AB131: -0.4865756734 | AC131: 209109 | AD131: 20595 | AE131: 20718 | AF131: 20905 | AG131: 19570 | AH131: 18724 | AI131: 16640 | AJ131: 15452 | AK131: 14567 | AL131: 13056 | AM131: 10017 | AN131: 9652 | AO131: 7832 | AP131: 6248 | AQ131: 5463 | AR131: 3663 | AS131: 2459 | AT131: 1771 | AU131: 1066 | AV131: 498 | AW131: 182 | AX131: 31 | AY131: 0.5134243266 | AZ131: Miles de personas
D132: Altos Sur | E132: 3 | F132: -192999 | G132: -19016 | H132: -19440 | I132: -21205 | J132: -18170 | K132: -16018 | L132: -14895 | M132: -13148 | N132: -12632 | O132: -12318 | P132: -10033 | Q132: -8786 | R132: -6619 | S132: -5867 | T132: -4956 | U132: -3747 | V132: -2632 | W132: -1861 | X132: -1051 | Y132: -455 | Z132: -139 | AA132: -11 | AB132: -0.4829140133 | AC132: 206656 | AD132: 18761 | AE132: 19197 | AF132: 20253 | AG132: 19155 | AH132: 18157 | AI132: 16546 | AJ132: 14953 | AK132: 13701 | AL132: 13178 | AM132: 11354 | AN132: 10287 | AO132: 7403 | AP132: 7119 | AQ132: 5642 | AR132: 4246 | AS132: 3028 | AT132: 2003 | AU132: 1010 | AV132: 456 | AW132: 170 | AX132: 37 | AY132: 0.5170859867 | AZ132: Miles de personas
B133: =VLOOKUP(DatosR!F142,grapob!E130:AY142,1,FALSE) -> 14 | D133: Ciénega | E133: 4 | F133: -196797 | G133: -19983 | H133: -20702 | I133: -20519 | J133: -19511 | K133: -17073 | L133: -13863 | M133: -13005 | N133: -13061 | O133: -12803 | P133: -10021 | Q133: -8752 | R133: -7124 | S133: -5925 | T133: -5036 | U133: -3700 | V133: -2674 | W133: -1670 | X133: -842 | Y133: -365 | Z133: -132 | AA133: -36 | AB133: -0.4894765903 | AC133: 205259 | AD133: 19254 | AE133: 19531 | AF133: 20854 | AG133: 18398 | AH133: 18109 | AI133: 15619 | AJ133: 14532 | AK133: 14585 | AL133: 13506 | AM133: 11190 | AN133: 9451 | AO133: 7790 | AP133: 6387 | AQ133: 5600 | AR133: 4197 | AS133: 2647 | AT133: 1788 | AU133: 1047 | AV133: 559 | AW133: 167 | AX133: 48 | AY133: 0.5105234097 | AZ133: Miles de personas
B134: Hombres | C134: Mujeres | D134: Sureste | E134: 5 | F134: -79747 | G134: -7970 | H134: -7970 | I134: -7777 | J134: -7341 | K134: -6895 | L134: -5694 | M134: -5192 | N134: -5060 | O134: -4919 | P134: -3797 | Q134: -3428 | R134: -2926 | S134: -2739 | T134: -2676 | U134: -2027 | V134: -1561 | W134: -915 | X134: -547 | Y134: -207 | Z134: -91 | AA134: -15 | AB134: -0.4871771376 | AC134: 83945 | AD134: 7893 | AE134: 7855 | AF134: 7733 | AG134: 7218 | AH134: 6964 | AI134: 6276 | AJ134: 5789 | AK134: 5569 | AL134: 5307 | AM134: 4165 | AN134: 4046 | AO134: 3615 | AP134: 3050 | AQ134: 2706 | AR134: 2177 | AS134: 1456 | AT134: 1027 | AU134: 644 | AV134: 281 | AW134: 140 | AX134: 34 | AY134: 0.5128228624 | AZ134: Miles de personas
A135: 0 - 4 años | B135: =VLOOKUP(DatosR!F$142,E$130:AY$142,3,FALSE) -> -358751 | C135: =VLOOKUP(DatosR!F$142,E$130:AY$142,26,FALSE) -> 350595 | D135: Sur | E135: 6 | F135: -146931 | G135: -13996 | H135: -13992 | I135: -13892 | J135: -13322 | K135: -13334 | L135: -11633 | M135: -10026 | N135: -9186 | O135: -8638 | P135: -7672 | Q135: -7261 | R135: -5871 | S135: -5087 | T135: -4467 | U135: -3387 | V135: -2306 | W135: -1393 | X135: -876 | Y135: -421 | Z135: -148 | AA135: -23 | AB135: -0.4884885318 | AC135: 153856 | AD135: 13282 | AE135: 12954 | AF135: 13674 | AG135: 12905 | AH135: 13647 | AI135: 12523 | AJ135: 10896 | AK135: 10552 | AL135: 9571 | AM135: 8345 | AN135: 8114 | AO135: 6954 | AP135: 5746 | AQ135: 4888 | AR135: 3560 | AS135: 2514 | AT135: 1861 | AU135: 1077 | AV135: 597 | AW135: 161 | AX135: 35 | AY135: 0.5115114682 | AZ135: Miles de personas
A136: 5 - 9 años | B136: =VLOOKUP(DatosR!F$142,E$130:AY$142,4,FALSE) -> -370068 | C136: =VLOOKUP(DatosR!F$142,E$130:AY$142,27,FALSE) -> 360013 | D136: Sierra de Amula | E136: 7 | F136: -84382 | G136: -8167 | H136: -8161 | I136: -7785 | J136: -7413 | K136: -6938 | L136: -6156 | M136: -5533 | N136: -5457 | O136: -5234 | P136: -4373 | Q136: -4129 | R136: -3384 | S136: -2818 | T136: -2590 | U136: -2216 | V136: -1665 | W136: -1184 | X136: -715 | Y136: -347 | Z136: -97 | AA136: -20 | AB136: -0.4913071325 | AC136: 87368 | AD136: 7954 | AE136: 8025 | AF136: 7481 | AG136: 7240 | AH136: 6999 | AI136: 7085 | AJ136: 6215 | AK136: 5648 | AL136: 5239 | AM136: 4758 | AN136: 4630 | AO136: 3739 | AP136: 3067 | AQ136: 2780 | AR136: 2363 | AS136: 1562 | AT136: 1154 | AU136: 790 | AV136: 442 | AW136: 159 | AX136: 38 | AY136: 0.5086928675 | AZ136: Miles de personas
A137: 10 - 14 años | B137: =VLOOKUP(DatosR!F$142,E$130:AY$142,5,FALSE) -> -373802 | C137: =VLOOKUP(DatosR!F$142,E$130:AY$142,28,FALSE) -> 371092 | D137: Costa Sur | E137: 8 | F137: -76761 | G137: -7546 | H137: -7843 | I137: -7707 | J137: -7374 | K137: -5857 | L137: -5386 | M137: -4847 | N137: -4803 | O137: -4694 | P137: -4012 | Q137: -3778 | R137: -3190 | S137: -2557 | T137: -2329 | U137: -1927 | V137: -1322 | W137: -837 | X137: -416 | Y137: -228 | Z137: -59 | AA137: -49 | AB137: -0.5048006734 | AC137: 75301 | AD137: 7178 | AE137: 7546 | AF137: 7369 | AG137: 6877 | AH137: 5875 | AI137: 5676 | AJ137: 5060 | AK137: 4917 | AL137: 4561 | AM137: 4022 | AN137: 3728 | AO137: 2975 | AP137: 2674 | AQ137: 2356 | AR137: 1701 | AS137: 1226 | AT137: 712 | AU137: 554 | AV137: 206 | AW137: 82 | AX137: 6 | AY137: 0.4951993266 | AZ137: Miles de personas
A138: 15 - 19 años | B138: =VLOOKUP(DatosR!F$142,E$130:AY$142,6,FALSE) -> -361560 | C138: =VLOOKUP(DatosR!F$142,E$130:AY$142,29,FALSE) -> 353805 | D138: Costa-Sierra Occidental | E138: 9 | F138: -166522 | G138: -13947 | H138: -16097 | I138: -16048 | J138: -16276 | K138: -14467 | L138: -13972 | M138: -12354 | N138: -12233 | O138: -11585 | P138: -9513 | Q138: -8206 | R138: -6354 | S138: -4886 | T138: -4008 | U138: -2909 | V138: -1960 | W138: -930 | X138: -429 | Y138: -245 | Z138: -88 | AA138: -15 | AB138: -0.5003996658 | AC138: 166256 | AD138: 13846 | AE138: 14786 | AF138: 14698 | AG138: 15101 | AH138: 14324 | AI138: 14352 | AJ138: 13976 | AK138: 13399 | AL138: 11243 | AM138: 9521 | AN138: 8131 | AO138: 6887 | AP138: 5265 | AQ138: 4108 | AR138: 2765 | AS138: 1883 | AT138: 937 | AU138: 584 | AV138: 310 | AW138: 129 | AX138: 11 | AY138: 0.4996003342 | AZ138: Miles de personas
A139: 20 - 24 años | B139: =VLOOKUP(DatosR!F$142,E$130:AY$142,7,FALSE) -> -355017 | C139: =VLOOKUP(DatosR!F$142,E$130:AY$142,30,FALSE) -> 354508 | D139: Valles | E139: 10 | F139: -155752 | G139: -15263 | H139: -16040 | I139: -16402 | J139: -14962 | K139: -13313 | L139: -10804 | M139: -10498 | N139: -10099 | O139: -10443 | P139: -7707 | Q139: -6871 | R139: -6068 | S139: -4881 | T139: -4131 | U139: -3249 | V139: -2288 | W139: -1421 | X139: -820 | Y139: -368 | Z139: -106 | AA139: -18 | AB139: -0.4915266005 | AC139: 161122 | AD139: 15003 | AE139: 15979 | AF139: 16133 | AG139: 14863 | AH139: 12874 | AI139: 12148 | AJ139: 11603 | AK139: 11270 | AL139: 10423 | AM139: 8581 | AN139: 7788 | AO139: 6504 | AP139: 5090 | AQ139: 4430 | AR139: 3168 | AS139: 2279 | AT139: 1616 | AU139: 844 | AV139: 380 | AW139: 131 | AX139: 15 | AY139: 0.5084733995 | AZ139: Miles de personas
A140: 25 - 29 años | B140: =VLOOKUP(DatosR!F$142,E$130:AY$142,8,FALSE) -> -304138 | C140: =VLOOKUP(DatosR!F$142,E$130:AY$142,31,FALSE) -> 323194 | D140: Lagunas | E140: 11 | F140: -104110 | G140: -10281 | H140: -10281 | I140: -10274 | J140: -9393 | K140: -8617 | L140: -7419 | M140: -7036 | N140: -6392 | O140: -6800 | P140: -5307 | Q140: -4796 | R140: -4011 | S140: -3403 | T140: -3230 | U140: -2540 | V140: -1843 | W140: -1223 | X140: -774 | Y140: -374 | Z140: -99 | AA140: -17 | AB140: -0.4879500567 | AC140: 109252 | AD140: 10201 | AE140: 10230 | AF140: 9989 | AG140: 9225 | AH140: 8862 | AI140: 7890 | AJ140: 7702 | AK140: 7529 | AL140: 7111 | AM140: 5854 | AN140: 5243 | AO140: 4617 | AP140: 3976 | AQ140: 3164 | AR140: 2812 | AS140: 1893 | AT140: 1391 | AU140: 872 | AV140: 483 | AW140: 173 | AX140: 35 | AY140: 0.5120499433 | AZ140: Miles de personas
A141: 30 - 34 años | B141: =VLOOKUP(DatosR!F$142,E$130:AY$142,9,FALSE) -> -288191 | C141: =VLOOKUP(DatosR!F$142,E$130:AY$142,32,FALSE) -> 308886 | D141: Centro | E141: 12 | F141: -2393431 | G141: -217168 | H141: -224154 | I141: -226893 | J141: -224283 | K141: -231447 | L141: -197164 | M141: -190350 | N141: -169301 | O141: -169240 | P141: -130478 | Q141: -114405 | R141: -86405 | S141: -72792 | T141: -53006 | U141: -37329 | V141: -23335 | W141: -14590 | X141: -7232 | Y141: -2886 | Z141: -827 | AA141: -146 | AB141: -0.4881368218 | AC141: 2509766 | AD141: 212177 | AE141: 219061 | AF141: 227950 | AG141: 219428 | AH141: 226660 | AI141: 205656 | AJ141: 200099 | AK141: 184156 | AL141: 176804 | AM141: 145608 | AN141: 130560 | AO141: 101625 | AP141: 85869 | AQ141: 64055 | AR141: 44428 | AS141: 28947 | AT141: 19254 | AU141: 10942 | AV141: 4644 | AW141: 1701 | AX141: 142 | AY141: 0.5118631782 | AZ141: Millones de personas
A142: 35 - 39 años | B142: =VLOOKUP(DatosR!F$142,E$130:AY$142,10,FALSE) -> -263316 | C142: =VLOOKUP(DatosR!F$142,E$130:AY$142,33,FALSE) -> 288251 | D142: Jalisco | E142: 14 | F142: -3833620 | G142: -358751 | H142: -370068 | I142: -373802 | J142: -361560 | K142: -355017 | L142: -304138 | M142: -288191 | N142: -263316 | O142: -260581 | P142: -204174 | Q142: -180377 | R142: -139813 | S142: -117962 | T142: -92301 | U142: -67537 | V142: -44495 | W142: -27959 | X142: -14803 | Y142: -6409 | Z142: -1973 | AA142: -393 | AB142: -0.4888656631 | AC142: 4008248 | AD142: 350595 | AE142: 360013 | AF142: 371092 | AG142: 353805 | AH142: 354508 | AI142: 323194 | AJ142: 308886 | AK142: 288251 | AL142: 272229 | AM142: 225300 | AN142: 203403 | AO142: 161401 | AP142: 135755 | AQ142: 106350 | AR142: 76065 | AS142: 50714 | AT142: 34162 | AU142: 19763 | AV142: 9065 | AW142: 3244 | AX142: 453 | AY142: 0.5111343369 | AZ142: Millones de personas
A143: 40 - 44 años | B143: =VLOOKUP(DatosR!F$142,E$130:AY$142,11,FALSE) -> -260581 | C143: =VLOOKUP(DatosR!F$142,E$130:AY$142,34,FALSE) -> 272229
A144: 45 - 49 años | B144: =VLOOKUP(DatosR!F$142,E$130:AY$142,12,FALSE) -> -204174 | C144: =VLOOKUP(DatosR!F$142,E$130:AY$142,35,FALSE) -> 225300
A145: 50 - 54 años | B145: =VLOOKUP(DatosR!F$142,E$130:AY$142,13,FALSE) -> -180377 | C145: =VLOOKUP(DatosR!F$142,E$130:AY$142,36,FALSE) -> 203403
A146: 55 - 59 años | B146: =VLOOKUP(DatosR!F$142,E$130:AY$142,14,FALSE) -> -139813 | C146: =VLOOKUP(DatosR!F$142,E$130:AY$142,37,FALSE) -> 161401
A147: 60 - 64 años | B147: =VLOOKUP(DatosR!F$142,E$130:AY$142,15,FALSE) -> -117962 | C147: =VLOOKUP(DatosR!F$142,E$130:AY$142,38,FALSE) -> 135755
A148: 65 - 69 años | B148: =VLOOKUP(DatosR!F$142,E$130:AY$142,16,FALSE) -> -92301 | C148: =VLOOKUP(DatosR!F$142,E$130:AY$142,39,FALSE) -> 106350
A149: 70 - 74 años | B149: =VLOOKUP(DatosR!F$142,E$130:AY$142,17,FALSE) -> -67537 | C149: =VLOOKUP(DatosR!F$142,E$130:AY$142,40,FALSE) -> 76065
A150: 75 - 79 años | B150: =VLOOKUP(DatosR!F$142,E$130:AY$142,18,FALSE) -> -44495 | C150: =VLOOKUP(DatosR!F$142,E$130:AY$142,41,FALSE) -> 50714
A151: 80 - 84 años | B151: =VLOOKUP(DatosR!F$142,E$130:AY$142,19,FALSE) -> -27959 | C151: =VLOOKUP(DatosR!F$142,E$130:AY$142,42,FALSE) -> 34162
A152: 85 - 89 años | B152: =VLOOKUP(DatosR!F$142,E$130:AY$142,20,FALSE) -> -14803 | C152: =VLOOKUP(DatosR!F$142,E$130:AY$142,43,FALSE) -> 19763
A153: 90 - 94 años | B153: =VLOOKUP(DatosR!F$142,E$130:AY$142,21,FALSE) -> -6409 | C153: =VLOOKUP(DatosR!F$142,E$130:AY$142,44,FALSE) -> 9065
A154: 95 - 99 años | B154: =VLOOKUP(DatosR!F$142,E$130:AY$142,22,FALSE) -> -1973 | C154: =VLOOKUP(DatosR!F$142,E$130:AY$142,45,FALSE) -> 3244
A155: 100 años y más | B155: =VLOOKUP(DatosR!F$142,E$130:AY$142,23,FALSE) -> -393 | C155: =VLOOKUP(DatosR!F$142,E$130:AY$142,46,FALSE) -> 453

Sheet AsisEscZMG (hidden)
A1: Clave | B1: Región | C1: Clave | D1: Municipio | E1: Tasa de asistencia 3 a 5 años | F1: Tasa de asistencia 6 a 11 años | G1: Tasa de asistencia 12 a 14 años | H1: Tasa de asistencia 15 a 24 años
C2: 14 | D2: Jalisco | E2: 0.6147481689 | F2: 0.9750106877 | G2: 0.9208632774 | H2: 0.4281474359
A3: 1 | B3: Norte | C3: 1 | D3: Norte | E3: 0.6184926185 | F3: 0.9572481151 | G3: 0.89850898 | H3: 0.3914544922
A4: 2 | B4: Altos Norte | C4: 2 | D4: Altos Norte | E4: 0.5636523575 | F4: 0.971843988 | G4: 0.9065657467 | H4: 0.3405143146
A5: 3 | B5: Altos Sur | C5: 3 | D5: Altos Sur | E5: 0.5875936081 | F5: 0.9724184121 | G5: 0.8776006955 | H5: 0.3244259903
A6: 4 | B6: Ciénega | C6: 4 | D6: Ciénega | E6: 0.5995686556 | F6: 0.9741079886 | G6: 0.9100156495 | H6: 0.4033189561
A7: 5 | B7: Sureste | C7: 5 | D7: Sureste | E7: 0.5865503177 | F7: 0.9779712472 | G7: 0.9054740677 | H7: 0.3408671068
A8: 6 | B8: Sur | C8: 6 | D8: Sur | E8: 0.6008169328 | F8: 0.9700475879 | G8: 0.919866054 | H8: 0.3841024448
A9: 7 | B9: Sierra de Amula | C9: 7 | D9: Sierra de Amula | E9: 0.5878252885 | F9: 0.9768524547 | G9: 0.9062082989 | H9: 0.3801218848
A10: 8 | B10: Costa Sur | C10: 8 | D10: Costa Sur | E10: 0.6599660249 | F10: 0.9801010256 | G10: 0.9268571429 | H10: 0.3608504692
A11: 9 | B11: Costa-Sierra Occidental | C11: 9 | D11: Costa-Sierra Occidental | E11: 0.6172070861 | F11: 0.9698590061 | G11: 0.9234700479 | H11: 0.4180346633
A12: 10 | B12: Valles | C12: 10 | D12: Valles | E12: 0.651227685 | F12: 0.9833530849 | G12: 0.9359920667 | H12: 0.4861051719
A13: 11 | B13: Lagunas | C13: 11 | D13: Lagunas | E13: 0.6028138528 | F13: 0.9796772543 | G13: 0.9150056412 | H13: 0.358302005
A14: 12 | B14: Centro | C14: 12 | D14: Centro | E14: 0.6311593705 | F14: 0.9735378156 | G14: 0.93146502 | H14: 0.4860383944 | S14: Relación hombre-mujer: | T14: Edad mediana | U14: Razón de dependencia | V14: Porcentaje hombres | W14: Porcentaje de mujeres
A15: 1 | B15: ZMG | D15: ZMG | E15: =E35/J25 -> 0.515791808 | F15: =F35/K25 -> 0.9738363858 | G15: =G35/L25 -> 0.9274703884 | H15: =H35/M25 -> 0.4575741225 | J15: Tasa de asistencia 3 a 5 años | K15: Tasa de asistencia 6 a 11 años | L15: Tasa de asistencia 12 a 14 años | M15: Tasa de asistencia 15 a 24 | S15: 95.38603336 | T15: 27.75588819 | U15: 50.19443596 | V15: 0.4881926907 | W15: 0.5118073093
A16: 2 | B16: Centro | C16: 39 | D16: Guadalajara | E16: 0.5086206897 | F16: 0.9804400978 | G16: 0.9134615385 | H16: 0.3614088821 | I16: Guadalajara | J16: 121204 | K16: 132933 | L16: 72276 | M16: 263889 | S16: 93.17550994 | T16: 30.95056143 | U16: 46.79844823 | V16: 0.4823360372 | W16: 0.5176639628
A17: 3 | B17: Centro | C17: 44 | D17: Ixtlahuacán de los Membrillos | E17: 0.581111388 | F17: 0.96005064 | G17: 0.9073897875 | H17: 0.3314816914 | I17: Ixtlahuacán de los Membrillos | J17: 7455 | K17: 7109 | L17: 3153 | M17: 8821 | S17: 97.5090293 | T17: 24.98220028 | U17: 60.43357152 | V17: 0.4936940334 | W17: 0.5063059666
A18: 4 | B18: Centro | C18: 51 | D18: Juanacatlán | E18: 0.5240310078 | F18: 0.9426987061 | G18: 0.915851272 | H18: 0.3252279635 | I18: Juanacatlán | J18: 2482 | K18: 2164 | L18: 1022 | M18: 3290 | S18: 99.72191324 | T18: 25.05974265 | U18: 59.67784996 | V18: 0.4993038151 | W18: 0.5006961849
A19: 5 | B19: Centro | C19: 70 | D19: El Salto | E19: 0.5900900901 | F19: 0.9862579281 | G19: 0.8583162218 | H19: 0.2533834586 | I19: El Salto | J19: 24311 | K19: 24353 | L19: 11693 | M19: 35420 | S19: 98.94690035 | T19: 23.81212316 | U19: 57.90611542 | V19: 0.4973533148 | W19: 0.5026466852
A20: 6 | B20: Centro | C20: 97 | D20: Tlajomulco de Zúñiga | E20: 0.6921641791 | F20: 0.9836223507 | G20: 0.9194991055 | H20: 0.4175691937 | I20: Tlajomulco de Zúñiga | J20: 74260 | K20: 77855 | L20: 39744 | M20: 124103 | S20: 96.41096586 | T20: 24.66319793 | U20: 58.28268244 | V20: 0.4908634578 | W20: 0.5091365422
A21: 7 | B21: Centro | C21: 98 | D21: Tlaquepaque | E21: 0.6130997715 | F21: 0.9897999215 | G21: 0.8611570248 | H21: 0.2915615363 | I21: San Pedro Tlaquepaque | J21: 74638 | K21: 75888 | L21: 35605 | M21: 91477 | S21: 98.03542731 | T21: 26.50542099 | U21: 52.45980316 | V21: 0.4950398453 | W21: 0.5049601547
A22: 8 | B22: Centro | C22: 101 | D22: Tonalá | E22: 0.6360086768 | F22: 0.9497311199 | G22: 0.8964160839 | H22: 0.3482172064 | I22: Tonalá | J22: 67523 | K22: 65447 | L22: 33618 | M22: 101869 | S22: 95.98138562 | T22: 24.95997408 | U22: 53.90660229 | V22: 0.489747459 | W22: 0.510252541
A23: 9 | B23: Centro | C23: 120 | D23: Zapopan | E23: 0.6382253558 | F23: 0.9739494312 | G23: 0.9354720388 | H23: 0.5029424418 | I23: Zapopan | J23: 133985 | K23: 135736 | L23: 70884 | M23: 253361 | S23: 95.17580549 | T23: 28.11596018 | U23: 46.43842847 | V23: 0.4876414126 | W23: 0.5123585874
A24: 10 | B24: Centro | C24: 124 | D24: Zapotlanejo | E24: 0.6302329655 | F24: 0.9823433539 | G24: 0.9537971322 | H24: 0.5313260341 | I24: Zapotlanejo | J24: 8206 | K24: 8029 | L24: 4280 | M24: 12943 | S24: 96.87670603 | T24: 25.73735051 | U24: 58.68593529 | V24: 0.4920678936 | W24: 0.5079321064
J25: =SUM(J16:J24) -> 514064 | K25: =SUM(K16:K24) -> 529514 | L25: 272275 | M25: 895173
D26: Guadalajara | E26: 63399 | F26: 130849 | G26: 68520 | H26: 136988
D27: Ixtlahuacán de los Membrillos | E27: 4013 | F27: 6825 | G27: 2861 | H27: 2924
D28: Juanacatlán | E28: 1290 | F28: 2040 | G28: 936 | H28: 1070
D29: El Salto | E29: 12667 | F29: 23395 | G29: 10578 | H29: 12287
D30: Tlajomulco de Zúñiga | E30: 38849 | F30: 73472 | G30: 32795 | H30: 36628
D31: Tlaquepaque | E31: 38085 | F31: 75409 | G31: 36296 | H31: 49452
D32: Tonalá | E32: 34302 | F32: 63735 | G32: 30580 | H32: 39414
D33: Zapopan | E33: 68363 | F33: 132200 | G33: 66310 | H33: 127426
D34: Zapotlanejo | E34: 4182 | F34: 7735 | G34: 3651 | H34: 3419
E35: =SUM(E26:E34) -> 265150 | F35: =SUM(F26:F34) -> 515660 | G35: 252527 | H35: 409608

Sheet dist.terrZMG (hidden)
A1: Clave | B1: Región | D1: Clave | E1: Municipio | F1: Superficie en Km² | G1: Densidad | H1: Municipios / localidades
D3: 14 | E3: Jalisco | F3: 78583.57352 | G3: 99.82786031 | H3: 125
A4: 1 | B4: Norte | D4: 1 | E4: Región Norte | F4: 8816.142045 | G4: 8.897882951 | H4: 10
A5: 2 | B5: Altos Norte | D5: 2 | E5: Región Altos Norte | F5: 8250.120056 | G5: 49.38316015 | H5: 8
A6: 3 | B6: Altos Sur | D6: 3 | E6: Región Altos Sur | F6: 6603.521556 | G6: 60.53194445 | H6: 12
A7: 4 | B7: Ciénega | D7: 4 | E7: Región Ciénega | F7: 3763.259002 | G7: 106.8751845 | H7: 9
A8: 5 | B8: Sureste | D8: 5 | E8: Región Sureste | F8: 3615.313464 | G8: 45.29261477 | H8: 10
A9: 6 | B9: Sur | D9: 6 | E9: Región Sur | F9: 8331.752546 | G9: 36.11137013 | H9: 12
A10: 7 | B10: Sierra de Amula | D10: 7 | E10: Región Sierra de Amula | F10: 5794.812406 | G10: 29.64893218 | H10: 14
A11: 8 | B11: Costa Sur | D11: 8 | E11: Región Costa Sur | F11: 9288.169439 | G11: 16.37706988 | H11: 6
A12: 9 | B12: Costa-Sierra Occ | D12: 9 | E12: Región Costa-Sierra Occidental | F12: 9258.365072 | G12: 35.94565535 | H12: 8
A13: 10 | B13: Valles | D13: 10 | E13: Región Valles | F13: 5604.851584 | G13: 56.55689455 | H13: 12
B14: Lagunas | D14: 11 | E14: Región Lagunas | F14: 3808.515802 | G14: 56.03862793 | H14: 12
A15: 11 | B15: Centro | D15: 12 | E15: Región Centro | F15: 5448.750547 | G15: 900.2594187 | H15: 12
A16: 1 | B16: ZMG | C16: 1 | E16: ZMG | F16: 3453.568765 | G16: 1408.723072 | H16: 9
A17: 2 | B17: Centro | C17: 2 | D17: 39 | E17: Guadalajara | F17: 151.4210225 | G17: 9642.967506 | H17: 2
A18: 3 | B18: Centro | C18: 3 | D18: 44 | E18: Ixtlahuacán de los Membrillos | F18: 202.3876984 | G18: 262.0959694 | H18: 105
A19: 4 | B19: Centro | C19: 4 | D19: 51 | E19: Juanacatlán | F19: 138.3125325 | G19: 129.8147006 | H19: 24
A20: 5 | B20: Centro | C20: 5 | D20: 70 | E20: El Salto | F20: 87.85942939 | G20: 2087.846476 | H20: 28
A21: 6 | B21: Centro | C21: 6 | D21: 97 | E21: Tlajomulco de Zúñiga | F21: 713.9531744 | G21: 769.5770811 | H21: 272
A22: 7 | B22: Centro | C22: 7 | D22: 98 | E22: Tlaquepaque | F22: 110.4419617 | G22: 6013.955111 | H22: 31
A23: 8 | B23: Centro | C23: 8 | D23: 101 | E23: Tonalá | F23: 166.1044227 | G23: 3227.554036 | H23: 59
A24: 9 | B24: Centro | C24: 9 | D24: 120 | E24: Zapopan | F24: 1163.629906 | G24: 1144.927604 | H24: 234
A25: 10 | B25: Centro | C25: 10 | D25: 124 | E25: Zapotlanejo | F25: 719.4586174 | G25: 95.23688832 | H25: 200

Sheet PEAZMG (hidden)
A1: Clave | B1: Region | C1: Clave | D1: Municipio | E1: % PEA Total | F1: % PEA Hombres | G1: % PEA Mujeres | H1: % Ocupada total | I1: % Ocupada hombres | J1: % Ocupada mujeres | K1: % Desocupada total | L1: % Desocupada hombres | M1: % Desocupada mujeres | N1: % PNEA Total | O1: % PNEA Hombres | P1: % PNEA Mujeres | Q1: % No especificado Total | R1: % No especificado Hombres | S1: % No especificado mujeres
C2: 14 | D2: Jalisco | E2: 0.5331952684 | F2: 0.7041662707 | G2: 0.3727363435 | H2: 0.962995589 | I2: 0.955415279 | J2: 0.9764356694 | K2: 0.03700441097 | L2: 0.04458472096 | M2: 0.02356433064 | N2: 0.4641204865 | O2: 0.293485601 | P2: 0.6242639606 | Q2: 0.002684245122 | R2: 0.002348128277 | S2: 0.002999695968
A3: 1 | B3: Norte | C3: 1 | D3: Norte | E3: 0.3563977927 | F3: 0.5256034452 | G3: 0.2014514846 | H3: 0.3270598004 | I3: 0.4708862592 | J3: 0.1953539236 | K3: 0.02933799235 | L3: 0.05471718597 | M3: 0.006097560976 | N3: 0.6386894774 | O3: 0.4701986755 | P3: 0.7929811771 | Q3: 0.004912729852 | R3: 0.004197879347 | S3: 0.005567338282
A4: 2 | B4: Altos Norte | C4: 2 | D4: Altos Norte | E4: 0.5025250063 | F4: 0.7049598144 | G4: 0.3141835518 | H4: 0.4857436257 | I4: 0.6766074222 | J4: 0.3081676181 | K4: 0.0167813806 | L4: 0.02835239225 | M4: 0.006015933756 | N4: 0.4949792345 | O4: 0.2930511354 | P4: 0.6828492566 | Q4: 0.002495759159 | R4: 0.001989050111 | S4: 0.002967191519
A5: 3 | B5: Altos Sur | C5: 3 | D5: Altos Sur | E5: 0.5265303467 | F5: 0.7243955623 | G5: 0.3468200556 | H5: 0.5099734843 | I5: 0.6962670804 | J5: 0.3407730704 | K5: 0.01655686236 | L5: 0.02812848188 | M5: 0.006046985199 | N5: 0.4714004522 | O5: 0.2736152789 | P5: 0.6510380451 | Q5: 0.002069201113 | R5: 0.001989158743 | S5: 0.002141899275
A6: 4 | B6: Ciénega | C6: 4 | D6: Ciénega | E6: 0.469765106 | F6: 0.6757396689 | G6: 0.2770079605 | H6: 0.4501237571 | I6: 0.6416467668 | J6: 0.2708908066 | K6: 0.0196413489 | L6: 0.03409290215 | M6: 0.006117153914 | N6: 0.5275738711 | O6: 0.3221286815 | P6: 0.7198356133 | Q6: 0.002661022863 | R6: 0.0021316496 | S6: 0.003156426168
A7: 5 | B7: Sureste | C7: 5 | D7: Sureste | E7: 0.4976771196 | F7: 0.6795772326 | G7: 0.3281072274 | H7: 0.4780360524 | I7: 0.6458745548 | J7: 0.321574595 | K7: 0.01964106725 | L7: 0.03370267775 | M7: 0.00653263242 | N7: 0.4986237729 | O7: 0.3166798575 | P7: 0.6682344984 | Q7: 0.003699107441 | R7: 0.003742909906 | S7: 0.003658274155
A8: 6 | B8: Sur | C8: 6 | D8: Sur | E8: 0.4883935245 | F8: 0.6700734561 | G8: 0.3196172719 | H8: 0.4752624516 | I8: 0.6479043395 | J8: 0.3148823226 | K8: 0.01313107291 | L8: 0.02216911667 | M8: 0.004734949333 | N8: 0.5097676157 | O8: 0.328665532 | P8: 0.6780070615 | Q8: 0.001838859822 | R8: 0.001261011808 | S8: 0.00237566662
A9: 7 | B9: Sierra de amula | C9: 7 | D9: Sierra de amula | E9: 0.4714963392 | F9: 0.6502314566 | G9: 0.3016253508 | H9: 0.4532033364 | I9: 0.6182889132 | J9: 0.2963049579 | K9: 0.0182930028 | L9: 0.03194254341 | M9: 0.005320392891 | N9: 0.5249739581 | O9: 0.3467542254 | P9: 0.6943551216 | Q9: 0.003529702711 | R9: 0.003014318011 | S9: 0.004019527596
A10: 8 | B10: Costa Sur | C10: 8 | D10: Costa Sur | E10: 0.4651827614 | F10: 0.6645481799 | G10: 0.2636945983 | H10: 0.4433288845 | I10: 0.6261584582 | J10: 0.2585526316 | K10: 0.02185387695 | L10: 0.03838972163 | M10: 0.005141966759 | N10: 0.530675507 | O10: 0.3328650964 | P10: 0.7305921053 | Q10: 0.004141731605 | R10: 0.002586723769 | S10: 0.005713296399
A11: 9 | B11: Costa-Sierra Occidental | C11: 9 | D11: Costa-Sierra Occidental | E11: 0.5617613908 | F11: 0.7030154359 | G11: 0.4231369046 | H11: 0.5455000478 | I11: 0.6762707027 | J11: 0.4171637949 | K11: 0.01626134301 | L11: 0.02674473321 | M11: 0.005973109651 | N11: 0.4363243863 | O11: 0.295526602 | P11: 0.5745011053 | Q11: 0.001914222944 | R11: 0.001457962093 | S11: 0.002361990128
A12: 10 | B12: Valles | C12: 10 | D12: Valles | E12: 0.4750818329 | F12: 0.6595055341 | G12: 0.2993632117 | H12: 0.456315099 | I12: 0.6261820958 | J12: 0.2944660838 | K12: 0.01876673384 | L12: 0.03332343836 | M12: 0.004897127988 | N12: 0.523316684 | O12: 0.3390695899 | P12: 0.6988670341 | Q12: 0.001601483131 | R12: 0.001424875959 | S12: 0.001769754174
A13: 11 | B13: Lagunas | C13: 11 | D13: Lagunas | E13: 0.4540586314 | F13: 0.6573091752 | G13: 0.2637830569 | H13: 0.4379751925 | I13: 0.6294760981 | J13: 0.2586991908 | K13: 0.01608343893 | L13: 0.02783307714 | M13: 0.005083866097 | N13: 0.5426393898 | O13: 0.3399314568 | P13: 0.7324069924 | Q13: 0.00330197875 | R13: 0.002759367991 | S13: 0.003809950695
A14: 12 | B14: Centro | C14: 12 | D14: Centro | E14: 0.557052507 | F14: 0.7183317601 | G14: 0.4059612676 | H14: 0.5361259479 | I14: 0.6863969313 | J14: 0.3953475855 | K14: 0.02092655914 | L14: 0.03193482881 | M14: 0.01061368209 | N14: 0.4401914286 | O14: 0.2791806136 | P14: 0.5910311871 | Q14: 0.002756064407 | R14: 0.002487626301 | S14: 0.003007545272
A15: 1 | B15: ZMG | D15: ZMG | E15: 0.5584467953 | F15: 0.7193317268 | G15: 0.4076944638 | H15: 0.5377878223 | I15: 0.6874121316 | J15: 0.3970182964 | K15: 0.02096396923 | L15: 0.03191959516 | M15: 0.01067616741 | N15: 0.4386797588 | O15: 0.2780598763 | P15: 0.5891837342 | Q15: 0.002873445916 | R15: 0.002608396961 | S15: 0.003121801978
A16: 2 | B16: Centro | C16: 39 | D16: Guadalajara | E16: 0.5526720559 | F16: 0.6958023928 | G16: 0.4216904224 | H16: 0.9619226895 | I16: 0.9544517694 | J16: 0.9732036216 | K16: 0.03807731048 | L16: 0.04554823062 | M16: 0.02679637842 | N16: 0.4457707381 | O16: 0.3026176665 | P16: 0.5767731767 | Q16: 0.001557205956 | R16: 0.001579940657 | S16: 0.001536400945
A17: 3 | B17: Centro | C17: 44 | D17: Ixtlahuacán de los Membrillos | E17: 0.5117114304 | F17: 0.7208667737 | G17: 0.3136211614 | H17: 0.9439528024 | I17: 0.9365397462 | J17: 0.9600904831 | K17: 0.05604719764 | L17: 0.06346025384 | M17: 0.03990951688 | N17: 0.4637986675 | O17: 0.2624933119 | P17: 0.6544542414 | Q17: 0.02448990214 | R17: 0.01663991439 | S17: 0.03192459714
A18: 4 | B18: Centro | C18: 51 | D18: Juanacatlán | E18: 0.5266601489 | F18: 0.7346753443 | G18: 0.32122571 | H18: 0.9722975867 | I18: 0.9707457767 | J18: 0.9758026989 | K18: 0.02770241325 | L18: 0.02925422332 | M18: 0.02419730107 | N18: 0.4709332932 | O18: 0.2633570456 | P18: 0.6759342302 | Q18: 0.00240655787 | R18: 0.00196761011 | S18: 0.002840059791
A19: 5 | B19: Centro | C19: 70 | D19: El Salto | E19: 0.5324917388 | F19: 0.7322760637 | G19: 0.3345062614 | H19: 0.9593629721 | I19: 0.9527331255 | J19: 0.9737458564 | K19: 0.04063702795 | L19: 0.04726687448 | M19: 0.02625414365 | N19: 0.465726061 | O19: 0.2659783971 | P19: 0.6636752074 | Q19: 0.001782200275 | R19: 0.001745539178 | S19: 0.001818531277
A20: 6 | B20: Centro | C20: 97 | D20: Tlajomulco de Zúñiga | E20: 0.5557955093 | F20: 0.7462305504 | G20: 0.3733825068 | H20: 0.9661625803 | I20: 0.9609085163 | J20: 0.9762208515 | K20: 0.03383741973 | L20: 0.03909148369 | M20: 0.02377914853 | N20: 0.4393987278 | O20: 0.2498782395 | P20: 0.620935703 | Q20: 0.004805762902 | R20: 0.003891210171 | S20: 0.00568179028
A21: 7 | B21: Centro | C21: 98 | D21: Tlaquepaque | E21: 0.5604528936 | F21: 0.7311360695 | G21: 0.3970005508 | H21: 0.955283405 | I21: 0.94677585 | J21: 0.9702875861 | K21: 0.04471659503 | L21: 0.05322414999 | M21: 0.02971241389 | N21: 0.4370657653 | O21: 0.2666751873 | P21: 0.6002379058 | Q21: 0.002481341096 | R21: 0.00218874315 | S21: 0.002761543404
A22: 8 | B22: Centro | C22: 101 | D22: Tonalá | E22: 0.5762481322 | F22: 0.7485023829 | G22: 0.4130901288 | H22: 0.966678153 | I22: 0.9607130684 | J22: 0.9769158769 | K22: 0.033321847 | L22: 0.03928693162 | M22: 0.02308412308 | N22: 0.4204159034 | O22: 0.2488238476 | P22: 0.5829466806 | Q22: 0.003335964377 | R22: 0.002673769505 | S22: 0.003963190658
A23: 9 | B23: Centro | C23: 120 | D23: Zapopan | E23: 0.5646796619 | F23: 0.71651263 | G23: 0.4231152725 | H23: 0.9647112183 | I23: 0.9586724189 | J23: 0.9742458449 | K23: 0.03528878173 | L23: 0.04132758114 | M23: 0.02575415511 | N23: 0.4327601565 | O23: 0.2808372623 | P23: 0.5744083901 | Q23: 0.002560181689 | R23: 0.002650107722 | S23: 0.002476337422
A24: 10 | B24: Centro | C24: 124 | D24: Zapotlanejo | E24: 0.5425177875 | F24: 0.732124637 | G24: 0.3622490859 | H24: 0.9579411246 | I24: 0.9469875643 | J24: 0.9789885673 | K24: 0.04205887537 | L24: 0.05301243568 | M24: 0.02101143269 | N24: 0.4532170454 | O24: 0.2650890825 | P24: 0.6320796955 | Q24: 0.004265167164 | R24: 0.002786280512 | S24: 0.005671218566

Sheet TasaalfZMG (hidden)
A1: Clave | B1: Región | C1: Clave | D1: Nombre del Municipio | E1: Tasa de alfabetización 15 a 24 años | F1: Tasa de alfabetización 25 años y más
C2: 14 | D2: Jalisco | E2: 0.9872291896 | F2: 0.948435068
A3: 1 | B3: Norte | C3: 1 | D3: Norte | E3: 0.95896743 | F3: 0.8415057468
A4: 2 | B4: Altos Norte | C4: 2 | D4: Altos Norte | E4: 0.9856734656 | F4: 0.9074799324
A5: 3 | B5: Altos Sur | C5: 3 | D5: Altos Sur | E5: 0.9856083916 | F5: 0.9097406828
A6: 4 | B6: Ciénega | C6: 4 | D6: Ciénega | E6: 0.984225144 | F6: 0.9182979214
A7: 5 | B7: Sureste | C7: 5 | D7: Sureste | E7: 0.983038919 | F7: 0.9151982379
A8: 6 | B8: Sur | C8: 6 | D8: Sur | E8: 0.9873891144 | F8: 0.9153200755
A9: 7 | B9: Sierra de Amula | C9: 7 | D9: Sierra de Amula | E9: 0.9858342078 | F9: 0.9299906877
A10: 8 | B10: Costa Sur | C10: 8 | D10: Costa Sur | E10: 0.9729438479 | F10: 0.8903820002
A11: 9 | B11: Sierra Occidental | C11: 9 | D11: Costa-Sierra Occidental | E11: 0.991839516 | F11: 0.9569895408
A12: 10 | B12: Valles | C12: 10 | D12: Valles | E12: 0.9891987431 | F12: 0.9419183098
A13: 11 | B13: Lagunas | C13: 11 | D13: Lagunas | E13: 0.9860930271 | F13: 0.9250926644
A14: 12 | B14: Centro | C14: 12 | D14: Centro | E14: 0.9883668323 | F14: 0.9649256388
A15: 1 | B15: ZMG | D15: ZMG | E15: =E37/H25 -> 0.9883664945 | F15: =F37/I25 -> 0.9649021738 | G15: Total | H15: 15 a 24 | I15: 24 o más
A16: 2 | B16: Centro | C16: 39 | D16: Guadalajara | E16: 0.9924286348 | F16: 0.9740669283 | H16: 263889 | I16: 869846
A17: 3 | B17: Centro | C17: 44 | D17: Ixtlahuacán de los Membrillos | E17: 0.9823149303 | F17: 0.9592438563 | H17: 8821 | I17: 26507
A18: 4 | B18: Centro | C18: 51 | D18: Juanacatlán | E18: 0.9896656535 | F18: 0.9559265442 | H18: 3290 | I18: 8997
A19: 5 | B19: Centro | C19: 70 | D19: El Salto | E19: 0.9813099944 | F19: 0.9585389254 | H19: 35420 | I19: 87660
A20: 6 | B20: Centro | C20: 97 | D20: Tlajomulco de Zúñiga | E20: 0.9887840659 | F20: 0.968119261 | H20: 91477 | I20: 271834
A21: 7 | B21: Centro | C21: 98 | D21: Tlaquepaque | E21: 0.9849560446 | F21: 0.9524647027 | H21: 124103 | I21: 348231
A22: 8 | B22: Centro | C22: 101 | D22: Tonalá | E22: 0.9856089684 | F22: 0.9620636138 | H22: 101869 | I22: 267654
A23: 9 | B23: Centro | C23: 120 | D23: Zapopan | E23: 0.9881947103 | F23: 0.9659631683 | H23: 253361 | I23: 738306
A24: 10 | B24: Centro | C24: 124 | D24: Zapotlanejo | E24: 0.9834659662 | F24: 0.9154045806 | H24: 12943 | I24: 35061
H25: =SUM(H16:H24) -> 895173 | I25: =SUM(I16:I24) -> 2654096
D28: Guadalajara | E28: 261891 | F28: 846658
D29: Ixtlahuacán de los Membrillos | E29: 8665 | F29: 25372
D30: Juanacatlán | E30: 3256 | F30: 8589
D31: El Salto | E31: 34758 | F31: 83922
D32: Tlajomulco de Zúñiga | E32: 90451 | F32: 262947
D33: Tlaquepaque | E33: 122236 | F33: 331432
D34: Tonalá | E34: 100403 | F34: 257251
D35: Zapopan | E35: 250370 | F35: 712677
D36: Zapotlanejo | E36: 12729 | F36: 32095
E37: =SUM(E28:E36) -> 884759 | F37: =SUM(F28:F36) -> 2560943

Sheet PneaZMG (hidden)
A1: Clave | B1: Región | C1: Clave | D1: Municipio | E1: Estudiantes | F1: Personas dedicadas a los quehaceres del hogar | G1: Pensionados o jubilados | H1: Personas con alguna limitación física o mental permanente que les impide trabajar | I1: Personas en otras actividades no económicas | N1: Municipio | O1: Población no económicamente activa de 12 años y más | P1: Estudiantes | Q1: Personas dedicadas a los quehaceres del hogar | R1: Pensionados o jubilados | S1: Personas con alguna limitación física o mental que les impide trabajar | T1: Personas en otras actividades no económicas
C2: 14 | D2: Jalisco | E2: 0.317879601 | F2: 0.0663410415 | G2: 0.4570474967 | H2: 0.03820622323 | I2: 0.1205256376 | K2: 1 | M2: 2 | N2: Guadalajara | O2: 537316 | P2: 184447 | Q2: 223912 | R2: 65206 | S2: 19824 | T2: 43927
A3: 1 | B3: Norte | C3: 1 | D3: Norte | E3: 0.2412011284 | F3: 0.4766022515 | G3: 0.01368273971 | H3: 0.05314913923 | I3: 0.2153647412 | N3: Ixtlahuacán de los Membrillos | O3: 17821 | P3: 5125 | Q3: 9406 | R3: 910 | S3: 357 | T3: 2023
A4: 2 | B4: Altos Norte | C4: 2 | D4: Altos Norte | E4: 0.2780293253 | F4: 0.5093437161 | G4: 0.02655467332 | H4: 0.04333180217 | I4: 0.1427404831 | K4: 0.2270320772 | M4: 0.3008128861 | N4: Juanacatlán | O4: 6262 | P4: 1696 | Q4: 3076 | R4: 404 | S4: 154 | T4: 932
A5: 3 | B5: Altos Sur | C5: 3 | D5: Altos Sur | E5: 0.2401705958 | F5: 0.5149418736 | G5: 0.02285747978 | H5: 0.05790037441 | I5: 0.1641296764 | K5: 0.6476175646 | M5: 0.5901793153 | N5: El Salto | O5: 62717 | P5: 20292 | Q5: 30526 | R5: 3500 | S5: 1159 | T5: 7240
A6: 4 | B6: Ciénega | C6: 4 | D6: Ciénega | E6: 0.2769996291 | F6: 0.5006552108 | G6: 0.04349734207 | H6: 0.04333044876 | I6: 0.1355173693 | K6: 0.02164434756 | M6: 0.0261054275 | N6: Tlajomulco de Zúñiga | O6: 175183 | P6: 61222 | Q6: 87302 | R6: 6363 | S6: 3810 | T6: 16486
A7: 5 | B7: Sureste | C7: 5 | D7: Sureste | E7: 0.238983596 | F7: 0.4739212135 | G7: 0.07841411183 | H7: 0.0528516531 | I7: 0.1558294256 | K7: 0.05029585799 | M7: 0.03508245202 | N7: San Pedro Tlaquepaque | O7: 223699 | P7: 75003 | Q7: 103937 | R7: 14546 | S7: 7169 | T7: 23044
A8: 6 | B8: Sur | C8: 6 | D8: Sur | E8: 0.2937578619 | F8: 0.4541410679 | G8: 0.04801925145 | H8: 0.04482890635 | I8: 0.1592529123 | K8: 0.0534101526 | M8: 0.04781991909 | N8: Tonalá | O8: 169378 | P8: 59120 | Q8: 77743 | R8: 7744 | S8: 5845 | T8: 18926
A9: 7 | B9: Sierra de Amula | C9: 7 | D9: Sierra de Amula | E9: 0.2484253805 | F9: 0.4644106841 | G9: 0.04196069283 | H9: 0.05441185047 | I9: 0.1907913921 | N9: Zapopan | O9: 459606 | P9: 170042 | Q9: 190930 | R9: 38251 | S9: 13775 | T9: 46608
A10: 9 | B10: Costa Sur | C10: 8 | D10: Costa Sur | E10: 0.2594191141 | F10: 0.4844069447 | G10: 0.03115365893 | H10: 0.05356157715 | I10: 0.1714587052 | N10: Zapotlanejo | O10: 23696 | P10: 6227 | Q10: 11811 | R10: 608 | S10: 1690 | T10: 3360
A11: 10 | B11: Costa-Sierra Occidental | C11: 9 | D11: Costa-Sierra Occidental | E11: 0.3383074726 | F11: 0.446562629 | G11: 0.06486831684 | H11: 0.03076511205 | I11: 0.1194964695 | N11: ZMG | O11: =SUM(O2:O10) -> 1675678 | P11: =SUM(P2:P10) -> 583174 | Q11: 738643 | R11: 137532 | S11: 53783 | T11: 162546
A12: 11 | B12: Valles | C12: 10 | D12: Valles | E12: 0.2917007492 | F12: 0.4855944637 | G12: 0.0485983978 | H12: 0.05119515964 | I12: 0.1229112297 | P12: =P11/$O$11 -> 0.3480227108 | Q12: =Q11/$O$11 -> 0.4408024692 | R12: 0.08207543454 | S12: 0.03209626193 | T12: 0.09700312351
A13: 12 | B13: Lagunas | C13: 11 | D13: Lagunas | E13: 0.2381522897 | F13: 0.485252168 | G13: 0.05550167351 | H13: 0.05163167503 | I13: 0.1694621938
A14: 13 | B14: Centro | C14: 12 | D14: Centro | E14: 0.3473892311 | F14: 0.4385733452 | G14: 0.08331480286 | H14: 0.03246335867 | I14: 0.09825926214
A15: 1 | B15: ZMG | D15: ZMG | E15: 0.3480227108 | F15: 0.4408024692 | G15: 0.08207543454 | H15: 0.03209626193 | I15: 0.09700312351 | K15: =VLOOKUP(DatosAM!E142,A15:I24,1,FALSE) -> 1
A16: 2 | B16: Centro | C16: 39 | D16: Guadalajara | E16: 0.343274721 | F16: 0.4167231201 | G16: 0.1213550313 | H16: 0.03689449039 | I16: 0.08175263718
A17: 3 | B17: Centro | C17: 44 | D17: Ixtlahuacán de los Membrillos | E17: 0.2875820661 | F17: 0.5278042759 | G17: 0.05106335222 | H17: 0.02003254587 | I17: 0.1135177599 | K17: =VLOOKUP(K$15,A$15:I$24,5,FALSE) -> 0.3480227108 | L17: 0.376
A18: 4 | B18: Centro | C18: 51 | D18: Juanacatlán | E18: 0.2708399872 | F18: 0.4912168636 | G18: 0.06451612903 | H18: 0.02459278186 | I18: 0.1488342383 | K18: =VLOOKUP(K$15,A$15:I$24,6,FALSE) -> 0.4408024692 | L18: 0.49
A19: 5 | B19: Centro | C19: 70 | D19: El Salto | E19: 0.3235486391 | F19: 0.486726087 | G19: 0.05580624073 | H19: 0.018479838 | I19: 0.1154391951 | K19: =VLOOKUP(K$15,A$15:I$24,7,FALSE) -> 0.08207543454 | L19: 0.074
A20: 6 | B20: Centro | C20: 97 | D20: Tlajomulco de Zúñiga | E20: 0.228042773 | F20: 0.503664544 | G20: 0.01381713325 | H20: 0.04781929593 | I20: 0.2066562538 | K20: =VLOOKUP(K$15,A$15:I$24,8,FALSE) -> 0.03209626193 | L20: 0.019
A21: 7 | B21: Centro | C21: 98 | D21: Tlaquepaque | E21: 0.3494745495 | F21: 0.4983474424 | G21: 0.03632201755 | H21: 0.02174868566 | I21: 0.09410730493 | K21: =VLOOKUP(K$15,A$15:I$24,9,FALSE) -> 0.09700312351 | L21: 0.042
A22: 8 | B22: Centro | C22: 101 | D22: Tonalá | E22: 0.3490417882 | F22: 0.4589911323 | G22: 0.04572022341 | H22: 0.03450861387 | I22: 0.1117382423
A23: 9 | B23: Centro | C23: 120 | D23: Zapopan | E23: 0.369973412 | F23: 0.4154210345 | G23: 0.08322563239 | H23: 0.02997132326 | I23: 0.1014085978
A24: 10 | B24: Centro | C24: 124 | D24: Zapotlanejo | E24: 0.2627869683 | F24: 0.498438555 | G24: 0.02565833896 | H24: 0.07132005402 | I24: 0.1417960837

Sheet VivZMG (hidden)
B1: Municipio | C1: Total de viviendas particulares habitadas | D1: Promedio de ocupantes por vivienda | E1: Porcentaje de viviendas con piso de tierra | F1: Agua entubada dentro de la vivienda | G1: Drenaje | H1: Servicio de sanitario | I1: Electricidad | J1: Teléfono | K1: Teléfono Celular | L1: Computadora | M1: Internet | N1: Población
A2: 1 | B2: Jalisco | C2: 2059987 | D2: 3.808193935 | E2: 0.01429587983 | F2: 0.981248558 | G2: 0.9809 | H2: 0.9866585712 | I2: 0.9954720647 | J2: 0.4556325971 | K2: 0.8549234375 | L2: 0.3888423941 | M2: 0.3915916018 | N2: 7844830 | O2: =N2/C2 -> 3.808193935
A3: 2 | B3: Norte | C3: 20396 | D3: 3.846097274 | E3: 0.01186947988 | F3: 0.8737487733 | G3: 0.8015 | H3: 0.8108 | I3: 0.9340850676 | J3: 0.2878623103 | K3: 0.6344508015 | L3: 0.2735262416 | M3: 0.2125860211
A4: 3 | B4: Altos Norte | C4: 101185 | D4: 4.264565 | E4: 0.007118000633 | F4: 0.9752254034 | G4: 0.9593 | H4: 0.9642 | I4: 0.9940502752 | J4: 0.3223091256 | K4: 0.7905039431 | L4: 0.2414431388 | M4: 0.2086370172
A5: 4 | B5: Altos Sur | C5: 105131 | D5: 3.8021516 | E5: 0.005037759387 | F5: 0.9772586589 | G5: 0.9783 | H5: 0.9849 | I5: 0.9946844668 | J5: 0.3225124776 | K5: 0.8069346161 | L5: 0.3092481362 | M5: 0.3030299653
A6: 5 | B6: Ciénega | C6: 101349 | D6: 3.9684555 | E6: 0.01213611407 | F6: 0.9801813011 | G6: 0.9823 | H6: 0.9851 | I6: 0.9953771801 | J6: 0.3538848743 | K6: 0.7768667778 | L6: 0.263206556 | M6: 0.2439483085
A7: 6 | B7: Sureste | C7: 42290 | D7: 3.8720028 | E7: 0.02343639032 | F7: 0.9821978126 | G7: 0.9736 | H7: 0.9786 | I7: 0.9946934628 | J7: 0.3072279833 | K7: 0.6793453026 | L7: 0.2981445937 | M7: 0.3122577246
A8: 7 | B8: Sur | C8: 80299 | D8: 3.7468835 | E8: 0.031481343 | F8: 0.9854183803 | G8: 0.9771 | H8: 0.9829 | I8: 0.9913252266 | J8: 0.4035053713 | K8: 0.7518592955 | L8: 0.3095551597 | M8: 0.3015516485
A9: 8 | B9: Sierra de Amula | C9: 47395 | D9: 3.6250659 | E9: 0.02417141651 | F9: 0.9797128985 | G9: 0.9702 | H9: 0.9762 | I9: 0.9910197973 | J9: 0.4020428539 | K9: 0.7302818524 | L9: 0.3009048235 | M9: 0.2680681225
A10: 9 | B10: Costa Sur | C10: 42269 | D10: 3.5986893 | E10: 0.04792687836 | F10: 0.9579219057 | G10: 0.9373 | H10: 0.9431 | I10: 0.9783177039 | J10: 0.3534701218 | K10: 0.7157075125 | L10: 0.1887752202 | M10: 0.1847115658
A11: 10 | B11: Costa-Sierra Occ | C11: 95609 | D11: 3.4808229 | E11: 0.01061566675 | F11: 0.9792611999 | G11: 0.9793 | H11: 0.9844 | I11: 0.9951763822 | J11: 0.402177815 | K11: 0.8927627356 | L11: 0.4377429146 | M11: 0.4515751346
A12: 11 | B12: Valles | C12: 82493 | D12: 3.8426654 | E12: 0.01241618469 | F12: 0.9857892886 | G12: 0.9831 | H12: 0.9858 | I12: 0.9956144481 | J12: 0.4286131416 | K12: 0.8751183069 | L12: 0.2974641824 | M12: 0.2847783682
A13: 12 | B13: Lagunas | C13: 55606 | D13: 3.838146963 | E13: 0.0314670217 | F13: 0.9833399302 | G13: 0.9705 | H13: 0.9782 | I13: 0.9944046634 | J13: 0.395824926 | K13: 0.8058161824 | L13: 0.2419668238 | M13: 0.2201252204
A14: 13 | B14: Centro | C14: 1285965 | D14: 3.814481 | E14: 0.01094128163 | F14: 0.9841342081 | G14: 0.9883 | H14: 0.9944 | I14: 0.9980990236 | J14: 0.5184626129 | K14: 0.8965091487 | L14: 0.4274547078 | M14: 0.4345827933 | O14: Ocupantes | P14: Suelo tierra | Q14: Agua | R14: Drenaje | S14: Servicio de sanitario | T14: Electricidad | U14: Teléfono | V14: Teléfono Celular | W14: Computadora | X14: Internet
A15: 1 | B15: ZMG | C15: 1275327 | D15: 3.81 | E15: =P15/C15 -> 0.01074234294 | F15: =Q15/C15 -> 0.9842550185 | G15: =R15/$C$15 -> 0.988762882 | H15: =S15/$C$15 -> 0.9941787479 | I15: 0.9980240362 | J15: 0.5134667423 | K15: 0.8976662456 | L15: 0.450505635 | M15: 0.461073905 | N15: 4865122 | O15: 4863579 | P15: 13700 | Q15: =SUM(Q16:Q24) -> 1255247 | R15: =SUM(R16:R24) -> 1260996 | S15: =SUM(S16:S24) -> 1267903 | T15: =SUM(T16:T24) -> 1272807 | U15: =SUM(U16:U24) -> 654838 | V15: =SUM(V16:V24) -> 1144818 | W15: =SUM(W16:W24) -> 574542 | X15: =SUM(X16:X24) -> 588020
A16: 2 | B16: Guadalajara | C16: 393530 | D16: 3.7103855 | E16: 0.003625150306 | F16: 0.994582612 | G16: 0.9911010596 | H16: 0.9971222509 | I16: 0.9994305514 | J16: 0.627100159 | K16: 0.8839418044 | L16: 0.509318365 | M16: 0.5287075805 | N16: 1460148 | O16: 1459795 | P16: 1426 | Q16: 391232 | R16: 390028 | S16: 392231 | T16: 393139 | U16: 246678 | V16: 347710 | W16: 200347 | X16: 207974
A17: 3 | B17: Ixtlahuacán de los Membrillos | C17: 14363 | D17: 3.69317 | E17: 0.004319052595 | F17: 0.9921978405 | G17: 0.9871196825 | H17: 0.9907349356 | I17: 0.9916405434 | J17: 0.160292581 | K17: 0.8863113898 | L17: 0.1869731801 | M17: 0.1593869732 | N17: 53045 | O17: 53033 | P17: 62 | Q17: 14243 | R17: 14178 | S17: 14222 | T17: 14235 | U17: 2301 | V17: 12723 | W17: 2684 | X17: 2288
A18: 4 | B18: Juanacatlán | C18: 4719 | D18: 3.8048315 | E18: 0.008267966928 | F18: 0.9862200551 | G18: 0.9889807163 | H18: 0.98749205 | I18: 0.9955480178 | J18: 0.263726945 | K18: 0.860504558 | L18: 0.2749629001 | M18: 0.2045791817 | N18: 17955 | O18: 17949 | P18: 39 | Q18: 4652 | R18: 4667 | S18: 4658 | T18: 4696 | U18: 1244 | V18: 4059 | W18: 1297 | X18: 965
A19: 5 | B19: El Salto | C19: 44921 | D19: 4.083546671 | E19: 0.0291147424 | F19: 0.9497737254 | G19: 0.9750896017 | H19: 0.9880286243 | I19: 0.9968566779 | J19: 0.302717525 | K19: 0.8525536706 | L19: 0.2339880063 | M19: 0.209042067 | N19: 183437 | O19: 183042 | P19: 1306 | Q19: 42604 | R19: 43802 | S19: 44320 | T19: 44716 | U19: 13579 | V19: 38243 | W19: 10496 | X19: 9377
A20: 6 | B20: Tlajomulco de Zúñiga | C20: 145220 | D20: 3.7835147 | E20: 0.006179515972 | F20: 0.9890807884 | G20: 0.9878322545 | H20: 0.9928077874 | I20: 0.9970445793 | J20: 0.330469767 | K20: 0.9287461163 | L20: 0.3723278932 | M20: 0.3598861922 | N20: 549442 | O20: 549202 | P20: 897 | Q20: 143572 | R20: 143453 | S20: 144113 | T20: 144728 | U20: 47970 | V20: 134814 | W20: 54046 | X20: 52240
A21: 7 | B21: Tlaquepaque | C21: 166239 | D21: 3.9954102 | E21: 0.01853345532 | F21: 0.9774516649 | G21: 0.9903452258 | H21: 0.9943719452 | I21: 0.9988382732 | J21: 0.444399634 | K21: 0.8917968844 | L21: 0.386662413 | M21: 0.3987371488 | N21: 664193 | O21: 663874 | P21: 3079 | Q21: 162386 | R21: 164634 | S21: 165197 | T21: 165939 | U21: 73829 | V21: 148156 | W21: 64237 | X21: 66243
A22: 8 | B22: Tonalá | C22: 129922 | D22: 4.1264066 | E22: 0.01604978205 | F22: 0.9771036459 | G22: 0.9859069288 | H22: 0.9936078123 | I22: 0.9982440737 | J22: 0.389245722 | K22: 0.8916100611 | L22: 0.3360750427 | M22: 0.375575682 | N22: 536111 | O22: 535989 | P22: 2084 | Q22: 126873 | R22: 128091 | S22: 129016 | T22: 129618 | U22: 50542 | V22: 115772 | W22: 43638 | X22: 48767
A23: 9 | B23: Zapopan | C23: 358742 | D23: 3.713733 | E23: 0.01308419553 | F23: 0.9830627556 | G23: 0.9894882673 | H23: 0.9949982854 | I23: 0.9985251354 | J23: 0.596567385 | K23: 0.914237601 | L23: 0.5399705027 | M23: 0.5469572903 | N23: 1332272 | O23: 1332201 | P23: 4693 | Q23: 352602 | R23: 354971 | S23: 356883 | T23: 358148 | U23: 213975 | V23: 327916 | W23: 193675 | X23: 196181
A24: 10 | B24: Zapotlanejo | C24: 17671 | D24: 3.8774829 | E24: 0.006453073701 | F24: 0.9669987547 | G24: 0.9717616434 | H24: 0.9771878184 | I24: 0.995584739 | J24: 0.267179894 | K24: 0.8731461565 | L24: 0.2333295596 | M24: 0.22557455 | N24: 68519 | O24: 68494 | P24: 114 | Q24: 17083 | R24: 17172 | S24: 17263 | T24: 17588 | U24: 4720 | V24: 15425 | W24: 4122 | X24: 3985
C25: =SUM(C16:C24) -> 1275327 | N25: =SUM(N16:N24) -> 4865122 | O25: =SUM(O16:O24) -> 4863579 | P25: 13700 | Q25: 1255247 | R25: 1260996 | S25: 1267903 | T25: 1272807 | U25: 654838 | V25: 1144818 | W25: 574542 | X25: 588020
H27: =VLOOKUP(DatosAM!E$142,VivZMG!A15:N24,1,FALSE) -> 1 | J27: max | K27: min | L27: val
F28: 1 | G28: Agua entubada | H28: =VLOOKUP(H$27,A$15:N$24,6,FALSE) -> 0.9842550185 | J28: =IF(H28=MAX($H$28:$H$31), H28, NA()) ->  | K28: =IF(H28=MIN($H$28:$H$31), H28, NA()) -> 0.9842550185 | L28: =IF(AND(ISNA(J28), ISNA(K28)), H28, NA()) -> 
G29: Drenaje | H29: =VLOOKUP(H$27,A$15:N$24,7,FALSE) -> 0.988762882 | J29: =IF(H29=MAX($H$28:$H$31), H29, NA()) ->  | K29: =IF(H29=MIN($H$28:$H$31), H29, NA()) ->  | L29: 0.988762882
G30: Servicio de sanitario | H30: =VLOOKUP(H$27,A$15:N$24,8,FALSE) -> 0.9941787479 | L30: 0.9941787479
G31: Electricidad | H31: =VLOOKUP(H$27,A$15:N$24,9,FALSE) -> 0.9980240362 | J31: 0.9980240362
F32: 2 | G32: Teléfono | H32: =VLOOKUP(H$27,A$15:N$24,10,FALSE) -> 0.5134667423 | J32: =IF(H32=MAX(H32:H35), H32, NA()) ->  | K32: =IF(H32=MIN(H32:H35), H32, NA()) ->  | L32: 0.5134667423
G33: Teléfono Celular | H33: =VLOOKUP(H$27,A$15:N$24,11,FALSE) -> 0.8976662456 | J33: =IF(H33=MAX(H32:H35), H33, NA()) -> 0.8976662456 | K33: =IF(H33=MIN(H32:H35), H33, NA()) -> 
G34: Computadora | H34: =VLOOKUP(H$27,A$15:N$24,12,FALSE) -> 0.450505635 | J34: =IF(H34=MAX(H32:H35), H34, NA()) ->  | K34: =IF(H34=MIN(H32:H35), H34, NA()) -> 0.450505635
G35: Internet | H35: =VLOOKUP(H$27,A$15:N$24,13,FALSE) -> 0.461073905 | J35: =IF(H35=MAX(H32:H35), H35, NA()) ->  | K35: =IF(H35=MIN(H32:H35), H35, NA()) ->  | L35: 0.461073905

Sheet Distr terr (hidden)
A1: Clave | B1: Región | C1: Clave | D1: Municipio | E1: Superficie en Km² | F1: Densidad | G1: Municipios / localidades
C2: 14 | D2: Jalisco | E2: 78583.57352 | F2: 99.82786031 | G2: 125
A3: 1 | B3: Norte | C3: 1 | D3: Norte | E3: 8816.142045 | F3: 8.897882951 | G3: 10
A4: 2 | B4: Altos Norte | C4: 2 | D4: Altos Norte | E4: 8250.120056 | F4: 49.38316015 | G4: 8
A5: 3 | B5: Altos Sur | C5: 3 | D5: Altos Sur | E5: 6603.521556 | F5: 60.53194445 | G5: 12
A6: 4 | B6: Ciénega | C6: 4 | D6: Ciénega | E6: 3763.259002 | F6: 106.8751845 | G6: 9
A7: 5 | B7: Sureste | C7: 5 | D7: Sureste | E7: 3615.313464 | F7: 45.29261477 | G7: 10
A8: 6 | B8: Sur | C8: 6 | D8: Sur | E8: 8331.752546 | F8: 36.11137013 | G8: 12
A9: 7 | B9: Sierra de Amula | C9: 7 | D9: Sierra de Amula | E9: 5794.812406 | F9: 29.64893218 | G9: 14
A10: 8 | B10: Costa Sur | C10: 8 | D10: Costa Sur | E10: 9288.169439 | F10: 16.37706988 | G10: 6
A11: 9 | B11: Costa Sierra-Occ | C11: 9 | D11: Costa-Sierra Occ | E11: 9258.365072 | F11: 35.94565535 | G11: 8
A12: 10 | B12: Valles | C12: 10 | D12: Valles | E12: 5604.851584 | F12: 56.55689455 | G12: 12
A13: 11 | B13: Lagunas | C13: 11 | D13: Lagunas | E13: 3808.515802 | F13: 56.03862793 | G13: 12
A14: 12 | B14: Centro | C14: 12 | D14: Centro | E14: 5448.750547 | F14: 900.2594187 | G14: 12
A15: 3 | B15: Altos Sur | C15: 1 | D15: Acatic | E15: 339.2054025 | F15: 63.47186644 | G15: 100
A16: 11 | B16: Lagunas | C16: 2 | D16: Acatlán de Juárez | E16: 153.2696228 | F16: 145.2407828 | G16: 28
A17: 10 | B17: Valles | C17: 3 | D17: Ahualulco de Mercado | E17: 274.0922595 | F17: 85.23407427 | G17: 28
A18: 11 | B18: Lagunas | C18: 4 | D18: Amacueca | E18: 125.1973453 | F18: 43.01209413 | G18: 27
A19: 10 | B19: Valles | C19: 5 | D19: Amatitán | E19: 173.6399235 | F19: 88.36677472 | G19: 32
A20: 10 | B20: Valles | C20: 6 | D20: Ameca | E20: 837.8127244 | F20: 72.75014836 | G20: 92
A21: 10 | B21: Valles | C21: 7 | D21: San Juanito de Escobedo | E21: 194.4821928 | F21: 48.43631114 | G21: 10
A22: 3 | B22: Altos Sur | C22: 8 | D22: Arandas | E22: 942 | F22: 81.8641189 | G22: 300
A23: 10 | B23: Valles | C23: 9 | D23: El Arenal | E23: 103.9946063 | F23: 191.356078 | G23: 36
A24: 11 | B24: Lagunas | C24: 10 | D24: Atemajac de Brizuela | E24: 355.4960389 | F24: 18.8947253 | G24: 18
A25: 7 | B25: Sierra de Amula | C25: 11 | D25: Atengo | E25: 441.0705114 | F25: 12.41298128 | G25: 21
A26: 9 | B26: Costa Sierra-Occ | C26: 12 | D26: Atenguillo | E26: 610.8025806 | F26: 6.383404596 | G26: 52
A27: 4 | B27: Ciénega | C27: 13 | D27: Atotonilco el Alto | E27: 510.9695288 | F27: 118.3632224 | G27: 131
A28: 11 | B28: Lagunas | C28: 14 | D28: Atoyac | E28: 451.1705312 | F28: 18.31679915 | G28: 30
A29: 7 | B29: Sierra de Amula | C29: 15 | D29: Autlán de Navarro | E29: 705.9443525 | F29: 85.80279704 | G29: 124
A30: 4 | B30: Ciénega | C30: 16 | D30: Ayotlán | E30: 431.0945813 | F30: 88.06188165 | G30: 83
A31: 7 | B31: Sierra de Amula | C31: 17 | D31: Ayutla | E31: 883.805339 | F31: 14.0902068 | G31: 79
A32: 4 | B32: Ciénega | C32: 18 | D32: La Barca | E32: 418.2081334 | F32: 155.5565155 | G32: 87
A33: 1 | B33: Norte | C33: 19 | D33: Bolaños | E33: 866.7550025 | F33: 8.469521352 | G33: 165
A34: 9 | B34: Costa Sierra-Occ | C34: 20 | D34: Cabo Corrientes | E34: 1540.621743 | F34: 6.687559778 | G34: 120
A35: 8 | B35: Costa Sur | C35: 21 | D35: Casimiro Castillo | E35: 522.5021416 | F35: 41.30892159 | G35: 46
A36: 8 | B36: Costa Sur | C36: 22 | D36: Cihuatlán | E36: 494.8501719 | F36: 83.45960524 | G36: 73
A37: 6 | B37: Sur | C37: 23 | D37: Zapotlán el Grande | E37: 274.1512535 | F37: 384.5431989 | G37: 52
A38: 11 | B38: Lagunas | C38: 24 | D38: Cocula | E38: 330.9540099 | F38: 80.63658152 | G38: 40
A39: 1 | B39: Norte | C39: 25 | D39: Colotlán | E39: 642.5818788 | F39: 27.80190446 | G39: 54
A40: 5 | B40: Sureste | C40: 26 | D40: Concepción de Buenos Aires | E40: 265.4441654 | F40: 22.9351434 | G40: 21
A41: 8 | B41: Costa Sur | C41: 27 | D41: Cuautitlán de García Barragán | E41: 1394.297709 | F41: 13.00869957 | G41: 132
A42: 7 | B42: Sierra de Amula | C42: 28 | D42: Cuautla | E42: 417.207674 | F42: 5.081402217 | G42: 28
A43: 12 | B43: Centro | C43: 29 | D43: Cuquío | E43: 642.5294578 | F43: 27.98315281 | G43: 143
A44: 5 | B44: Sureste | C44: 30 | D44: Chapala | E44: 613.4269183 | F44: 82.7123794 | G44: 45
A45: 1 | B45: Norte | C45: 31 | D45: Chimaltitán | E45: 656.2685477 | F45: 5.154901925 | G45: 71
A46: 7 | B46: Sierra de Amula | C46: 32 | D46: Chiquilistlán | E46: 297.8173014 | F46: 20.48907156 | G46: 23
A47: 4 | B47: Ciénega | C47: 33 | D47: Degollado | E47: 425.0104149 | F47: 50.53758507 | G47: 95
A48: 7 | B48: Sierra de Amula | C48: 34 | D48: Ejutla | E48: 297.3713978 | F48: 6.26153024 | G48: 17
A49: 2 | B49: Altos Norte | C49: 35 | D49: Encarnación de Díaz | E49: 1253.20871 | F49: 42.73430241 | G49: 354
A50: 10 | B50: Valles | C50: 36 | D50: Etzatlán | E50: 337.990336 | F50: 58.72061384 | G50: 34
A51: 7 | B51: Sierra de Amula | C51: 37 | D51: El Grullo | E51: 177.2001592 | F51: 137.2007797 | G51: 40
A52: 9 | B52: Costa Sierra-Occ | C52: 38 | D52: Guachinango | E52: 838.9639329 | F52: 4.98710354 | G52: 67
A53: 12 | B53: Centro | C53: 39 | D53: Guadalajara | E53: 151.4210225 | F53: 9642.967506 | G53: 2
A54: 10 | B54: Valles | C54: 40 | D54: Hostotipaquillo | E54: 755.8779645 | F54: 12.91346019 | G54: 52
A55: 1 | B55: Norte | C55: 41 | D55: Huejúcar | E55: 308.9086798 | F55: 18.23516258 | G55: 32
A56: 1 | B56: Norte | C56: 42 | D56: Huejuquilla el Alto | E56: 770.3957735 | F56: 11.40582581 | G56: 62
A57: 8 | B57: Costa Sur | C57: 43 | D57: La Huerta | E57: 2013.676883 | F57: 12.19808412 | G57: 139
A58: 12 | B58: Centro | C58: 44 | D58: Ixtlahuacán de los Membrillos | E58: 202.3876984 | F58: 262.0959694 | G58: 105
A59: 12 | B59: Centro | C59: 45 | D59: Ixtlahuacán del Río | E59: 831.1663951 | F59: 22.943661 | G59: 178
A60: 3 | B60: Altos Sur | C60: 46 | D60: Jalostotitlán | E60: 519.9687418 | F60: 64.95967408 | G60: 177
A61: 4 | B61: Ciénega | C61: 47 | D61: Jamay | E61: 162.7768592 | F61: 152.0670698 | G61: 15
A62: 3 | B62: Altos Sur | C62: 48 | D62: Jesús María | E62: 665.2187216 | F62: 29.26706566 | G62: 167
A63: 6 | B63: Sur | C63: 49 | D63: Jilotlán de los Dolores | E63: 1475.055815 | F63: 6.723135422 | G63: 157
A64: 5 | B64: Sureste | C64: 50 | D64: Jocotepec | E64: 334.4348781 | F64: 139.1033144 | G64: 59
A65: 12 | B65: Centro | C65: 51 | D65: Juanacatlán | E65: 138.3125325 | F65: 129.8147006 | G65: 24
A66: 7 | B66: Sierra de Amula | C66: 52 | D66: Juchitlán | E66: 246.413191 | F66: 22.88026861 | G66: 28
A67: 2 | B67: Altos Norte | C67: 53 | D67: Lagos de Moreno | E67: 2516.67929 | F67: 65.55503543 | G67: 445
A68: 7 | B68: Sierra de Amula | C68: 54 | D68: El Limón | E68: 114.2861768 | F68: 47.06605954 | G68: 11
A69: 10 | B69: Valles | C69: 55 | D69: Magdalena | E69: 293.2380165 | F69: 77.21713669 | G69: 24
A70: 5 | B70: Sureste | C70: 56 | D70: Santa María del Oro | E70: 775.0055991 | F70: 2.616755288 | G70: 89
A71: 5 | B71: Sureste | C71: 57 | D71: La Manzanilla de la Paz | E71: 134.6871304 | F71: 27.3819777 | G71: 9
A72: 9 | B72: Costa Sierra-Occ | C72: 58 | D72: Mascota | E72: 1844.267649 | F72: 7.849728321 | G72: 157
A73: 5 | B73: Sureste | C73: 59 | D73: Mazamitla | E73: 288.8489489 | F73: 47.77237394 | G73: 54
A74: 3 | B74: Altos Sur | C74: 60 | D74: Mexticacán | E74: 287.5385087 | F74: 17.69502118 | G74: 62
A75: 1 | B75: Norte | C75: 61 | D75: Mezquitic | E75: 3360.715697 | F75: 5.78805283 | G75: 530
A76: 9 | B76: Costa Sierra-Occ | C76: 62 | D76: Mixtlán | E76: 630.1864524 | F76: 5.595169472 | G76: 32
A77: 4 | B77: Ciénega | C77: 63 | D77: Ocotlán | E77: 242.4633034 | F77: 410.2105292 | G77: 52
A78: 2 | B78: Altos Norte | C78: 64 | D78: Ojuelos de Jalisco | E78: 1165.771035 | F78: 27.75587919 | G78: 62
A79: 6 | B79: Sur | C79: 65 | D79: Pihuamo | E79: 875.3987749 | F79: 12.78503046 | G79: 122
A80: 4 | B80: Ciénega | C80: 66 | D80: Poncitlán | E80: 835.8600101 | F80: 62.1443775 | G80: 71
A81: 9 | B81: Costa Sierra-Occ | C81: 67 | D81: Puerto Vallarta | E81: 680.3356718 | F81: 405.1529435 | G81: 104
A82: 8 | B82: Costa Sur | C82: 68 | D82: Villa Purificación | E82: 1848.697895 | F82: 5.790021196 | G82: 142
A83: 5 | B83: Sureste | C83: 69 | D83: Quitupan | E83: 676.5026758 | F83: 12.38576032 | G83: 122
A84: 12 | B84: Centro | C84: 70 | D84: El Salto | E84: 87.85942939 | F84: 2087.846476 | G84: 28
A85: 12 | B85: Centro | C85: 71 | D85: San Cristóbal de la Barranca | E85: 521.4859285 | F85: 5.977150733 | G85: 74
A86: 2 | B86: Altos Norte | C86: 72 | D86: San Diego de Alejandría | E86: 352.4819816 | F86: 20.84929268 | G86: 74
A87: 2 | B87: Altos Norte | C87: 73 | D87: San Juan de los Lagos | E87: 847.6840667 | F87: 82.25352196 | G87: 260
A88: 3 | B88: Altos Sur | C88: 74 | D88: San Julián | E88: 262.0910452 | F88: 60.62778675 | G88: 51
A89: 10 | B89: Valles | C89: 75 | D89: San Marcos | E89: 305.9451516 | F89: 12.36496143 | G89: 36
A90: 1 | B90: Norte | C90: 76 | D90: San Martín de Bolaños | E90: 690.7344058 | F90: 4.519826975 | G90: 62
A91: 11 | B91: Lagunas | C91: 77 | D91: San Martín Hidalgo | E91: 344.1621528 | F91: 80.70904884 | G91: 38
A92: 3 | B92: Altos Sur | C92: 78 | D92: San Miguel el Alto | E92: 787.0874886 | F92: 41.87590386 | G92: 184
A93: 6 | B93: Sur | C93: 79 | D93: Gómez Farías | E93: 353.6778467 | F93: 40.37007161 | G93: 19
A94: 9 | B94: Costa Sierra-Occ | C94: 80 | D94: San Sebastián del Oeste | E94: 1117.14271 | F94: 5.051279439 | G94: 75
A95: 1 | B95: Norte | C95: 81 | D95: Santa María de los Ángeles | E95: 258.9845513 | F95: 11.71112325 | G95: 22
A96: 11 | B96: Lagunas | C96: 82 | D96: Sayula | E96: 215.941877 | F96: 170.314348 | G96: 42
A97: 10 | B97: Valles | C97: 83 | D97: Tala | E97: 412.3184667 | F97: 194.9100185 | G97: 85
A98: 9 | B98: Costa Sierra-Occ | C98: 84 | D98: Talpa de Allende | E98: 1996.044332 | F98: 7.577988002 | G98: 159
A99: 6 | B99: Sur | C99: 85 | D99: Tamazula de Gordiano | E99: 1363.68472 | F99: 28.15606822 | G99: 185
A100: 11 | B100: Lagunas | C100: 86 | D100: Tapalpa | E100: 619.4844092 | F100: 31.48747524 | G100: 86
A101: 6 | B101: Sur | C101: 87 | D101: Tecalitlán | E101: 1300.712266 | F101: 12.74609338 | G101: 180
A102: 7 | B102: Sierra de Amula | C102: 88 | D102: Tecolotlán | E102: 765.7734156 | F102: 22.53538664 | G102: 43
A103: 11 | B103: Lagunas | C103: 89 | D103: Techaluta de Montenegro | E103: 79.44146073 | F103: 46.61293946 | G103: 14
A104: 7 | B104: Sierra de Amula | C104: 90 | D104: Tenamaxtlán | E104: 281.6051787 | F104: 24.87525276 | G104: 26
A105: 2 | B105: Altos Norte | C105: 91 | D105: Teocaltiche | E105: 933.8504581 | F105: 44.20193794 | G105: 177
A106: 11 | B106: Lagunas | C106: 92 | D106: Teocuitatlán de Corona | E106: 335.5691336 | F106: 30.74478242 | G106: 32
A107: 3 | B107: Altos Sur | C107: 93 | D107: Tepatitlán de Morelos | E107: 1388 | F107: 101.8170029 | G107: 330
A108: 10 | B108: Valles | C108: 94 | D108: Tequila | E108: 1696.227837 | F108: 24.76613052 | G108: 157
A109: 10 | B109: Valles | C109: 95 | D109: Teuchitlán | E109: 219.2321049 | F109: 43.82569791 | G109: 18
A110: 5 | B110: Sureste | C110: 96 | D110: Tizapán el Alto | E110: 193.5561416 | F110: 108.2941612 | G110: 29
A111: 12 | B111: Centro | C111: 97 | D111: Tlajomulco de Zúñiga | E111: 713.9531744 | F111: 769.5770811 | G111: 272
A112: 12 | B112: Centro | C112: 98 | D112: Tlaquepaque | E112: 110.4419617 | F112: 6013.955111 | G112: 31
A113: 6 | B113: Sur | C113: 99 | D113: Tolimán | E113: 512.1828208 | F113: 20.12953106 | G113: 43
A114: 8 | B114: Costa Sur | C114: 100 | D114: Tomatlán | E114: 3014.144638 | F114: 11.8852956 | G114: 186
A115: 12 | B115: Centro | C115: 101 | D115: Tonalá | E115: 166.1044227 | F115: 3227.554036 | G115: 59
A116: 7 | B116: Sierra de Amula | C116: 102 | D116: Tonaya | E116: 293.8885487 | F116: 20.27979663 | G116: 25
A117: 6 | B117: Sur | C117: 103 | D117: Tonila | E117: 144.4180863 | F117: 54.83385219 | G117: 16
A118: 1 | B118: Norte | C118: 104 | D118: Totatiche | E118: 587.4417129 | F118: 7.51053237 | G118: 54
A119: 4 | B119: Ciénega | C119: 105 | D119: Tototlán | E119: 337.0685541 | F119: 68.74269261 | G119: 99
A120: 7 | B120: Sierra de Amula | C120: 106 | D120: Tuxcacuesco | E120: 428.8157688 | F120: 9.862044047 | G120: 20
A121: 5 | B121: Sureste | C121: 107 | D121: Tuxcueca | E121: 137.7729416 | F121: 44.68221355 | G121: 22
A122: 6 | B122: Sur | C122: 108 | D122: Tuxpan | E122: 726.3609333 | F122: 47.54523325 | G122: 77
A123: 2 | B123: Altos Norte | C123: 109 | D123: Unión de San Antonio | E123: 728.4821095 | F123: 24.59223057 | G123: 144
A124: 7 | B124: Sierra de Amula | C124: 110 | D124: Unión de Tula | E124: 443.6133911 | F124: 30.31017609 | G124: 48
A125: 3 | B125: Altos Sur | C125: 111 | D125: Valle de Guadalupe | E125: 351.7083946 | F125: 19.68676354 | G125: 86
A126: 5 | B126: Sureste | C126: 112 | D126: Valle de Juárez | E126: 195.634065 | F126: 27.54632737 | G126: 39
A127: 6 | B127: Sur | C127: 113 | D127: San Gabriel | E127: 747.4475601 | F127: 21.54666208 | G127: 63
A128: 11 | B128: Lagunas | C128: 114 | D128: Villa Corona | E128: 318.0198657 | F128: 56.04681319 | G128: 25
A129: 1 | B129: Norte | C129: 115 | D129: Villa Guerrero | E129: 673.3557964 | F129: 8.044781123 | G129: 61
A130: 2 | B130: Altos Norte | C130: 116 | D130: Villa Hidalgo | E130: 451.9624058 | F130: 44.82009951 | G130: 41
A131: 3 | B131: Altos Sur | C131: 117 | D131: Cañadas de Obregón | E131: 272.2762131 | F131: 15.09496534 | G131: 45
A132: 3 | B132: Altos Sur | C132: 118 | D132: Yahualica de González Gallo | E132: 563.4270399 | F132: 40.08682296 | G132: 154
A133: 11 | B133: Lagunas | C133: 119 | D133: Zacoalco de Torres | E133: 479.8093552 | F133: 58.78376421 | G133: 34
A134: 12 | B134: Centro | C134: 120 | D134: Zapopan | E134: 1163.629906 | F134: 1144.927604 | G134: 234
A135: 6 | B135: Sur | C135: 121 | D135: Zapotiltic | E135: 252.8287686 | F135: 115.4536335 | G135: 30
A136: 6 | B136: Sur | C136: 122 | D136: Zapotitlán de Vadillo | E136: 305.8337009 | F136: 22.97653914 | G136: 37
A137: 4 | B137: Ciénega | C137: 123 | D137: Zapotlán del Rey | E137: 399.807617 | F137: 44.75402478 | G137: 58
A138: 12 | B138: Centro | C138: 124 | D138: Zapotlanejo | E138: 719.4586174 | F138: 95.23688832 | G138: 200
A139: 3 | B139: Altos Sur | C139: 125 | D139: San Ignacio Cerro Gordo | E139: 225 | F139: 84.23111111 | G139: 74

Sheet Viv (hidden)
A1: Clave | B1: Región | C1: Clave | D1: Municipio | E1: Total de viviendas particulares habitadas | F1: Promedio de ocupantes por vivienda | G1: Porcentaje de viviendas con piso de tierra | H1: Agua entubada dentro de la vivienda | I1: Drenaje | J1: Servicio de sanitario | K1: Electricidad | L1: Teléfono | M1: Teléfono Celular | N1: Computadora | O1: Internet
C2: 14 | D2: Jalisco | E2: 1830334 | F2: 0.0401321 | G2: 0.0302425 | H2: 0.9044970705 | I2: 0.9740049719 | J2: 0.9768795529 | K2: 0.989544808 | L2: 0.5527966931 | M2: 0.7542266555 | N2: 0.3620872856 | O2: 0.2703677221 | Q2: =VLOOKUP(Datos!E141,C15:O139,1,FALSE) -> 1 | S2: =VLOOKUP(DatosR!F142,C2:O14,1,FALSE) -> 14
A3: 1 | B3: Norte | C3: 1 | D3: Norte | E3: 19431 | F3: 0.04 | G3: 0.1218360996 | H3: 0.7338289195 | I3: 0.741882195 | J3: 0.7581436167 | K3: 0.8431676217 | L3: 0.3408187497 | M3: 0.4504155697 | N3: 0.1630788292 | O3: 0.07960353105 | U3: max | V3: min | W3: val
A4: 2 | B4: Altos Norte | C4: 2 | D4: Altos Norte | E4: 90685 | F4: 0.042 | G4: 0.02358501032 | H4: 0.8709024999 | I4: 0.9208350832 | J4: 0.9308481245 | K4: 0.985842488 | L4: 0.386463606 | M4: 0.6340929688 | N4: 0.2150261931 | O4: 0.1383811145 | P4: Agua entubada | Q4: =VLOOKUP(Q$2,C$15:O$139,6,FALSE) -> 0.8048734057 | S4: =VLOOKUP(S$2,C$2:O$14,6,FALSE) -> 0.9044970705 | U4: =IF(S4=MAX($S$4:$S$7), S4, NA()) ->  | V4: =IF(S4=MIN($S$4:$S$7), S4, NA()) -> 0.9044970705 | W4: =IF(AND(ISNA(U4), ISNA(V4)), S4, NA()) -> 
A5: 3 | B5: Altos Sur | C5: 3 | D5: Altos Sur | E5: 95115 | F5: 0.039 | G5: 0.01417089679 | H5: 0.8930427176 | I5: 0.9625206842 | J5: 0.9663993086 | K5: 0.9890808293 | L5: 0.4250993371 | M5: 0.7231631868 | N5: 0.2390834642 | O5: 0.1583806743 | P5: Drenaje | Q5: =VLOOKUP(Q$2,C$15:O$139,7,FALSE) -> 0.962307253 | S5: =VLOOKUP(S$2,C$2:O$14,7,FALSE) -> 0.9740049719 | U5: =IF(S5=MAX($S$4:$S$7), S5, NA()) ->  | V5: =IF(S5=MIN($S$4:$S$7), S5, NA()) ->  | W5: =IF(AND(ISNA(U5), ISNA(V5)), S5, NA()) -> 0.9740049719
A6: 4 | B6: Ciénega | C6: 4 | D6: Ciénega | E6: 122334 | F6: 0.041 | G6: 0.02947961639 | H6: 0.8614458326 | I6: 0.9709141388 | J6: 0.973994398 | K6: 0.9909317168 | L6: 0.4334787216 | M6: 0.6166432567 | N6: 0.2256064004 | O6: 0.1502345104 | P6: Servicio de sanitario | Q6: =VLOOKUP(Q$2,C$15:O$139,8,FALSE) -> 0.9607843137 | S6: =VLOOKUP(S$2,C$2:O$14,8,FALSE) -> 0.9768795529 | U6: =IF(S6=MAX($S$4:$S$7), S6, NA()) ->  | V6: =IF(S6=MIN($S$4:$S$7), S6, NA()) ->  | W6: =IF(AND(ISNA(U6), ISNA(V6)), S6, NA()) -> 0.9768795529
A7: 5 | B7: Sureste | C7: 5 | D7: Sureste | E7: 31553 | F7: 0.037 | G7: 0.05521609064 | H7: 0.8109705714 | I7: 0.9317040615 | J7: 0.9343100489 | K7: 0.9636115172 | L7: 0.4455920676 | M7: 0.5148731965 | N7: 0.1790821839 | O7: 0.1242293269 | P7: Electricidad | Q7: =VLOOKUP(Q$2,C$15:O$139,9,FALSE) -> 0.9927660385 | S7: =VLOOKUP(S$2,C$2:O$14,9,FALSE) -> 0.989544808 | U7: =IF(S7=MAX($S$4:$S$7), S7, NA()) -> 0.989544808 | V7: =IF(S7=MIN($S$4:$S$7), S7, NA()) ->  | W7: =IF(AND(ISNA(U7), ISNA(V7)), S7, NA()) -> 
A8: 6 | B8: Sur | C8: 6 | D8: Sur | E8: 82043 | F8: 0.04 | G8: 0.06276331026 | H8: 0.9033935178 | I8: 0.9670235125 | J8: 0.9707968191 | K8: 0.9838005924 | L8: 0.4643133688 | M8: 0.6243777731 | N8: 0.2465431841 | O8: 0.1647595285
A9: 7 | B9: Sierra de Amula | C9: 7 | D9: Sierra de Amula | E9: 25876 | F9: 0.037 | G9: 0.03759077317 | H9: 0.8429934823 | I9: 0.9616697703 | J9: 0.9617473619 | K9: 0.9852188082 | L9: 0.4639587213 | M9: 0.5421710118 | N9: 0.2116309745 | O9: 0.1329919305 | P9: Teléfono | Q9: =VLOOKUP(Q$2,C$15:O$139,10,FALSE) -> 0.3571292595 | S9: =VLOOKUP(S$2,C$2:O$14,10,FALSE) -> 0.5527966931
A10: 8 | B10: Costa Sur | C10: 8 | D10: Costa Sur | E10: 44842 | F10: 0.038 | G10: 0.06137492415 | H10: 0.7595940587 | I10: 0.9430069225 | J10: 0.9393104375 | K10: 0.9666644264 | L10: 0.4135582588 | M10: 0.5615744786 | N10: 0.2340659094 | O10: 0.1655353182 | P10: Teléfono Celular | Q10: =VLOOKUP(Q$2,C$15:O$139,11,FALSE) -> 0.7028364744 | S10: =VLOOKUP(S$2,C$2:O$14,11,FALSE) -> 0.7542266555
A11: 9 | B11: Costa Norte | C11: 9 | D11: Costa Norte | E11: 80199 | F11: 0.038 | G11: 0.02520431556 | H11: 0.8338462722 | I11: 0.9628632248 | J11: 0.9673386166 | K11: 0.9848683029 | L11: 0.456592547 | M11: 0.8042112282 | N11: 0.3694442307 | O11: 0.3004539509 | P11: Computadora | Q11: =VLOOKUP(Q$2,C$15:O$139,12,FALSE) -> 0.1364934323 | S11: =VLOOKUP(S$2,C$2:O$14,12,FALSE) -> 0.3620872856
A12: 10 | B12: Sierra Occidental | C12: 10 | D12: Sierra Occidental | E12: 16262 | F12: 0.037 | G12: 0.05025280552 | H12: 0.8159142699 | I12: 0.9289893453 | J12: 0.9297899858 | K12: 0.9603990885 | L12: 0.3738991193 | M12: 0.5126562789 | N12: 0.1662252879 | O12: 0.09576892283 | P12: Internet | Q12: =VLOOKUP(Q$2,C$15:O$139,13,FALSE) -> 0.07405292214 | S12: =VLOOKUP(S$2,C$2:O$14,13,FALSE) -> 0.2703677221
A13: 11 | B13: Valles | C13: 11 | D13: Valles | E13: 87388 | F13: 0.04 | G13: 0.02743041549 | H13: 0.8388445895 | I13: 0.972700324 | J13: 0.9730679964 | K13: 0.9872004044 | L13: 0.4415515775 | M13: 0.6300985822 | N13: 0.2213502769 | O13: 0.137222235
A14: 12 | B14: Centro | C14: 12 | D14: Centro | E14: 1134606 | F14: 0.041 | G14: 0.02669015088 | H14: 0.9372992728 | I14: 0.9884935938 | J14: 0.9908298194 | K14: 0.9954023009 | L14: 0.6293182797 | M14: 0.8257737734 | N14: 0.4386898404 | O14: 0.3373531303
A15: 3 | B15: Altos Sur | C15: 1 | D15: Acatic | E15: 5254 | F15: 0.04031785 | G15: 0.02398629 | H15: 0.8048734057 | I15: 0.962307253 | J15: 0.9607843137 | K15: 0.9927660385 | L15: 0.3571292595 | M15: 0.7028364744 | N15: 0.1364934323 | O15: 0.07405292214
A16: 12 | B16: Centro | C16: 2 | D16: Acatlán de Juárez | E16: 5361 | F16: 0.04058537 | G16: 0.01402656 | H16: 0.9530577894 | I16: 0.989152796 | J16: 0.9872825884 | K16: 0.9934542734 | L16: 0.3873199925 | M16: 0.7589302413 | N16: 0.2513559005 | O16: 0.1599027492 | U16: max | V16: min | W16: val
A17: 11 | B17: Valles | C17: 3 | D17: Ahualulco de Mercado | E17: 5652 | F17: 0.03835371 | G17: 0.03048564 | H17: 0.9280397022 | I17: 0.9840482099 | J17: 0.9836937256 | K17: 0.992201347 | L17: 0.4650833038 | M17: 0.6492378589 | N17: 0.2532789791 | O17: 0.180786955 | U17: =IF(Q4=MAX($Q$4:$Q$7), Q4, NA()) ->  | V17: =IF(Q4=MIN($Q$4:$Q$7), Q4, NA()) -> 0.8048734057 | W17: =IF(AND(ISNA(U17), ISNA(V17)), Q4, NA()) -> 
A18: 6 | B18: Sur | C18: 4 | D18: Amacueca | E18: 1410 | F18: 0.03907026 | G18: 0.05606813 | H18: 0.9496096522 | I18: 0.9815471966 | J18: 0.982966643 | K18: 0.9836763662 | L18: 0.4535131299 | M18: 0.5110007097 | N18: 0.156848829 | O18: 0.08587650816 | U18: =IF(Q5=MAX($Q$4:$Q$7), Q5, NA()) ->  | V18: =IF(Q5=MIN($Q$4:$Q$7), Q5, NA()) ->  | W18: =IF(AND(ISNA(U18), ISNA(V18)), Q5, NA()) -> 0.962307253
A19: 11 | B19: Valles | C19: 5 | D19: Amatitán | E19: 3454 | F19: 0.0423862 | G19: 0.0252247 | H19: 0.8541606263 | I19: 0.9707161496 | J19: 0.9747752972 | K19: 0.9866628008 | L19: 0.3256016237 | M19: 0.6601913598 | N19: 0.1962887794 | O19: 0.1275732096 | U19: =IF(Q6=MAX($Q$4:$Q$7), Q6, NA()) ->  | V19: =IF(Q6=MIN($Q$4:$Q$7), Q6, NA()) ->  | W19: =IF(AND(ISNA(U19), ISNA(V19)), Q6, NA()) -> 0.9607843137
A20: 11 | B20: Valles | C20: 6 | D20: Ameca | E20: 15554 | F20: 0.03677715 | G20: 0.01797608 | H20: 0.771419334 | I20: 0.9749110896 | J20: 0.9731652118 | K20: 0.9905593275 | L20: 0.4874232137 | M20: 0.6373747171 | N20: 0.247462011 | O20: 0.1617846751 | U20: =IF(Q7=MAX($Q$4:$Q$7), Q7, NA()) -> 0.9927660385 | V20: =IF(Q7=MIN($Q$4:$Q$7), Q7, NA()) ->  | W20: =IF(AND(ISNA(U20), ISNA(V20)), Q7, NA()) -> 
A21: 11 | B21: Valles | C21: 7 | D21: San Juanito de Escobedo | E21: 2333 | F21: 0.03819085 | G21: 0.02807775 | H21: 0.792224622 | I21: 0.9710583153 | J21: 0.9688984881 | K21: 0.9866090713 | L21: 0.4190064795 | M21: 0.5637149028 | N21: 0.1611231102 | O21: 0.1006479482
A22: 3 | B22: Altos Sur | C22: 8 | D22: Arandas | E22: 18024 | F22: 0.04033026 | G22: 0.01085444 | H22: 0.8768160312 | I22: 0.9652657946 | J22: 0.9698302254 | K22: 0.9889229056 | L22: 0.3627052602 | M22: 0.7428332869 | N22: 0.2467575842 | O22: 0.1483440022 | U22: max | V22: min | W22: val
A23: 11 | B23: Valles | C23: 9 | D23: El Arenal | E23: 4229 | F23: 0.04175986 | G23: 0.01380814 | H23: 0.8687015504 | I23: 0.9837693798 | J23: 0.9849806202 | K23: 0.9808624031 | L23: 0.3955910853 | M23: 0.7100290698 | N23: 0.230620155 | O23: 0.1216085271 | U23: =IF(Q9=MAX($Q$9:$Q$12), Q9, NA()) ->  | V23: =IF(Q9=MIN($Q$9:$Q$12), Q9, NA()) ->  | W23: =IF(AND(ISNA(U23), ISNA(V23)), Q9, NA()) -> 0.3571292595
A24: 6 | B24: Sur | C24: 10 | D24: Atemajac de Brizuela | E24: 1437 | F24: 0.04634589 | G24: 0.07187718 | H24: 0.7962316818 | I24: 0.9281228193 | J24: 0.9274249826 | K24: 0.9672016748 | L24: 0.2575017446 | M24: 0.5136078158 | N24: 0.09909281228 | O24: 0.06280530356 | U24: =IF(Q10=MAX($Q$9:$Q$12), Q10, NA()) -> 0.7028364744 | V24: =IF(Q10=MIN($Q$9:$Q$12), Q10, NA()) ->  | W24: =IF(AND(ISNA(U24), ISNA(V24)), Q10, NA()) -> 
A25: 7 | B25: Sierra de Amula | C25: 11 | D25: Atengo | E25: 1388 | F25: 0.03891775 | G25: 0.05856833 | H25: 0.8185104845 | I25: 0.8980477223 | J25: 0.9045553145 | K25: 0.9652928416 | L25: 0.3398409255 | M25: 0.3629790311 | N25: 0.09906001446 | O25: 0.03109182936 | U25: =IF(Q11=MAX($Q$9:$Q$12), Q11, NA()) ->  | V25: =IF(Q11=MIN($Q$9:$Q$12), Q11, NA()) ->  | W25: =IF(AND(ISNA(U25), ISNA(V25)), Q11, NA()) -> 0.1364934323
A26: 10 | B26: Sierra Occidental | C26: 12 | D26: Atenguillo | E26: 1182 | F26: 0.03483022 | G26: 0.02631579 | H26: 0.8820033956 | I26: 0.955008489 | J26: 0.9584040747 | K26: 0.9753820034 | L26: 0.5084889643 | M26: 0.4303904924 | N26: 0.1706281834 | O26: 0.0636672326 | U26: =IF(Q12=MAX($Q$9:$Q$12), Q12, NA()) ->  | V26: =IF(Q12=MIN($Q$9:$Q$12), Q12, NA()) -> 0.07405292214 | W26: =IF(AND(ISNA(U26), ISNA(V26)), Q12, NA()) -> 
A27: 4 | B27: Ciénega | C27: 13 | D27: Atotonilco el Alto | E27: 14169 | F27: 0.04051489 | G27: 0.02130521 | H27: 0.8458380521 | I27: 0.9709796149 | J27: 0.9743771234 | K27: 0.9938420159 | L27: 0.4206540204 | M27: 0.6251415629 | N27: 0.2090883352 | O27: 0.1310872027
A28: 6 | B28: Sur | C28: 14 | D28: Atoyac | E28: 2252 | F28: 0.03651225 | G28: 0.12783964 | H28: 0.868596882 | I28: 0.9719376392 | J28: 0.9786191537 | K28: 0.9804008909 | L28: 0.4619153675 | M28: 0.446325167 | N28: 0.119376392 | O28: 0.08195991091
A29: 8 | B29: Costa Sur | C29: 15 | D29: Autlán de Navarro | E29: 15071 | F29: 0.03807936 | G29: 0.03611167 | H29: 0.8872010127 | I29: 0.9859417683 | J29: 0.9813445266 | K29: 0.9888733427 | L29: 0.538876674 | M29: 0.6894529949 | N29: 0.3363315344 | O29: 0.2543140782
A30: 4 | B30: Ciénega | C30: 16 | D30: Ayotlán | E30: 9093 | F30: 0.0420964 | G30: 0.03822428 | H30: 0.8448997577 | I30: 0.9560475876 | J30: 0.9537343027 | K30: 0.9889843578 | L30: 0.3826834104 | M30: 0.4664022913 | N30: 0.1337298965 | O30: 0.07193214364
A31: 10 | B31: Sierra Occidental | C31: 17 | D31: Ayutla | E31: 3244 | F31: 0.03900679 | G31: 0.08207343 | H31: 0.8583770441 | I31: 0.9342795434 | J31: 0.9413761185 | K31: 0.9765504474 | L31: 0.3653193459 | M31: 0.5097192225 | N31: 0.1456340636 | O31: 0.05276149337
A32: 4 | B32: Ciénega | C32: 18 | D32: La Barca | E32: 15548 | F32: 0.04124357 | G32: 0.0179066 | H32: 0.9241867955 | I32: 0.986215781 | J32: 0.9838969404 | K32: 0.9949114332 | L32: 0.4755555556 | M32: 0.5411272142 | N32: 0.2008373591 | O32: 0.1288244767
A33: 1 | B33: Norte | C33: 19 | D33: Bolaños | E33: 1441 | F33: 0.04734028 | G33: 0.27866574 | H33: 0.5719249479 | I33: 0.4517025712 | J33: 0.4711605281 | K33: 0.6226546213 | L33: 0.1667824878 | M33: 0.3662265462 | N33: 0.1049339819 | O33: 0.02362751911
A34: 9 | B34: Costa Norte | C34: 20 | D34: Cabo Corrientes | E34: 2615 | F34: 0.03836141 | G34: 0.08685626 | H34: 0.6744811683 | I34: 0.8493466564 | J34: 0.8704842429 | K34: 0.9277478862 | L34: 0.2636433513 | M34: 0.478093774 | N34: 0.1252882398 | O34: 0.08032282859
A35: 8 | B35: Costa Sur | C35: 21 | D35: Casimiro Castillo | E35: 5770 | F35: 0.03717406 | G35: 0.02843766 | H35: 0.9096584012 | I35: 0.9769377493 | J35: 0.9764175481 | K35: 0.9852609676 | L35: 0.4426911739 | M35: 0.5687532513 | N35: 0.2068666551 | O35: 0.1215536674
A36: 8 | B36: Costa Sur | C36: 22 | D36: Cihuatlán | E36: 10292 | F36: 0.03785406 | G36: 0.06730202 | H36: 0.6484574573 | I36: 0.9760267243 | J36: 0.9728826882 | K36: 0.9862448418 | L36: 0.3622519159 | M36: 0.6443309098 | N36: 0.2285321281 | O36: 0.1694831991
A37: 6 | B37: Sur | C37: 23 | D37: Zapotlán el Grande | E37: 25091 | F37: 0.03974111 | G37: 0.03047441 | H37: 0.9692000976 | I37: 0.9930425584 | J37: 0.9947920905 | K37: 0.9947107169 | L37: 0.5746602653 | M37: 0.770160306 | N37: 0.3880299455 | O37: 0.2762633249
A38: 11 | B38: Valles | C38: 24 | D38: Cocula | E38: 6813 | F38: 0.03830568 | G38: 0.04714349 | H38: 0.8032016449 | I38: 0.9616683801 | J38: 0.9582904979 | K38: 0.9897194889 | L38: 0.4629167279 | M38: 0.553238361 | N38: 0.1834336907 | O38: 0.1177852842
A39: 1 | B39: Norte | C39: 25 | D39: Colotlán | E39: 4706 | F39: 0.03838317 | G39: 0.02029481 | H39: 0.9480880154 | I39: 0.9626148259 | J39: 0.9638966033 | K39: 0.9908139286 | L39: 0.4736167486 | M39: 0.6361888485 | N39: 0.3118991668 | O39: 0.2035889767
A40: 5 | B40: Sureste | C40: 26 | D40: Concepción de Buenos Aires | E40: 1618 | F40: 0.03659456 | G40: 0.06613103 | H40: 0.9585908529 | I40: 0.9765142151 | J40: 0.9709517923 | K40: 0.9870210136 | L40: 0.4746600742 | M40: 0.5778739184 | N40: 0.1446229913 | O40: 0.1056860321
A41: 8 | B41: Costa Sur | C41: 27 | D41: Cuautitlán de García Barragán | E41: 4242 | F41: 0.04084474 | G41: 0.16426717 | H41: 0.567382582 | I41: 0.7314137361 | J41: 0.7104083078 | K41: 0.8675949965 | L41: 0.1947132405 | M41: 0.1621430257 | N41: 0.07576115176 | O41: 0.03327826292
A42: 10 | B42: Sierra Occidental | C42: 28 | D42: Cuautla | E42: 584 | F42: 0.03717466 | G42: 0.02739726 | H42: 0.7654109589 | I42: 0.9023972603 | J42: 0.8955479452 | K42: 0.9537671233 | L42: 0.4434931507 | M42: 0.5410958904 | N42: 0.1215753425 | O42: 0.02910958904
A43: 12 | B43: Centro | C43: 29 | D43: Cuquío | E43: 4486 | F43: 0.03966577 | G43: 0.04268704 | H43: 0.4518085823 | I43: 0.9054145136 | J43: 0.9144012581 | K43: 0.9860705459 | L43: 0.2994832622 | M43: 0.6084026062 | N43: 0.1118849697 | O43: 0.0521231184
A44: 4 | B44: Ciénega | C44: 30 | D44: Chapala | E44: 12668 | F44: 0.03848373 | G44: 0.02561024 | H44: 0.9421368547 | I44: 0.981352541 | J44: 0.9843937575 | K44: 0.9903961585 | L44: 0.5240496198 | M44: 0.7406962785 | N44: 0.3887154862 | O44: 0.3051620648
A45: 1 | B45: Norte | C45: 31 | D45: Chimaltitán | E45: 912 | F45: 0.04128289 | G45: 0.07260726 | H45: 0.6237623762 | I45: 0.6094609461 | J45: 0.6127612761 | K45: 0.7821782178 | L45: 0.2112211221 | M45: 0.4191419142 | N45: 0.07590759076 | O45: 0.02200220022
A46: 7 | B46: Sierra de Amula | C46: 32 | D46: Chiquilistlán | E46: 1341 | F46: 0.0433557 | G46: 0.11334825 | H46: 0.6077554064 | I46: 0.9209545116 | J46: 0.91349739 | K46: 0.9492915735 | L46: 0.2408650261 | M46: 0.4444444444 | N46: 0.08873974646 | O46: 0.03206562267
A47: 4 | B47: Ciénega | C47: 33 | D47: Degollado | E47: 5259 | F47: 0.04014832 | G47: 0.02509983 | H47: 0.7805666477 | I47: 0.908727895 | J47: 0.9454268872 | K47: 0.9893515878 | L47: 0.4588324777 | M47: 0.4942004183 | N47: 0.1743677505 | O47: 0.1161817836
A48: 7 | B48: Sierra de Amula | C48: 34 | D48: Ejutla | E48: 609 | F48: 0.03344828 | G48: 0.03776683 | H48: 0.8883415435 | I48: 0.9622331691 | J48: 0.9556650246 | K48: 0.9655172414 | L48: 0.4679802956 | M48: 0.4006568144 | N48: 0.1756978654 | O48: 0.1297208539
A49: 2 | B49: Altos Norte | C49: 35 | D49: Encarnación de Díaz | E49: 12504 | F49: 0.04107366 | G49: 0.01586157 | H49: 0.9197308339 | I49: 0.9498517984 | J49: 0.9527357206 | K49: 0.9826964672 | L49: 0.403348554 | M49: 0.6256508852 | N49: 0.1921012577 | O49: 0.1018985821
A50: 11 | B50: Valles | C50: 36 | D50: Etzatlán | E50: 4691 | F50: 0.03960307 | G50: 0.03011534 | H50: 0.8788979069 | I50: 0.9773601025 | J50: 0.9820589492 | K50: 0.9912430585 | L50: 0.5168731311 | M50: 0.5689876121 | N50: 0.2381460914 | O50: 0.1747116617
A51: 7 | B51: Sierra de Amula | C51: 37 | D51: El Grullo | E51: 6315 | F51: 0.03765252 | G51: 0.02483178 | H51: 0.7545658443 | I51: 0.9894264659 | J51: 0.9854213393 | K51: 0.9935917975 | L51: 0.5320410125 | M51: 0.669336751 | N51: 0.3132008971 | O51: 0.2254085229
A52: 10 | B52: Sierra Occidental | C52: 38 | D52: Guachinango | E52: 1218 | F52: 0.03549712 | G52: 0.10452675 | H52: 0.6543209877 | I52: 0.8790123457 | J52: 0.8806584362 | K52: 0.9530864198 | L52: 0.3654320988 | M52: 0.4880658436 | N52: 0.1086419753 | O52: 0.02633744856
A53: 12 | B53: Centro | C53: 39 | D53: Guadalajara | E53: 379339 | F53: 0.03951945 | G53: 0.01450386 | H53: 0.9864031335 | I53: 0.9941369081 | J53: 0.9952193666 | K53: 0.9973545902 | L53: 0.7331348376 | M53: 0.8200743414 | N53: 0.4909016798 | O53: 0.3856197682
A54: 11 | B54: Valles | C54: 40 | D54: Hostotipaquillo | E54: 2260 | F54: 0.04240921 | G54: 0.0571302 | H54: 0.6116031887 | I54: 0.902125775 | J54: 0.9047829938 | K54: 0.9787422498 | L54: 0.2581930912 | M54: 0.6062887511 | N54: 0.08547387068 | O54: 0.02037201063
A55: 1 | B55: Norte | C55: 41 | D55: Huejúcar | E55: 1745 | F55: 0.03484241 | G55: 0.01260745 | H55: 0.9593123209 | I55: 0.9340974212 | J55: 0.9386819484 | K55: 0.9885386819 | L55: 0.4429799427 | M55: 0.4968481375 | N55: 0.1575931232 | O55: 0.07965616046
A56: 1 | B56: Norte | C56: 42 | D56: Huejuquilla el Alto | E56: 2142 | F56: 0.04100094 | G56: 0.06785213 | H56: 0.7351427234 | I56: 0.8128217127 | J56: 0.8193729527 | K56: 0.9475900796 | L56: 0.3313055686 | M56: 0.4941506785 | N56: 0.1502105756 | O56: 0.06691623772
A57: 8 | B57: Costa Sur | C57: 43 | D57: La Huerta | E57: 6360 | F57: 0.03684401 | G57: 0.04602049 | H57: 0.6266351458 | I57: 0.9437352246 | J57: 0.9464144996 | K57: 0.9676910954 | L57: 0.3832939322 | M57: 0.4898345154 | N57: 0.1921197794 | O57: 0.1325453113
A58: 12 | B58: Centro | C58: 44 | D58: Ixtlahuacán de los Membrillos | E58: 10489 | F58: 0.03906793 | G58: 0.02091691 | H58: 0.882234957 | I58: 0.9829990449 | J58: 0.9812798472 | K58: 0.9888252149 | L58: 0.2615090735 | M58: 0.7783190067 | N58: 0.2042979943 | O58: 0.1111747851
A59: 12 | B59: Centro | C59: 45 | D59: Ixtlahuacán del Río | E59: 4785 | F59: 0.03969881 | G59: 0.04440721 | H59: 0.6426476749 | I59: 0.9457478006 | J59: 0.9444909929 | K59: 0.9840804357 | L59: 0.3713866778 | M59: 0.6365731043 | N59: 0.150816925 | O59: 0.07687473817
A60: 3 | B60: Altos Sur | C60: 46 | D60: Jalostotitlán | E60: 7589 | F60: 0.04194726 | G60: 0.01241088 | H60: 0.9207816213 | I60: 0.9651439134 | J60: 0.967784526 | K60: 0.9900977027 | L60: 0.399788751 | M60: 0.7082123053 | N60: 0.2150778981 | O60: 0.1439133879
A61: 4 | B61: Ciénega | C61: 47 | D61: Jamay | E61: 5512 | F61: 0.04147273 | G61: 0.0209167 | H61: 0.9390687523 | I61: 0.9839941797 | J61: 0.9863586759 | K61: 0.994907239 | L61: 0.4616224081 | M61: 0.5940341943 | N61: 0.1797017097 | O61: 0.1093124773
A62: 3 | B62: Altos Sur | C62: 48 | D62: Jesús María | E62: 4632 | F62: 0.04020748 | G62: 0.02118003 | H62: 0.8759455371 | I62: 0.9345148044 | J62: 0.9390533823 | K62: 0.9764426194 | L62: 0.4125783445 | M62: 0.5560838556 | N62: 0.1504214394 | O62: 0.09963259131
A63: 5 | B63: Sureste | C63: 49 | D63: Jilotlán de los Dolores | E63: 2456 | F63: 0.03887123 | G63: 0.06442347 | H63: 0.3734099302 | I63: 0.8215018465 | J63: 0.8247845712 | K63: 0.9507591301 | L63: 0.1871153057 | M63: 0.4755847353 | N63: 0.07509232663 | O63: 0.01641362331
A64: 4 | B64: Ciénega | C64: 50 | D64: Jocotepec | E64: 9366 | F64: 0.045163 | G64: 0.0430259 | H64: 0.7867129078 | I64: 0.9777825946 | J64: 0.9801669015 | K64: 0.9884035981 | L64: 0.3935190203 | M64: 0.6855966186 | N64: 0.2084101008 | O64: 0.1393735775
A65: 12 | B65: Centro | C65: 51 | D65: Juanacatlán | E65: 3229 | F65: 0.04085502 | G65: 0.01983881 | H65: 0.777433354 | I65: 0.9680719157 | J65: 0.9807811531 | K65: 0.993800372 | L65: 0.3849969002 | M65: 0.7321760694 | N65: 0.2355858648 | O65: 0.1255424675
A66: 7 | B66: Sierra de Amula | C66: 52 | D66: Juchitlán | E66: 1493 | F66: 0.03683858 | G66: 0.03357958 | H66: 0.8932169241 | I66: 0.9576897246 | J66: 0.9516453996 | K66: 0.9751511081 | L66: 0.4728005373 | M66: 0.5003357958 | N66: 0.1591672263 | O66: 0.1067830759
A67: 2 | B67: Altos Norte | C67: 53 | D67: Lagos de Moreno | E67: 35990 | F67: 0.04265236 | G67: 0.02398262 | H67: 0.8856020724 | I67: 0.9209492772 | J67: 0.9336508732 | K67: 0.9880226178 | L67: 0.3780396089 | M67: 0.6839363806 | N67: 0.2563159801 | O67: 0.1742012757
A68: 7 | B68: Sierra de Amula | C68: 54 | D68: El Limón | E68: 1738 | F68: 0.03153002 | G68: 0.02136259 | H68: 0.9110854503 | I68: 0.9780600462 | J68: 0.9826789838 | K68: 0.9896073903 | L68: 0.6108545035 | M68: 0.4896073903 | N68: 0.2159353349 | O68: 0.1327944573
A69: 11 | B69: Valles | C69: 55 | D69: Magdalena | E69: 5052 | F69: 0.04223063 | G69: 0.01574646 | H69: 0.8078532988 | I69: 0.9697030098 | J69: 0.9828582818 | K69: 0.9820609926 | L69: 0.3731313534 | M69: 0.6904524616 | N69: 0.1891568667 | O69: 0.1241777955
A70: 5 | B70: Sureste | C70: 56 | D70: Santa María del Oro | E70: 672 | F70: 0.03745536 | G70: 0.09821429 | H70: 0.6755952381 | I70: 0.5803571429 | J70: 0.6369047619 | K70: 0.8005952381 | L70: 0.2931547619 | M70: 0.1175595238 | N70: 0.06101190476 | O70: 0.01488095238
A71: 5 | B71: Sureste | C71: 57 | D71: La Manzanilla de la Paz | E71: 1059 | F71: 0.03545798 | G71: 0.03119093 | H71: 0.9262759924 | I71: 0.9735349716 | J71: 0.9697542533 | K71: 0.9914933837 | L71: 0.4981096408 | M71: 0.5491493384 | N71: 0.190926276 | O71: 0.1172022684
A72: 10 | B72: Sierra Occidental | C72: 58 | D72: Mascota | E72: 3849 | F72: 0.03679865 | G72: 0.01875977 | H72: 0.9504950495 | I72: 0.9650859823 | J72: 0.9583116206 | K72: 0.9643043252 | L72: 0.4033350703 | M72: 0.6581552892 | N72: 0.2501302762 | O72: 0.1829077645
A73: 5 | B73: Sureste | C73: 59 | D73: Mazamitla | E73: 3280 | F73: 0.04022297 | G73: 0.04766269 | H73: 0.8026275588 | I73: 0.945004583 | J73: 0.9480598839 | K73: 0.9776963031 | L73: 0.3440268866 | M73: 0.6183929117 | N73: 0.1976779713 | O73: 0.1292392301
A74: 3 | B74: Altos Sur | C74: 60 | D74: Mexticacán | E74: 1722 | F74: 0.03504065 | G74: 0.0273097 | H74: 0.9279488669 | I74: 0.9511911679 | J74: 0.9529343405 | K74: 0.9825682743 | L74: 0.3085415456 | M74: 0.6629866357 | N74: 0.0987797792 | O74: 0.04822777455
A75: 1 | B75: Norte | C75: 61 | D75: Mezquitic | E75: 3747 | F75: 0.04820588 | G75: 0.35508021 | H75: 0.3745989305 | I75: 0.3286096257 | J75: 0.3687165775 | K75: 0.5173796791 | L75: 0.1446524064 | M75: 0.2013368984 | N75: 0.06096256684 | O75: 0.01684491979
A76: 10 | B76: Sierra Occidental | C76: 62 | D76: Mixtlán | E76: 946 | F76: 0.03778013 | G76: 0.06131078 | H76: 0.8942917548 | I76: 0.8974630021 | J76: 0.9080338266 | K76: 0.9503171247 | L76: 0.4693446089 | M76: 0.4746300211 | N76: 0.1606765328 | O76: 0.04756871036
A77: 4 | B77: Ciénega | C77: 63 | D77: Ocotlán | E77: 23111 | F77: 0.04022843 | G77: 0.01828233 | H77: 0.8653636878 | I77: 0.9819353154 | J77: 0.9858964872 | K77: 0.994080007 | L77: 0.4813911984 | M77: 0.7356897227 | N77: 0.3133678666 | O77: 0.2161668045
A78: 2 | B78: Altos Norte | C78: 64 | D78: Ojuelos de Jalisco | E78: 6717 | F78: 0.0447953 | G78: 0.04532578 | H78: 0.8233189205 | I78: 0.8018488147 | J78: 0.8093037125 | K78: 0.975398837 | L78: 0.3087818697 | M78: 0.4945579246 | N78: 0.1197256598 | O78: 0.0475622484
A79: 5 | B79: Sureste | C79: 65 | D79: Pihuamo | E79: 3463 | F79: 0.03496679 | G79: 0.06212077 | H79: 0.8480208032 | I79: 0.9482808437 | J79: 0.9500144467 | K79: 0.9612828662 | L79: 0.4657613407 | M79: 0.4660502745 | N79: 0.1210632765 | O79: 0.06818838486
A80: 4 | B80: Ciénega | C80: 66 | D80: Poncitlán | E80: 10711 | F80: 0.04520262 | G80: 0.05177903 | H80: 0.8520599251 | I80: 0.96582397 | J80: 0.9665730337 | K80: 0.9849250936 | L80: 0.3501872659 | M80: 0.5574906367 | N80: 0.1825842697 | O80: 0.1133895131
A81: 9 | B81: Costa Norte | C81: 67 | D81: Puerto Vallarta | E81: 68677 | F81: 0.0372593 | G81: 0.0209557 | H81: 0.9018612267 | I81: 0.9812074689 | J81: 0.9839715183 | K81: 0.9918881161 | L81: 0.4786311947 | M81: 0.8591386381 | N81: 0.4070062642 | O81: 0.3348255194
A82: 8 | B82: Costa Sur | C82: 68 | D82: Villa Purificación | E82: 3107 | F82: 0.03739214 | G82: 0.11351177 | H82: 0.7623347307 | I82: 0.851338278 | J82: 0.8548855208 | K82: 0.8935827153 | L82: 0.2821670429 | M82: 0.3502096098 | N82: 0.1099645276 | O82: 0.05288616575
A83: 5 | B83: Sureste | C83: 69 | D83: Quitupan | E83: 2395 | F83: 0.03627557 | G83: 0.0914787 | H83: 0.5802005013 | I83: 0.8462823726 | J83: 0.8650793651 | K83: 0.9728487886 | L83: 0.4269005848 | M83: 0.2773600668 | N83: 0.1006683375 | O83: 0.05179615706
A84: 12 | B84: Centro | C84: 70 | D84: El Salto | E84: 32230 | F84: 0.0429512 | G84: 0.05376109 | H84: 0.8016368862 | I84: 0.9757278521 | J84: 0.9835686618 | K84: 0.9909721354 | L84: 0.3902599025 | M84: 0.7844245908 | N84: 0.230757216 | O84: 0.131669374
A85: 12 | B85: Centro | C85: 71 | D85: San Cristóbal de la Barranca | E85: 770 | F85: 0.04130548 | G85: 0.08877285 | H85: 0.6671018277 | I85: 0.8929503916 | J85: 0.9060052219 | K85: 0.9778067885 | L85: 0.227154047 | M85: 0.6057441253 | N85: 0.05613577023 | O85: 0.01044386423
A86: 2 | B86: Altos Norte | C86: 72 | D86: San Diego de Alejandría | E86: 1532 | F86: 0.04335075 | G86: 0.01567603 | H86: 0.9307642064 | I86: 0.9248856956 | J86: 0.9503592423 | K86: 0.9836708034 | L86: 0.4049640758 | M86: 0.625081646 | N86: 0.1365120836 | O86: 0.04049640758
A87: 2 | B87: Altos Norte | C87: 73 | D87: San Juan de los Lagos | E87: 15118 | F87: 0.04294472 | G87: 0.01036132 | H87: 0.8342853348 | I87: 0.9586211477 | J87: 0.962141339 | K87: 0.992162593 | L87: 0.4018331562 | M87: 0.7274840595 | N87: 0.2409006376 | O87: 0.1643198725
A88: 3 | B88: Altos Sur | C88: 74 | D88: San Julián | E88: 3916 | F88: 0.03950013 | G88: 0.00872018 | H88: 0.9356245191 | I88: 0.9648627853 | J88: 0.97358297 | K88: 0.9935880995 | L88: 0.5144908951 | M88: 0.6896640164 | N88: 0.2262118492 | O88: 0.1464478071
A89: 11 | B89: Valles | C89: 75 | D89: San Marcos | E89: 948 | F89: 0.03958861 | G89: 0.04746835 | H89: 0.9303797468 | I89: 0.9546413502 | J89: 0.9641350211 | K89: 0.9599156118 | L89: 0.4588607595 | M89: 0.5917721519 | N89: 0.1729957806 | O89: 0.06012658228
A90: 1 | B90: Norte | C90: 76 | D90: San Martín de Bolaños | E90: 836 | F90: 0.04072464 | G90: 0.10869565 | H90: 0.7801932367 | I90: 0.8321256039 | J90: 0.8647342995 | K90: 0.8586956522 | L90: 0.2053140097 | M90: 0.6425120773 | N90: 0.115942029 | O90: 0.01328502415
A91: 11 | B91: Valles | C91: 77 | D91: San Martín Hidalgo | E91: 7262 | F91: 0.0362221 | G91: 0.0192997 | H91: 0.8407775021 | I91: 0.9727047146 | J91: 0.970499035 | K91: 0.9900744417 | L91: 0.5567962503 | M91: 0.5139233526 | N91: 0.2171215881 | O91: 0.1195202647
A92: 3 | B92: Altos Sur | C92: 78 | D92: San Miguel el Alto | E92: 7539 | F92: 0.0413174 | G92: 0.02844988 | H92: 0.9073384738 | I92: 0.934990694 | J92: 0.9395107684 | K92: 0.9847115129 | L92: 0.4436320128 | M92: 0.6966232385 | N92: 0.2233448551 | O92: 0.1582026057
A93: 6 | B93: Sur | C93: 79 | D93: Gómez Farías | E93: 3249 | F93: 0.04324736 | G93: 0.09984448 | H93: 0.832348367 | I93: 0.9692068429 | J93: 0.9748055988 | K93: 0.9825816485 | L93: 0.4083981337 | M93: 0.4976671851 | N93: 0.1443234837 | O93: 0.06842923795
A94: 10 | B94: Sierra Occidental | C94: 80 | D94: San Sebastián del Oeste | E94: 1574 | F94: 0.03656707 | G94: 0.05403687 | H94: 0.7164653528 | I94: 0.9116338207 | J94: 0.9186268277 | K94: 0.9574062301 | L94: 0.2695486332 | M94: 0.3280356008 | N94: 0.1010807374 | O94: 0.0451366815
A95: 1 | B95: Norte | C95: 81 | D95: Santa María de los Ángeles | E95: 1030 | F95: 0.03618076 | G95: 0.03793774 | H95: 0.9523346304 | I95: 0.8667315175 | J95: 0.8978599222 | K95: 0.9815175097 | L95: 0.4513618677 | M95: 0.2782101167 | N95: 0.09241245136 | O95: 0.01361867704
A96: 6 | B96: Sur | C96: 82 | D96: Sayula | E96: 8302 | F96: 0.0418311 | G96: 0.06447337 | H96: 0.9756567848 | I96: 0.9810797783 | J96: 0.9865027718 | K96: 0.9925283201 | L96: 0.4831284647 | M96: 0.6637744035 | N96: 0.2603036876 | O96: 0.1814895155
A97: 11 | B97: Valles | C97: 83 | D97: Tala | E97: 17490 | F97: 0.03943526 | G97: 0.0202784 | H97: 0.8957438277 | I97: 0.9867674858 | J97: 0.986882053 | K97: 0.9913501747 | L97: 0.4031620553 | M97: 0.6753737756 | N97: 0.2382998224 | O97: 0.133470814
A98: 10 | B98: Sierra Occidental | C98: 84 | D98: Talpa de Allende | E98: 3665 | F98: 0.0392272 | G98: 0.04369197 | H98: 0.7001638449 | I98: 0.9145275806 | J98: 0.9126160568 | K98: 0.944565811 | L98: 0.3192244675 | M98: 0.4819770617 | N98: 0.150737302 | O98: 0.1206990715
A99: 5 | B99: Sureste | C99: 85 | D99: Tamazula de Gordiano | E99: 10518 | F99: 0.03611233 | G99: 0.03042732 | H99: 0.8883059901 | I99: 0.9722434185 | J99: 0.9710988172 | K99: 0.974723388 | L99: 0.5037199542 | M99: 0.5620946204 | N99: 0.2400801221 | O99: 0.1841854254
A100: 6 | B100: Sur | C100: 86 | D100: Tapalpa | E100: 3938 | F100: 0.04578129 | G100: 0.06195818 | H100: 0.7078021418 | I100: 0.9015808261 | J100: 0.9018357981 | K100: 0.9691483937 | L100: 0.2952575217 | M100: 0.4951555329 | N100: 0.1371749108 | O100: 0.09000509944
A101: 5 | B101: Sureste | C101: 87 | D101: Tecalitlán | E101: 4479 | F101: 0.03756141 | G101: 0.09466128 | H101: 0.8851502916 | I101: 0.9362943024 | J101: 0.9367429341 | K101: 0.9349484074 | L101: 0.4912516824 | M101: 0.5408254823 | N101: 0.1828174069 | O101: 0.1390758188
A102: 7 | B102: Sierra de Amula | C102: 88 | D102: Tecolotlán | E102: 4553 | F102: 0.03634286 | G102: 0.0466139 | H102: 0.8693931398 | I102: 0.9525065963 | J102: 0.9571240106 | K102: 0.9890061566 | L102: 0.4355760774 | M102: 0.5463940193 | N102: 0.1932717678 | O102: 0.1114775726
